Workbook

Sheet Rit overzicht 2024
A1: =D1+E1 -> 3261 | D1: =BM1 -> 1069 | E1: =BN1 -> 2192 | I1: =SUM(I3:I89) -> 138 | J1: 159 | K1: 168 | L1: 147 | M1: 343 | N1: 111 | O1: 0 | P1: 58 | Q1: 201 | R1: 104 | S1: 206 | T1: 168 | U1: 230 | V1: 107 | W1: 360 | X1: 102 | Y1: 246 | Z1: 135 | AA1: 278 | AB1: 0 | AC1: 0 | AD1: 0 | AE1: 0 | AF1: 0 | AG1: 0 | AH1: 0 | AI1: 0 | AJ1: 0 | AK1: 0 | AL1: 0 | AM1: 0 | AN1: 0 | AO1: =SUM(AO3:AO89) -> 0 | AP1: 0 | AQ1: 0 | AR1: 0 | AS1: 0 | AT1: 0 | AU1: 0 | AV1: 0 | AW1: 0 | AX1: 0 | AY1: 0 | AZ1: 0 | BA1: 0 | BB1: 0 | BC1: 0 | BD1: 0 | BE1: 0 | BF1: 0 | BG1: =SUM(BG3:BG87) -> 0 | BH1: =SUM(BH3:BH87) -> 0 | BI1: =BI88 -> 219 | BJ1: =BJ88 -> 872 | BK1: =BK88 -> 850 | BL1: =BL88 -> 1320 | BM1: =BI1+BK1 -> 1069 | BN1: =BJ1+BL1 -> 2192 | BO1: Totaal | BP1: =BM1+BN1 -> 3261
A2: Route | B2: Kolom1 | C2: Dag | D2: Route | E2: Beginadres Week | F2: Rest | G2: GFT | H2: PMD | I2: 1 | J2: 2 | K2: 3 | L2: 4 | M2: 5 | N2: 6 | O2: 7 | P2: 8 | Q2: 9 | R2: 10 | S2: 11 | T2: 12 | U2: 13 | V2: 14 | W2: 15 | X2: 16 | Y2: 17 | Z2: 18 | AA2: 19 | AB2: 20 | AC2: 21 | AD2: 22 | AE2: 23 | AF2: 24 | AG2: 25 | AH2: 26 | AI2: 27 | AJ2: 28 | AK2: 29 | AL2: 30 | AM2: 31 | AN2: 32 | AO2: 33 | AP2: 34 | AQ2: 35 | AR2: 36 | AS2: 37 | AT2: 38 | AU2: 39 | AV2: 40 | AW2: 41 | AX2: 42 | AY2: 43 | AZ2: 44 | BA2: 45 | BB2: 46 | BC2: 47 | BD2: 48 | BE2: 49 | BF2: 50 | BG2: 51 | BH2: 52 | BI2: RGFT | BJ2: GLGFT | BK2: RPMD | BL2: GPMD | BM2: Totaal Rood | BN2: Totaal Geel | BO2: Regio | BP2: Kolom2 | BR2: Rode kaarten | BS2: Gele kaarten | BT2: Totaal
A3: 1.1 | C3: Maandag | D3: Kedichem - Leerdam Varseveld - Leerdam Oost | F3: 6 | G3: 4 | H3: 4 | W3: 16 | BI3: =Tabel2547[[#This Row],[52]]+Tabel2547[[#This Row],[50]]+Tabel2547[[#This Row],[48]]+Tabel2547[[#This Row],[46]]+Tabel2547[[#This Row],[44]]+Tabel2547[[#This Row],[42]]+Tabel2547[[#This Row],[40]]+Tabel2547[[#This Row],[38]]+Tabel2547[[#This Row],[36]]+Tabel2547[[#This Row],[34]]+Tabel2547[[#This Row],[32]]+Tabel2547[[#This Row],[30]]+Tabel2547[[#This Row],[28]]+Tabel2547[[#This Row],[26]]+Tabel2547[[#This Row],[24]]+Tabel2547[[#This Row],[22]]+Tabel2547[[#This Row],[20]]+Tabel2547[[#This Row],[18]]+Tabel2547[[#This Row],[16]]+Tabel2547[[#This Row],[14]]+Tabel2547[[#This Row],[12]]+Tabel2547[[#This Row],[10]]+Tabel2547[[#This Row],[8]]+Tabel2547[[#This Row],[6]]+Tabel2547[[#This Row],[4]]+Tabel2547[[#This Row],[2]] -> 0 | BK3: =Tabel2547[[#This Row],[51]]+Tabel2547[[#This Row],[49]]+Tabel2547[[#This Row],[47]]+Tabel2547[[#This Row],[45]]+Tabel2547[[#This Row],[43]]+Tabel2547[[#This Row],[41]]+Tabel2547[[#This Row],[39]]+Tabel2547[[#This Row],[37]]+Tabel2547[[#This Row],[35]]+Tabel2547[[#This Row],[33]]+Tabel2547[[#This Row],[31]]+Tabel2547[[#This Row],[29]]+Tabel2547[[#This Row],[27]]+Tabel2547[[#This Row],[25]]+Tabel2547[[#This Row],[23]]+Tabel2547[[#This Row],[21]]+Tabel2547[[#This Row],[19]]+Tabel2547[[#This Row],[17]]+Tabel2547[[#This Row],[15]]+Tabel2547[[#This Row],[13]]+Tabel2547[[#This Row],[11]]+Tabel2547[[#This Row],[9]]+Tabel2547[[#This Row],[7]]+Tabel2547[[#This Row],[5]]+Tabel2547[[#This Row],[3]]+Tabel2547[[#This Row],[1]] -> 16 | BM3: =Tabel2547[[#This Row],[RGFT]]+Tabel2547[[#This Row],[RPMD]] -> 16 | BN3: =BJ4+BL4 -> 42 | BO3: Leerdam | BP3: VHL | BQ3: VHL | BR3: =SUMIF($BO$2:$BO$84,$BQ3,$BM$2:$BM$86) -> 376 | BS3: =SUMIF($BO$2:$BO$86,$BQ3,$BN$2:$BN$86) -> 556 | BT3: =SUM(BR3:BS3) -> 932
A4: 1.1 | C4: Maandag | D4: Kedichem - Leerdam Varseveld - Leerdam Oost | E4: 1=Zwaanseweg 26 - 2=Hernosand 1 - 3= Oranje Nassaulaan 4 | F4: 6 | G4: 4 | H4: 4 | S4: 22 | W4: 20 | X4: 0 | BJ4: =Tabel2547[[#This Row],[52]]+Tabel2547[[#This Row],[50]]+Tabel2547[[#This Row],[48]]+Tabel2547[[#This Row],[46]]+Tabel2547[[#This Row],[44]]+Tabel2547[[#This Row],[42]]+Tabel2547[[#This Row],[40]]+Tabel2547[[#This Row],[38]]+Tabel2547[[#This Row],[36]]+Tabel2547[[#This Row],[34]]+Tabel2547[[#This Row],[32]]+Tabel2547[[#This Row],[30]]+Tabel2547[[#This Row],[28]]+Tabel2547[[#This Row],[26]]+Tabel2547[[#This Row],[24]]+Tabel2547[[#This Row],[22]]+Tabel2547[[#This Row],[20]]+Tabel2547[[#This Row],[18]]+Tabel2547[[#This Row],[16]]+Tabel2547[[#This Row],[14]]+Tabel2547[[#This Row],[12]]+Tabel2547[[#This Row],[10]]+Tabel2547[[#This Row],[8]]+Tabel2547[[#This Row],[6]]+Tabel2547[[#This Row],[4]]+Tabel2547[[#This Row],[2]] -> 0 | BL4: =Tabel2547[[#This Row],[51]]+Tabel2547[[#This Row],[49]]+Tabel2547[[#This Row],[47]]+Tabel2547[[#This Row],[45]]+Tabel2547[[#This Row],[43]]+Tabel2547[[#This Row],[41]]+Tabel2547[[#This Row],[39]]+Tabel2547[[#This Row],[37]]+Tabel2547[[#This Row],[35]]+Tabel2547[[#This Row],[33]]+Tabel2547[[#This Row],[31]]+Tabel2547[[#This Row],[29]]+Tabel2547[[#This Row],[27]]+Tabel2547[[#This Row],[25]]+Tabel2547[[#This Row],[23]]+Tabel2547[[#This Row],[21]]+Tabel2547[[#This Row],[19]]+Tabel2547[[#This Row],[17]]+Tabel2547[[#This Row],[15]]+Tabel2547[[#This Row],[13]]+Tabel2547[[#This Row],[11]]+Tabel2547[[#This Row],[9]]+Tabel2547[[#This Row],[7]]+Tabel2547[[#This Row],[5]]+Tabel2547[[#This Row],[3]]+Tabel2547[[#This Row],[1]] -> 42 | BM4: =Tabel2547[[#This Row],[RGFT]]+Tabel2547[[#This Row],[RPMD]] -> 0 | BN4: 0 | BO4: Leerdam | BP4: VHL | BQ4: Molenlanden | BR4: 275 | BS4: 607 | BT4: 882
A5: 2.1 | C5: Maandag | D5: Vianen Koningsbuurt | M5: 7 | P5: 0 | Q5: 2 | T5: 0 | U5: 10 | X5: 11 | Y5: 14 | BI5: =Tabel2547[[#This Row],[52]]+Tabel2547[[#This Row],[50]]+Tabel2547[[#This Row],[48]]+Tabel2547[[#This Row],[46]]+Tabel2547[[#This Row],[44]]+Tabel2547[[#This Row],[42]]+Tabel2547[[#This Row],[40]]+Tabel2547[[#This Row],[38]]+Tabel2547[[#This Row],[36]]+Tabel2547[[#This Row],[34]]+Tabel2547[[#This Row],[32]]+Tabel2547[[#This Row],[30]]+Tabel2547[[#This Row],[28]]+Tabel2547[[#This Row],[26]]+Tabel2547[[#This Row],[24]]+Tabel2547[[#This Row],[22]]+Tabel2547[[#This Row],[20]]+Tabel2547[[#This Row],[18]]+Tabel2547[[#This Row],[16]]+Tabel2547[[#This Row],[14]]+Tabel2547[[#This Row],[12]]+Tabel2547[[#This Row],[10]]+Tabel2547[[#This Row],[8]]+Tabel2547[[#This Row],[6]]+Tabel2547[[#This Row],[4]]+Tabel2547[[#This Row],[2]] -> 11 | BK5: =Tabel2547[[#This Row],[51]]+Tabel2547[[#This Row],[49]]+Tabel2547[[#This Row],[47]]+Tabel2547[[#This Row],[45]]+Tabel2547[[#This Row],[43]]+Tabel2547[[#This Row],[41]]+Tabel2547[[#This Row],[39]]+Tabel2547[[#This Row],[37]]+Tabel2547[[#This Row],[35]]+Tabel2547[[#This Row],[33]]+Tabel2547[[#This Row],[31]]+Tabel2547[[#This Row],[29]]+Tabel2547[[#This Row],[27]]+Tabel2547[[#This Row],[25]]+Tabel2547[[#This Row],[23]]+Tabel2547[[#This Row],[21]]+Tabel2547[[#This Row],[19]]+Tabel2547[[#This Row],[17]]+Tabel2547[[#This Row],[15]]+Tabel2547[[#This Row],[13]]+Tabel2547[[#This Row],[11]]+Tabel2547[[#This Row],[9]]+Tabel2547[[#This Row],[7]]+Tabel2547[[#This Row],[5]]+Tabel2547[[#This Row],[3]]+Tabel2547[[#This Row],[1]] -> 33 | BM5: =Tabel2547[[#This Row],[RGFT]]+Tabel2547[[#This Row],[RPMD]] -> 44 | BN5: 110 | BO5: VHL | BQ5: Gorinchem | BR5: 248 | BS5: 488 | BT5: 736
A6: 2.1 | C6: Maandag | D6: Vianen Koningsbuurt | E6: Mauritsstraat 67 | M6: 34 | P6: 11 | Q6: 3 | T6: 13 | U6: 17 | X6: 15 | Y6: 17 | BJ6: =Tabel2547[[#This Row],[52]]+Tabel2547[[#This Row],[50]]+Tabel2547[[#This Row],[48]]+Tabel2547[[#This Row],[46]]+Tabel2547[[#This Row],[44]]+Tabel2547[[#This Row],[42]]+Tabel2547[[#This Row],[40]]+Tabel2547[[#This Row],[38]]+Tabel2547[[#This Row],[36]]+Tabel2547[[#This Row],[34]]+Tabel2547[[#This Row],[32]]+Tabel2547[[#This Row],[30]]+Tabel2547[[#This Row],[28]]+Tabel2547[[#This Row],[26]]+Tabel2547[[#This Row],[24]]+Tabel2547[[#This Row],[22]]+Tabel2547[[#This Row],[20]]+Tabel2547[[#This Row],[18]]+Tabel2547[[#This Row],[16]]+Tabel2547[[#This Row],[14]]+Tabel2547[[#This Row],[12]]+Tabel2547[[#This Row],[10]]+Tabel2547[[#This Row],[8]]+Tabel2547[[#This Row],[6]]+Tabel2547[[#This Row],[4]]+Tabel2547[[#This Row],[2]] -> 39 | BL6: =Tabel2547[[#This Row],[51]]+Tabel2547[[#This Row],[49]]+Tabel2547[[#This Row],[47]]+Tabel2547[[#This Row],[45]]+Tabel2547[[#This Row],[43]]+Tabel2547[[#This Row],[41]]+Tabel2547[[#This Row],[39]]+Tabel2547[[#This Row],[37]]+Tabel2547[[#This Row],[35]]+Tabel2547[[#This Row],[33]]+Tabel2547[[#This Row],[31]]+Tabel2547[[#This Row],[29]]+Tabel2547[[#This Row],[27]]+Tabel2547[[#This Row],[25]]+Tabel2547[[#This Row],[23]]+Tabel2547[[#This Row],[21]]+Tabel2547[[#This Row],[19]]+Tabel2547[[#This Row],[17]]+Tabel2547[[#This Row],[15]]+Tabel2547[[#This Row],[13]]+Tabel2547[[#This Row],[11]]+Tabel2547[[#This Row],[9]]+Tabel2547[[#This Row],[7]]+Tabel2547[[#This Row],[5]]+Tabel2547[[#This Row],[3]]+Tabel2547[[#This Row],[1]] -> 71 | BM6: =Tabel2547[[#This Row],[RGFT]]+Tabel2547[[#This Row],[RPMD]] -> 0 | BN6: 0 | BO6: VHL | BQ6: Hardinxveld | BR6: 85 | BS6: 339 | BT6: 424
A7: 2.2 | C7: Maandag | D7: Leerdam Ter Leede binnen | G7: 9 | J7: 8 | M7: 5 | Q7: 7 | T7: 1 | U7: 2 | X7: 2 | Y7: 2 | BI7: =Tabel2547[[#This Row],[52]]+Tabel2547[[#This Row],[50]]+Tabel2547[[#This Row],[48]]+Tabel2547[[#This Row],[46]]+Tabel2547[[#This Row],[44]]+Tabel2547[[#This Row],[42]]+Tabel2547[[#This Row],[40]]+Tabel2547[[#This Row],[38]]+Tabel2547[[#This Row],[36]]+Tabel2547[[#This Row],[34]]+Tabel2547[[#This Row],[32]]+Tabel2547[[#This Row],[30]]+Tabel2547[[#This Row],[28]]+Tabel2547[[#This Row],[26]]+Tabel2547[[#This Row],[24]]+Tabel2547[[#This Row],[22]]+Tabel2547[[#This Row],[20]]+Tabel2547[[#This Row],[18]]+Tabel2547[[#This Row],[16]]+Tabel2547[[#This Row],[14]]+Tabel2547[[#This Row],[12]]+Tabel2547[[#This Row],[10]]+Tabel2547[[#This Row],[8]]+Tabel2547[[#This Row],[6]]+Tabel2547[[#This Row],[4]]+Tabel2547[[#This Row],[2]] -> 11 | BK7: =Tabel2547[[#This Row],[51]]+Tabel2547[[#This Row],[49]]+Tabel2547[[#This Row],[47]]+Tabel2547[[#This Row],[45]]+Tabel2547[[#This Row],[43]]+Tabel2547[[#This Row],[41]]+Tabel2547[[#This Row],[39]]+Tabel2547[[#This Row],[37]]+Tabel2547[[#This Row],[35]]+Tabel2547[[#This Row],[33]]+Tabel2547[[#This Row],[31]]+Tabel2547[[#This Row],[29]]+Tabel2547[[#This Row],[27]]+Tabel2547[[#This Row],[25]]+Tabel2547[[#This Row],[23]]+Tabel2547[[#This Row],[21]]+Tabel2547[[#This Row],[19]]+Tabel2547[[#This Row],[17]]+Tabel2547[[#This Row],[15]]+Tabel2547[[#This Row],[13]]+Tabel2547[[#This Row],[11]]+Tabel2547[[#This Row],[9]]+Tabel2547[[#This Row],[7]]+Tabel2547[[#This Row],[5]]+Tabel2547[[#This Row],[3]]+Tabel2547[[#This Row],[1]] -> 16 | BM7: =Tabel2547[[#This Row],[RGFT]]+Tabel2547[[#This Row],[RPMD]] -> 27 | BN7: 33 | BO7: Leerdam | BP7: VHL | BQ7: Vianen | BR7: 17 | BS7: 32 | BT7: 49
A8: 2.2 | C8: Maandag | D8: Leerdam Ter Leede binnen | E8: Glasblazerstraat 25 | G8: 9 | J8: 4 | M8: 8 | Q8: 11 | T8: 4 | U8: 4 | X8: 2 | Y8: 0 | BJ8: =Tabel2547[[#This Row],[52]]+Tabel2547[[#This Row],[50]]+Tabel2547[[#This Row],[48]]+Tabel2547[[#This Row],[46]]+Tabel2547[[#This Row],[44]]+Tabel2547[[#This Row],[42]]+Tabel2547[[#This Row],[40]]+Tabel2547[[#This Row],[38]]+Tabel2547[[#This Row],[36]]+Tabel2547[[#This Row],[34]]+Tabel2547[[#This Row],[32]]+Tabel2547[[#This Row],[30]]+Tabel2547[[#This Row],[28]]+Tabel2547[[#This Row],[26]]+Tabel2547[[#This Row],[24]]+Tabel2547[[#This Row],[22]]+Tabel2547[[#This Row],[20]]+Tabel2547[[#This Row],[18]]+Tabel2547[[#This Row],[16]]+Tabel2547[[#This Row],[14]]+Tabel2547[[#This Row],[12]]+Tabel2547[[#This Row],[10]]+Tabel2547[[#This Row],[8]]+Tabel2547[[#This Row],[6]]+Tabel2547[[#This Row],[4]]+Tabel2547[[#This Row],[2]] -> 10 | BL8: =Tabel2547[[#This Row],[51]]+Tabel2547[[#This Row],[49]]+Tabel2547[[#This Row],[47]]+Tabel2547[[#This Row],[45]]+Tabel2547[[#This Row],[43]]+Tabel2547[[#This Row],[41]]+Tabel2547[[#This Row],[39]]+Tabel2547[[#This Row],[37]]+Tabel2547[[#This Row],[35]]+Tabel2547[[#This Row],[33]]+Tabel2547[[#This Row],[31]]+Tabel2547[[#This Row],[29]]+Tabel2547[[#This Row],[27]]+Tabel2547[[#This Row],[25]]+Tabel2547[[#This Row],[23]]+Tabel2547[[#This Row],[21]]+Tabel2547[[#This Row],[19]]+Tabel2547[[#This Row],[17]]+Tabel2547[[#This Row],[15]]+Tabel2547[[#This Row],[13]]+Tabel2547[[#This Row],[11]]+Tabel2547[[#This Row],[9]]+Tabel2547[[#This Row],[7]]+Tabel2547[[#This Row],[5]]+Tabel2547[[#This Row],[3]]+Tabel2547[[#This Row],[1]] -> 23 | BM8: =Tabel2547[[#This Row],[RGFT]]+Tabel2547[[#This Row],[RPMD]] -> 0 | BN8: 0 | BO8: Leerdam | BP8: VHL | BQ8: Leerdam | BR8: 68 | BS8: 170 | BT8: 238
A9: 3.1 | C9: Maandag | D9: 1=Lexmond, 2=Hei en Boeicop binnen | F9: 4 | G9: 3 | H9: 3 | J9: 0 | K9: 5 | L9: 0 | M9: 6 | N9: 0 | W9: 8 | Z9: 10 | AA9: 14 | BI9: =Tabel2547[[#This Row],[52]]+Tabel2547[[#This Row],[50]]+Tabel2547[[#This Row],[48]]+Tabel2547[[#This Row],[46]]+Tabel2547[[#This Row],[44]]+Tabel2547[[#This Row],[42]]+Tabel2547[[#This Row],[40]]+Tabel2547[[#This Row],[38]]+Tabel2547[[#This Row],[36]]+Tabel2547[[#This Row],[34]]+Tabel2547[[#This Row],[32]]+Tabel2547[[#This Row],[30]]+Tabel2547[[#This Row],[28]]+Tabel2547[[#This Row],[26]]+Tabel2547[[#This Row],[24]]+Tabel2547[[#This Row],[22]]+Tabel2547[[#This Row],[20]]+Tabel2547[[#This Row],[18]]+Tabel2547[[#This Row],[16]]+Tabel2547[[#This Row],[14]]+Tabel2547[[#This Row],[12]]+Tabel2547[[#This Row],[10]]+Tabel2547[[#This Row],[8]]+Tabel2547[[#This Row],[6]]+Tabel2547[[#This Row],[4]]+Tabel2547[[#This Row],[2]] -> 10 | BK9: =Tabel2547[[#This Row],[51]]+Tabel2547[[#This Row],[49]]+Tabel2547[[#This Row],[47]]+Tabel2547[[#This Row],[45]]+Tabel2547[[#This Row],[43]]+Tabel2547[[#This Row],[41]]+Tabel2547[[#This Row],[39]]+Tabel2547[[#This Row],[37]]+Tabel2547[[#This Row],[35]]+Tabel2547[[#This Row],[33]]+Tabel2547[[#This Row],[31]]+Tabel2547[[#This Row],[29]]+Tabel2547[[#This Row],[27]]+Tabel2547[[#This Row],[25]]+Tabel2547[[#This Row],[23]]+Tabel2547[[#This Row],[21]]+Tabel2547[[#This Row],[19]]+Tabel2547[[#This Row],[17]]+Tabel2547[[#This Row],[15]]+Tabel2547[[#This Row],[13]]+Tabel2547[[#This Row],[11]]+Tabel2547[[#This Row],[9]]+Tabel2547[[#This Row],[7]]+Tabel2547[[#This Row],[5]]+Tabel2547[[#This Row],[3]]+Tabel2547[[#This Row],[1]] -> 33 | BM9: =Tabel2547[[#This Row],[RGFT]]+Tabel2547[[#This Row],[RPMD]] -> 43 | BN9: 111 | BO9: VHL | BR9: =SUM(BR3:BR8) -> 1069 | BS9: =SUM(BS3:BS8) -> 2192 | BT9: =SUM(BT3:BT8) -> 3261
A10: 3.1 | C10: Maandag | D10: 1=Lexmond, 2=Hei en Boeicop binnen | E10: 1= Zuidernes 50 2= Oude Regthuys 1 | F10: 4 | G10: 3 | H10: 3 | J10: 32 | K10: 12 | L10: 14 | M10: 14 | N10: 11 | W10: 18 | Z10: 6 | AA10: 4 | BJ10: =Tabel2547[[#This Row],[52]]+Tabel2547[[#This Row],[50]]+Tabel2547[[#This Row],[48]]+Tabel2547[[#This Row],[46]]+Tabel2547[[#This Row],[44]]+Tabel2547[[#This Row],[42]]+Tabel2547[[#This Row],[40]]+Tabel2547[[#This Row],[38]]+Tabel2547[[#This Row],[36]]+Tabel2547[[#This Row],[34]]+Tabel2547[[#This Row],[32]]+Tabel2547[[#This Row],[30]]+Tabel2547[[#This Row],[28]]+Tabel2547[[#This Row],[26]]+Tabel2547[[#This Row],[24]]+Tabel2547[[#This Row],[22]]+Tabel2547[[#This Row],[20]]+Tabel2547[[#This Row],[18]]+Tabel2547[[#This Row],[16]]+Tabel2547[[#This Row],[14]]+Tabel2547[[#This Row],[12]]+Tabel2547[[#This Row],[10]]+Tabel2547[[#This Row],[8]]+Tabel2547[[#This Row],[6]]+Tabel2547[[#This Row],[4]]+Tabel2547[[#This Row],[2]] -> 63 | BL10: =Tabel2547[[#This Row],[51]]+Tabel2547[[#This Row],[49]]+Tabel2547[[#This Row],[47]]+Tabel2547[[#This Row],[45]]+Tabel2547[[#This Row],[43]]+Tabel2547[[#This Row],[41]]+Tabel2547[[#This Row],[39]]+Tabel2547[[#This Row],[37]]+Tabel2547[[#This Row],[35]]+Tabel2547[[#This Row],[33]]+Tabel2547[[#This Row],[31]]+Tabel2547[[#This Row],[29]]+Tabel2547[[#This Row],[27]]+Tabel2547[[#This Row],[25]]+Tabel2547[[#This Row],[23]]+Tabel2547[[#This Row],[21]]+Tabel2547[[#This Row],[19]]+Tabel2547[[#This Row],[17]]+Tabel2547[[#This Row],[15]]+Tabel2547[[#This Row],[13]]+Tabel2547[[#This Row],[11]]+Tabel2547[[#This Row],[9]]+Tabel2547[[#This Row],[7]]+Tabel2547[[#This Row],[5]]+Tabel2547[[#This Row],[3]]+Tabel2547[[#This Row],[1]] -> 48 | BM10: =Tabel2547[[#This Row],[RGFT]]+Tabel2547[[#This Row],[RPMD]] -> 0 | BN10: 0 | BO10: VHL | BT10: =SUM(BR9:BS9) -> 3261 | BU10: Controle
A11: 3.2 | C11: Maandag | D11: Schoonrewoerd binnen | F11: 5 | G11: 7 | H11: 7 | L11: 2 | W11: 0 | Z11: 4 | AA11: 11 | BI11: =Tabel2547[[#This Row],[52]]+Tabel2547[[#This Row],[50]]+Tabel2547[[#This Row],[48]]+Tabel2547[[#This Row],[46]]+Tabel2547[[#This Row],[44]]+Tabel2547[[#This Row],[42]]+Tabel2547[[#This Row],[40]]+Tabel2547[[#This Row],[38]]+Tabel2547[[#This Row],[36]]+Tabel2547[[#This Row],[34]]+Tabel2547[[#This Row],[32]]+Tabel2547[[#This Row],[30]]+Tabel2547[[#This Row],[28]]+Tabel2547[[#This Row],[26]]+Tabel2547[[#This Row],[24]]+Tabel2547[[#This Row],[22]]+Tabel2547[[#This Row],[20]]+Tabel2547[[#This Row],[18]]+Tabel2547[[#This Row],[16]]+Tabel2547[[#This Row],[14]]+Tabel2547[[#This Row],[12]]+Tabel2547[[#This Row],[10]]+Tabel2547[[#This Row],[8]]+Tabel2547[[#This Row],[6]]+Tabel2547[[#This Row],[4]]+Tabel2547[[#This Row],[2]] -> 6 | BK11: =Tabel2547[[#This Row],[51]]+Tabel2547[[#This Row],[49]]+Tabel2547[[#This Row],[47]]+Tabel2547[[#This Row],[45]]+Tabel2547[[#This Row],[43]]+Tabel2547[[#This Row],[41]]+Tabel2547[[#This Row],[39]]+Tabel2547[[#This Row],[37]]+Tabel2547[[#This Row],[35]]+Tabel2547[[#This Row],[33]]+Tabel2547[[#This Row],[31]]+Tabel2547[[#This Row],[29]]+Tabel2547[[#This Row],[27]]+Tabel2547[[#This Row],[25]]+Tabel2547[[#This Row],[23]]+Tabel2547[[#This Row],[21]]+Tabel2547[[#This Row],[19]]+Tabel2547[[#This Row],[17]]+Tabel2547[[#This Row],[15]]+Tabel2547[[#This Row],[13]]+Tabel2547[[#This Row],[11]]+Tabel2547[[#This Row],[9]]+Tabel2547[[#This Row],[7]]+Tabel2547[[#This Row],[5]]+Tabel2547[[#This Row],[3]]+Tabel2547[[#This Row],[1]] -> 11 | BM11: =Tabel2547[[#This Row],[RGFT]]+Tabel2547[[#This Row],[RPMD]] -> 17 | BN11: 22 | BO11: VHL
A12: 3.2 | C12: Maandag | D12: Schoonrewoerd binnen | E12: Parkeer kerkweg 1 ( begin in De Bongerd) | F12: 5 | G12: 7 | H12: 7 | L12: 7 | W12: 10 | Z12: 3 | AA12: 2 | BJ12: =Tabel2547[[#This Row],[52]]+Tabel2547[[#This Row],[50]]+Tabel2547[[#This Row],[48]]+Tabel2547[[#This Row],[46]]+Tabel2547[[#This Row],[44]]+Tabel2547[[#This Row],[42]]+Tabel2547[[#This Row],[40]]+Tabel2547[[#This Row],[38]]+Tabel2547[[#This Row],[36]]+Tabel2547[[#This Row],[34]]+Tabel2547[[#This Row],[32]]+Tabel2547[[#This Row],[30]]+Tabel2547[[#This Row],[28]]+Tabel2547[[#This Row],[26]]+Tabel2547[[#This Row],[24]]+Tabel2547[[#This Row],[22]]+Tabel2547[[#This Row],[20]]+Tabel2547[[#This Row],[18]]+Tabel2547[[#This Row],[16]]+Tabel2547[[#This Row],[14]]+Tabel2547[[#This Row],[12]]+Tabel2547[[#This Row],[10]]+Tabel2547[[#This Row],[8]]+Tabel2547[[#This Row],[6]]+Tabel2547[[#This Row],[4]]+Tabel2547[[#This Row],[2]] -> 10 | BL12: =Tabel2547[[#This Row],[51]]+Tabel2547[[#This Row],[49]]+Tabel2547[[#This Row],[47]]+Tabel2547[[#This Row],[45]]+Tabel2547[[#This Row],[43]]+Tabel2547[[#This Row],[41]]+Tabel2547[[#This Row],[39]]+Tabel2547[[#This Row],[37]]+Tabel2547[[#This Row],[35]]+Tabel2547[[#This Row],[33]]+Tabel2547[[#This Row],[31]]+Tabel2547[[#This Row],[29]]+Tabel2547[[#This Row],[27]]+Tabel2547[[#This Row],[25]]+Tabel2547[[#This Row],[23]]+Tabel2547[[#This Row],[21]]+Tabel2547[[#This Row],[19]]+Tabel2547[[#This Row],[17]]+Tabel2547[[#This Row],[15]]+Tabel2547[[#This Row],[13]]+Tabel2547[[#This Row],[11]]+Tabel2547[[#This Row],[9]]+Tabel2547[[#This Row],[7]]+Tabel2547[[#This Row],[5]]+Tabel2547[[#This Row],[3]]+Tabel2547[[#This Row],[1]] -> 12 | BM12: =Tabel2547[[#This Row],[RGFT]]+Tabel2547[[#This Row],[RPMD]] -> 0 | BN12: 0 | BO12: VHL
A13: 3.3 | C13: Maandag | D13: Leerdam Noord | F13: 7 | G13: 2 | R13: 1 | BI13: =Tabel2547[[#This Row],[52]]+Tabel2547[[#This Row],[50]]+Tabel2547[[#This Row],[48]]+Tabel2547[[#This Row],[46]]+Tabel2547[[#This Row],[44]]+Tabel2547[[#This Row],[42]]+Tabel2547[[#This Row],[40]]+Tabel2547[[#This Row],[38]]+Tabel2547[[#This Row],[36]]+Tabel2547[[#This Row],[34]]+Tabel2547[[#This Row],[32]]+Tabel2547[[#This Row],[30]]+Tabel2547[[#This Row],[28]]+Tabel2547[[#This Row],[26]]+Tabel2547[[#This Row],[24]]+Tabel2547[[#This Row],[22]]+Tabel2547[[#This Row],[20]]+Tabel2547[[#This Row],[18]]+Tabel2547[[#This Row],[16]]+Tabel2547[[#This Row],[14]]+Tabel2547[[#This Row],[12]]+Tabel2547[[#This Row],[10]]+Tabel2547[[#This Row],[8]]+Tabel2547[[#This Row],[6]]+Tabel2547[[#This Row],[4]]+Tabel2547[[#This Row],[2]] -> 1 | BK13: =Tabel2547[[#This Row],[51]]+Tabel2547[[#This Row],[49]]+Tabel2547[[#This Row],[47]]+Tabel2547[[#This Row],[45]]+Tabel2547[[#This Row],[43]]+Tabel2547[[#This Row],[41]]+Tabel2547[[#This Row],[39]]+Tabel2547[[#This Row],[37]]+Tabel2547[[#This Row],[35]]+Tabel2547[[#This Row],[33]]+Tabel2547[[#This Row],[31]]+Tabel2547[[#This Row],[29]]+Tabel2547[[#This Row],[27]]+Tabel2547[[#This Row],[25]]+Tabel2547[[#This Row],[23]]+Tabel2547[[#This Row],[21]]+Tabel2547[[#This Row],[19]]+Tabel2547[[#This Row],[17]]+Tabel2547[[#This Row],[15]]+Tabel2547[[#This Row],[13]]+Tabel2547[[#This Row],[11]]+Tabel2547[[#This Row],[9]]+Tabel2547[[#This Row],[7]]+Tabel2547[[#This Row],[5]]+Tabel2547[[#This Row],[3]]+Tabel2547[[#This Row],[1]] -> 0 | BM13: =Tabel2547[[#This Row],[RGFT]]+Tabel2547[[#This Row],[RPMD]] -> 1 | BN13: 16 | BO13: Leerdam | BP13: VHL
A14: 3.3 | C14: Maandag | D14: Leerdam Noord | E14: Zelf uitkiezen | F14: 7 | G14: 2 | R14: 16 | BJ14: =Tabel2547[[#This Row],[52]]+Tabel2547[[#This Row],[50]]+Tabel2547[[#This Row],[48]]+Tabel2547[[#This Row],[46]]+Tabel2547[[#This Row],[44]]+Tabel2547[[#This Row],[42]]+Tabel2547[[#This Row],[40]]+Tabel2547[[#This Row],[38]]+Tabel2547[[#This Row],[36]]+Tabel2547[[#This Row],[34]]+Tabel2547[[#This Row],[32]]+Tabel2547[[#This Row],[30]]+Tabel2547[[#This Row],[28]]+Tabel2547[[#This Row],[26]]+Tabel2547[[#This Row],[24]]+Tabel2547[[#This Row],[22]]+Tabel2547[[#This Row],[20]]+Tabel2547[[#This Row],[18]]+Tabel2547[[#This Row],[16]]+Tabel2547[[#This Row],[14]]+Tabel2547[[#This Row],[12]]+Tabel2547[[#This Row],[10]]+Tabel2547[[#This Row],[8]]+Tabel2547[[#This Row],[6]]+Tabel2547[[#This Row],[4]]+Tabel2547[[#This Row],[2]] -> 16 | BL14: =Tabel2547[[#This Row],[51]]+Tabel2547[[#This Row],[49]]+Tabel2547[[#This Row],[47]]+Tabel2547[[#This Row],[45]]+Tabel2547[[#This Row],[43]]+Tabel2547[[#This Row],[41]]+Tabel2547[[#This Row],[39]]+Tabel2547[[#This Row],[37]]+Tabel2547[[#This Row],[35]]+Tabel2547[[#This Row],[33]]+Tabel2547[[#This Row],[31]]+Tabel2547[[#This Row],[29]]+Tabel2547[[#This Row],[27]]+Tabel2547[[#This Row],[25]]+Tabel2547[[#This Row],[23]]+Tabel2547[[#This Row],[21]]+Tabel2547[[#This Row],[19]]+Tabel2547[[#This Row],[17]]+Tabel2547[[#This Row],[15]]+Tabel2547[[#This Row],[13]]+Tabel2547[[#This Row],[11]]+Tabel2547[[#This Row],[9]]+Tabel2547[[#This Row],[7]]+Tabel2547[[#This Row],[5]]+Tabel2547[[#This Row],[3]]+Tabel2547[[#This Row],[1]] -> 0 | BM14: =Tabel2547[[#This Row],[RGFT]]+Tabel2547[[#This Row],[RPMD]] -> 0 | BN14: 0 | BO14: Leerdam | BP14: VHL
A15: 4.1 | C15: Maandag | D15: 1=Leerdam-West +2=Broekgraaf | F15: 8 | G15: 8 | H15: 8 | M15: 3 | N15: 3 | T15: 4 | U15: 14 | X15: 0 | BI15: =Tabel2547[[#This Row],[52]]+Tabel2547[[#This Row],[50]]+Tabel2547[[#This Row],[48]]+Tabel2547[[#This Row],[46]]+Tabel2547[[#This Row],[44]]+Tabel2547[[#This Row],[42]]+Tabel2547[[#This Row],[40]]+Tabel2547[[#This Row],[38]]+Tabel2547[[#This Row],[36]]+Tabel2547[[#This Row],[34]]+Tabel2547[[#This Row],[32]]+Tabel2547[[#This Row],[30]]+Tabel2547[[#This Row],[28]]+Tabel2547[[#This Row],[26]]+Tabel2547[[#This Row],[24]]+Tabel2547[[#This Row],[22]]+Tabel2547[[#This Row],[20]]+Tabel2547[[#This Row],[18]]+Tabel2547[[#This Row],[16]]+Tabel2547[[#This Row],[14]]+Tabel2547[[#This Row],[12]]+Tabel2547[[#This Row],[10]]+Tabel2547[[#This Row],[8]]+Tabel2547[[#This Row],[6]]+Tabel2547[[#This Row],[4]]+Tabel2547[[#This Row],[2]] -> 7 | BK15: =Tabel2547[[#This Row],[51]]+Tabel2547[[#This Row],[49]]+Tabel2547[[#This Row],[47]]+Tabel2547[[#This Row],[45]]+Tabel2547[[#This Row],[43]]+Tabel2547[[#This Row],[41]]+Tabel2547[[#This Row],[39]]+Tabel2547[[#This Row],[37]]+Tabel2547[[#This Row],[35]]+Tabel2547[[#This Row],[33]]+Tabel2547[[#This Row],[31]]+Tabel2547[[#This Row],[29]]+Tabel2547[[#This Row],[27]]+Tabel2547[[#This Row],[25]]+Tabel2547[[#This Row],[23]]+Tabel2547[[#This Row],[21]]+Tabel2547[[#This Row],[19]]+Tabel2547[[#This Row],[17]]+Tabel2547[[#This Row],[15]]+Tabel2547[[#This Row],[13]]+Tabel2547[[#This Row],[11]]+Tabel2547[[#This Row],[9]]+Tabel2547[[#This Row],[7]]+Tabel2547[[#This Row],[5]]+Tabel2547[[#This Row],[3]]+Tabel2547[[#This Row],[1]] -> 17 | BM15: =Tabel2547[[#This Row],[RGFT]]+Tabel2547[[#This Row],[RPMD]] -> 24 | BN15: 79 | BO15: Leerdam | BP15: VHL
A16: 4.1 | C16: Maandag | D16: 1=Leerdam-West +2=Broekgraaf | E16: 1=Laantje van van Ieperen 3 | F16: 8 | G16: 8 | H16: 8 | M16: 6 | N16: 19 | T16: 19 | U16: 26 | X16: 9 | BJ16: =Tabel2547[[#This Row],[52]]+Tabel2547[[#This Row],[50]]+Tabel2547[[#This Row],[48]]+Tabel2547[[#This Row],[46]]+Tabel2547[[#This Row],[44]]+Tabel2547[[#This Row],[42]]+Tabel2547[[#This Row],[40]]+Tabel2547[[#This Row],[38]]+Tabel2547[[#This Row],[36]]+Tabel2547[[#This Row],[34]]+Tabel2547[[#This Row],[32]]+Tabel2547[[#This Row],[30]]+Tabel2547[[#This Row],[28]]+Tabel2547[[#This Row],[26]]+Tabel2547[[#This Row],[24]]+Tabel2547[[#This Row],[22]]+Tabel2547[[#This Row],[20]]+Tabel2547[[#This Row],[18]]+Tabel2547[[#This Row],[16]]+Tabel2547[[#This Row],[14]]+Tabel2547[[#This Row],[12]]+Tabel2547[[#This Row],[10]]+Tabel2547[[#This Row],[8]]+Tabel2547[[#This Row],[6]]+Tabel2547[[#This Row],[4]]+Tabel2547[[#This Row],[2]] -> 47 | BL16: =Tabel2547[[#This Row],[51]]+Tabel2547[[#This Row],[49]]+Tabel2547[[#This Row],[47]]+Tabel2547[[#This Row],[45]]+Tabel2547[[#This Row],[43]]+Tabel2547[[#This Row],[41]]+Tabel2547[[#This Row],[39]]+Tabel2547[[#This Row],[37]]+Tabel2547[[#This Row],[35]]+Tabel2547[[#This Row],[33]]+Tabel2547[[#This Row],[31]]+Tabel2547[[#This Row],[29]]+Tabel2547[[#This Row],[27]]+Tabel2547[[#This Row],[25]]+Tabel2547[[#This Row],[23]]+Tabel2547[[#This Row],[21]]+Tabel2547[[#This Row],[19]]+Tabel2547[[#This Row],[17]]+Tabel2547[[#This Row],[15]]+Tabel2547[[#This Row],[13]]+Tabel2547[[#This Row],[11]]+Tabel2547[[#This Row],[9]]+Tabel2547[[#This Row],[7]]+Tabel2547[[#This Row],[5]]+Tabel2547[[#This Row],[3]]+Tabel2547[[#This Row],[1]] -> 32 | BM16: =Tabel2547[[#This Row],[RGFT]]+Tabel2547[[#This Row],[RPMD]] -> 0 | BN16: 0 | BO16: Leerdam | BP16: VHL
A17: 5.1 | C17: Maandag | D17: 1= Nieuwland en 2 = Leerbroek binnen en Leerdam | F17: 8 | G17: 9 | H17: 8 | R17: 2 | S17: 4 | Z17: 0 | AA17: 23 | BI17: =Tabel2547[[#This Row],[52]]+Tabel2547[[#This Row],[50]]+Tabel2547[[#This Row],[48]]+Tabel2547[[#This Row],[46]]+Tabel2547[[#This Row],[44]]+Tabel2547[[#This Row],[42]]+Tabel2547[[#This Row],[40]]+Tabel2547[[#This Row],[38]]+Tabel2547[[#This Row],[36]]+Tabel2547[[#This Row],[34]]+Tabel2547[[#This Row],[32]]+Tabel2547[[#This Row],[30]]+Tabel2547[[#This Row],[28]]+Tabel2547[[#This Row],[26]]+Tabel2547[[#This Row],[24]]+Tabel2547[[#This Row],[22]]+Tabel2547[[#This Row],[20]]+Tabel2547[[#This Row],[18]]+Tabel2547[[#This Row],[16]]+Tabel2547[[#This Row],[14]]+Tabel2547[[#This Row],[12]]+Tabel2547[[#This Row],[10]]+Tabel2547[[#This Row],[8]]+Tabel2547[[#This Row],[6]]+Tabel2547[[#This Row],[4]]+Tabel2547[[#This Row],[2]] -> 2 | BK17: =Tabel2547[[#This Row],[51]]+Tabel2547[[#This Row],[49]]+Tabel2547[[#This Row],[47]]+Tabel2547[[#This Row],[45]]+Tabel2547[[#This Row],[43]]+Tabel2547[[#This Row],[41]]+Tabel2547[[#This Row],[39]]+Tabel2547[[#This Row],[37]]+Tabel2547[[#This Row],[35]]+Tabel2547[[#This Row],[33]]+Tabel2547[[#This Row],[31]]+Tabel2547[[#This Row],[29]]+Tabel2547[[#This Row],[27]]+Tabel2547[[#This Row],[25]]+Tabel2547[[#This Row],[23]]+Tabel2547[[#This Row],[21]]+Tabel2547[[#This Row],[19]]+Tabel2547[[#This Row],[17]]+Tabel2547[[#This Row],[15]]+Tabel2547[[#This Row],[13]]+Tabel2547[[#This Row],[11]]+Tabel2547[[#This Row],[9]]+Tabel2547[[#This Row],[7]]+Tabel2547[[#This Row],[5]]+Tabel2547[[#This Row],[3]]+Tabel2547[[#This Row],[1]] -> 27 | BM17: =Tabel2547[[#This Row],[RGFT]]+Tabel2547[[#This Row],[RPMD]] -> 29 | BN17: 75 | BO17: VHL
A18: 5.1 | C18: Maandag | D18: 1 = Nieuwland en 2 = Leerbroek binnen en Leerdam | E18: 1=Kwakernaak 4 en 2= Recht van ter leede 11 | F18: 8 | G18: 9 | H18: 8 | R18: 21 | S18: 19 | Z18: 8 | AA18: 27 | BJ18: =Tabel2547[[#This Row],[52]]+Tabel2547[[#This Row],[50]]+Tabel2547[[#This Row],[48]]+Tabel2547[[#This Row],[46]]+Tabel2547[[#This Row],[44]]+Tabel2547[[#This Row],[42]]+Tabel2547[[#This Row],[40]]+Tabel2547[[#This Row],[38]]+Tabel2547[[#This Row],[36]]+Tabel2547[[#This Row],[34]]+Tabel2547[[#This Row],[32]]+Tabel2547[[#This Row],[30]]+Tabel2547[[#This Row],[28]]+Tabel2547[[#This Row],[26]]+Tabel2547[[#This Row],[24]]+Tabel2547[[#This Row],[22]]+Tabel2547[[#This Row],[20]]+Tabel2547[[#This Row],[18]]+Tabel2547[[#This Row],[16]]+Tabel2547[[#This Row],[14]]+Tabel2547[[#This Row],[12]]+Tabel2547[[#This Row],[10]]+Tabel2547[[#This Row],[8]]+Tabel2547[[#This Row],[6]]+Tabel2547[[#This Row],[4]]+Tabel2547[[#This Row],[2]] -> 29 | BL18: =Tabel2547[[#This Row],[51]]+Tabel2547[[#This Row],[49]]+Tabel2547[[#This Row],[47]]+Tabel2547[[#This Row],[45]]+Tabel2547[[#This Row],[43]]+Tabel2547[[#This Row],[41]]+Tabel2547[[#This Row],[39]]+Tabel2547[[#This Row],[37]]+Tabel2547[[#This Row],[35]]+Tabel2547[[#This Row],[33]]+Tabel2547[[#This Row],[31]]+Tabel2547[[#This Row],[29]]+Tabel2547[[#This Row],[27]]+Tabel2547[[#This Row],[25]]+Tabel2547[[#This Row],[23]]+Tabel2547[[#This Row],[21]]+Tabel2547[[#This Row],[19]]+Tabel2547[[#This Row],[17]]+Tabel2547[[#This Row],[15]]+Tabel2547[[#This Row],[13]]+Tabel2547[[#This Row],[11]]+Tabel2547[[#This Row],[9]]+Tabel2547[[#This Row],[7]]+Tabel2547[[#This Row],[5]]+Tabel2547[[#This Row],[3]]+Tabel2547[[#This Row],[1]] -> 46 | BM18: =Tabel2547[[#This Row],[RGFT]]+Tabel2547[[#This Row],[RPMD]] -> 0 | BN18: 0 | BO18: VHL
A19: 1.1 | C19: Dinsdag | D19: Lingewijk Gorinchem | F19: 4 | G19: 4 | H19: 4 | I19: 3 | J19: 3 | K19: 1 | M19: 10 | S19: 17 | V19: 1 | BI19: =Tabel2547[[#This Row],[52]]+Tabel2547[[#This Row],[50]]+Tabel2547[[#This Row],[48]]+Tabel2547[[#This Row],[46]]+Tabel2547[[#This Row],[44]]+Tabel2547[[#This Row],[42]]+Tabel2547[[#This Row],[40]]+Tabel2547[[#This Row],[38]]+Tabel2547[[#This Row],[36]]+Tabel2547[[#This Row],[34]]+Tabel2547[[#This Row],[32]]+Tabel2547[[#This Row],[30]]+Tabel2547[[#This Row],[28]]+Tabel2547[[#This Row],[26]]+Tabel2547[[#This Row],[24]]+Tabel2547[[#This Row],[22]]+Tabel2547[[#This Row],[20]]+Tabel2547[[#This Row],[18]]+Tabel2547[[#This Row],[16]]+Tabel2547[[#This Row],[14]]+Tabel2547[[#This Row],[12]]+Tabel2547[[#This Row],[10]]+Tabel2547[[#This Row],[8]]+Tabel2547[[#This Row],[6]]+Tabel2547[[#This Row],[4]]+Tabel2547[[#This Row],[2]] -> 4 | BK19: =Tabel2547[[#This Row],[51]]+Tabel2547[[#This Row],[49]]+Tabel2547[[#This Row],[47]]+Tabel2547[[#This Row],[45]]+Tabel2547[[#This Row],[43]]+Tabel2547[[#This Row],[41]]+Tabel2547[[#This Row],[39]]+Tabel2547[[#This Row],[37]]+Tabel2547[[#This Row],[35]]+Tabel2547[[#This Row],[33]]+Tabel2547[[#This Row],[31]]+Tabel2547[[#This Row],[29]]+Tabel2547[[#This Row],[27]]+Tabel2547[[#This Row],[25]]+Tabel2547[[#This Row],[23]]+Tabel2547[[#This Row],[21]]+Tabel2547[[#This Row],[19]]+Tabel2547[[#This Row],[17]]+Tabel2547[[#This Row],[15]]+Tabel2547[[#This Row],[13]]+Tabel2547[[#This Row],[11]]+Tabel2547[[#This Row],[9]]+Tabel2547[[#This Row],[7]]+Tabel2547[[#This Row],[5]]+Tabel2547[[#This Row],[3]]+Tabel2547[[#This Row],[1]] -> 31 | BM19: =Tabel2547[[#This Row],[RGFT]]+Tabel2547[[#This Row],[RPMD]] -> 35 | BN19: 117 | BO19: Gorinchem
A20: 1.1 | C20: Dinsdag | D20: Lingewijk Gorinchem | E20: Buitenbaan 61 | F20: 4 | G20: 4 | H20: 4 | I20: 23 | J20: 18 | K20: 20 | M20: 32 | S20: 22 | V20: 2 | BJ20: =Tabel2547[[#This Row],[52]]+Tabel2547[[#This Row],[50]]+Tabel2547[[#This Row],[48]]+Tabel2547[[#This Row],[46]]+Tabel2547[[#This Row],[44]]+Tabel2547[[#This Row],[42]]+Tabel2547[[#This Row],[40]]+Tabel2547[[#This Row],[38]]+Tabel2547[[#This Row],[36]]+Tabel2547[[#This Row],[34]]+Tabel2547[[#This Row],[32]]+Tabel2547[[#This Row],[30]]+Tabel2547[[#This Row],[28]]+Tabel2547[[#This Row],[26]]+Tabel2547[[#This Row],[24]]+Tabel2547[[#This Row],[22]]+Tabel2547[[#This Row],[20]]+Tabel2547[[#This Row],[18]]+Tabel2547[[#This Row],[16]]+Tabel2547[[#This Row],[14]]+Tabel2547[[#This Row],[12]]+Tabel2547[[#This Row],[10]]+Tabel2547[[#This Row],[8]]+Tabel2547[[#This Row],[6]]+Tabel2547[[#This Row],[4]]+Tabel2547[[#This Row],[2]] -> 20 | BL20: =Tabel2547[[#This Row],[51]]+Tabel2547[[#This Row],[49]]+Tabel2547[[#This Row],[47]]+Tabel2547[[#This Row],[45]]+Tabel2547[[#This Row],[43]]+Tabel2547[[#This Row],[41]]+Tabel2547[[#This Row],[39]]+Tabel2547[[#This Row],[37]]+Tabel2547[[#This Row],[35]]+Tabel2547[[#This Row],[33]]+Tabel2547[[#This Row],[31]]+Tabel2547[[#This Row],[29]]+Tabel2547[[#This Row],[27]]+Tabel2547[[#This Row],[25]]+Tabel2547[[#This Row],[23]]+Tabel2547[[#This Row],[21]]+Tabel2547[[#This Row],[19]]+Tabel2547[[#This Row],[17]]+Tabel2547[[#This Row],[15]]+Tabel2547[[#This Row],[13]]+Tabel2547[[#This Row],[11]]+Tabel2547[[#This Row],[9]]+Tabel2547[[#This Row],[7]]+Tabel2547[[#This Row],[5]]+Tabel2547[[#This Row],[3]]+Tabel2547[[#This Row],[1]] -> 97 | BM20: =Tabel2547[[#This Row],[RGFT]]+Tabel2547[[#This Row],[RPMD]] -> 0 | BN20: 0 | BO20: Gorinchem
A21: 1.2 | C21: Dinsdag | D21: Gildewijk, Haarwijk 2 | F21: 4 | G21: 4 | H21: 4 | I21: 5 | J21: 0 | K21: 8 | L21: 0 | M21: 4 | Y21: 5 | BI21: =Tabel2547[[#This Row],[52]]+Tabel2547[[#This Row],[50]]+Tabel2547[[#This Row],[48]]+Tabel2547[[#This Row],[46]]+Tabel2547[[#This Row],[44]]+Tabel2547[[#This Row],[42]]+Tabel2547[[#This Row],[40]]+Tabel2547[[#This Row],[38]]+Tabel2547[[#This Row],[36]]+Tabel2547[[#This Row],[34]]+Tabel2547[[#This Row],[32]]+Tabel2547[[#This Row],[30]]+Tabel2547[[#This Row],[28]]+Tabel2547[[#This Row],[26]]+Tabel2547[[#This Row],[24]]+Tabel2547[[#This Row],[22]]+Tabel2547[[#This Row],[20]]+Tabel2547[[#This Row],[18]]+Tabel2547[[#This Row],[16]]+Tabel2547[[#This Row],[14]]+Tabel2547[[#This Row],[12]]+Tabel2547[[#This Row],[10]]+Tabel2547[[#This Row],[8]]+Tabel2547[[#This Row],[6]]+Tabel2547[[#This Row],[4]]+Tabel2547[[#This Row],[2]] -> 0 | BK21: =Tabel2547[[#This Row],[51]]+Tabel2547[[#This Row],[49]]+Tabel2547[[#This Row],[47]]+Tabel2547[[#This Row],[45]]+Tabel2547[[#This Row],[43]]+Tabel2547[[#This Row],[41]]+Tabel2547[[#This Row],[39]]+Tabel2547[[#This Row],[37]]+Tabel2547[[#This Row],[35]]+Tabel2547[[#This Row],[33]]+Tabel2547[[#This Row],[31]]+Tabel2547[[#This Row],[29]]+Tabel2547[[#This Row],[27]]+Tabel2547[[#This Row],[25]]+Tabel2547[[#This Row],[23]]+Tabel2547[[#This Row],[21]]+Tabel2547[[#This Row],[19]]+Tabel2547[[#This Row],[17]]+Tabel2547[[#This Row],[15]]+Tabel2547[[#This Row],[13]]+Tabel2547[[#This Row],[11]]+Tabel2547[[#This Row],[9]]+Tabel2547[[#This Row],[7]]+Tabel2547[[#This Row],[5]]+Tabel2547[[#This Row],[3]]+Tabel2547[[#This Row],[1]] -> 22 | BM21: =Tabel2547[[#This Row],[RGFT]]+Tabel2547[[#This Row],[RPMD]] -> 22 | BN21: 58 | BO21: Gorinchem
A22: 1.2 | C22: Dinsdag | D22: 1=Gildewijk, 2=Haarwijk 2 | E22: 1=Leidekkerstraat 1 2= Kon. Julianalaan 3 | F22: 4 | G22: 4 | H22: 4 | I22: 9 | J22: 0 | K22: 15 | L22: 29 | M22: 3 | Y22: 2 | BJ22: =Tabel2547[[#This Row],[52]]+Tabel2547[[#This Row],[50]]+Tabel2547[[#This Row],[48]]+Tabel2547[[#This Row],[46]]+Tabel2547[[#This Row],[44]]+Tabel2547[[#This Row],[42]]+Tabel2547[[#This Row],[40]]+Tabel2547[[#This Row],[38]]+Tabel2547[[#This Row],[36]]+Tabel2547[[#This Row],[34]]+Tabel2547[[#This Row],[32]]+Tabel2547[[#This Row],[30]]+Tabel2547[[#This Row],[28]]+Tabel2547[[#This Row],[26]]+Tabel2547[[#This Row],[24]]+Tabel2547[[#This Row],[22]]+Tabel2547[[#This Row],[20]]+Tabel2547[[#This Row],[18]]+Tabel2547[[#This Row],[16]]+Tabel2547[[#This Row],[14]]+Tabel2547[[#This Row],[12]]+Tabel2547[[#This Row],[10]]+Tabel2547[[#This Row],[8]]+Tabel2547[[#This Row],[6]]+Tabel2547[[#This Row],[4]]+Tabel2547[[#This Row],[2]] -> 29 | BL22: =Tabel2547[[#This Row],[51]]+Tabel2547[[#This Row],[49]]+Tabel2547[[#This Row],[47]]+Tabel2547[[#This Row],[45]]+Tabel2547[[#This Row],[43]]+Tabel2547[[#This Row],[41]]+Tabel2547[[#This Row],[39]]+Tabel2547[[#This Row],[37]]+Tabel2547[[#This Row],[35]]+Tabel2547[[#This Row],[33]]+Tabel2547[[#This Row],[31]]+Tabel2547[[#This Row],[29]]+Tabel2547[[#This Row],[27]]+Tabel2547[[#This Row],[25]]+Tabel2547[[#This Row],[23]]+Tabel2547[[#This Row],[21]]+Tabel2547[[#This Row],[19]]+Tabel2547[[#This Row],[17]]+Tabel2547[[#This Row],[15]]+Tabel2547[[#This Row],[13]]+Tabel2547[[#This Row],[11]]+Tabel2547[[#This Row],[9]]+Tabel2547[[#This Row],[7]]+Tabel2547[[#This Row],[5]]+Tabel2547[[#This Row],[3]]+Tabel2547[[#This Row],[1]] -> 29 | BM22: =Tabel2547[[#This Row],[RGFT]]+Tabel2547[[#This Row],[RPMD]] -> 0 | BN22: 0 | BO22: Gorinchem
A23: 2.1 | C23: Dinsdag | D23: Haarwijk 1 - Haarwijk 2 helpen | F23: 5 | G23: 5 | H23: 5 | J23: 0 | K23: 7 | L23: 3 | M23: 38 | P23: 1 | Q23: 9 | S23: 0 | T23: 1 | U23: 7 | W23: 0 | Y23: 28 | Z23: 2 | AA23: 23 | BI23: =Tabel2547[[#This Row],[52]]+Tabel2547[[#This Row],[50]]+Tabel2547[[#This Row],[48]]+Tabel2547[[#This Row],[46]]+Tabel2547[[#This Row],[44]]+Tabel2547[[#This Row],[42]]+Tabel2547[[#This Row],[40]]+Tabel2547[[#This Row],[38]]+Tabel2547[[#This Row],[36]]+Tabel2547[[#This Row],[34]]+Tabel2547[[#This Row],[32]]+Tabel2547[[#This Row],[30]]+Tabel2547[[#This Row],[28]]+Tabel2547[[#This Row],[26]]+Tabel2547[[#This Row],[24]]+Tabel2547[[#This Row],[22]]+Tabel2547[[#This Row],[20]]+Tabel2547[[#This Row],[18]]+Tabel2547[[#This Row],[16]]+Tabel2547[[#This Row],[14]]+Tabel2547[[#This Row],[12]]+Tabel2547[[#This Row],[10]]+Tabel2547[[#This Row],[8]]+Tabel2547[[#This Row],[6]]+Tabel2547[[#This Row],[4]]+Tabel2547[[#This Row],[2]] -> 7 | BK23: =Tabel2547[[#This Row],[51]]+Tabel2547[[#This Row],[49]]+Tabel2547[[#This Row],[47]]+Tabel2547[[#This Row],[45]]+Tabel2547[[#This Row],[43]]+Tabel2547[[#This Row],[41]]+Tabel2547[[#This Row],[39]]+Tabel2547[[#This Row],[37]]+Tabel2547[[#This Row],[35]]+Tabel2547[[#This Row],[33]]+Tabel2547[[#This Row],[31]]+Tabel2547[[#This Row],[29]]+Tabel2547[[#This Row],[27]]+Tabel2547[[#This Row],[25]]+Tabel2547[[#This Row],[23]]+Tabel2547[[#This Row],[21]]+Tabel2547[[#This Row],[19]]+Tabel2547[[#This Row],[17]]+Tabel2547[[#This Row],[15]]+Tabel2547[[#This Row],[13]]+Tabel2547[[#This Row],[11]]+Tabel2547[[#This Row],[9]]+Tabel2547[[#This Row],[7]]+Tabel2547[[#This Row],[5]]+Tabel2547[[#This Row],[3]]+Tabel2547[[#This Row],[1]] -> 112 | BM23: =Tabel2547[[#This Row],[RGFT]]+Tabel2547[[#This Row],[RPMD]] -> 119 | BN23: 142 | BO23: Gorinchem
A24: 2.1 | C24: Dinsdag | D24: 1 =Haarwijk 1 - Haarwijk 2 helpen | E24: 1= Marinus spronklaan 1 | F24: 5 | G24: 5 | H24: 5 | J24: 11 | K24: 11 | L24: 21 | M24: 20 | P24: 7 | Q24: 10 | S24: 6 | T24: 11 | U24: 8 | W24: 6 | Y24: 17 | Z24: 10 | AA24: 4 | BJ24: =Tabel2547[[#This Row],[52]]+Tabel2547[[#This Row],[50]]+Tabel2547[[#This Row],[48]]+Tabel2547[[#This Row],[46]]+Tabel2547[[#This Row],[44]]+Tabel2547[[#This Row],[42]]+Tabel2547[[#This Row],[40]]+Tabel2547[[#This Row],[38]]+Tabel2547[[#This Row],[36]]+Tabel2547[[#This Row],[34]]+Tabel2547[[#This Row],[32]]+Tabel2547[[#This Row],[30]]+Tabel2547[[#This Row],[28]]+Tabel2547[[#This Row],[26]]+Tabel2547[[#This Row],[24]]+Tabel2547[[#This Row],[22]]+Tabel2547[[#This Row],[20]]+Tabel2547[[#This Row],[18]]+Tabel2547[[#This Row],[16]]+Tabel2547[[#This Row],[14]]+Tabel2547[[#This Row],[12]]+Tabel2547[[#This Row],[10]]+Tabel2547[[#This Row],[8]]+Tabel2547[[#This Row],[6]]+Tabel2547[[#This Row],[4]]+Tabel2547[[#This Row],[2]] -> 60 | BL24: =Tabel2547[[#This Row],[51]]+Tabel2547[[#This Row],[49]]+Tabel2547[[#This Row],[47]]+Tabel2547[[#This Row],[45]]+Tabel2547[[#This Row],[43]]+Tabel2547[[#This Row],[41]]+Tabel2547[[#This Row],[39]]+Tabel2547[[#This Row],[37]]+Tabel2547[[#This Row],[35]]+Tabel2547[[#This Row],[33]]+Tabel2547[[#This Row],[31]]+Tabel2547[[#This Row],[29]]+Tabel2547[[#This Row],[27]]+Tabel2547[[#This Row],[25]]+Tabel2547[[#This Row],[23]]+Tabel2547[[#This Row],[21]]+Tabel2547[[#This Row],[19]]+Tabel2547[[#This Row],[17]]+Tabel2547[[#This Row],[15]]+Tabel2547[[#This Row],[13]]+Tabel2547[[#This Row],[11]]+Tabel2547[[#This Row],[9]]+Tabel2547[[#This Row],[7]]+Tabel2547[[#This Row],[5]]+Tabel2547[[#This Row],[3]]+Tabel2547[[#This Row],[1]] -> 82 | BM24: =Tabel2547[[#This Row],[RGFT]]+Tabel2547[[#This Row],[RPMD]] -> 0 | BN24: 0 | BO24: Gorinchem
A25: 3.1 | C25: Dinsdag | D25: Gorinchem Wijdschild, daarna Componisten wijk | F25: 8 | G25: 8 | H25: 8 | N25: 5 | W25: 10 | Z25: 21 | BI25: =Tabel2547[[#This Row],[52]]+Tabel2547[[#This Row],[50]]+Tabel2547[[#This Row],[48]]+Tabel2547[[#This Row],[46]]+Tabel2547[[#This Row],[44]]+Tabel2547[[#This Row],[42]]+Tabel2547[[#This Row],[40]]+Tabel2547[[#This Row],[38]]+Tabel2547[[#This Row],[36]]+Tabel2547[[#This Row],[34]]+Tabel2547[[#This Row],[32]]+Tabel2547[[#This Row],[30]]+Tabel2547[[#This Row],[28]]+Tabel2547[[#This Row],[26]]+Tabel2547[[#This Row],[24]]+Tabel2547[[#This Row],[22]]+Tabel2547[[#This Row],[20]]+Tabel2547[[#This Row],[18]]+Tabel2547[[#This Row],[16]]+Tabel2547[[#This Row],[14]]+Tabel2547[[#This Row],[12]]+Tabel2547[[#This Row],[10]]+Tabel2547[[#This Row],[8]]+Tabel2547[[#This Row],[6]]+Tabel2547[[#This Row],[4]]+Tabel2547[[#This Row],[2]] -> 26 | BK25: =Tabel2547[[#This Row],[51]]+Tabel2547[[#This Row],[49]]+Tabel2547[[#This Row],[47]]+Tabel2547[[#This Row],[45]]+Tabel2547[[#This Row],[43]]+Tabel2547[[#This Row],[41]]+Tabel2547[[#This Row],[39]]+Tabel2547[[#This Row],[37]]+Tabel2547[[#This Row],[35]]+Tabel2547[[#This Row],[33]]+Tabel2547[[#This Row],[31]]+Tabel2547[[#This Row],[29]]+Tabel2547[[#This Row],[27]]+Tabel2547[[#This Row],[25]]+Tabel2547[[#This Row],[23]]+Tabel2547[[#This Row],[21]]+Tabel2547[[#This Row],[19]]+Tabel2547[[#This Row],[17]]+Tabel2547[[#This Row],[15]]+Tabel2547[[#This Row],[13]]+Tabel2547[[#This Row],[11]]+Tabel2547[[#This Row],[9]]+Tabel2547[[#This Row],[7]]+Tabel2547[[#This Row],[5]]+Tabel2547[[#This Row],[3]]+Tabel2547[[#This Row],[1]] -> 10 | BM25: =Tabel2547[[#This Row],[RGFT]]+Tabel2547[[#This Row],[RPMD]] -> 36 | BN25: 74 | BO25: Gorinchem
A26: 3.1 | C26: Dinsdag | D26: 1=Gorinchem Wijdschild, 2= Componisten wijk | E26: 1=Flank 15 2= Verdistraat 9 | F26: 8 | G26: 8 | H26: 8 | N26: 30 | W26: 35 | Z26: 9 | BJ26: =Tabel2547[[#This Row],[52]]+Tabel2547[[#This Row],[50]]+Tabel2547[[#This Row],[48]]+Tabel2547[[#This Row],[46]]+Tabel2547[[#This Row],[44]]+Tabel2547[[#This Row],[42]]+Tabel2547[[#This Row],[40]]+Tabel2547[[#This Row],[38]]+Tabel2547[[#This Row],[36]]+Tabel2547[[#This Row],[34]]+Tabel2547[[#This Row],[32]]+Tabel2547[[#This Row],[30]]+Tabel2547[[#This Row],[28]]+Tabel2547[[#This Row],[26]]+Tabel2547[[#This Row],[24]]+Tabel2547[[#This Row],[22]]+Tabel2547[[#This Row],[20]]+Tabel2547[[#This Row],[18]]+Tabel2547[[#This Row],[16]]+Tabel2547[[#This Row],[14]]+Tabel2547[[#This Row],[12]]+Tabel2547[[#This Row],[10]]+Tabel2547[[#This Row],[8]]+Tabel2547[[#This Row],[6]]+Tabel2547[[#This Row],[4]]+Tabel2547[[#This Row],[2]] -> 39 | BL26: =Tabel2547[[#This Row],[51]]+Tabel2547[[#This Row],[49]]+Tabel2547[[#This Row],[47]]+Tabel2547[[#This Row],[45]]+Tabel2547[[#This Row],[43]]+Tabel2547[[#This Row],[41]]+Tabel2547[[#This Row],[39]]+Tabel2547[[#This Row],[37]]+Tabel2547[[#This Row],[35]]+Tabel2547[[#This Row],[33]]+Tabel2547[[#This Row],[31]]+Tabel2547[[#This Row],[29]]+Tabel2547[[#This Row],[27]]+Tabel2547[[#This Row],[25]]+Tabel2547[[#This Row],[23]]+Tabel2547[[#This Row],[21]]+Tabel2547[[#This Row],[19]]+Tabel2547[[#This Row],[17]]+Tabel2547[[#This Row],[15]]+Tabel2547[[#This Row],[13]]+Tabel2547[[#This Row],[11]]+Tabel2547[[#This Row],[9]]+Tabel2547[[#This Row],[7]]+Tabel2547[[#This Row],[5]]+Tabel2547[[#This Row],[3]]+Tabel2547[[#This Row],[1]] -> 35 | BM26: =Tabel2547[[#This Row],[RGFT]]+Tabel2547[[#This Row],[RPMD]] -> 0 | BN26: 0 | BO26: Gorinchem
A27: 4.1 | C27: Dinsdag | D27: 3=Hoogdalem, 2=Dalem en 1=Donken | F27: 7 | G27: 7 | H27: 7 | Q27: 21 | R27: 1 | T27: 8 | X27: 0 | Y27: 6 | BI27: =Tabel2547[[#This Row],[52]]+Tabel2547[[#This Row],[50]]+Tabel2547[[#This Row],[48]]+Tabel2547[[#This Row],[46]]+Tabel2547[[#This Row],[44]]+Tabel2547[[#This Row],[42]]+Tabel2547[[#This Row],[40]]+Tabel2547[[#This Row],[38]]+Tabel2547[[#This Row],[36]]+Tabel2547[[#This Row],[34]]+Tabel2547[[#This Row],[32]]+Tabel2547[[#This Row],[30]]+Tabel2547[[#This Row],[28]]+Tabel2547[[#This Row],[26]]+Tabel2547[[#This Row],[24]]+Tabel2547[[#This Row],[22]]+Tabel2547[[#This Row],[20]]+Tabel2547[[#This Row],[18]]+Tabel2547[[#This Row],[16]]+Tabel2547[[#This Row],[14]]+Tabel2547[[#This Row],[12]]+Tabel2547[[#This Row],[10]]+Tabel2547[[#This Row],[8]]+Tabel2547[[#This Row],[6]]+Tabel2547[[#This Row],[4]]+Tabel2547[[#This Row],[2]] -> 9 | BK27: =Tabel2547[[#This Row],[51]]+Tabel2547[[#This Row],[49]]+Tabel2547[[#This Row],[47]]+Tabel2547[[#This Row],[45]]+Tabel2547[[#This Row],[43]]+Tabel2547[[#This Row],[41]]+Tabel2547[[#This Row],[39]]+Tabel2547[[#This Row],[37]]+Tabel2547[[#This Row],[35]]+Tabel2547[[#This Row],[33]]+Tabel2547[[#This Row],[31]]+Tabel2547[[#This Row],[29]]+Tabel2547[[#This Row],[27]]+Tabel2547[[#This Row],[25]]+Tabel2547[[#This Row],[23]]+Tabel2547[[#This Row],[21]]+Tabel2547[[#This Row],[19]]+Tabel2547[[#This Row],[17]]+Tabel2547[[#This Row],[15]]+Tabel2547[[#This Row],[13]]+Tabel2547[[#This Row],[11]]+Tabel2547[[#This Row],[9]]+Tabel2547[[#This Row],[7]]+Tabel2547[[#This Row],[5]]+Tabel2547[[#This Row],[3]]+Tabel2547[[#This Row],[1]] -> 27 | BM27: =Tabel2547[[#This Row],[RGFT]]+Tabel2547[[#This Row],[RPMD]] -> 36 | BN27: 97 | BO27: Gorinchem
A28: 4.1 | C28: Dinsdag | D28: 3=Hoogdalem, 2=Dalem en 1=Donken | E28: 1= Merwedonk 17 2= de Wetering 2 | F28: 7 | G28: 7 | H28: 7 | Q28: 33 | R28: 17 | T28: 21 | X28: 13 | Y28: 13 | BJ28: =Tabel2547[[#This Row],[52]]+Tabel2547[[#This Row],[50]]+Tabel2547[[#This Row],[48]]+Tabel2547[[#This Row],[46]]+Tabel2547[[#This Row],[44]]+Tabel2547[[#This Row],[42]]+Tabel2547[[#This Row],[40]]+Tabel2547[[#This Row],[38]]+Tabel2547[[#This Row],[36]]+Tabel2547[[#This Row],[34]]+Tabel2547[[#This Row],[32]]+Tabel2547[[#This Row],[30]]+Tabel2547[[#This Row],[28]]+Tabel2547[[#This Row],[26]]+Tabel2547[[#This Row],[24]]+Tabel2547[[#This Row],[22]]+Tabel2547[[#This Row],[20]]+Tabel2547[[#This Row],[18]]+Tabel2547[[#This Row],[16]]+Tabel2547[[#This Row],[14]]+Tabel2547[[#This Row],[12]]+Tabel2547[[#This Row],[10]]+Tabel2547[[#This Row],[8]]+Tabel2547[[#This Row],[6]]+Tabel2547[[#This Row],[4]]+Tabel2547[[#This Row],[2]] -> 51 | BL28: =Tabel2547[[#This Row],[51]]+Tabel2547[[#This Row],[49]]+Tabel2547[[#This Row],[47]]+Tabel2547[[#This Row],[45]]+Tabel2547[[#This Row],[43]]+Tabel2547[[#This Row],[41]]+Tabel2547[[#This Row],[39]]+Tabel2547[[#This Row],[37]]+Tabel2547[[#This Row],[35]]+Tabel2547[[#This Row],[33]]+Tabel2547[[#This Row],[31]]+Tabel2547[[#This Row],[29]]+Tabel2547[[#This Row],[27]]+Tabel2547[[#This Row],[25]]+Tabel2547[[#This Row],[23]]+Tabel2547[[#This Row],[21]]+Tabel2547[[#This Row],[19]]+Tabel2547[[#This Row],[17]]+Tabel2547[[#This Row],[15]]+Tabel2547[[#This Row],[13]]+Tabel2547[[#This Row],[11]]+Tabel2547[[#This Row],[9]]+Tabel2547[[#This Row],[7]]+Tabel2547[[#This Row],[5]]+Tabel2547[[#This Row],[3]]+Tabel2547[[#This Row],[1]] -> 46 | BM28: =Tabel2547[[#This Row],[RGFT]]+Tabel2547[[#This Row],[RPMD]] -> 0 | BN28: 0 | BO28: Gorinchem
A29: 5.1 | C29: Dinsdag | D29: Hoogblokland Binnen | F29: 5 | G29: 5 | H29: 5 | Z29: 1 | AA29: 22 | BI29: =Tabel2547[[#This Row],[52]]+Tabel2547[[#This Row],[50]]+Tabel2547[[#This Row],[48]]+Tabel2547[[#This Row],[46]]+Tabel2547[[#This Row],[44]]+Tabel2547[[#This Row],[42]]+Tabel2547[[#This Row],[40]]+Tabel2547[[#This Row],[38]]+Tabel2547[[#This Row],[36]]+Tabel2547[[#This Row],[34]]+Tabel2547[[#This Row],[32]]+Tabel2547[[#This Row],[30]]+Tabel2547[[#This Row],[28]]+Tabel2547[[#This Row],[26]]+Tabel2547[[#This Row],[24]]+Tabel2547[[#This Row],[22]]+Tabel2547[[#This Row],[20]]+Tabel2547[[#This Row],[18]]+Tabel2547[[#This Row],[16]]+Tabel2547[[#This Row],[14]]+Tabel2547[[#This Row],[12]]+Tabel2547[[#This Row],[10]]+Tabel2547[[#This Row],[8]]+Tabel2547[[#This Row],[6]]+Tabel2547[[#This Row],[4]]+Tabel2547[[#This Row],[2]] -> 1 | BK29: =Tabel2547[[#This Row],[51]]+Tabel2547[[#This Row],[49]]+Tabel2547[[#This Row],[47]]+Tabel2547[[#This Row],[45]]+Tabel2547[[#This Row],[43]]+Tabel2547[[#This Row],[41]]+Tabel2547[[#This Row],[39]]+Tabel2547[[#This Row],[37]]+Tabel2547[[#This Row],[35]]+Tabel2547[[#This Row],[33]]+Tabel2547[[#This Row],[31]]+Tabel2547[[#This Row],[29]]+Tabel2547[[#This Row],[27]]+Tabel2547[[#This Row],[25]]+Tabel2547[[#This Row],[23]]+Tabel2547[[#This Row],[21]]+Tabel2547[[#This Row],[19]]+Tabel2547[[#This Row],[17]]+Tabel2547[[#This Row],[15]]+Tabel2547[[#This Row],[13]]+Tabel2547[[#This Row],[11]]+Tabel2547[[#This Row],[9]]+Tabel2547[[#This Row],[7]]+Tabel2547[[#This Row],[5]]+Tabel2547[[#This Row],[3]]+Tabel2547[[#This Row],[1]] -> 22 | BM29: =Tabel2547[[#This Row],[RGFT]]+Tabel2547[[#This Row],[RPMD]] -> 23 | BN29: 19 | BO29: Molenlanden
A30: 5.1 | C30: Dinsdag | D30: Hoogblokland Binnen | E30: Onderweg 2 | F30: 5 | G30: 5 | H30: 5 | Z30: 9 | AA30: 10 | BJ30: =Tabel2547[[#This Row],[52]]+Tabel2547[[#This Row],[50]]+Tabel2547[[#This Row],[48]]+Tabel2547[[#This Row],[46]]+Tabel2547[[#This Row],[44]]+Tabel2547[[#This Row],[42]]+Tabel2547[[#This Row],[40]]+Tabel2547[[#This Row],[38]]+Tabel2547[[#This Row],[36]]+Tabel2547[[#This Row],[34]]+Tabel2547[[#This Row],[32]]+Tabel2547[[#This Row],[30]]+Tabel2547[[#This Row],[28]]+Tabel2547[[#This Row],[26]]+Tabel2547[[#This Row],[24]]+Tabel2547[[#This Row],[22]]+Tabel2547[[#This Row],[20]]+Tabel2547[[#This Row],[18]]+Tabel2547[[#This Row],[16]]+Tabel2547[[#This Row],[14]]+Tabel2547[[#This Row],[12]]+Tabel2547[[#This Row],[10]]+Tabel2547[[#This Row],[8]]+Tabel2547[[#This Row],[6]]+Tabel2547[[#This Row],[4]]+Tabel2547[[#This Row],[2]] -> 9 | BL30: =Tabel2547[[#This Row],[51]]+Tabel2547[[#This Row],[49]]+Tabel2547[[#This Row],[47]]+Tabel2547[[#This Row],[45]]+Tabel2547[[#This Row],[43]]+Tabel2547[[#This Row],[41]]+Tabel2547[[#This Row],[39]]+Tabel2547[[#This Row],[37]]+Tabel2547[[#This Row],[35]]+Tabel2547[[#This Row],[33]]+Tabel2547[[#This Row],[31]]+Tabel2547[[#This Row],[29]]+Tabel2547[[#This Row],[27]]+Tabel2547[[#This Row],[25]]+Tabel2547[[#This Row],[23]]+Tabel2547[[#This Row],[21]]+Tabel2547[[#This Row],[19]]+Tabel2547[[#This Row],[17]]+Tabel2547[[#This Row],[15]]+Tabel2547[[#This Row],[13]]+Tabel2547[[#This Row],[11]]+Tabel2547[[#This Row],[9]]+Tabel2547[[#This Row],[7]]+Tabel2547[[#This Row],[5]]+Tabel2547[[#This Row],[3]]+Tabel2547[[#This Row],[1]] -> 10 | BM30: =Tabel2547[[#This Row],[RGFT]]+Tabel2547[[#This Row],[RPMD]] -> 0 | BN30: 0 | BO30: Molenlanden
A31: 6.1 | C31: Dinsdag | D31: Hoef en Haag | F31: 4 | G31: 3 | H31: 3 | U31: 16 | V31: 18 | W31: 24 | AA31: 64 | BI31: =Tabel2547[[#This Row],[52]]+Tabel2547[[#This Row],[50]]+Tabel2547[[#This Row],[48]]+Tabel2547[[#This Row],[46]]+Tabel2547[[#This Row],[44]]+Tabel2547[[#This Row],[42]]+Tabel2547[[#This Row],[40]]+Tabel2547[[#This Row],[38]]+Tabel2547[[#This Row],[36]]+Tabel2547[[#This Row],[34]]+Tabel2547[[#This Row],[32]]+Tabel2547[[#This Row],[30]]+Tabel2547[[#This Row],[28]]+Tabel2547[[#This Row],[26]]+Tabel2547[[#This Row],[24]]+Tabel2547[[#This Row],[22]]+Tabel2547[[#This Row],[20]]+Tabel2547[[#This Row],[18]]+Tabel2547[[#This Row],[16]]+Tabel2547[[#This Row],[14]]+Tabel2547[[#This Row],[12]]+Tabel2547[[#This Row],[10]]+Tabel2547[[#This Row],[8]]+Tabel2547[[#This Row],[6]]+Tabel2547[[#This Row],[4]]+Tabel2547[[#This Row],[2]] -> 18 | BK31: =Tabel2547[[#This Row],[51]]+Tabel2547[[#This Row],[49]]+Tabel2547[[#This Row],[47]]+Tabel2547[[#This Row],[45]]+Tabel2547[[#This Row],[43]]+Tabel2547[[#This Row],[41]]+Tabel2547[[#This Row],[39]]+Tabel2547[[#This Row],[37]]+Tabel2547[[#This Row],[35]]+Tabel2547[[#This Row],[33]]+Tabel2547[[#This Row],[31]]+Tabel2547[[#This Row],[29]]+Tabel2547[[#This Row],[27]]+Tabel2547[[#This Row],[25]]+Tabel2547[[#This Row],[23]]+Tabel2547[[#This Row],[21]]+Tabel2547[[#This Row],[19]]+Tabel2547[[#This Row],[17]]+Tabel2547[[#This Row],[15]]+Tabel2547[[#This Row],[13]]+Tabel2547[[#This Row],[11]]+Tabel2547[[#This Row],[9]]+Tabel2547[[#This Row],[7]]+Tabel2547[[#This Row],[5]]+Tabel2547[[#This Row],[3]]+Tabel2547[[#This Row],[1]] -> 104 | BM31: =Tabel2547[[#This Row],[RGFT]]+Tabel2547[[#This Row],[RPMD]] -> 122 | BN31: 61 | BO31: VHL
A32: 6.1 | C32: Dinsdag | D32: Hoef en Haag | E32: Laurierkerspad 2 | F32: 4 | G32: 3 | H32: 3 | U32: 17 | V32: 15 | W32: 16 | AA32: 13 | BJ32: =Tabel2547[[#This Row],[52]]+Tabel2547[[#This Row],[50]]+Tabel2547[[#This Row],[48]]+Tabel2547[[#This Row],[46]]+Tabel2547[[#This Row],[44]]+Tabel2547[[#This Row],[42]]+Tabel2547[[#This Row],[40]]+Tabel2547[[#This Row],[38]]+Tabel2547[[#This Row],[36]]+Tabel2547[[#This Row],[34]]+Tabel2547[[#This Row],[32]]+Tabel2547[[#This Row],[30]]+Tabel2547[[#This Row],[28]]+Tabel2547[[#This Row],[26]]+Tabel2547[[#This Row],[24]]+Tabel2547[[#This Row],[22]]+Tabel2547[[#This Row],[20]]+Tabel2547[[#This Row],[18]]+Tabel2547[[#This Row],[16]]+Tabel2547[[#This Row],[14]]+Tabel2547[[#This Row],[12]]+Tabel2547[[#This Row],[10]]+Tabel2547[[#This Row],[8]]+Tabel2547[[#This Row],[6]]+Tabel2547[[#This Row],[4]]+Tabel2547[[#This Row],[2]] -> 15 | BL32: =Tabel2547[[#This Row],[51]]+Tabel2547[[#This Row],[49]]+Tabel2547[[#This Row],[47]]+Tabel2547[[#This Row],[45]]+Tabel2547[[#This Row],[43]]+Tabel2547[[#This Row],[41]]+Tabel2547[[#This Row],[39]]+Tabel2547[[#This Row],[37]]+Tabel2547[[#This Row],[35]]+Tabel2547[[#This Row],[33]]+Tabel2547[[#This Row],[31]]+Tabel2547[[#This Row],[29]]+Tabel2547[[#This Row],[27]]+Tabel2547[[#This Row],[25]]+Tabel2547[[#This Row],[23]]+Tabel2547[[#This Row],[21]]+Tabel2547[[#This Row],[19]]+Tabel2547[[#This Row],[17]]+Tabel2547[[#This Row],[15]]+Tabel2547[[#This Row],[13]]+Tabel2547[[#This Row],[11]]+Tabel2547[[#This Row],[9]]+Tabel2547[[#This Row],[7]]+Tabel2547[[#This Row],[5]]+Tabel2547[[#This Row],[3]]+Tabel2547[[#This Row],[1]] -> 46 | BM32: =Tabel2547[[#This Row],[RGFT]]+Tabel2547[[#This Row],[RPMD]] -> 0 | BN32: 0 | BO32: VHL
A33: 6.2 | C33: Dinsdag | D33: Vianen De Hagen | V33: 4 | W33: 3 | AA33: 5 | BI33: =Tabel2547[[#This Row],[52]]+Tabel2547[[#This Row],[50]]+Tabel2547[[#This Row],[48]]+Tabel2547[[#This Row],[46]]+Tabel2547[[#This Row],[44]]+Tabel2547[[#This Row],[42]]+Tabel2547[[#This Row],[40]]+Tabel2547[[#This Row],[38]]+Tabel2547[[#This Row],[36]]+Tabel2547[[#This Row],[34]]+Tabel2547[[#This Row],[32]]+Tabel2547[[#This Row],[30]]+Tabel2547[[#This Row],[28]]+Tabel2547[[#This Row],[26]]+Tabel2547[[#This Row],[24]]+Tabel2547[[#This Row],[22]]+Tabel2547[[#This Row],[20]]+Tabel2547[[#This Row],[18]]+Tabel2547[[#This Row],[16]]+Tabel2547[[#This Row],[14]]+Tabel2547[[#This Row],[12]]+Tabel2547[[#This Row],[10]]+Tabel2547[[#This Row],[8]]+Tabel2547[[#This Row],[6]]+Tabel2547[[#This Row],[4]]+Tabel2547[[#This Row],[2]] -> 4 | BK33: =Tabel2547[[#This Row],[51]]+Tabel2547[[#This Row],[49]]+Tabel2547[[#This Row],[47]]+Tabel2547[[#This Row],[45]]+Tabel2547[[#This Row],[43]]+Tabel2547[[#This Row],[41]]+Tabel2547[[#This Row],[39]]+Tabel2547[[#This Row],[37]]+Tabel2547[[#This Row],[35]]+Tabel2547[[#This Row],[33]]+Tabel2547[[#This Row],[31]]+Tabel2547[[#This Row],[29]]+Tabel2547[[#This Row],[27]]+Tabel2547[[#This Row],[25]]+Tabel2547[[#This Row],[23]]+Tabel2547[[#This Row],[21]]+Tabel2547[[#This Row],[19]]+Tabel2547[[#This Row],[17]]+Tabel2547[[#This Row],[15]]+Tabel2547[[#This Row],[13]]+Tabel2547[[#This Row],[11]]+Tabel2547[[#This Row],[9]]+Tabel2547[[#This Row],[7]]+Tabel2547[[#This Row],[5]]+Tabel2547[[#This Row],[3]]+Tabel2547[[#This Row],[1]] -> 8 | BM33: =Tabel2547[[#This Row],[RGFT]]+Tabel2547[[#This Row],[RPMD]] -> 12 | BN33: 15 | BO33: Vianen | BP33: VHL
A34: 6.2 | C34: Dinsdag | D34: Vianen De Hagen | E34: Jan van Arkelstraat 42 | V34: 5 | W34: 8 | AA34: 2 | BJ34: =Tabel2547[[#This Row],[52]]+Tabel2547[[#This Row],[50]]+Tabel2547[[#This Row],[48]]+Tabel2547[[#This Row],[46]]+Tabel2547[[#This Row],[44]]+Tabel2547[[#This Row],[42]]+Tabel2547[[#This Row],[40]]+Tabel2547[[#This Row],[38]]+Tabel2547[[#This Row],[36]]+Tabel2547[[#This Row],[34]]+Tabel2547[[#This Row],[32]]+Tabel2547[[#This Row],[30]]+Tabel2547[[#This Row],[28]]+Tabel2547[[#This Row],[26]]+Tabel2547[[#This Row],[24]]+Tabel2547[[#This Row],[22]]+Tabel2547[[#This Row],[20]]+Tabel2547[[#This Row],[18]]+Tabel2547[[#This Row],[16]]+Tabel2547[[#This Row],[14]]+Tabel2547[[#This Row],[12]]+Tabel2547[[#This Row],[10]]+Tabel2547[[#This Row],[8]]+Tabel2547[[#This Row],[6]]+Tabel2547[[#This Row],[4]]+Tabel2547[[#This Row],[2]] -> 5 | BL34: =Tabel2547[[#This Row],[51]]+Tabel2547[[#This Row],[49]]+Tabel2547[[#This Row],[47]]+Tabel2547[[#This Row],[45]]+Tabel2547[[#This Row],[43]]+Tabel2547[[#This Row],[41]]+Tabel2547[[#This Row],[39]]+Tabel2547[[#This Row],[37]]+Tabel2547[[#This Row],[35]]+Tabel2547[[#This Row],[33]]+Tabel2547[[#This Row],[31]]+Tabel2547[[#This Row],[29]]+Tabel2547[[#This Row],[27]]+Tabel2547[[#This Row],[25]]+Tabel2547[[#This Row],[23]]+Tabel2547[[#This Row],[21]]+Tabel2547[[#This Row],[19]]+Tabel2547[[#This Row],[17]]+Tabel2547[[#This Row],[15]]+Tabel2547[[#This Row],[13]]+Tabel2547[[#This Row],[11]]+Tabel2547[[#This Row],[9]]+Tabel2547[[#This Row],[7]]+Tabel2547[[#This Row],[5]]+Tabel2547[[#This Row],[3]]+Tabel2547[[#This Row],[1]] -> 10 | BM34: =Tabel2547[[#This Row],[RGFT]]+Tabel2547[[#This Row],[RPMD]] -> 0 | BN34: 0 | BO34: Vianen | BP34: VHL
A35: 7.1 | C35: Dinsdag | D35: Vianen Centrum en Hagestein | U35: 5 | BI35: =Tabel2547[[#This Row],[52]]+Tabel2547[[#This Row],[50]]+Tabel2547[[#This Row],[48]]+Tabel2547[[#This Row],[46]]+Tabel2547[[#This Row],[44]]+Tabel2547[[#This Row],[42]]+Tabel2547[[#This Row],[40]]+Tabel2547[[#This Row],[38]]+Tabel2547[[#This Row],[36]]+Tabel2547[[#This Row],[34]]+Tabel2547[[#This Row],[32]]+Tabel2547[[#This Row],[30]]+Tabel2547[[#This Row],[28]]+Tabel2547[[#This Row],[26]]+Tabel2547[[#This Row],[24]]+Tabel2547[[#This Row],[22]]+Tabel2547[[#This Row],[20]]+Tabel2547[[#This Row],[18]]+Tabel2547[[#This Row],[16]]+Tabel2547[[#This Row],[14]]+Tabel2547[[#This Row],[12]]+Tabel2547[[#This Row],[10]]+Tabel2547[[#This Row],[8]]+Tabel2547[[#This Row],[6]]+Tabel2547[[#This Row],[4]]+Tabel2547[[#This Row],[2]] -> 0 | BK35: =Tabel2547[[#This Row],[51]]+Tabel2547[[#This Row],[49]]+Tabel2547[[#This Row],[47]]+Tabel2547[[#This Row],[45]]+Tabel2547[[#This Row],[43]]+Tabel2547[[#This Row],[41]]+Tabel2547[[#This Row],[39]]+Tabel2547[[#This Row],[37]]+Tabel2547[[#This Row],[35]]+Tabel2547[[#This Row],[33]]+Tabel2547[[#This Row],[31]]+Tabel2547[[#This Row],[29]]+Tabel2547[[#This Row],[27]]+Tabel2547[[#This Row],[25]]+Tabel2547[[#This Row],[23]]+Tabel2547[[#This Row],[21]]+Tabel2547[[#This Row],[19]]+Tabel2547[[#This Row],[17]]+Tabel2547[[#This Row],[15]]+Tabel2547[[#This Row],[13]]+Tabel2547[[#This Row],[11]]+Tabel2547[[#This Row],[9]]+Tabel2547[[#This Row],[7]]+Tabel2547[[#This Row],[5]]+Tabel2547[[#This Row],[3]]+Tabel2547[[#This Row],[1]] -> 5 | BM35: =Tabel2547[[#This Row],[RGFT]]+Tabel2547[[#This Row],[RPMD]] -> 5 | BN35: =BJ36+BL36 -> 17 | BO35: Vianen | BP35: VHL
A36: 7.1 | C36: Dinsdag | D36: 1=Vianen Centrum - 2=Hagestein | E36: 1= Weesdijk 42 2= Biezenweg 47 | U36: 17 | BJ36: =Tabel2547[[#This Row],[52]]+Tabel2547[[#This Row],[50]]+Tabel2547[[#This Row],[48]]+Tabel2547[[#This Row],[46]]+Tabel2547[[#This Row],[44]]+Tabel2547[[#This Row],[42]]+Tabel2547[[#This Row],[40]]+Tabel2547[[#This Row],[38]]+Tabel2547[[#This Row],[36]]+Tabel2547[[#This Row],[34]]+Tabel2547[[#This Row],[32]]+Tabel2547[[#This Row],[30]]+Tabel2547[[#This Row],[28]]+Tabel2547[[#This Row],[26]]+Tabel2547[[#This Row],[24]]+Tabel2547[[#This Row],[22]]+Tabel2547[[#This Row],[20]]+Tabel2547[[#This Row],[18]]+Tabel2547[[#This Row],[16]]+Tabel2547[[#This Row],[14]]+Tabel2547[[#This Row],[12]]+Tabel2547[[#This Row],[10]]+Tabel2547[[#This Row],[8]]+Tabel2547[[#This Row],[6]]+Tabel2547[[#This Row],[4]]+Tabel2547[[#This Row],[2]] -> 0 | BL36: =Tabel2547[[#This Row],[51]]+Tabel2547[[#This Row],[49]]+Tabel2547[[#This Row],[47]]+Tabel2547[[#This Row],[45]]+Tabel2547[[#This Row],[43]]+Tabel2547[[#This Row],[41]]+Tabel2547[[#This Row],[39]]+Tabel2547[[#This Row],[37]]+Tabel2547[[#This Row],[35]]+Tabel2547[[#This Row],[33]]+Tabel2547[[#This Row],[31]]+Tabel2547[[#This Row],[29]]+Tabel2547[[#This Row],[27]]+Tabel2547[[#This Row],[25]]+Tabel2547[[#This Row],[23]]+Tabel2547[[#This Row],[21]]+Tabel2547[[#This Row],[19]]+Tabel2547[[#This Row],[17]]+Tabel2547[[#This Row],[15]]+Tabel2547[[#This Row],[13]]+Tabel2547[[#This Row],[11]]+Tabel2547[[#This Row],[9]]+Tabel2547[[#This Row],[7]]+Tabel2547[[#This Row],[5]]+Tabel2547[[#This Row],[3]]+Tabel2547[[#This Row],[1]] -> 17 | BM36: =Tabel2547[[#This Row],[RGFT]]+Tabel2547[[#This Row],[RPMD]] -> 0 | BN36: 0 | BO36: Vianen | BP36: VHL
A37: 8.1 | C37: Dinsdag | D37: 1=Hoornaar 2 Schelluinen binnen | F37: 3 | G37: 3 | H37: 3 | S37: 0 | BI37: =Tabel2547[[#This Row],[52]]+Tabel2547[[#This Row],[50]]+Tabel2547[[#This Row],[48]]+Tabel2547[[#This Row],[46]]+Tabel2547[[#This Row],[44]]+Tabel2547[[#This Row],[42]]+Tabel2547[[#This Row],[40]]+Tabel2547[[#This Row],[38]]+Tabel2547[[#This Row],[36]]+Tabel2547[[#This Row],[34]]+Tabel2547[[#This Row],[32]]+Tabel2547[[#This Row],[30]]+Tabel2547[[#This Row],[28]]+Tabel2547[[#This Row],[26]]+Tabel2547[[#This Row],[24]]+Tabel2547[[#This Row],[22]]+Tabel2547[[#This Row],[20]]+Tabel2547[[#This Row],[18]]+Tabel2547[[#This Row],[16]]+Tabel2547[[#This Row],[14]]+Tabel2547[[#This Row],[12]]+Tabel2547[[#This Row],[10]]+Tabel2547[[#This Row],[8]]+Tabel2547[[#This Row],[6]]+Tabel2547[[#This Row],[4]]+Tabel2547[[#This Row],[2]] -> 0 | BK37: =Tabel2547[[#This Row],[51]]+Tabel2547[[#This Row],[49]]+Tabel2547[[#This Row],[47]]+Tabel2547[[#This Row],[45]]+Tabel2547[[#This Row],[43]]+Tabel2547[[#This Row],[41]]+Tabel2547[[#This Row],[39]]+Tabel2547[[#This Row],[37]]+Tabel2547[[#This Row],[35]]+Tabel2547[[#This Row],[33]]+Tabel2547[[#This Row],[31]]+Tabel2547[[#This Row],[29]]+Tabel2547[[#This Row],[27]]+Tabel2547[[#This Row],[25]]+Tabel2547[[#This Row],[23]]+Tabel2547[[#This Row],[21]]+Tabel2547[[#This Row],[19]]+Tabel2547[[#This Row],[17]]+Tabel2547[[#This Row],[15]]+Tabel2547[[#This Row],[13]]+Tabel2547[[#This Row],[11]]+Tabel2547[[#This Row],[9]]+Tabel2547[[#This Row],[7]]+Tabel2547[[#This Row],[5]]+Tabel2547[[#This Row],[3]]+Tabel2547[[#This Row],[1]] -> 0 | BM37: =Tabel2547[[#This Row],[RGFT]]+Tabel2547[[#This Row],[RPMD]] -> 0 | BN37: 15 | BO37: Molenlanden
A38: 8.1 | C38: Dinsdag | D38: 1 = Hoornaar 2= Schelluinen binnen | E38: 1 = Weide 33A 2 = Commanderijstraat 28 | F38: 3 | G38: 3 | H38: 3 | S38: 15 | BJ38: =Tabel2547[[#This Row],[52]]+Tabel2547[[#This Row],[50]]+Tabel2547[[#This Row],[48]]+Tabel2547[[#This Row],[46]]+Tabel2547[[#This Row],[44]]+Tabel2547[[#This Row],[42]]+Tabel2547[[#This Row],[40]]+Tabel2547[[#This Row],[38]]+Tabel2547[[#This Row],[36]]+Tabel2547[[#This Row],[34]]+Tabel2547[[#This Row],[32]]+Tabel2547[[#This Row],[30]]+Tabel2547[[#This Row],[28]]+Tabel2547[[#This Row],[26]]+Tabel2547[[#This Row],[24]]+Tabel2547[[#This Row],[22]]+Tabel2547[[#This Row],[20]]+Tabel2547[[#This Row],[18]]+Tabel2547[[#This Row],[16]]+Tabel2547[[#This Row],[14]]+Tabel2547[[#This Row],[12]]+Tabel2547[[#This Row],[10]]+Tabel2547[[#This Row],[8]]+Tabel2547[[#This Row],[6]]+Tabel2547[[#This Row],[4]]+Tabel2547[[#This Row],[2]] -> 0 | BL38: =Tabel2547[[#This Row],[51]]+Tabel2547[[#This Row],[49]]+Tabel2547[[#This Row],[47]]+Tabel2547[[#This Row],[45]]+Tabel2547[[#This Row],[43]]+Tabel2547[[#This Row],[41]]+Tabel2547[[#This Row],[39]]+Tabel2547[[#This Row],[37]]+Tabel2547[[#This Row],[35]]+Tabel2547[[#This Row],[33]]+Tabel2547[[#This Row],[31]]+Tabel2547[[#This Row],[29]]+Tabel2547[[#This Row],[27]]+Tabel2547[[#This Row],[25]]+Tabel2547[[#This Row],[23]]+Tabel2547[[#This Row],[21]]+Tabel2547[[#This Row],[19]]+Tabel2547[[#This Row],[17]]+Tabel2547[[#This Row],[15]]+Tabel2547[[#This Row],[13]]+Tabel2547[[#This Row],[11]]+Tabel2547[[#This Row],[9]]+Tabel2547[[#This Row],[7]]+Tabel2547[[#This Row],[5]]+Tabel2547[[#This Row],[3]]+Tabel2547[[#This Row],[1]] -> 15 | BM38: =Tabel2547[[#This Row],[RGFT]]+Tabel2547[[#This Row],[RPMD]] -> 0 | BN38: 0 | BO38: Molenlanden
A39: 8.2 | C39: Dinsdag | D39: 1 =Stalkaarsen oude Hoven | F39: 3 | G39: 3 | H39: 3 | J39: 0 | K39: 0 | S39: 8 | BI39: =Tabel2547[[#This Row],[52]]+Tabel2547[[#This Row],[50]]+Tabel2547[[#This Row],[48]]+Tabel2547[[#This Row],[46]]+Tabel2547[[#This Row],[44]]+Tabel2547[[#This Row],[42]]+Tabel2547[[#This Row],[40]]+Tabel2547[[#This Row],[38]]+Tabel2547[[#This Row],[36]]+Tabel2547[[#This Row],[34]]+Tabel2547[[#This Row],[32]]+Tabel2547[[#This Row],[30]]+Tabel2547[[#This Row],[28]]+Tabel2547[[#This Row],[26]]+Tabel2547[[#This Row],[24]]+Tabel2547[[#This Row],[22]]+Tabel2547[[#This Row],[20]]+Tabel2547[[#This Row],[18]]+Tabel2547[[#This Row],[16]]+Tabel2547[[#This Row],[14]]+Tabel2547[[#This Row],[12]]+Tabel2547[[#This Row],[10]]+Tabel2547[[#This Row],[8]]+Tabel2547[[#This Row],[6]]+Tabel2547[[#This Row],[4]]+Tabel2547[[#This Row],[2]] -> 0 | BK39: =Tabel2547[[#This Row],[51]]+Tabel2547[[#This Row],[49]]+Tabel2547[[#This Row],[47]]+Tabel2547[[#This Row],[45]]+Tabel2547[[#This Row],[43]]+Tabel2547[[#This Row],[41]]+Tabel2547[[#This Row],[39]]+Tabel2547[[#This Row],[37]]+Tabel2547[[#This Row],[35]]+Tabel2547[[#This Row],[33]]+Tabel2547[[#This Row],[31]]+Tabel2547[[#This Row],[29]]+Tabel2547[[#This Row],[27]]+Tabel2547[[#This Row],[25]]+Tabel2547[[#This Row],[23]]+Tabel2547[[#This Row],[21]]+Tabel2547[[#This Row],[19]]+Tabel2547[[#This Row],[17]]+Tabel2547[[#This Row],[15]]+Tabel2547[[#This Row],[13]]+Tabel2547[[#This Row],[11]]+Tabel2547[[#This Row],[9]]+Tabel2547[[#This Row],[7]]+Tabel2547[[#This Row],[5]]+Tabel2547[[#This Row],[3]]+Tabel2547[[#This Row],[1]] -> 8 | BM39: =Tabel2547[[#This Row],[RGFT]]+Tabel2547[[#This Row],[RPMD]] -> 8 | BN39: 18 | BO39: Molenlanden
A40: 8.2 | C40: Dinsdag | D40: 1 =Stalkaarsen oude Hoven | E40: 1 = Dokter Schoyerstraat 43 | F40: 3 | G40: 3 | H40: 3 | J40: 0 | K40: 10 | S40: 8 | BJ40: =Tabel2547[[#This Row],[52]]+Tabel2547[[#This Row],[50]]+Tabel2547[[#This Row],[48]]+Tabel2547[[#This Row],[46]]+Tabel2547[[#This Row],[44]]+Tabel2547[[#This Row],[42]]+Tabel2547[[#This Row],[40]]+Tabel2547[[#This Row],[38]]+Tabel2547[[#This Row],[36]]+Tabel2547[[#This Row],[34]]+Tabel2547[[#This Row],[32]]+Tabel2547[[#This Row],[30]]+Tabel2547[[#This Row],[28]]+Tabel2547[[#This Row],[26]]+Tabel2547[[#This Row],[24]]+Tabel2547[[#This Row],[22]]+Tabel2547[[#This Row],[20]]+Tabel2547[[#This Row],[18]]+Tabel2547[[#This Row],[16]]+Tabel2547[[#This Row],[14]]+Tabel2547[[#This Row],[12]]+Tabel2547[[#This Row],[10]]+Tabel2547[[#This Row],[8]]+Tabel2547[[#This Row],[6]]+Tabel2547[[#This Row],[4]]+Tabel2547[[#This Row],[2]] -> 0 | BL40: =Tabel2547[[#This Row],[51]]+Tabel2547[[#This Row],[49]]+Tabel2547[[#This Row],[47]]+Tabel2547[[#This Row],[45]]+Tabel2547[[#This Row],[43]]+Tabel2547[[#This Row],[41]]+Tabel2547[[#This Row],[39]]+Tabel2547[[#This Row],[37]]+Tabel2547[[#This Row],[35]]+Tabel2547[[#This Row],[33]]+Tabel2547[[#This Row],[31]]+Tabel2547[[#This Row],[29]]+Tabel2547[[#This Row],[27]]+Tabel2547[[#This Row],[25]]+Tabel2547[[#This Row],[23]]+Tabel2547[[#This Row],[21]]+Tabel2547[[#This Row],[19]]+Tabel2547[[#This Row],[17]]+Tabel2547[[#This Row],[15]]+Tabel2547[[#This Row],[13]]+Tabel2547[[#This Row],[11]]+Tabel2547[[#This Row],[9]]+Tabel2547[[#This Row],[7]]+Tabel2547[[#This Row],[5]]+Tabel2547[[#This Row],[3]]+Tabel2547[[#This Row],[1]] -> 18 | BM40: =Tabel2547[[#This Row],[RGFT]]+Tabel2547[[#This Row],[RPMD]] -> 0 | BN40: 0 | BO40: Molenlanden
A41: 1.1 | C41: Woensdag | D41: Arkel binnen (helemaal) - Meerkerk | F41: 8 | G41: 8 | H41: 7 | I41: 4 | M41: 9 | N41: 2 | P41: 6 | Q41: 14 | S41: 6 | V41: 9 | W41: 29 | Y41: 7 | BI41: =Tabel2547[[#This Row],[52]]+Tabel2547[[#This Row],[50]]+Tabel2547[[#This Row],[48]]+Tabel2547[[#This Row],[46]]+Tabel2547[[#This Row],[44]]+Tabel2547[[#This Row],[42]]+Tabel2547[[#This Row],[40]]+Tabel2547[[#This Row],[38]]+Tabel2547[[#This Row],[36]]+Tabel2547[[#This Row],[34]]+Tabel2547[[#This Row],[32]]+Tabel2547[[#This Row],[30]]+Tabel2547[[#This Row],[28]]+Tabel2547[[#This Row],[26]]+Tabel2547[[#This Row],[24]]+Tabel2547[[#This Row],[22]]+Tabel2547[[#This Row],[20]]+Tabel2547[[#This Row],[18]]+Tabel2547[[#This Row],[16]]+Tabel2547[[#This Row],[14]]+Tabel2547[[#This Row],[12]]+Tabel2547[[#This Row],[10]]+Tabel2547[[#This Row],[8]]+Tabel2547[[#This Row],[6]]+Tabel2547[[#This Row],[4]]+Tabel2547[[#This Row],[2]] -> 17 | BK41: =Tabel2547[[#This Row],[51]]+Tabel2547[[#This Row],[49]]+Tabel2547[[#This Row],[47]]+Tabel2547[[#This Row],[45]]+Tabel2547[[#This Row],[43]]+Tabel2547[[#This Row],[41]]+Tabel2547[[#This Row],[39]]+Tabel2547[[#This Row],[37]]+Tabel2547[[#This Row],[35]]+Tabel2547[[#This Row],[33]]+Tabel2547[[#This Row],[31]]+Tabel2547[[#This Row],[29]]+Tabel2547[[#This Row],[27]]+Tabel2547[[#This Row],[25]]+Tabel2547[[#This Row],[23]]+Tabel2547[[#This Row],[21]]+Tabel2547[[#This Row],[19]]+Tabel2547[[#This Row],[17]]+Tabel2547[[#This Row],[15]]+Tabel2547[[#This Row],[13]]+Tabel2547[[#This Row],[11]]+Tabel2547[[#This Row],[9]]+Tabel2547[[#This Row],[7]]+Tabel2547[[#This Row],[5]]+Tabel2547[[#This Row],[3]]+Tabel2547[[#This Row],[1]] -> 69 | BM41: =Tabel2547[[#This Row],[RGFT]]+Tabel2547[[#This Row],[RPMD]] -> 86 | BN41: 189 | BO41: Molenlanden
A42: 1.1 | C42: Woensdag | D42: 1=Arkel binnen - 2=Meerkerk | E42: 1= Mispeldreef 29 2= Prinses Marijkeweg 5 | F42: 8 | G42: 8 | H42: 7 | I42: 10 | M42: 30 | N42: 41 | P42: 16 | Q42: 18 | S42: 12 | V42: 13 | W42: 38 | Y42: 7 | Z42: 4 | BJ42: =Tabel2547[[#This Row],[52]]+Tabel2547[[#This Row],[50]]+Tabel2547[[#This Row],[48]]+Tabel2547[[#This Row],[46]]+Tabel2547[[#This Row],[44]]+Tabel2547[[#This Row],[42]]+Tabel2547[[#This Row],[40]]+Tabel2547[[#This Row],[38]]+Tabel2547[[#This Row],[36]]+Tabel2547[[#This Row],[34]]+Tabel2547[[#This Row],[32]]+Tabel2547[[#This Row],[30]]+Tabel2547[[#This Row],[28]]+Tabel2547[[#This Row],[26]]+Tabel2547[[#This Row],[24]]+Tabel2547[[#This Row],[22]]+Tabel2547[[#This Row],[20]]+Tabel2547[[#This Row],[18]]+Tabel2547[[#This Row],[16]]+Tabel2547[[#This Row],[14]]+Tabel2547[[#This Row],[12]]+Tabel2547[[#This Row],[10]]+Tabel2547[[#This Row],[8]]+Tabel2547[[#This Row],[6]]+Tabel2547[[#This Row],[4]]+Tabel2547[[#This Row],[2]] -> 74 | BL42: =Tabel2547[[#This Row],[51]]+Tabel2547[[#This Row],[49]]+Tabel2547[[#This Row],[47]]+Tabel2547[[#This Row],[45]]+Tabel2547[[#This Row],[43]]+Tabel2547[[#This Row],[41]]+Tabel2547[[#This Row],[39]]+Tabel2547[[#This Row],[37]]+Tabel2547[[#This Row],[35]]+Tabel2547[[#This Row],[33]]+Tabel2547[[#This Row],[31]]+Tabel2547[[#This Row],[29]]+Tabel2547[[#This Row],[27]]+Tabel2547[[#This Row],[25]]+Tabel2547[[#This Row],[23]]+Tabel2547[[#This Row],[21]]+Tabel2547[[#This Row],[19]]+Tabel2547[[#This Row],[17]]+Tabel2547[[#This Row],[15]]+Tabel2547[[#This Row],[13]]+Tabel2547[[#This Row],[11]]+Tabel2547[[#This Row],[9]]+Tabel2547[[#This Row],[7]]+Tabel2547[[#This Row],[5]]+Tabel2547[[#This Row],[3]]+Tabel2547[[#This Row],[1]] -> 115 | BM42: =Tabel2547[[#This Row],[RGFT]]+Tabel2547[[#This Row],[RPMD]] -> 0 | BN42: 0 | BO42: Molenlanden
A43: 2.1 | C43: Woensdag | D43: Vianen Monnikenhof - Meerkerk helpen | I43: 0 | T43: 2 | X43: 13 | Y43: 24 | BI43: =Tabel2547[[#This Row],[52]]+Tabel2547[[#This Row],[50]]+Tabel2547[[#This Row],[48]]+Tabel2547[[#This Row],[46]]+Tabel2547[[#This Row],[44]]+Tabel2547[[#This Row],[42]]+Tabel2547[[#This Row],[40]]+Tabel2547[[#This Row],[38]]+Tabel2547[[#This Row],[36]]+Tabel2547[[#This Row],[34]]+Tabel2547[[#This Row],[32]]+Tabel2547[[#This Row],[30]]+Tabel2547[[#This Row],[28]]+Tabel2547[[#This Row],[26]]+Tabel2547[[#This Row],[24]]+Tabel2547[[#This Row],[22]]+Tabel2547[[#This Row],[20]]+Tabel2547[[#This Row],[18]]+Tabel2547[[#This Row],[16]]+Tabel2547[[#This Row],[14]]+Tabel2547[[#This Row],[12]]+Tabel2547[[#This Row],[10]]+Tabel2547[[#This Row],[8]]+Tabel2547[[#This Row],[6]]+Tabel2547[[#This Row],[4]]+Tabel2547[[#This Row],[2]] -> 15 | BK43: =Tabel2547[[#This Row],[51]]+Tabel2547[[#This Row],[49]]+Tabel2547[[#This Row],[47]]+Tabel2547[[#This Row],[45]]+Tabel2547[[#This Row],[43]]+Tabel2547[[#This Row],[41]]+Tabel2547[[#This Row],[39]]+Tabel2547[[#This Row],[37]]+Tabel2547[[#This Row],[35]]+Tabel2547[[#This Row],[33]]+Tabel2547[[#This Row],[31]]+Tabel2547[[#This Row],[29]]+Tabel2547[[#This Row],[27]]+Tabel2547[[#This Row],[25]]+Tabel2547[[#This Row],[23]]+Tabel2547[[#This Row],[21]]+Tabel2547[[#This Row],[19]]+Tabel2547[[#This Row],[17]]+Tabel2547[[#This Row],[15]]+Tabel2547[[#This Row],[13]]+Tabel2547[[#This Row],[11]]+Tabel2547[[#This Row],[9]]+Tabel2547[[#This Row],[7]]+Tabel2547[[#This Row],[5]]+Tabel2547[[#This Row],[3]]+Tabel2547[[#This Row],[1]] -> 24 | BM43: =Tabel2547[[#This Row],[RGFT]]+Tabel2547[[#This Row],[RPMD]] -> 39 | BN43: 76 | BO43: VHL
A44: 2.1 | C44: Woensdag | D44: 1=Vianen Monnikenhof -2= Meerkerk helpen | E44: 1= De zeven boompjes 3 2= Prinses Marijkeweg 5 | I44: 0 | T44: 21 | X44: 26 | Y44: 29 | BJ44: =Tabel2547[[#This Row],[52]]+Tabel2547[[#This Row],[50]]+Tabel2547[[#This Row],[48]]+Tabel2547[[#This Row],[46]]+Tabel2547[[#This Row],[44]]+Tabel2547[[#This Row],[42]]+Tabel2547[[#This Row],[40]]+Tabel2547[[#This Row],[38]]+Tabel2547[[#This Row],[36]]+Tabel2547[[#This Row],[34]]+Tabel2547[[#This Row],[32]]+Tabel2547[[#This Row],[30]]+Tabel2547[[#This Row],[28]]+Tabel2547[[#This Row],[26]]+Tabel2547[[#This Row],[24]]+Tabel2547[[#This Row],[22]]+Tabel2547[[#This Row],[20]]+Tabel2547[[#This Row],[18]]+Tabel2547[[#This Row],[16]]+Tabel2547[[#This Row],[14]]+Tabel2547[[#This Row],[12]]+Tabel2547[[#This Row],[10]]+Tabel2547[[#This Row],[8]]+Tabel2547[[#This Row],[6]]+Tabel2547[[#This Row],[4]]+Tabel2547[[#This Row],[2]] -> 47 | BL44: =Tabel2547[[#This Row],[51]]+Tabel2547[[#This Row],[49]]+Tabel2547[[#This Row],[47]]+Tabel2547[[#This Row],[45]]+Tabel2547[[#This Row],[43]]+Tabel2547[[#This Row],[41]]+Tabel2547[[#This Row],[39]]+Tabel2547[[#This Row],[37]]+Tabel2547[[#This Row],[35]]+Tabel2547[[#This Row],[33]]+Tabel2547[[#This Row],[31]]+Tabel2547[[#This Row],[29]]+Tabel2547[[#This Row],[27]]+Tabel2547[[#This Row],[25]]+Tabel2547[[#This Row],[23]]+Tabel2547[[#This Row],[21]]+Tabel2547[[#This Row],[19]]+Tabel2547[[#This Row],[17]]+Tabel2547[[#This Row],[15]]+Tabel2547[[#This Row],[13]]+Tabel2547[[#This Row],[11]]+Tabel2547[[#This Row],[9]]+Tabel2547[[#This Row],[7]]+Tabel2547[[#This Row],[5]]+Tabel2547[[#This Row],[3]]+Tabel2547[[#This Row],[1]] -> 29 | BM44: =Tabel2547[[#This Row],[RGFT]]+Tabel2547[[#This Row],[RPMD]] -> 0 | BN44: 0 | BO44: VHL
A45: 3.1 | C45: Woensdag | D45: Ameide en Meerkerk | F45: 7 | G45: 7 | H45: 8 | W45: 14 | AA45: 45 | BI45: =Tabel2547[[#This Row],[52]]+Tabel2547[[#This Row],[50]]+Tabel2547[[#This Row],[48]]+Tabel2547[[#This Row],[46]]+Tabel2547[[#This Row],[44]]+Tabel2547[[#This Row],[42]]+Tabel2547[[#This Row],[40]]+Tabel2547[[#This Row],[38]]+Tabel2547[[#This Row],[36]]+Tabel2547[[#This Row],[34]]+Tabel2547[[#This Row],[32]]+Tabel2547[[#This Row],[30]]+Tabel2547[[#This Row],[28]]+Tabel2547[[#This Row],[26]]+Tabel2547[[#This Row],[24]]+Tabel2547[[#This Row],[22]]+Tabel2547[[#This Row],[20]]+Tabel2547[[#This Row],[18]]+Tabel2547[[#This Row],[16]]+Tabel2547[[#This Row],[14]]+Tabel2547[[#This Row],[12]]+Tabel2547[[#This Row],[10]]+Tabel2547[[#This Row],[8]]+Tabel2547[[#This Row],[6]]+Tabel2547[[#This Row],[4]]+Tabel2547[[#This Row],[2]] -> 0 | BK45: =Tabel2547[[#This Row],[51]]+Tabel2547[[#This Row],[49]]+Tabel2547[[#This Row],[47]]+Tabel2547[[#This Row],[45]]+Tabel2547[[#This Row],[43]]+Tabel2547[[#This Row],[41]]+Tabel2547[[#This Row],[39]]+Tabel2547[[#This Row],[37]]+Tabel2547[[#This Row],[35]]+Tabel2547[[#This Row],[33]]+Tabel2547[[#This Row],[31]]+Tabel2547[[#This Row],[29]]+Tabel2547[[#This Row],[27]]+Tabel2547[[#This Row],[25]]+Tabel2547[[#This Row],[23]]+Tabel2547[[#This Row],[21]]+Tabel2547[[#This Row],[19]]+Tabel2547[[#This Row],[17]]+Tabel2547[[#This Row],[15]]+Tabel2547[[#This Row],[13]]+Tabel2547[[#This Row],[11]]+Tabel2547[[#This Row],[9]]+Tabel2547[[#This Row],[7]]+Tabel2547[[#This Row],[5]]+Tabel2547[[#This Row],[3]]+Tabel2547[[#This Row],[1]] -> 59 | BM45: =Tabel2547[[#This Row],[RGFT]]+Tabel2547[[#This Row],[RPMD]] -> 59 | BN45: 36 | BO45: VHL
A46: 3.1 | C46: Woensdag | D46: 1=Ameide en 2=Meerkerk | E46: 1= Peperstraat 3 - 2= overleggen | F46: 7 | G46: 7 | H46: 8 | U46: 11 | W46: 16 | AA46: 9 | BJ46: =Tabel2547[[#This Row],[52]]+Tabel2547[[#This Row],[50]]+Tabel2547[[#This Row],[48]]+Tabel2547[[#This Row],[46]]+Tabel2547[[#This Row],[44]]+Tabel2547[[#This Row],[42]]+Tabel2547[[#This Row],[40]]+Tabel2547[[#This Row],[38]]+Tabel2547[[#This Row],[36]]+Tabel2547[[#This Row],[34]]+Tabel2547[[#This Row],[32]]+Tabel2547[[#This Row],[30]]+Tabel2547[[#This Row],[28]]+Tabel2547[[#This Row],[26]]+Tabel2547[[#This Row],[24]]+Tabel2547[[#This Row],[22]]+Tabel2547[[#This Row],[20]]+Tabel2547[[#This Row],[18]]+Tabel2547[[#This Row],[16]]+Tabel2547[[#This Row],[14]]+Tabel2547[[#This Row],[12]]+Tabel2547[[#This Row],[10]]+Tabel2547[[#This Row],[8]]+Tabel2547[[#This Row],[6]]+Tabel2547[[#This Row],[4]]+Tabel2547[[#This Row],[2]] -> 0 | BL46: =Tabel2547[[#This Row],[51]]+Tabel2547[[#This Row],[49]]+Tabel2547[[#This Row],[47]]+Tabel2547[[#This Row],[45]]+Tabel2547[[#This Row],[43]]+Tabel2547[[#This Row],[41]]+Tabel2547[[#This Row],[39]]+Tabel2547[[#This Row],[37]]+Tabel2547[[#This Row],[35]]+Tabel2547[[#This Row],[33]]+Tabel2547[[#This Row],[31]]+Tabel2547[[#This Row],[29]]+Tabel2547[[#This Row],[27]]+Tabel2547[[#This Row],[25]]+Tabel2547[[#This Row],[23]]+Tabel2547[[#This Row],[21]]+Tabel2547[[#This Row],[19]]+Tabel2547[[#This Row],[17]]+Tabel2547[[#This Row],[15]]+Tabel2547[[#This Row],[13]]+Tabel2547[[#This Row],[11]]+Tabel2547[[#This Row],[9]]+Tabel2547[[#This Row],[7]]+Tabel2547[[#This Row],[5]]+Tabel2547[[#This Row],[3]]+Tabel2547[[#This Row],[1]] -> 36 | BM46: =Tabel2547[[#This Row],[RGFT]]+Tabel2547[[#This Row],[RPMD]] -> 0 | BN46: 0 | BO46: VHL
A47: 4.1 | C47: Woensdag | D47: 1= Noordeloos 2= Goudriaan Binnen | F47: 6 | G47: 6 | H47: 6 | J47: 0 | K47: 1 | M47: 0 | T47: 1 | U47: 7 | Y47: 4 | BI47: =Tabel2547[[#This Row],[52]]+Tabel2547[[#This Row],[50]]+Tabel2547[[#This Row],[48]]+Tabel2547[[#This Row],[46]]+Tabel2547[[#This Row],[44]]+Tabel2547[[#This Row],[42]]+Tabel2547[[#This Row],[40]]+Tabel2547[[#This Row],[38]]+Tabel2547[[#This Row],[36]]+Tabel2547[[#This Row],[34]]+Tabel2547[[#This Row],[32]]+Tabel2547[[#This Row],[30]]+Tabel2547[[#This Row],[28]]+Tabel2547[[#This Row],[26]]+Tabel2547[[#This Row],[24]]+Tabel2547[[#This Row],[22]]+Tabel2547[[#This Row],[20]]+Tabel2547[[#This Row],[18]]+Tabel2547[[#This Row],[16]]+Tabel2547[[#This Row],[14]]+Tabel2547[[#This Row],[12]]+Tabel2547[[#This Row],[10]]+Tabel2547[[#This Row],[8]]+Tabel2547[[#This Row],[6]]+Tabel2547[[#This Row],[4]]+Tabel2547[[#This Row],[2]] -> 1 | BK47: =Tabel2547[[#This Row],[51]]+Tabel2547[[#This Row],[49]]+Tabel2547[[#This Row],[47]]+Tabel2547[[#This Row],[45]]+Tabel2547[[#This Row],[43]]+Tabel2547[[#This Row],[41]]+Tabel2547[[#This Row],[39]]+Tabel2547[[#This Row],[37]]+Tabel2547[[#This Row],[35]]+Tabel2547[[#This Row],[33]]+Tabel2547[[#This Row],[31]]+Tabel2547[[#This Row],[29]]+Tabel2547[[#This Row],[27]]+Tabel2547[[#This Row],[25]]+Tabel2547[[#This Row],[23]]+Tabel2547[[#This Row],[21]]+Tabel2547[[#This Row],[19]]+Tabel2547[[#This Row],[17]]+Tabel2547[[#This Row],[15]]+Tabel2547[[#This Row],[13]]+Tabel2547[[#This Row],[11]]+Tabel2547[[#This Row],[9]]+Tabel2547[[#This Row],[7]]+Tabel2547[[#This Row],[5]]+Tabel2547[[#This Row],[3]]+Tabel2547[[#This Row],[1]] -> 12 | BM47: =Tabel2547[[#This Row],[RGFT]]+Tabel2547[[#This Row],[RPMD]] -> 13 | BN47: 52 | BO47: Molenlanden
A48: 4.1 | C48: Woensdag | D48: 1= Noordeloos 2= Goudriaan Binnen | E48: 1=Singel 1- 2=van Tetsstr 31 | F48: 6 | G48: 6 | H48: 6 | J48: 22 | K48: 4 | M48: 4 | T48: 5 | U48: 7 | Y48: 10 | BJ48: =Tabel2547[[#This Row],[52]]+Tabel2547[[#This Row],[50]]+Tabel2547[[#This Row],[48]]+Tabel2547[[#This Row],[46]]+Tabel2547[[#This Row],[44]]+Tabel2547[[#This Row],[42]]+Tabel2547[[#This Row],[40]]+Tabel2547[[#This Row],[38]]+Tabel2547[[#This Row],[36]]+Tabel2547[[#This Row],[34]]+Tabel2547[[#This Row],[32]]+Tabel2547[[#This Row],[30]]+Tabel2547[[#This Row],[28]]+Tabel2547[[#This Row],[26]]+Tabel2547[[#This Row],[24]]+Tabel2547[[#This Row],[22]]+Tabel2547[[#This Row],[20]]+Tabel2547[[#This Row],[18]]+Tabel2547[[#This Row],[16]]+Tabel2547[[#This Row],[14]]+Tabel2547[[#This Row],[12]]+Tabel2547[[#This Row],[10]]+Tabel2547[[#This Row],[8]]+Tabel2547[[#This Row],[6]]+Tabel2547[[#This Row],[4]]+Tabel2547[[#This Row],[2]] -> 27 | BL48: =Tabel2547[[#This Row],[51]]+Tabel2547[[#This Row],[49]]+Tabel2547[[#This Row],[47]]+Tabel2547[[#This Row],[45]]+Tabel2547[[#This Row],[43]]+Tabel2547[[#This Row],[41]]+Tabel2547[[#This Row],[39]]+Tabel2547[[#This Row],[37]]+Tabel2547[[#This Row],[35]]+Tabel2547[[#This Row],[33]]+Tabel2547[[#This Row],[31]]+Tabel2547[[#This Row],[29]]+Tabel2547[[#This Row],[27]]+Tabel2547[[#This Row],[25]]+Tabel2547[[#This Row],[23]]+Tabel2547[[#This Row],[21]]+Tabel2547[[#This Row],[19]]+Tabel2547[[#This Row],[17]]+Tabel2547[[#This Row],[15]]+Tabel2547[[#This Row],[13]]+Tabel2547[[#This Row],[11]]+Tabel2547[[#This Row],[9]]+Tabel2547[[#This Row],[7]]+Tabel2547[[#This Row],[5]]+Tabel2547[[#This Row],[3]]+Tabel2547[[#This Row],[1]] -> 25 | BM48: =Tabel2547[[#This Row],[RGFT]]+Tabel2547[[#This Row],[RPMD]] -> 0 | BN48: 0 | BO48: Molenlanden
A49: 4.2 | C49: Woensdag | D49: 3=Nieuwpoort en 4=Langerak Binnen | F49: 6 | G49: 6 | H49: 6 | T49: 0 | U49: 8 | Y49: 8 | BI49: =Tabel2547[[#This Row],[52]]+Tabel2547[[#This Row],[50]]+Tabel2547[[#This Row],[48]]+Tabel2547[[#This Row],[46]]+Tabel2547[[#This Row],[44]]+Tabel2547[[#This Row],[42]]+Tabel2547[[#This Row],[40]]+Tabel2547[[#This Row],[38]]+Tabel2547[[#This Row],[36]]+Tabel2547[[#This Row],[34]]+Tabel2547[[#This Row],[32]]+Tabel2547[[#This Row],[30]]+Tabel2547[[#This Row],[28]]+Tabel2547[[#This Row],[26]]+Tabel2547[[#This Row],[24]]+Tabel2547[[#This Row],[22]]+Tabel2547[[#This Row],[20]]+Tabel2547[[#This Row],[18]]+Tabel2547[[#This Row],[16]]+Tabel2547[[#This Row],[14]]+Tabel2547[[#This Row],[12]]+Tabel2547[[#This Row],[10]]+Tabel2547[[#This Row],[8]]+Tabel2547[[#This Row],[6]]+Tabel2547[[#This Row],[4]]+Tabel2547[[#This Row],[2]] -> 0 | BK49: =Tabel2547[[#This Row],[51]]+Tabel2547[[#This Row],[49]]+Tabel2547[[#This Row],[47]]+Tabel2547[[#This Row],[45]]+Tabel2547[[#This Row],[43]]+Tabel2547[[#This Row],[41]]+Tabel2547[[#This Row],[39]]+Tabel2547[[#This Row],[37]]+Tabel2547[[#This Row],[35]]+Tabel2547[[#This Row],[33]]+Tabel2547[[#This Row],[31]]+Tabel2547[[#This Row],[29]]+Tabel2547[[#This Row],[27]]+Tabel2547[[#This Row],[25]]+Tabel2547[[#This Row],[23]]+Tabel2547[[#This Row],[21]]+Tabel2547[[#This Row],[19]]+Tabel2547[[#This Row],[17]]+Tabel2547[[#This Row],[15]]+Tabel2547[[#This Row],[13]]+Tabel2547[[#This Row],[11]]+Tabel2547[[#This Row],[9]]+Tabel2547[[#This Row],[7]]+Tabel2547[[#This Row],[5]]+Tabel2547[[#This Row],[3]]+Tabel2547[[#This Row],[1]] -> 16 | BM49: =Tabel2547[[#This Row],[RGFT]]+Tabel2547[[#This Row],[RPMD]] -> 16 | BN49: 33 | BO49: Molenlanden
A50: 4.2 | C50: Woensdag | D50: 3=Nieuwpoort en 4=Langerak Binnen | E50: 3= Hennepstr 32 | F50: 6 | G50: 6 | H50: 6 | T50: 14 | U50: 5 | Y50: 14 | BJ50: =Tabel2547[[#This Row],[52]]+Tabel2547[[#This Row],[50]]+Tabel2547[[#This Row],[48]]+Tabel2547[[#This Row],[46]]+Tabel2547[[#This Row],[44]]+Tabel2547[[#This Row],[42]]+Tabel2547[[#This Row],[40]]+Tabel2547[[#This Row],[38]]+Tabel2547[[#This Row],[36]]+Tabel2547[[#This Row],[34]]+Tabel2547[[#This Row],[32]]+Tabel2547[[#This Row],[30]]+Tabel2547[[#This Row],[28]]+Tabel2547[[#This Row],[26]]+Tabel2547[[#This Row],[24]]+Tabel2547[[#This Row],[22]]+Tabel2547[[#This Row],[20]]+Tabel2547[[#This Row],[18]]+Tabel2547[[#This Row],[16]]+Tabel2547[[#This Row],[14]]+Tabel2547[[#This Row],[12]]+Tabel2547[[#This Row],[10]]+Tabel2547[[#This Row],[8]]+Tabel2547[[#This Row],[6]]+Tabel2547[[#This Row],[4]]+Tabel2547[[#This Row],[2]] -> 14 | BL50: =Tabel2547[[#This Row],[51]]+Tabel2547[[#This Row],[49]]+Tabel2547[[#This Row],[47]]+Tabel2547[[#This Row],[45]]+Tabel2547[[#This Row],[43]]+Tabel2547[[#This Row],[41]]+Tabel2547[[#This Row],[39]]+Tabel2547[[#This Row],[37]]+Tabel2547[[#This Row],[35]]+Tabel2547[[#This Row],[33]]+Tabel2547[[#This Row],[31]]+Tabel2547[[#This Row],[29]]+Tabel2547[[#This Row],[27]]+Tabel2547[[#This Row],[25]]+Tabel2547[[#This Row],[23]]+Tabel2547[[#This Row],[21]]+Tabel2547[[#This Row],[19]]+Tabel2547[[#This Row],[17]]+Tabel2547[[#This Row],[15]]+Tabel2547[[#This Row],[13]]+Tabel2547[[#This Row],[11]]+Tabel2547[[#This Row],[9]]+Tabel2547[[#This Row],[7]]+Tabel2547[[#This Row],[5]]+Tabel2547[[#This Row],[3]]+Tabel2547[[#This Row],[1]] -> 19 | BM50: =Tabel2547[[#This Row],[RGFT]]+Tabel2547[[#This Row],[RPMD]] -> 0 | BN50: 0 | BO50: Molenlanden
A51: 5.1 | C51: Woensdag | D51: Bleskensgraaf Binnen | F51: 5 | G51: 5 | H51: 5 | K51: 6 | M51: 11 | R51: 2 | S51: 9 | BI51: =Tabel2547[[#This Row],[52]]+Tabel2547[[#This Row],[50]]+Tabel2547[[#This Row],[48]]+Tabel2547[[#This Row],[46]]+Tabel2547[[#This Row],[44]]+Tabel2547[[#This Row],[42]]+Tabel2547[[#This Row],[40]]+Tabel2547[[#This Row],[38]]+Tabel2547[[#This Row],[36]]+Tabel2547[[#This Row],[34]]+Tabel2547[[#This Row],[32]]+Tabel2547[[#This Row],[30]]+Tabel2547[[#This Row],[28]]+Tabel2547[[#This Row],[26]]+Tabel2547[[#This Row],[24]]+Tabel2547[[#This Row],[22]]+Tabel2547[[#This Row],[20]]+Tabel2547[[#This Row],[18]]+Tabel2547[[#This Row],[16]]+Tabel2547[[#This Row],[14]]+Tabel2547[[#This Row],[12]]+Tabel2547[[#This Row],[10]]+Tabel2547[[#This Row],[8]]+Tabel2547[[#This Row],[6]]+Tabel2547[[#This Row],[4]]+Tabel2547[[#This Row],[2]] -> 2 | BK51: =Tabel2547[[#This Row],[51]]+Tabel2547[[#This Row],[49]]+Tabel2547[[#This Row],[47]]+Tabel2547[[#This Row],[45]]+Tabel2547[[#This Row],[43]]+Tabel2547[[#This Row],[41]]+Tabel2547[[#This Row],[39]]+Tabel2547[[#This Row],[37]]+Tabel2547[[#This Row],[35]]+Tabel2547[[#This Row],[33]]+Tabel2547[[#This Row],[31]]+Tabel2547[[#This Row],[29]]+Tabel2547[[#This Row],[27]]+Tabel2547[[#This Row],[25]]+Tabel2547[[#This Row],[23]]+Tabel2547[[#This Row],[21]]+Tabel2547[[#This Row],[19]]+Tabel2547[[#This Row],[17]]+Tabel2547[[#This Row],[15]]+Tabel2547[[#This Row],[13]]+Tabel2547[[#This Row],[11]]+Tabel2547[[#This Row],[9]]+Tabel2547[[#This Row],[7]]+Tabel2547[[#This Row],[5]]+Tabel2547[[#This Row],[3]]+Tabel2547[[#This Row],[1]] -> 26 | BM51: =Tabel2547[[#This Row],[RGFT]]+Tabel2547[[#This Row],[RPMD]] -> 28 | BN51: 66 | BO51: Molenlanden
A52: 5.1 | C52: Woensdag | D52: Bleskensgraaf Binnen | E52: Meidoornstraat 4 | F52: 5 | G52: 5 | H52: 5 | K52: 12 | M52: 26 | R52: 22 | S52: 6 | BJ52: =Tabel2547[[#This Row],[52]]+Tabel2547[[#This Row],[50]]+Tabel2547[[#This Row],[48]]+Tabel2547[[#This Row],[46]]+Tabel2547[[#This Row],[44]]+Tabel2547[[#This Row],[42]]+Tabel2547[[#This Row],[40]]+Tabel2547[[#This Row],[38]]+Tabel2547[[#This Row],[36]]+Tabel2547[[#This Row],[34]]+Tabel2547[[#This Row],[32]]+Tabel2547[[#This Row],[30]]+Tabel2547[[#This Row],[28]]+Tabel2547[[#This Row],[26]]+Tabel2547[[#This Row],[24]]+Tabel2547[[#This Row],[22]]+Tabel2547[[#This Row],[20]]+Tabel2547[[#This Row],[18]]+Tabel2547[[#This Row],[16]]+Tabel2547[[#This Row],[14]]+Tabel2547[[#This Row],[12]]+Tabel2547[[#This Row],[10]]+Tabel2547[[#This Row],[8]]+Tabel2547[[#This Row],[6]]+Tabel2547[[#This Row],[4]]+Tabel2547[[#This Row],[2]] -> 22 | BL52: =Tabel2547[[#This Row],[51]]+Tabel2547[[#This Row],[49]]+Tabel2547[[#This Row],[47]]+Tabel2547[[#This Row],[45]]+Tabel2547[[#This Row],[43]]+Tabel2547[[#This Row],[41]]+Tabel2547[[#This Row],[39]]+Tabel2547[[#This Row],[37]]+Tabel2547[[#This Row],[35]]+Tabel2547[[#This Row],[33]]+Tabel2547[[#This Row],[31]]+Tabel2547[[#This Row],[29]]+Tabel2547[[#This Row],[27]]+Tabel2547[[#This Row],[25]]+Tabel2547[[#This Row],[23]]+Tabel2547[[#This Row],[21]]+Tabel2547[[#This Row],[19]]+Tabel2547[[#This Row],[17]]+Tabel2547[[#This Row],[15]]+Tabel2547[[#This Row],[13]]+Tabel2547[[#This Row],[11]]+Tabel2547[[#This Row],[9]]+Tabel2547[[#This Row],[7]]+Tabel2547[[#This Row],[5]]+Tabel2547[[#This Row],[3]]+Tabel2547[[#This Row],[1]] -> 44 | BM52: =Tabel2547[[#This Row],[RGFT]]+Tabel2547[[#This Row],[RPMD]] -> 0 | BN52: 0 | BO52: Molenlanden
A53: 5.2 | C53: Woensdag | D53: 1 Brandwijk 2Molenaarsgraaf 3 Ottoland Binnen | F53: 5 | G53: 5 | H53: 5 | J53: 1 | R53: 0 | S53: 11 | BI53: =Tabel2547[[#This Row],[52]]+Tabel2547[[#This Row],[50]]+Tabel2547[[#This Row],[48]]+Tabel2547[[#This Row],[46]]+Tabel2547[[#This Row],[44]]+Tabel2547[[#This Row],[42]]+Tabel2547[[#This Row],[40]]+Tabel2547[[#This Row],[38]]+Tabel2547[[#This Row],[36]]+Tabel2547[[#This Row],[34]]+Tabel2547[[#This Row],[32]]+Tabel2547[[#This Row],[30]]+Tabel2547[[#This Row],[28]]+Tabel2547[[#This Row],[26]]+Tabel2547[[#This Row],[24]]+Tabel2547[[#This Row],[22]]+Tabel2547[[#This Row],[20]]+Tabel2547[[#This Row],[18]]+Tabel2547[[#This Row],[16]]+Tabel2547[[#This Row],[14]]+Tabel2547[[#This Row],[12]]+Tabel2547[[#This Row],[10]]+Tabel2547[[#This Row],[8]]+Tabel2547[[#This Row],[6]]+Tabel2547[[#This Row],[4]]+Tabel2547[[#This Row],[2]] -> 1 | BK53: =Tabel2547[[#This Row],[51]]+Tabel2547[[#This Row],[49]]+Tabel2547[[#This Row],[47]]+Tabel2547[[#This Row],[45]]+Tabel2547[[#This Row],[43]]+Tabel2547[[#This Row],[41]]+Tabel2547[[#This Row],[39]]+Tabel2547[[#This Row],[37]]+Tabel2547[[#This Row],[35]]+Tabel2547[[#This Row],[33]]+Tabel2547[[#This Row],[31]]+Tabel2547[[#This Row],[29]]+Tabel2547[[#This Row],[27]]+Tabel2547[[#This Row],[25]]+Tabel2547[[#This Row],[23]]+Tabel2547[[#This Row],[21]]+Tabel2547[[#This Row],[19]]+Tabel2547[[#This Row],[17]]+Tabel2547[[#This Row],[15]]+Tabel2547[[#This Row],[13]]+Tabel2547[[#This Row],[11]]+Tabel2547[[#This Row],[9]]+Tabel2547[[#This Row],[7]]+Tabel2547[[#This Row],[5]]+Tabel2547[[#This Row],[3]]+Tabel2547[[#This Row],[1]] -> 11 | BM53: =Tabel2547[[#This Row],[RGFT]]+Tabel2547[[#This Row],[RPMD]] -> 12 | BN53: 32 | BO53: Molenlanden
A54: 5.2 | C54: Woensdag | D54: 1 Brandwijk 2Molenaarsgraaf 3 Ottoland Binnen | E54: 1 = Julianastraat 1+ 2 = Graveland 54+ 3= Burg.Visserwerf 2 | F54: 5 | G54: 5 | H54: 5 | J54: 11 | R54: 7 | S54: 6 | Z54: 8 | BJ54: =Tabel2547[[#This Row],[52]]+Tabel2547[[#This Row],[50]]+Tabel2547[[#This Row],[48]]+Tabel2547[[#This Row],[46]]+Tabel2547[[#This Row],[44]]+Tabel2547[[#This Row],[42]]+Tabel2547[[#This Row],[40]]+Tabel2547[[#This Row],[38]]+Tabel2547[[#This Row],[36]]+Tabel2547[[#This Row],[34]]+Tabel2547[[#This Row],[32]]+Tabel2547[[#This Row],[30]]+Tabel2547[[#This Row],[28]]+Tabel2547[[#This Row],[26]]+Tabel2547[[#This Row],[24]]+Tabel2547[[#This Row],[22]]+Tabel2547[[#This Row],[20]]+Tabel2547[[#This Row],[18]]+Tabel2547[[#This Row],[16]]+Tabel2547[[#This Row],[14]]+Tabel2547[[#This Row],[12]]+Tabel2547[[#This Row],[10]]+Tabel2547[[#This Row],[8]]+Tabel2547[[#This Row],[6]]+Tabel2547[[#This Row],[4]]+Tabel2547[[#This Row],[2]] -> 26 | BL54: =Tabel2547[[#This Row],[51]]+Tabel2547[[#This Row],[49]]+Tabel2547[[#This Row],[47]]+Tabel2547[[#This Row],[45]]+Tabel2547[[#This Row],[43]]+Tabel2547[[#This Row],[41]]+Tabel2547[[#This Row],[39]]+Tabel2547[[#This Row],[37]]+Tabel2547[[#This Row],[35]]+Tabel2547[[#This Row],[33]]+Tabel2547[[#This Row],[31]]+Tabel2547[[#This Row],[29]]+Tabel2547[[#This Row],[27]]+Tabel2547[[#This Row],[25]]+Tabel2547[[#This Row],[23]]+Tabel2547[[#This Row],[21]]+Tabel2547[[#This Row],[19]]+Tabel2547[[#This Row],[17]]+Tabel2547[[#This Row],[15]]+Tabel2547[[#This Row],[13]]+Tabel2547[[#This Row],[11]]+Tabel2547[[#This Row],[9]]+Tabel2547[[#This Row],[7]]+Tabel2547[[#This Row],[5]]+Tabel2547[[#This Row],[3]]+Tabel2547[[#This Row],[1]] -> 6 | BM54: =Tabel2547[[#This Row],[RGFT]]+Tabel2547[[#This Row],[RPMD]] -> 0 | BN54: 0 | BO54: Molenlanden
A55: 1.1 | C55: Donderdag | D55: Zijderveld Everdingen Daarna Hardinxveld helpen | Q55: 9 | S55: 2 | V55: 2 | W55: 5 | BI55: =Tabel2547[[#This Row],[52]]+Tabel2547[[#This Row],[50]]+Tabel2547[[#This Row],[48]]+Tabel2547[[#This Row],[46]]+Tabel2547[[#This Row],[44]]+Tabel2547[[#This Row],[42]]+Tabel2547[[#This Row],[40]]+Tabel2547[[#This Row],[38]]+Tabel2547[[#This Row],[36]]+Tabel2547[[#This Row],[34]]+Tabel2547[[#This Row],[32]]+Tabel2547[[#This Row],[30]]+Tabel2547[[#This Row],[28]]+Tabel2547[[#This Row],[26]]+Tabel2547[[#This Row],[24]]+Tabel2547[[#This Row],[22]]+Tabel2547[[#This Row],[20]]+Tabel2547[[#This Row],[18]]+Tabel2547[[#This Row],[16]]+Tabel2547[[#This Row],[14]]+Tabel2547[[#This Row],[12]]+Tabel2547[[#This Row],[10]]+Tabel2547[[#This Row],[8]]+Tabel2547[[#This Row],[6]]+Tabel2547[[#This Row],[4]]+Tabel2547[[#This Row],[2]] -> 2 | BK55: =Tabel2547[[#This Row],[51]]+Tabel2547[[#This Row],[49]]+Tabel2547[[#This Row],[47]]+Tabel2547[[#This Row],[45]]+Tabel2547[[#This Row],[43]]+Tabel2547[[#This Row],[41]]+Tabel2547[[#This Row],[39]]+Tabel2547[[#This Row],[37]]+Tabel2547[[#This Row],[35]]+Tabel2547[[#This Row],[33]]+Tabel2547[[#This Row],[31]]+Tabel2547[[#This Row],[29]]+Tabel2547[[#This Row],[27]]+Tabel2547[[#This Row],[25]]+Tabel2547[[#This Row],[23]]+Tabel2547[[#This Row],[21]]+Tabel2547[[#This Row],[19]]+Tabel2547[[#This Row],[17]]+Tabel2547[[#This Row],[15]]+Tabel2547[[#This Row],[13]]+Tabel2547[[#This Row],[11]]+Tabel2547[[#This Row],[9]]+Tabel2547[[#This Row],[7]]+Tabel2547[[#This Row],[5]]+Tabel2547[[#This Row],[3]]+Tabel2547[[#This Row],[1]] -> 16 | BM55: =Tabel2547[[#This Row],[RGFT]]+Tabel2547[[#This Row],[RPMD]] -> 18 | BN55: 21 | BO55: VHL
A56: 1.1 | C56: Donderdag | D56: 1=Zijderveld 2=Everdingen 3=Hardinxveld helpen | E56: 1=schoolstraat 2-2=Graaf florisstr 1 3= overleggen | Q56: 0 | S56: 9 | V56: 0 | W56: 12 | BJ56: =Tabel2547[[#This Row],[52]]+Tabel2547[[#This Row],[50]]+Tabel2547[[#This Row],[48]]+Tabel2547[[#This Row],[46]]+Tabel2547[[#This Row],[44]]+Tabel2547[[#This Row],[42]]+Tabel2547[[#This Row],[40]]+Tabel2547[[#This Row],[38]]+Tabel2547[[#This Row],[36]]+Tabel2547[[#This Row],[34]]+Tabel2547[[#This Row],[32]]+Tabel2547[[#This Row],[30]]+Tabel2547[[#This Row],[28]]+Tabel2547[[#This Row],[26]]+Tabel2547[[#This Row],[24]]+Tabel2547[[#This Row],[22]]+Tabel2547[[#This Row],[20]]+Tabel2547[[#This Row],[18]]+Tabel2547[[#This Row],[16]]+Tabel2547[[#This Row],[14]]+Tabel2547[[#This Row],[12]]+Tabel2547[[#This Row],[10]]+Tabel2547[[#This Row],[8]]+Tabel2547[[#This Row],[6]]+Tabel2547[[#This Row],[4]]+Tabel2547[[#This Row],[2]] -> 0 | BL56: =Tabel2547[[#This Row],[51]]+Tabel2547[[#This Row],[49]]+Tabel2547[[#This Row],[47]]+Tabel2547[[#This Row],[45]]+Tabel2547[[#This Row],[43]]+Tabel2547[[#This Row],[41]]+Tabel2547[[#This Row],[39]]+Tabel2547[[#This Row],[37]]+Tabel2547[[#This Row],[35]]+Tabel2547[[#This Row],[33]]+Tabel2547[[#This Row],[31]]+Tabel2547[[#This Row],[29]]+Tabel2547[[#This Row],[27]]+Tabel2547[[#This Row],[25]]+Tabel2547[[#This Row],[23]]+Tabel2547[[#This Row],[21]]+Tabel2547[[#This Row],[19]]+Tabel2547[[#This Row],[17]]+Tabel2547[[#This Row],[15]]+Tabel2547[[#This Row],[13]]+Tabel2547[[#This Row],[11]]+Tabel2547[[#This Row],[9]]+Tabel2547[[#This Row],[7]]+Tabel2547[[#This Row],[5]]+Tabel2547[[#This Row],[3]]+Tabel2547[[#This Row],[1]] -> 21 | BM56: =Tabel2547[[#This Row],[RGFT]]+Tabel2547[[#This Row],[RPMD]] -> 0 | BN56: 0 | BO56: VHL
A57: 2.1 | C57: Donderdag | D57: Giessenburg binnen en Hardinxveld Het Spoor | F57: 8 | G57: 8 | H57: 8 | U57: 5 | Y57: 16 | BI57: =Tabel2547[[#This Row],[52]]+Tabel2547[[#This Row],[50]]+Tabel2547[[#This Row],[48]]+Tabel2547[[#This Row],[46]]+Tabel2547[[#This Row],[44]]+Tabel2547[[#This Row],[42]]+Tabel2547[[#This Row],[40]]+Tabel2547[[#This Row],[38]]+Tabel2547[[#This Row],[36]]+Tabel2547[[#This Row],[34]]+Tabel2547[[#This Row],[32]]+Tabel2547[[#This Row],[30]]+Tabel2547[[#This Row],[28]]+Tabel2547[[#This Row],[26]]+Tabel2547[[#This Row],[24]]+Tabel2547[[#This Row],[22]]+Tabel2547[[#This Row],[20]]+Tabel2547[[#This Row],[18]]+Tabel2547[[#This Row],[16]]+Tabel2547[[#This Row],[14]]+Tabel2547[[#This Row],[12]]+Tabel2547[[#This Row],[10]]+Tabel2547[[#This Row],[8]]+Tabel2547[[#This Row],[6]]+Tabel2547[[#This Row],[4]]+Tabel2547[[#This Row],[2]] -> 0 | BK57: =Tabel2547[[#This Row],[51]]+Tabel2547[[#This Row],[49]]+Tabel2547[[#This Row],[47]]+Tabel2547[[#This Row],[45]]+Tabel2547[[#This Row],[43]]+Tabel2547[[#This Row],[41]]+Tabel2547[[#This Row],[39]]+Tabel2547[[#This Row],[37]]+Tabel2547[[#This Row],[35]]+Tabel2547[[#This Row],[33]]+Tabel2547[[#This Row],[31]]+Tabel2547[[#This Row],[29]]+Tabel2547[[#This Row],[27]]+Tabel2547[[#This Row],[25]]+Tabel2547[[#This Row],[23]]+Tabel2547[[#This Row],[21]]+Tabel2547[[#This Row],[19]]+Tabel2547[[#This Row],[17]]+Tabel2547[[#This Row],[15]]+Tabel2547[[#This Row],[13]]+Tabel2547[[#This Row],[11]]+Tabel2547[[#This Row],[9]]+Tabel2547[[#This Row],[7]]+Tabel2547[[#This Row],[5]]+Tabel2547[[#This Row],[3]]+Tabel2547[[#This Row],[1]] -> 21 | BM57: =Tabel2547[[#This Row],[RGFT]]+Tabel2547[[#This Row],[RPMD]] -> 21 | BN57: 38 | BO57: Hardinxveld
A58: 2.1 | C58: Donderdag | D58: Giessenburg binnen en Hardinxveld Het Spoor | E58: Arent van gentstr 33 en Spoorweg 30 | F58: 8 | G58: 8 | H58: 8 | U58: 15 | Y58: 23 | BJ58: =Tabel2547[[#This Row],[52]]+Tabel2547[[#This Row],[50]]+Tabel2547[[#This Row],[48]]+Tabel2547[[#This Row],[46]]+Tabel2547[[#This Row],[44]]+Tabel2547[[#This Row],[42]]+Tabel2547[[#This Row],[40]]+Tabel2547[[#This Row],[38]]+Tabel2547[[#This Row],[36]]+Tabel2547[[#This Row],[34]]+Tabel2547[[#This Row],[32]]+Tabel2547[[#This Row],[30]]+Tabel2547[[#This Row],[28]]+Tabel2547[[#This Row],[26]]+Tabel2547[[#This Row],[24]]+Tabel2547[[#This Row],[22]]+Tabel2547[[#This Row],[20]]+Tabel2547[[#This Row],[18]]+Tabel2547[[#This Row],[16]]+Tabel2547[[#This Row],[14]]+Tabel2547[[#This Row],[12]]+Tabel2547[[#This Row],[10]]+Tabel2547[[#This Row],[8]]+Tabel2547[[#This Row],[6]]+Tabel2547[[#This Row],[4]]+Tabel2547[[#This Row],[2]] -> 0 | BL58: =Tabel2547[[#This Row],[51]]+Tabel2547[[#This Row],[49]]+Tabel2547[[#This Row],[47]]+Tabel2547[[#This Row],[45]]+Tabel2547[[#This Row],[43]]+Tabel2547[[#This Row],[41]]+Tabel2547[[#This Row],[39]]+Tabel2547[[#This Row],[37]]+Tabel2547[[#This Row],[35]]+Tabel2547[[#This Row],[33]]+Tabel2547[[#This Row],[31]]+Tabel2547[[#This Row],[29]]+Tabel2547[[#This Row],[27]]+Tabel2547[[#This Row],[25]]+Tabel2547[[#This Row],[23]]+Tabel2547[[#This Row],[21]]+Tabel2547[[#This Row],[19]]+Tabel2547[[#This Row],[17]]+Tabel2547[[#This Row],[15]]+Tabel2547[[#This Row],[13]]+Tabel2547[[#This Row],[11]]+Tabel2547[[#This Row],[9]]+Tabel2547[[#This Row],[7]]+Tabel2547[[#This Row],[5]]+Tabel2547[[#This Row],[3]]+Tabel2547[[#This Row],[1]] -> 38 | BM58: =Tabel2547[[#This Row],[RGFT]]+Tabel2547[[#This Row],[RPMD]] -> 0 | BN58: 0 | BO58: Hardinxveld
A59: 3.1 | C59: Donderdag | D59: Kern Oud Alblas en Wijngaarden | F59: 5 | G59: 5 | H59: 5 | V59: 0 | W59: 0 | Z59: 19 | BI59: =Tabel2547[[#This Row],[52]]+Tabel2547[[#This Row],[50]]+Tabel2547[[#This Row],[48]]+Tabel2547[[#This Row],[46]]+Tabel2547[[#This Row],[44]]+Tabel2547[[#This Row],[42]]+Tabel2547[[#This Row],[40]]+Tabel2547[[#This Row],[38]]+Tabel2547[[#This Row],[36]]+Tabel2547[[#This Row],[34]]+Tabel2547[[#This Row],[32]]+Tabel2547[[#This Row],[30]]+Tabel2547[[#This Row],[28]]+Tabel2547[[#This Row],[26]]+Tabel2547[[#This Row],[24]]+Tabel2547[[#This Row],[22]]+Tabel2547[[#This Row],[20]]+Tabel2547[[#This Row],[18]]+Tabel2547[[#This Row],[16]]+Tabel2547[[#This Row],[14]]+Tabel2547[[#This Row],[12]]+Tabel2547[[#This Row],[10]]+Tabel2547[[#This Row],[8]]+Tabel2547[[#This Row],[6]]+Tabel2547[[#This Row],[4]]+Tabel2547[[#This Row],[2]] -> 19 | BK59: =Tabel2547[[#This Row],[51]]+Tabel2547[[#This Row],[49]]+Tabel2547[[#This Row],[47]]+Tabel2547[[#This Row],[45]]+Tabel2547[[#This Row],[43]]+Tabel2547[[#This Row],[41]]+Tabel2547[[#This Row],[39]]+Tabel2547[[#This Row],[37]]+Tabel2547[[#This Row],[35]]+Tabel2547[[#This Row],[33]]+Tabel2547[[#This Row],[31]]+Tabel2547[[#This Row],[29]]+Tabel2547[[#This Row],[27]]+Tabel2547[[#This Row],[25]]+Tabel2547[[#This Row],[23]]+Tabel2547[[#This Row],[21]]+Tabel2547[[#This Row],[19]]+Tabel2547[[#This Row],[17]]+Tabel2547[[#This Row],[15]]+Tabel2547[[#This Row],[13]]+Tabel2547[[#This Row],[11]]+Tabel2547[[#This Row],[9]]+Tabel2547[[#This Row],[7]]+Tabel2547[[#This Row],[5]]+Tabel2547[[#This Row],[3]]+Tabel2547[[#This Row],[1]] -> 0 | BM59: =Tabel2547[[#This Row],[RGFT]]+Tabel2547[[#This Row],[RPMD]] -> 19 | BN59: 15 | BO59: Molenlanden
A60: 3.1 | C60: Donderdag | D60: Kern Oud Alblas en Wijngaarden | E60: Dorpsstraat 6 +Dokter ingelstr 1 | F60: 5 | G60: 5 | H60: 5 | V60: 10 | W60: 0 | Z60: 5 | BJ60: =Tabel2547[[#This Row],[52]]+Tabel2547[[#This Row],[50]]+Tabel2547[[#This Row],[48]]+Tabel2547[[#This Row],[46]]+Tabel2547[[#This Row],[44]]+Tabel2547[[#This Row],[42]]+Tabel2547[[#This Row],[40]]+Tabel2547[[#This Row],[38]]+Tabel2547[[#This Row],[36]]+Tabel2547[[#This Row],[34]]+Tabel2547[[#This Row],[32]]+Tabel2547[[#This Row],[30]]+Tabel2547[[#This Row],[28]]+Tabel2547[[#This Row],[26]]+Tabel2547[[#This Row],[24]]+Tabel2547[[#This Row],[22]]+Tabel2547[[#This Row],[20]]+Tabel2547[[#This Row],[18]]+Tabel2547[[#This Row],[16]]+Tabel2547[[#This Row],[14]]+Tabel2547[[#This Row],[12]]+Tabel2547[[#This Row],[10]]+Tabel2547[[#This Row],[8]]+Tabel2547[[#This Row],[6]]+Tabel2547[[#This Row],[4]]+Tabel2547[[#This Row],[2]] -> 15 | BL60: =Tabel2547[[#This Row],[51]]+Tabel2547[[#This Row],[49]]+Tabel2547[[#This Row],[47]]+Tabel2547[[#This Row],[45]]+Tabel2547[[#This Row],[43]]+Tabel2547[[#This Row],[41]]+Tabel2547[[#This Row],[39]]+Tabel2547[[#This Row],[37]]+Tabel2547[[#This Row],[35]]+Tabel2547[[#This Row],[33]]+Tabel2547[[#This Row],[31]]+Tabel2547[[#This Row],[29]]+Tabel2547[[#This Row],[27]]+Tabel2547[[#This Row],[25]]+Tabel2547[[#This Row],[23]]+Tabel2547[[#This Row],[21]]+Tabel2547[[#This Row],[19]]+Tabel2547[[#This Row],[17]]+Tabel2547[[#This Row],[15]]+Tabel2547[[#This Row],[13]]+Tabel2547[[#This Row],[11]]+Tabel2547[[#This Row],[9]]+Tabel2547[[#This Row],[7]]+Tabel2547[[#This Row],[5]]+Tabel2547[[#This Row],[3]]+Tabel2547[[#This Row],[1]] -> 0 | BM60: =Tabel2547[[#This Row],[RGFT]]+Tabel2547[[#This Row],[RPMD]] -> 0 | BN60: 0 | BO60: Molenlanden
A61: 4.1 | C61: Donderdag | D61: Hardinxveld Oud en wijk over het spoor | F61: 6 | G61: 6 | H61: 6 | J61: 2 | K61: 0 | L61: 2 | M61: 4 | P61: 2 | Q61: 16 | BI61: =Tabel2547[[#This Row],[52]]+Tabel2547[[#This Row],[50]]+Tabel2547[[#This Row],[48]]+Tabel2547[[#This Row],[46]]+Tabel2547[[#This Row],[44]]+Tabel2547[[#This Row],[42]]+Tabel2547[[#This Row],[40]]+Tabel2547[[#This Row],[38]]+Tabel2547[[#This Row],[36]]+Tabel2547[[#This Row],[34]]+Tabel2547[[#This Row],[32]]+Tabel2547[[#This Row],[30]]+Tabel2547[[#This Row],[28]]+Tabel2547[[#This Row],[26]]+Tabel2547[[#This Row],[24]]+Tabel2547[[#This Row],[22]]+Tabel2547[[#This Row],[20]]+Tabel2547[[#This Row],[18]]+Tabel2547[[#This Row],[16]]+Tabel2547[[#This Row],[14]]+Tabel2547[[#This Row],[12]]+Tabel2547[[#This Row],[10]]+Tabel2547[[#This Row],[8]]+Tabel2547[[#This Row],[6]]+Tabel2547[[#This Row],[4]]+Tabel2547[[#This Row],[2]] -> 6 | BK61: =Tabel2547[[#This Row],[51]]+Tabel2547[[#This Row],[49]]+Tabel2547[[#This Row],[47]]+Tabel2547[[#This Row],[45]]+Tabel2547[[#This Row],[43]]+Tabel2547[[#This Row],[41]]+Tabel2547[[#This Row],[39]]+Tabel2547[[#This Row],[37]]+Tabel2547[[#This Row],[35]]+Tabel2547[[#This Row],[33]]+Tabel2547[[#This Row],[31]]+Tabel2547[[#This Row],[29]]+Tabel2547[[#This Row],[27]]+Tabel2547[[#This Row],[25]]+Tabel2547[[#This Row],[23]]+Tabel2547[[#This Row],[21]]+Tabel2547[[#This Row],[19]]+Tabel2547[[#This Row],[17]]+Tabel2547[[#This Row],[15]]+Tabel2547[[#This Row],[13]]+Tabel2547[[#This Row],[11]]+Tabel2547[[#This Row],[9]]+Tabel2547[[#This Row],[7]]+Tabel2547[[#This Row],[5]]+Tabel2547[[#This Row],[3]]+Tabel2547[[#This Row],[1]] -> 20 | BM61: =Tabel2547[[#This Row],[RGFT]]+Tabel2547[[#This Row],[RPMD]] -> 26 | BN61: 130 | BO61: Hardinxveld
A62: 4.1 | C62: Donderdag | D62: Hardinxveld Oud en wijk over het spoor | E62: Spoorweg 30 | F62: 6 | G62: 6 | H62: 6 | J62: 14 | K62: 17 | L62: 48 | M62: 16 | P62: 15 | Q62: 20 | BJ62: =Tabel2547[[#This Row],[52]]+Tabel2547[[#This Row],[50]]+Tabel2547[[#This Row],[48]]+Tabel2547[[#This Row],[46]]+Tabel2547[[#This Row],[44]]+Tabel2547[[#This Row],[42]]+Tabel2547[[#This Row],[40]]+Tabel2547[[#This Row],[38]]+Tabel2547[[#This Row],[36]]+Tabel2547[[#This Row],[34]]+Tabel2547[[#This Row],[32]]+Tabel2547[[#This Row],[30]]+Tabel2547[[#This Row],[28]]+Tabel2547[[#This Row],[26]]+Tabel2547[[#This Row],[24]]+Tabel2547[[#This Row],[22]]+Tabel2547[[#This Row],[20]]+Tabel2547[[#This Row],[18]]+Tabel2547[[#This Row],[16]]+Tabel2547[[#This Row],[14]]+Tabel2547[[#This Row],[12]]+Tabel2547[[#This Row],[10]]+Tabel2547[[#This Row],[8]]+Tabel2547[[#This Row],[6]]+Tabel2547[[#This Row],[4]]+Tabel2547[[#This Row],[2]] -> 77 | BL62: =Tabel2547[[#This Row],[51]]+Tabel2547[[#This Row],[49]]+Tabel2547[[#This Row],[47]]+Tabel2547[[#This Row],[45]]+Tabel2547[[#This Row],[43]]+Tabel2547[[#This Row],[41]]+Tabel2547[[#This Row],[39]]+Tabel2547[[#This Row],[37]]+Tabel2547[[#This Row],[35]]+Tabel2547[[#This Row],[33]]+Tabel2547[[#This Row],[31]]+Tabel2547[[#This Row],[29]]+Tabel2547[[#This Row],[27]]+Tabel2547[[#This Row],[25]]+Tabel2547[[#This Row],[23]]+Tabel2547[[#This Row],[21]]+Tabel2547[[#This Row],[19]]+Tabel2547[[#This Row],[17]]+Tabel2547[[#This Row],[15]]+Tabel2547[[#This Row],[13]]+Tabel2547[[#This Row],[11]]+Tabel2547[[#This Row],[9]]+Tabel2547[[#This Row],[7]]+Tabel2547[[#This Row],[5]]+Tabel2547[[#This Row],[3]]+Tabel2547[[#This Row],[1]] -> 53 | BM62: =Tabel2547[[#This Row],[RGFT]]+Tabel2547[[#This Row],[RPMD]] -> 0 | BN62: 0 | BO62: Hardinxveld
A63: 5.1 | C63: Donderdag | D63: Hardinxveld Westwijk | F63: 5 | G63: 5 | H63: 5 | I63: 1 | BI63: =Tabel2547[[#This Row],[52]]+Tabel2547[[#This Row],[50]]+Tabel2547[[#This Row],[48]]+Tabel2547[[#This Row],[46]]+Tabel2547[[#This Row],[44]]+Tabel2547[[#This Row],[42]]+Tabel2547[[#This Row],[40]]+Tabel2547[[#This Row],[38]]+Tabel2547[[#This Row],[36]]+Tabel2547[[#This Row],[34]]+Tabel2547[[#This Row],[32]]+Tabel2547[[#This Row],[30]]+Tabel2547[[#This Row],[28]]+Tabel2547[[#This Row],[26]]+Tabel2547[[#This Row],[24]]+Tabel2547[[#This Row],[22]]+Tabel2547[[#This Row],[20]]+Tabel2547[[#This Row],[18]]+Tabel2547[[#This Row],[16]]+Tabel2547[[#This Row],[14]]+Tabel2547[[#This Row],[12]]+Tabel2547[[#This Row],[10]]+Tabel2547[[#This Row],[8]]+Tabel2547[[#This Row],[6]]+Tabel2547[[#This Row],[4]]+Tabel2547[[#This Row],[2]] -> 0 | BK63: =Tabel2547[[#This Row],[51]]+Tabel2547[[#This Row],[49]]+Tabel2547[[#This Row],[47]]+Tabel2547[[#This Row],[45]]+Tabel2547[[#This Row],[43]]+Tabel2547[[#This Row],[41]]+Tabel2547[[#This Row],[39]]+Tabel2547[[#This Row],[37]]+Tabel2547[[#This Row],[35]]+Tabel2547[[#This Row],[33]]+Tabel2547[[#This Row],[31]]+Tabel2547[[#This Row],[29]]+Tabel2547[[#This Row],[27]]+Tabel2547[[#This Row],[25]]+Tabel2547[[#This Row],[23]]+Tabel2547[[#This Row],[21]]+Tabel2547[[#This Row],[19]]+Tabel2547[[#This Row],[17]]+Tabel2547[[#This Row],[15]]+Tabel2547[[#This Row],[13]]+Tabel2547[[#This Row],[11]]+Tabel2547[[#This Row],[9]]+Tabel2547[[#This Row],[7]]+Tabel2547[[#This Row],[5]]+Tabel2547[[#This Row],[3]]+Tabel2547[[#This Row],[1]] -> 1 | BM63: =Tabel2547[[#This Row],[RGFT]]+Tabel2547[[#This Row],[RPMD]] -> 1 | BN63: 22 | BO63: Hardinxveld
A64: 5.1 | C64: Donderdag | D64: Hardinxveld Westwijk | E64: Schapendrift 2 | F64: 5 | G64: 5 | H64: 5 | I64: 22 | BJ64: =Tabel2547[[#This Row],[52]]+Tabel2547[[#This Row],[50]]+Tabel2547[[#This Row],[48]]+Tabel2547[[#This Row],[46]]+Tabel2547[[#This Row],[44]]+Tabel2547[[#This Row],[42]]+Tabel2547[[#This Row],[40]]+Tabel2547[[#This Row],[38]]+Tabel2547[[#This Row],[36]]+Tabel2547[[#This Row],[34]]+Tabel2547[[#This Row],[32]]+Tabel2547[[#This Row],[30]]+Tabel2547[[#This Row],[28]]+Tabel2547[[#This Row],[26]]+Tabel2547[[#This Row],[24]]+Tabel2547[[#This Row],[22]]+Tabel2547[[#This Row],[20]]+Tabel2547[[#This Row],[18]]+Tabel2547[[#This Row],[16]]+Tabel2547[[#This Row],[14]]+Tabel2547[[#This Row],[12]]+Tabel2547[[#This Row],[10]]+Tabel2547[[#This Row],[8]]+Tabel2547[[#This Row],[6]]+Tabel2547[[#This Row],[4]]+Tabel2547[[#This Row],[2]] -> 0 | BL64: =Tabel2547[[#This Row],[51]]+Tabel2547[[#This Row],[49]]+Tabel2547[[#This Row],[47]]+Tabel2547[[#This Row],[45]]+Tabel2547[[#This Row],[43]]+Tabel2547[[#This Row],[41]]+Tabel2547[[#This Row],[39]]+Tabel2547[[#This Row],[37]]+Tabel2547[[#This Row],[35]]+Tabel2547[[#This Row],[33]]+Tabel2547[[#This Row],[31]]+Tabel2547[[#This Row],[29]]+Tabel2547[[#This Row],[27]]+Tabel2547[[#This Row],[25]]+Tabel2547[[#This Row],[23]]+Tabel2547[[#This Row],[21]]+Tabel2547[[#This Row],[19]]+Tabel2547[[#This Row],[17]]+Tabel2547[[#This Row],[15]]+Tabel2547[[#This Row],[13]]+Tabel2547[[#This Row],[11]]+Tabel2547[[#This Row],[9]]+Tabel2547[[#This Row],[7]]+Tabel2547[[#This Row],[5]]+Tabel2547[[#This Row],[3]]+Tabel2547[[#This Row],[1]] -> 22 | BM64: =Tabel2547[[#This Row],[RGFT]]+Tabel2547[[#This Row],[RPMD]] -> 0 | BN64: 0 | BO64: Hardinxveld
A65: 5.2 | C65: Donderdag | D65: Hardinxveld (Jonathan) | F65: 6 | G65: 6 | H65: 6 | R65: 3 | V65: 0 | BI65: =Tabel2547[[#This Row],[52]]+Tabel2547[[#This Row],[50]]+Tabel2547[[#This Row],[48]]+Tabel2547[[#This Row],[46]]+Tabel2547[[#This Row],[44]]+Tabel2547[[#This Row],[42]]+Tabel2547[[#This Row],[40]]+Tabel2547[[#This Row],[38]]+Tabel2547[[#This Row],[36]]+Tabel2547[[#This Row],[34]]+Tabel2547[[#This Row],[32]]+Tabel2547[[#This Row],[30]]+Tabel2547[[#This Row],[28]]+Tabel2547[[#This Row],[26]]+Tabel2547[[#This Row],[24]]+Tabel2547[[#This Row],[22]]+Tabel2547[[#This Row],[20]]+Tabel2547[[#This Row],[18]]+Tabel2547[[#This Row],[16]]+Tabel2547[[#This Row],[14]]+Tabel2547[[#This Row],[12]]+Tabel2547[[#This Row],[10]]+Tabel2547[[#This Row],[8]]+Tabel2547[[#This Row],[6]]+Tabel2547[[#This Row],[4]]+Tabel2547[[#This Row],[2]] -> 3 | BK65: =Tabel2547[[#This Row],[51]]+Tabel2547[[#This Row],[49]]+Tabel2547[[#This Row],[47]]+Tabel2547[[#This Row],[45]]+Tabel2547[[#This Row],[43]]+Tabel2547[[#This Row],[41]]+Tabel2547[[#This Row],[39]]+Tabel2547[[#This Row],[37]]+Tabel2547[[#This Row],[35]]+Tabel2547[[#This Row],[33]]+Tabel2547[[#This Row],[31]]+Tabel2547[[#This Row],[29]]+Tabel2547[[#This Row],[27]]+Tabel2547[[#This Row],[25]]+Tabel2547[[#This Row],[23]]+Tabel2547[[#This Row],[21]]+Tabel2547[[#This Row],[19]]+Tabel2547[[#This Row],[17]]+Tabel2547[[#This Row],[15]]+Tabel2547[[#This Row],[13]]+Tabel2547[[#This Row],[11]]+Tabel2547[[#This Row],[9]]+Tabel2547[[#This Row],[7]]+Tabel2547[[#This Row],[5]]+Tabel2547[[#This Row],[3]]+Tabel2547[[#This Row],[1]] -> 0 | BM65: =Tabel2547[[#This Row],[RGFT]]+Tabel2547[[#This Row],[RPMD]] -> 3 | BN65: 22 | BO65: Hardinxveld
A66: 5.2 | C66: Donderdag | D66: Hardinxveld (Jonathan) | E66: Jonathan 2 | F66: 6 | G66: 6 | H66: 6 | R66: 12 | V66: 10 | BJ66: =Tabel2547[[#This Row],[52]]+Tabel2547[[#This Row],[50]]+Tabel2547[[#This Row],[48]]+Tabel2547[[#This Row],[46]]+Tabel2547[[#This Row],[44]]+Tabel2547[[#This Row],[42]]+Tabel2547[[#This Row],[40]]+Tabel2547[[#This Row],[38]]+Tabel2547[[#This Row],[36]]+Tabel2547[[#This Row],[34]]+Tabel2547[[#This Row],[32]]+Tabel2547[[#This Row],[30]]+Tabel2547[[#This Row],[28]]+Tabel2547[[#This Row],[26]]+Tabel2547[[#This Row],[24]]+Tabel2547[[#This Row],[22]]+Tabel2547[[#This Row],[20]]+Tabel2547[[#This Row],[18]]+Tabel2547[[#This Row],[16]]+Tabel2547[[#This Row],[14]]+Tabel2547[[#This Row],[12]]+Tabel2547[[#This Row],[10]]+Tabel2547[[#This Row],[8]]+Tabel2547[[#This Row],[6]]+Tabel2547[[#This Row],[4]]+Tabel2547[[#This Row],[2]] -> 22 | BL66: =Tabel2547[[#This Row],[51]]+Tabel2547[[#This Row],[49]]+Tabel2547[[#This Row],[47]]+Tabel2547[[#This Row],[45]]+Tabel2547[[#This Row],[43]]+Tabel2547[[#This Row],[41]]+Tabel2547[[#This Row],[39]]+Tabel2547[[#This Row],[37]]+Tabel2547[[#This Row],[35]]+Tabel2547[[#This Row],[33]]+Tabel2547[[#This Row],[31]]+Tabel2547[[#This Row],[29]]+Tabel2547[[#This Row],[27]]+Tabel2547[[#This Row],[25]]+Tabel2547[[#This Row],[23]]+Tabel2547[[#This Row],[21]]+Tabel2547[[#This Row],[19]]+Tabel2547[[#This Row],[17]]+Tabel2547[[#This Row],[15]]+Tabel2547[[#This Row],[13]]+Tabel2547[[#This Row],[11]]+Tabel2547[[#This Row],[9]]+Tabel2547[[#This Row],[7]]+Tabel2547[[#This Row],[5]]+Tabel2547[[#This Row],[3]]+Tabel2547[[#This Row],[1]] -> 0 | BM66: =Tabel2547[[#This Row],[RGFT]]+Tabel2547[[#This Row],[RPMD]] -> 0 | BN66: 0 | BO66: Hardinxveld
A67: 6.1 | C67: Donderdag | D67: Hardinxveld buitendams | F67: 4 | G67: 4 | H67: 4 | K67: 2 | M67: 7 | BI67: =Tabel2547[[#This Row],[52]]+Tabel2547[[#This Row],[50]]+Tabel2547[[#This Row],[48]]+Tabel2547[[#This Row],[46]]+Tabel2547[[#This Row],[44]]+Tabel2547[[#This Row],[42]]+Tabel2547[[#This Row],[40]]+Tabel2547[[#This Row],[38]]+Tabel2547[[#This Row],[36]]+Tabel2547[[#This Row],[34]]+Tabel2547[[#This Row],[32]]+Tabel2547[[#This Row],[30]]+Tabel2547[[#This Row],[28]]+Tabel2547[[#This Row],[26]]+Tabel2547[[#This Row],[24]]+Tabel2547[[#This Row],[22]]+Tabel2547[[#This Row],[20]]+Tabel2547[[#This Row],[18]]+Tabel2547[[#This Row],[16]]+Tabel2547[[#This Row],[14]]+Tabel2547[[#This Row],[12]]+Tabel2547[[#This Row],[10]]+Tabel2547[[#This Row],[8]]+Tabel2547[[#This Row],[6]]+Tabel2547[[#This Row],[4]]+Tabel2547[[#This Row],[2]] -> 0 | BK67: =Tabel2547[[#This Row],[51]]+Tabel2547[[#This Row],[49]]+Tabel2547[[#This Row],[47]]+Tabel2547[[#This Row],[45]]+Tabel2547[[#This Row],[43]]+Tabel2547[[#This Row],[41]]+Tabel2547[[#This Row],[39]]+Tabel2547[[#This Row],[37]]+Tabel2547[[#This Row],[35]]+Tabel2547[[#This Row],[33]]+Tabel2547[[#This Row],[31]]+Tabel2547[[#This Row],[29]]+Tabel2547[[#This Row],[27]]+Tabel2547[[#This Row],[25]]+Tabel2547[[#This Row],[23]]+Tabel2547[[#This Row],[21]]+Tabel2547[[#This Row],[19]]+Tabel2547[[#This Row],[17]]+Tabel2547[[#This Row],[15]]+Tabel2547[[#This Row],[13]]+Tabel2547[[#This Row],[11]]+Tabel2547[[#This Row],[9]]+Tabel2547[[#This Row],[7]]+Tabel2547[[#This Row],[5]]+Tabel2547[[#This Row],[3]]+Tabel2547[[#This Row],[1]] -> 9 | BM67: =Tabel2547[[#This Row],[RGFT]]+Tabel2547[[#This Row],[RPMD]] -> 9 | BN67: =BJ68+BL68 -> 28 | BO67: Hardinxveld
A68: 6.1 | C68: Donderdag | D68: Hardinxveld buitendams | E68: Buitendams 62 | F68: 4 | G68: 4 | H68: 4 | K68: 12 | M68: 16 | BJ68: =Tabel2547[[#This Row],[52]]+Tabel2547[[#This Row],[50]]+Tabel2547[[#This Row],[48]]+Tabel2547[[#This Row],[46]]+Tabel2547[[#This Row],[44]]+Tabel2547[[#This Row],[42]]+Tabel2547[[#This Row],[40]]+Tabel2547[[#This Row],[38]]+Tabel2547[[#This Row],[36]]+Tabel2547[[#This Row],[34]]+Tabel2547[[#This Row],[32]]+Tabel2547[[#This Row],[30]]+Tabel2547[[#This Row],[28]]+Tabel2547[[#This Row],[26]]+Tabel2547[[#This Row],[24]]+Tabel2547[[#This Row],[22]]+Tabel2547[[#This Row],[20]]+Tabel2547[[#This Row],[18]]+Tabel2547[[#This Row],[16]]+Tabel2547[[#This Row],[14]]+Tabel2547[[#This Row],[12]]+Tabel2547[[#This Row],[10]]+Tabel2547[[#This Row],[8]]+Tabel2547[[#This Row],[6]]+Tabel2547[[#This Row],[4]]+Tabel2547[[#This Row],[2]] -> 0 | BL68: =Tabel2547[[#This Row],[51]]+Tabel2547[[#This Row],[49]]+Tabel2547[[#This Row],[47]]+Tabel2547[[#This Row],[45]]+Tabel2547[[#This Row],[43]]+Tabel2547[[#This Row],[41]]+Tabel2547[[#This Row],[39]]+Tabel2547[[#This Row],[37]]+Tabel2547[[#This Row],[35]]+Tabel2547[[#This Row],[33]]+Tabel2547[[#This Row],[31]]+Tabel2547[[#This Row],[29]]+Tabel2547[[#This Row],[27]]+Tabel2547[[#This Row],[25]]+Tabel2547[[#This Row],[23]]+Tabel2547[[#This Row],[21]]+Tabel2547[[#This Row],[19]]+Tabel2547[[#This Row],[17]]+Tabel2547[[#This Row],[15]]+Tabel2547[[#This Row],[13]]+Tabel2547[[#This Row],[11]]+Tabel2547[[#This Row],[9]]+Tabel2547[[#This Row],[7]]+Tabel2547[[#This Row],[5]]+Tabel2547[[#This Row],[3]]+Tabel2547[[#This Row],[1]] -> 28 | BM68: =Tabel2547[[#This Row],[RGFT]]+Tabel2547[[#This Row],[RPMD]] -> 0 | BN68: 0 | BO68: Hardinxveld
A69: 6.2 | C69: Donderdag | D69: Peulen Hardinxveld | F69: 4 | G69: 4 | H69: 4 | V69: 2 | Z69: 10 | BI69: =Tabel2547[[#This Row],[52]]+Tabel2547[[#This Row],[50]]+Tabel2547[[#This Row],[48]]+Tabel2547[[#This Row],[46]]+Tabel2547[[#This Row],[44]]+Tabel2547[[#This Row],[42]]+Tabel2547[[#This Row],[40]]+Tabel2547[[#This Row],[38]]+Tabel2547[[#This Row],[36]]+Tabel2547[[#This Row],[34]]+Tabel2547[[#This Row],[32]]+Tabel2547[[#This Row],[30]]+Tabel2547[[#This Row],[28]]+Tabel2547[[#This Row],[26]]+Tabel2547[[#This Row],[24]]+Tabel2547[[#This Row],[22]]+Tabel2547[[#This Row],[20]]+Tabel2547[[#This Row],[18]]+Tabel2547[[#This Row],[16]]+Tabel2547[[#This Row],[14]]+Tabel2547[[#This Row],[12]]+Tabel2547[[#This Row],[10]]+Tabel2547[[#This Row],[8]]+Tabel2547[[#This Row],[6]]+Tabel2547[[#This Row],[4]]+Tabel2547[[#This Row],[2]] -> 12 | BK69: =Tabel2547[[#This Row],[51]]+Tabel2547[[#This Row],[49]]+Tabel2547[[#This Row],[47]]+Tabel2547[[#This Row],[45]]+Tabel2547[[#This Row],[43]]+Tabel2547[[#This Row],[41]]+Tabel2547[[#This Row],[39]]+Tabel2547[[#This Row],[37]]+Tabel2547[[#This Row],[35]]+Tabel2547[[#This Row],[33]]+Tabel2547[[#This Row],[31]]+Tabel2547[[#This Row],[29]]+Tabel2547[[#This Row],[27]]+Tabel2547[[#This Row],[25]]+Tabel2547[[#This Row],[23]]+Tabel2547[[#This Row],[21]]+Tabel2547[[#This Row],[19]]+Tabel2547[[#This Row],[17]]+Tabel2547[[#This Row],[15]]+Tabel2547[[#This Row],[13]]+Tabel2547[[#This Row],[11]]+Tabel2547[[#This Row],[9]]+Tabel2547[[#This Row],[7]]+Tabel2547[[#This Row],[5]]+Tabel2547[[#This Row],[3]]+Tabel2547[[#This Row],[1]] -> 0 | BM69: =Tabel2547[[#This Row],[RGFT]]+Tabel2547[[#This Row],[RPMD]] -> 12 | BN69: 27 | BO69: Hardinxveld
A70: 6.2 | C70: Donderdag | D70: Peulen Hardinxveld | E70: Troelstrastraat 2 | F70: 4 | G70: 4 | H70: 4 | V70: 2 | W70: 19 | Z70: 6 | BJ70: =Tabel2547[[#This Row],[52]]+Tabel2547[[#This Row],[50]]+Tabel2547[[#This Row],[48]]+Tabel2547[[#This Row],[46]]+Tabel2547[[#This Row],[44]]+Tabel2547[[#This Row],[42]]+Tabel2547[[#This Row],[40]]+Tabel2547[[#This Row],[38]]+Tabel2547[[#This Row],[36]]+Tabel2547[[#This Row],[34]]+Tabel2547[[#This Row],[32]]+Tabel2547[[#This Row],[30]]+Tabel2547[[#This Row],[28]]+Tabel2547[[#This Row],[26]]+Tabel2547[[#This Row],[24]]+Tabel2547[[#This Row],[22]]+Tabel2547[[#This Row],[20]]+Tabel2547[[#This Row],[18]]+Tabel2547[[#This Row],[16]]+Tabel2547[[#This Row],[14]]+Tabel2547[[#This Row],[12]]+Tabel2547[[#This Row],[10]]+Tabel2547[[#This Row],[8]]+Tabel2547[[#This Row],[6]]+Tabel2547[[#This Row],[4]]+Tabel2547[[#This Row],[2]] -> 8 | BL70: =Tabel2547[[#This Row],[51]]+Tabel2547[[#This Row],[49]]+Tabel2547[[#This Row],[47]]+Tabel2547[[#This Row],[45]]+Tabel2547[[#This Row],[43]]+Tabel2547[[#This Row],[41]]+Tabel2547[[#This Row],[39]]+Tabel2547[[#This Row],[37]]+Tabel2547[[#This Row],[35]]+Tabel2547[[#This Row],[33]]+Tabel2547[[#This Row],[31]]+Tabel2547[[#This Row],[29]]+Tabel2547[[#This Row],[27]]+Tabel2547[[#This Row],[25]]+Tabel2547[[#This Row],[23]]+Tabel2547[[#This Row],[21]]+Tabel2547[[#This Row],[19]]+Tabel2547[[#This Row],[17]]+Tabel2547[[#This Row],[15]]+Tabel2547[[#This Row],[13]]+Tabel2547[[#This Row],[11]]+Tabel2547[[#This Row],[9]]+Tabel2547[[#This Row],[7]]+Tabel2547[[#This Row],[5]]+Tabel2547[[#This Row],[3]]+Tabel2547[[#This Row],[1]] -> 19 | BM70: =Tabel2547[[#This Row],[RGFT]]+Tabel2547[[#This Row],[RPMD]] -> 0 | BN70: 0 | BO70: Hardinxveld
A71: 7.1 | C71: Donderdag | D71: Boven Hardinxveld afhelpen Hardinxveld | F71: 7 | G71: 7 | H71: 7 | I71: 2 | Q71: 2 | S71: 0 | T71: 5 | W71: 4 | BI71: =Tabel2547[[#This Row],[52]]+Tabel2547[[#This Row],[50]]+Tabel2547[[#This Row],[48]]+Tabel2547[[#This Row],[46]]+Tabel2547[[#This Row],[44]]+Tabel2547[[#This Row],[42]]+Tabel2547[[#This Row],[40]]+Tabel2547[[#This Row],[38]]+Tabel2547[[#This Row],[36]]+Tabel2547[[#This Row],[34]]+Tabel2547[[#This Row],[32]]+Tabel2547[[#This Row],[30]]+Tabel2547[[#This Row],[28]]+Tabel2547[[#This Row],[26]]+Tabel2547[[#This Row],[24]]+Tabel2547[[#This Row],[22]]+Tabel2547[[#This Row],[20]]+Tabel2547[[#This Row],[18]]+Tabel2547[[#This Row],[16]]+Tabel2547[[#This Row],[14]]+Tabel2547[[#This Row],[12]]+Tabel2547[[#This Row],[10]]+Tabel2547[[#This Row],[8]]+Tabel2547[[#This Row],[6]]+Tabel2547[[#This Row],[4]]+Tabel2547[[#This Row],[2]] -> 5 | BK71: =Tabel2547[[#This Row],[51]]+Tabel2547[[#This Row],[49]]+Tabel2547[[#This Row],[47]]+Tabel2547[[#This Row],[45]]+Tabel2547[[#This Row],[43]]+Tabel2547[[#This Row],[41]]+Tabel2547[[#This Row],[39]]+Tabel2547[[#This Row],[37]]+Tabel2547[[#This Row],[35]]+Tabel2547[[#This Row],[33]]+Tabel2547[[#This Row],[31]]+Tabel2547[[#This Row],[29]]+Tabel2547[[#This Row],[27]]+Tabel2547[[#This Row],[25]]+Tabel2547[[#This Row],[23]]+Tabel2547[[#This Row],[21]]+Tabel2547[[#This Row],[19]]+Tabel2547[[#This Row],[17]]+Tabel2547[[#This Row],[15]]+Tabel2547[[#This Row],[13]]+Tabel2547[[#This Row],[11]]+Tabel2547[[#This Row],[9]]+Tabel2547[[#This Row],[7]]+Tabel2547[[#This Row],[5]]+Tabel2547[[#This Row],[3]]+Tabel2547[[#This Row],[1]] -> 8 | BM71: =Tabel2547[[#This Row],[RGFT]]+Tabel2547[[#This Row],[RPMD]] -> 13 | BN71: 72 | BO71: Hardinxveld
A72: 7.1 | C72: Donderdag | D72: Boven Hardinxveld afhelpen Hardinxveld | E72: Drijverschuit 5 | F72: 7 | G72: 7 | H72: 7 | I72: 29 | Q72: 9 | S72: 5 | T72: 21 | W72: 8 | BJ72: =Tabel2547[[#This Row],[52]]+Tabel2547[[#This Row],[50]]+Tabel2547[[#This Row],[48]]+Tabel2547[[#This Row],[46]]+Tabel2547[[#This Row],[44]]+Tabel2547[[#This Row],[42]]+Tabel2547[[#This Row],[40]]+Tabel2547[[#This Row],[38]]+Tabel2547[[#This Row],[36]]+Tabel2547[[#This Row],[34]]+Tabel2547[[#This Row],[32]]+Tabel2547[[#This Row],[30]]+Tabel2547[[#This Row],[28]]+Tabel2547[[#This Row],[26]]+Tabel2547[[#This Row],[24]]+Tabel2547[[#This Row],[22]]+Tabel2547[[#This Row],[20]]+Tabel2547[[#This Row],[18]]+Tabel2547[[#This Row],[16]]+Tabel2547[[#This Row],[14]]+Tabel2547[[#This Row],[12]]+Tabel2547[[#This Row],[10]]+Tabel2547[[#This Row],[8]]+Tabel2547[[#This Row],[6]]+Tabel2547[[#This Row],[4]]+Tabel2547[[#This Row],[2]] -> 21 | BL72: =Tabel2547[[#This Row],[51]]+Tabel2547[[#This Row],[49]]+Tabel2547[[#This Row],[47]]+Tabel2547[[#This Row],[45]]+Tabel2547[[#This Row],[43]]+Tabel2547[[#This Row],[41]]+Tabel2547[[#This Row],[39]]+Tabel2547[[#This Row],[37]]+Tabel2547[[#This Row],[35]]+Tabel2547[[#This Row],[33]]+Tabel2547[[#This Row],[31]]+Tabel2547[[#This Row],[29]]+Tabel2547[[#This Row],[27]]+Tabel2547[[#This Row],[25]]+Tabel2547[[#This Row],[23]]+Tabel2547[[#This Row],[21]]+Tabel2547[[#This Row],[19]]+Tabel2547[[#This Row],[17]]+Tabel2547[[#This Row],[15]]+Tabel2547[[#This Row],[13]]+Tabel2547[[#This Row],[11]]+Tabel2547[[#This Row],[9]]+Tabel2547[[#This Row],[7]]+Tabel2547[[#This Row],[5]]+Tabel2547[[#This Row],[3]]+Tabel2547[[#This Row],[1]] -> 51 | BM72: =Tabel2547[[#This Row],[RGFT]]+Tabel2547[[#This Row],[RPMD]] -> 0 | BN72: 0 | BO72: Hardinxveld
A73: 4.1 | C73: Vrijdag | D73: kern Streefkerk | F73: 6 | G73: 6 | H73: 6 | X73: 5 | BI73: =Tabel2547[[#This Row],[52]]+Tabel2547[[#This Row],[50]]+Tabel2547[[#This Row],[48]]+Tabel2547[[#This Row],[46]]+Tabel2547[[#This Row],[44]]+Tabel2547[[#This Row],[42]]+Tabel2547[[#This Row],[40]]+Tabel2547[[#This Row],[38]]+Tabel2547[[#This Row],[36]]+Tabel2547[[#This Row],[34]]+Tabel2547[[#This Row],[32]]+Tabel2547[[#This Row],[30]]+Tabel2547[[#This Row],[28]]+Tabel2547[[#This Row],[26]]+Tabel2547[[#This Row],[24]]+Tabel2547[[#This Row],[22]]+Tabel2547[[#This Row],[20]]+Tabel2547[[#This Row],[18]]+Tabel2547[[#This Row],[16]]+Tabel2547[[#This Row],[14]]+Tabel2547[[#This Row],[12]]+Tabel2547[[#This Row],[10]]+Tabel2547[[#This Row],[8]]+Tabel2547[[#This Row],[6]]+Tabel2547[[#This Row],[4]]+Tabel2547[[#This Row],[2]] -> 5 | BK73: =Tabel2547[[#This Row],[51]]+Tabel2547[[#This Row],[49]]+Tabel2547[[#This Row],[47]]+Tabel2547[[#This Row],[45]]+Tabel2547[[#This Row],[43]]+Tabel2547[[#This Row],[41]]+Tabel2547[[#This Row],[39]]+Tabel2547[[#This Row],[37]]+Tabel2547[[#This Row],[35]]+Tabel2547[[#This Row],[33]]+Tabel2547[[#This Row],[31]]+Tabel2547[[#This Row],[29]]+Tabel2547[[#This Row],[27]]+Tabel2547[[#This Row],[25]]+Tabel2547[[#This Row],[23]]+Tabel2547[[#This Row],[21]]+Tabel2547[[#This Row],[19]]+Tabel2547[[#This Row],[17]]+Tabel2547[[#This Row],[15]]+Tabel2547[[#This Row],[13]]+Tabel2547[[#This Row],[11]]+Tabel2547[[#This Row],[9]]+Tabel2547[[#This Row],[7]]+Tabel2547[[#This Row],[5]]+Tabel2547[[#This Row],[3]]+Tabel2547[[#This Row],[1]] -> 0 | BM73: =Tabel2547[[#This Row],[RGFT]]+Tabel2547[[#This Row],[RPMD]] -> 5 | BN73: 6 | BO73: Molenlanden
A74: 4.1 | C74: Vrijdag | D74: kern Streefkerk | E74: 1e Zwanenvliet 4 | F74: 6 | G74: 6 | H74: 6 | X74: 6 | BJ74: =Tabel2547[[#This Row],[52]]+Tabel2547[[#This Row],[50]]+Tabel2547[[#This Row],[48]]+Tabel2547[[#This Row],[46]]+Tabel2547[[#This Row],[44]]+Tabel2547[[#This Row],[42]]+Tabel2547[[#This Row],[40]]+Tabel2547[[#This Row],[38]]+Tabel2547[[#This Row],[36]]+Tabel2547[[#This Row],[34]]+Tabel2547[[#This Row],[32]]+Tabel2547[[#This Row],[30]]+Tabel2547[[#This Row],[28]]+Tabel2547[[#This Row],[26]]+Tabel2547[[#This Row],[24]]+Tabel2547[[#This Row],[22]]+Tabel2547[[#This Row],[20]]+Tabel2547[[#This Row],[18]]+Tabel2547[[#This Row],[16]]+Tabel2547[[#This Row],[14]]+Tabel2547[[#This Row],[12]]+Tabel2547[[#This Row],[10]]+Tabel2547[[#This Row],[8]]+Tabel2547[[#This Row],[6]]+Tabel2547[[#This Row],[4]]+Tabel2547[[#This Row],[2]] -> 6 | BL74: =Tabel2547[[#This Row],[51]]+Tabel2547[[#This Row],[49]]+Tabel2547[[#This Row],[47]]+Tabel2547[[#This Row],[45]]+Tabel2547[[#This Row],[43]]+Tabel2547[[#This Row],[41]]+Tabel2547[[#This Row],[39]]+Tabel2547[[#This Row],[37]]+Tabel2547[[#This Row],[35]]+Tabel2547[[#This Row],[33]]+Tabel2547[[#This Row],[31]]+Tabel2547[[#This Row],[29]]+Tabel2547[[#This Row],[27]]+Tabel2547[[#This Row],[25]]+Tabel2547[[#This Row],[23]]+Tabel2547[[#This Row],[21]]+Tabel2547[[#This Row],[19]]+Tabel2547[[#This Row],[17]]+Tabel2547[[#This Row],[15]]+Tabel2547[[#This Row],[13]]+Tabel2547[[#This Row],[11]]+Tabel2547[[#This Row],[9]]+Tabel2547[[#This Row],[7]]+Tabel2547[[#This Row],[5]]+Tabel2547[[#This Row],[3]]+Tabel2547[[#This Row],[1]] -> 0 | BM74: =Tabel2547[[#This Row],[RGFT]]+Tabel2547[[#This Row],[RPMD]] -> 0 | BN74: 0 | BO74: Molenlanden
A75: 1.1 | C75: Vrijdag | D75: 1=Vianen Amaliastein en 2=Molenwijk en 3=Slyk | M75: 3 | S75: 2 | BI75: =Tabel2547[[#This Row],[52]]+Tabel2547[[#This Row],[50]]+Tabel2547[[#This Row],[48]]+Tabel2547[[#This Row],[46]]+Tabel2547[[#This Row],[44]]+Tabel2547[[#This Row],[42]]+Tabel2547[[#This Row],[40]]+Tabel2547[[#This Row],[38]]+Tabel2547[[#This Row],[36]]+Tabel2547[[#This Row],[34]]+Tabel2547[[#This Row],[32]]+Tabel2547[[#This Row],[30]]+Tabel2547[[#This Row],[28]]+Tabel2547[[#This Row],[26]]+Tabel2547[[#This Row],[24]]+Tabel2547[[#This Row],[22]]+Tabel2547[[#This Row],[20]]+Tabel2547[[#This Row],[18]]+Tabel2547[[#This Row],[16]]+Tabel2547[[#This Row],[14]]+Tabel2547[[#This Row],[12]]+Tabel2547[[#This Row],[10]]+Tabel2547[[#This Row],[8]]+Tabel2547[[#This Row],[6]]+Tabel2547[[#This Row],[4]]+Tabel2547[[#This Row],[2]] -> 0 | BK75: =Tabel2547[[#This Row],[51]]+Tabel2547[[#This Row],[49]]+Tabel2547[[#This Row],[47]]+Tabel2547[[#This Row],[45]]+Tabel2547[[#This Row],[43]]+Tabel2547[[#This Row],[41]]+Tabel2547[[#This Row],[39]]+Tabel2547[[#This Row],[37]]+Tabel2547[[#This Row],[35]]+Tabel2547[[#This Row],[33]]+Tabel2547[[#This Row],[31]]+Tabel2547[[#This Row],[29]]+Tabel2547[[#This Row],[27]]+Tabel2547[[#This Row],[25]]+Tabel2547[[#This Row],[23]]+Tabel2547[[#This Row],[21]]+Tabel2547[[#This Row],[19]]+Tabel2547[[#This Row],[17]]+Tabel2547[[#This Row],[15]]+Tabel2547[[#This Row],[13]]+Tabel2547[[#This Row],[11]]+Tabel2547[[#This Row],[9]]+Tabel2547[[#This Row],[7]]+Tabel2547[[#This Row],[5]]+Tabel2547[[#This Row],[3]]+Tabel2547[[#This Row],[1]] -> 5 | BM75: =Tabel2547[[#This Row],[RGFT]]+Tabel2547[[#This Row],[RPMD]] -> 5 | BN75: 44 | BO75: VHL
A76: 1.1 | C76: Vrijdag | D76: 1=Vianen Amaliastein en 2=Molenwijk en 3=Slyk | E76: 1=M van Borselenstr 47 2=Dammolen 1 3=Uithoflaan 53 | M76: 27 | S76: 17 | BJ76: =Tabel2547[[#This Row],[52]]+Tabel2547[[#This Row],[50]]+Tabel2547[[#This Row],[48]]+Tabel2547[[#This Row],[46]]+Tabel2547[[#This Row],[44]]+Tabel2547[[#This Row],[42]]+Tabel2547[[#This Row],[40]]+Tabel2547[[#This Row],[38]]+Tabel2547[[#This Row],[36]]+Tabel2547[[#This Row],[34]]+Tabel2547[[#This Row],[32]]+Tabel2547[[#This Row],[30]]+Tabel2547[[#This Row],[28]]+Tabel2547[[#This Row],[26]]+Tabel2547[[#This Row],[24]]+Tabel2547[[#This Row],[22]]+Tabel2547[[#This Row],[20]]+Tabel2547[[#This Row],[18]]+Tabel2547[[#This Row],[16]]+Tabel2547[[#This Row],[14]]+Tabel2547[[#This Row],[12]]+Tabel2547[[#This Row],[10]]+Tabel2547[[#This Row],[8]]+Tabel2547[[#This Row],[6]]+Tabel2547[[#This Row],[4]]+Tabel2547[[#This Row],[2]] -> 0 | BL76: =Tabel2547[[#This Row],[51]]+Tabel2547[[#This Row],[49]]+Tabel2547[[#This Row],[47]]+Tabel2547[[#This Row],[45]]+Tabel2547[[#This Row],[43]]+Tabel2547[[#This Row],[41]]+Tabel2547[[#This Row],[39]]+Tabel2547[[#This Row],[37]]+Tabel2547[[#This Row],[35]]+Tabel2547[[#This Row],[33]]+Tabel2547[[#This Row],[31]]+Tabel2547[[#This Row],[29]]+Tabel2547[[#This Row],[27]]+Tabel2547[[#This Row],[25]]+Tabel2547[[#This Row],[23]]+Tabel2547[[#This Row],[21]]+Tabel2547[[#This Row],[19]]+Tabel2547[[#This Row],[17]]+Tabel2547[[#This Row],[15]]+Tabel2547[[#This Row],[13]]+Tabel2547[[#This Row],[11]]+Tabel2547[[#This Row],[9]]+Tabel2547[[#This Row],[7]]+Tabel2547[[#This Row],[5]]+Tabel2547[[#This Row],[3]]+Tabel2547[[#This Row],[1]] -> 44 | BM76: =Tabel2547[[#This Row],[RGFT]]+Tabel2547[[#This Row],[RPMD]] -> 0 | BN76: 0 | BO76: VHL
A77: 2.1 | C77: Vrijdag | D77: kern Nieuw Lekkerland | F77: 5 | G77: 5 | H77: 5 | I77: 3 | J77: 2 | K77: 6 | L77: 1 | T77: 5 | U77: 18 | BI77: =Tabel2547[[#This Row],[52]]+Tabel2547[[#This Row],[50]]+Tabel2547[[#This Row],[48]]+Tabel2547[[#This Row],[46]]+Tabel2547[[#This Row],[44]]+Tabel2547[[#This Row],[42]]+Tabel2547[[#This Row],[40]]+Tabel2547[[#This Row],[38]]+Tabel2547[[#This Row],[36]]+Tabel2547[[#This Row],[34]]+Tabel2547[[#This Row],[32]]+Tabel2547[[#This Row],[30]]+Tabel2547[[#This Row],[28]]+Tabel2547[[#This Row],[26]]+Tabel2547[[#This Row],[24]]+Tabel2547[[#This Row],[22]]+Tabel2547[[#This Row],[20]]+Tabel2547[[#This Row],[18]]+Tabel2547[[#This Row],[16]]+Tabel2547[[#This Row],[14]]+Tabel2547[[#This Row],[12]]+Tabel2547[[#This Row],[10]]+Tabel2547[[#This Row],[8]]+Tabel2547[[#This Row],[6]]+Tabel2547[[#This Row],[4]]+Tabel2547[[#This Row],[2]] -> 8 | BK77: =Tabel2547[[#This Row],[51]]+Tabel2547[[#This Row],[49]]+Tabel2547[[#This Row],[47]]+Tabel2547[[#This Row],[45]]+Tabel2547[[#This Row],[43]]+Tabel2547[[#This Row],[41]]+Tabel2547[[#This Row],[39]]+Tabel2547[[#This Row],[37]]+Tabel2547[[#This Row],[35]]+Tabel2547[[#This Row],[33]]+Tabel2547[[#This Row],[31]]+Tabel2547[[#This Row],[29]]+Tabel2547[[#This Row],[27]]+Tabel2547[[#This Row],[25]]+Tabel2547[[#This Row],[23]]+Tabel2547[[#This Row],[21]]+Tabel2547[[#This Row],[19]]+Tabel2547[[#This Row],[17]]+Tabel2547[[#This Row],[15]]+Tabel2547[[#This Row],[13]]+Tabel2547[[#This Row],[11]]+Tabel2547[[#This Row],[9]]+Tabel2547[[#This Row],[7]]+Tabel2547[[#This Row],[5]]+Tabel2547[[#This Row],[3]]+Tabel2547[[#This Row],[1]] -> 27 | BM77: =Tabel2547[[#This Row],[RGFT]]+Tabel2547[[#This Row],[RPMD]] -> 35 | BN77: 120 | BO77: Molenlanden
A78: 2.1 | C78: Vrijdag | D78: kern Nieuw Lekkerland | E78: 1e :Hoogaarslaan 21 en | F78: 5 | G78: 5 | H78: 5 | I78: 27 | J78: 31 | K78: 19 | L78: 20 | T78: 12 | U78: 11 | BJ78: =Tabel2547[[#This Row],[52]]+Tabel2547[[#This Row],[50]]+Tabel2547[[#This Row],[48]]+Tabel2547[[#This Row],[46]]+Tabel2547[[#This Row],[44]]+Tabel2547[[#This Row],[42]]+Tabel2547[[#This Row],[40]]+Tabel2547[[#This Row],[38]]+Tabel2547[[#This Row],[36]]+Tabel2547[[#This Row],[34]]+Tabel2547[[#This Row],[32]]+Tabel2547[[#This Row],[30]]+Tabel2547[[#This Row],[28]]+Tabel2547[[#This Row],[26]]+Tabel2547[[#This Row],[24]]+Tabel2547[[#This Row],[22]]+Tabel2547[[#This Row],[20]]+Tabel2547[[#This Row],[18]]+Tabel2547[[#This Row],[16]]+Tabel2547[[#This Row],[14]]+Tabel2547[[#This Row],[12]]+Tabel2547[[#This Row],[10]]+Tabel2547[[#This Row],[8]]+Tabel2547[[#This Row],[6]]+Tabel2547[[#This Row],[4]]+Tabel2547[[#This Row],[2]] -> 63 | BL78: =Tabel2547[[#This Row],[51]]+Tabel2547[[#This Row],[49]]+Tabel2547[[#This Row],[47]]+Tabel2547[[#This Row],[45]]+Tabel2547[[#This Row],[43]]+Tabel2547[[#This Row],[41]]+Tabel2547[[#This Row],[39]]+Tabel2547[[#This Row],[37]]+Tabel2547[[#This Row],[35]]+Tabel2547[[#This Row],[33]]+Tabel2547[[#This Row],[31]]+Tabel2547[[#This Row],[29]]+Tabel2547[[#This Row],[27]]+Tabel2547[[#This Row],[25]]+Tabel2547[[#This Row],[23]]+Tabel2547[[#This Row],[21]]+Tabel2547[[#This Row],[19]]+Tabel2547[[#This Row],[17]]+Tabel2547[[#This Row],[15]]+Tabel2547[[#This Row],[13]]+Tabel2547[[#This Row],[11]]+Tabel2547[[#This Row],[9]]+Tabel2547[[#This Row],[7]]+Tabel2547[[#This Row],[5]]+Tabel2547[[#This Row],[3]]+Tabel2547[[#This Row],[1]] -> 57 | BM78: =Tabel2547[[#This Row],[RGFT]]+Tabel2547[[#This Row],[RPMD]] -> 0 | BN78: 0 | BO78: Molenlanden
A79: 2.2 | C79: Vrijdag | D79: Kern Nieuw Lekkerland 2 (molenwijk) | F79: 4 | G79: 4 | H79: 4 | BI79: =Tabel2547[[#This Row],[52]]+Tabel2547[[#This Row],[50]]+Tabel2547[[#This Row],[48]]+Tabel2547[[#This Row],[46]]+Tabel2547[[#This Row],[44]]+Tabel2547[[#This Row],[42]]+Tabel2547[[#This Row],[40]]+Tabel2547[[#This Row],[38]]+Tabel2547[[#This Row],[36]]+Tabel2547[[#This Row],[34]]+Tabel2547[[#This Row],[32]]+Tabel2547[[#This Row],[30]]+Tabel2547[[#This Row],[28]]+Tabel2547[[#This Row],[26]]+Tabel2547[[#This Row],[24]]+Tabel2547[[#This Row],[22]]+Tabel2547[[#This Row],[20]]+Tabel2547[[#This Row],[18]]+Tabel2547[[#This Row],[16]]+Tabel2547[[#This Row],[14]]+Tabel2547[[#This Row],[12]]+Tabel2547[[#This Row],[10]]+Tabel2547[[#This Row],[8]]+Tabel2547[[#This Row],[6]]+Tabel2547[[#This Row],[4]]+Tabel2547[[#This Row],[2]] -> 0 | BK79: =Tabel2547[[#This Row],[51]]+Tabel2547[[#This Row],[49]]+Tabel2547[[#This Row],[47]]+Tabel2547[[#This Row],[45]]+Tabel2547[[#This Row],[43]]+Tabel2547[[#This Row],[41]]+Tabel2547[[#This Row],[39]]+Tabel2547[[#This Row],[37]]+Tabel2547[[#This Row],[35]]+Tabel2547[[#This Row],[33]]+Tabel2547[[#This Row],[31]]+Tabel2547[[#This Row],[29]]+Tabel2547[[#This Row],[1]] -> 0 | BM79: =Tabel2547[[#This Row],[RGFT]]+Tabel2547[[#This Row],[RPMD]] -> 0 | BN79: 0 | BO79: Molenlanden
A80: 2.2 | C80: Vrijdag | D80: Kern Nieuw Lekkerland 2 (molenwijk) | E80: Wipmolen 2 | F80: 4 | G80: 4 | H80: 4 | BJ80: =Tabel2547[[#This Row],[52]]+Tabel2547[[#This Row],[50]]+Tabel2547[[#This Row],[48]]+Tabel2547[[#This Row],[46]]+Tabel2547[[#This Row],[44]]+Tabel2547[[#This Row],[42]]+Tabel2547[[#This Row],[40]]+Tabel2547[[#This Row],[38]]+Tabel2547[[#This Row],[36]]+Tabel2547[[#This Row],[34]]+Tabel2547[[#This Row],[32]]+Tabel2547[[#This Row],[30]]+Tabel2547[[#This Row],[28]]+Tabel2547[[#This Row],[26]]+Tabel2547[[#This Row],[24]]+Tabel2547[[#This Row],[22]]+Tabel2547[[#This Row],[20]]+Tabel2547[[#This Row],[18]]+Tabel2547[[#This Row],[16]]+Tabel2547[[#This Row],[14]]+Tabel2547[[#This Row],[12]]+Tabel2547[[#This Row],[10]]+Tabel2547[[#This Row],[8]]+Tabel2547[[#This Row],[6]]+Tabel2547[[#This Row],[4]]+Tabel2547[[#This Row],[2]] -> 0 | BL80: =Tabel2547[[#This Row],[51]]+Tabel2547[[#This Row],[49]]+Tabel2547[[#This Row],[47]]+Tabel2547[[#This Row],[45]]+Tabel2547[[#This Row],[43]]+Tabel2547[[#This Row],[41]]+Tabel2547[[#This Row],[39]]+Tabel2547[[#This Row],[37]]+Tabel2547[[#This Row],[35]]+Tabel2547[[#This Row],[33]]+Tabel2547[[#This Row],[31]]+Tabel2547[[#This Row],[29]]+Tabel2547[[#This Row],[27]]+Tabel2547[[#This Row],[25]]+Tabel2547[[#This Row],[23]]+Tabel2547[[#This Row],[21]]+Tabel2547[[#This Row],[19]]+Tabel2547[[#This Row],[17]]+Tabel2547[[#This Row],[15]]+Tabel2547[[#This Row],[13]]+Tabel2547[[#This Row],[11]]+Tabel2547[[#This Row],[9]]+Tabel2547[[#This Row],[7]]+Tabel2547[[#This Row],[5]]+Tabel2547[[#This Row],[3]]+Tabel2547[[#This Row],[1]] -> 0 | BM80: =Tabel2547[[#This Row],[RGFT]]+Tabel2547[[#This Row],[RPMD]] -> 0 | BN80: 0 | BO80: Molenlanden
A81: 3.1 | C81: Vrijdag | D81: Kern Groot Ammers nieuw bouw | F81: 6 | G81: 5 | H81: 6 | Q81: 9 | W81: 15 | BI81: =Tabel2547[[#This Row],[52]]+Tabel2547[[#This Row],[50]]+Tabel2547[[#This Row],[48]]+Tabel2547[[#This Row],[46]]+Tabel2547[[#This Row],[44]]+Tabel2547[[#This Row],[42]]+Tabel2547[[#This Row],[40]]+Tabel2547[[#This Row],[38]]+Tabel2547[[#This Row],[36]]+Tabel2547[[#This Row],[34]]+Tabel2547[[#This Row],[32]]+Tabel2547[[#This Row],[30]]+Tabel2547[[#This Row],[28]]+Tabel2547[[#This Row],[26]]+Tabel2547[[#This Row],[24]]+Tabel2547[[#This Row],[22]]+Tabel2547[[#This Row],[20]]+Tabel2547[[#This Row],[18]]+Tabel2547[[#This Row],[16]]+Tabel2547[[#This Row],[14]]+Tabel2547[[#This Row],[12]]+Tabel2547[[#This Row],[10]]+Tabel2547[[#This Row],[8]]+Tabel2547[[#This Row],[6]]+Tabel2547[[#This Row],[4]]+Tabel2547[[#This Row],[2]] -> 0 | BK81: =Tabel2547[[#This Row],[51]]+Tabel2547[[#This Row],[49]]+Tabel2547[[#This Row],[47]]+Tabel2547[[#This Row],[45]]+Tabel2547[[#This Row],[43]]+Tabel2547[[#This Row],[41]]+Tabel2547[[#This Row],[39]]+Tabel2547[[#This Row],[37]]+Tabel2547[[#This Row],[35]]+Tabel2547[[#This Row],[33]]+Tabel2547[[#This Row],[31]]+Tabel2547[[#This Row],[29]]+Tabel2547[[#This Row],[27]]+Tabel2547[[#This Row],[25]]+Tabel2547[[#This Row],[23]]+Tabel2547[[#This Row],[21]]+Tabel2547[[#This Row],[19]]+Tabel2547[[#This Row],[17]]+Tabel2547[[#This Row],[15]]+Tabel2547[[#This Row],[13]]+Tabel2547[[#This Row],[11]]+Tabel2547[[#This Row],[9]]+Tabel2547[[#This Row],[7]]+Tabel2547[[#This Row],[5]]+Tabel2547[[#This Row],[3]]+Tabel2547[[#This Row],[1]] -> 24 | BM81: =Tabel2547[[#This Row],[RGFT]]+Tabel2547[[#This Row],[RPMD]] -> 24 | BN81: 34 | BO81: Molenlanden
A82: 3.1 | C82: Vrijdag | D82: Kern Groot Ammers nieuw bouw | E82: Beatrixstraat 2 | F82: 6 | G82: 5 | H82: 6 | Q82: 8 | W82: 26 | BJ82: =Tabel2547[[#This Row],[52]]+Tabel2547[[#This Row],[50]]+Tabel2547[[#This Row],[48]]+Tabel2547[[#This Row],[46]]+Tabel2547[[#This Row],[44]]+Tabel2547[[#This Row],[42]]+Tabel2547[[#This Row],[40]]+Tabel2547[[#This Row],[38]]+Tabel2547[[#This Row],[36]]+Tabel2547[[#This Row],[34]]+Tabel2547[[#This Row],[32]]+Tabel2547[[#This Row],[30]]+Tabel2547[[#This Row],[28]]+Tabel2547[[#This Row],[26]]+Tabel2547[[#This Row],[24]]+Tabel2547[[#This Row],[22]]+Tabel2547[[#This Row],[20]]+Tabel2547[[#This Row],[18]]+Tabel2547[[#This Row],[16]]+Tabel2547[[#This Row],[14]]+Tabel2547[[#This Row],[12]]+Tabel2547[[#This Row],[10]]+Tabel2547[[#This Row],[8]]+Tabel2547[[#This Row],[6]]+Tabel2547[[#This Row],[4]]+Tabel2547[[#This Row],[2]] -> 0 | BL82: =Tabel2547[[#This Row],[51]]+Tabel2547[[#This Row],[49]]+Tabel2547[[#This Row],[47]]+Tabel2547[[#This Row],[45]]+Tabel2547[[#This Row],[43]]+Tabel2547[[#This Row],[41]]+Tabel2547[[#This Row],[39]]+Tabel2547[[#This Row],[37]]+Tabel2547[[#This Row],[35]]+Tabel2547[[#This Row],[33]]+Tabel2547[[#This Row],[31]]+Tabel2547[[#This Row],[29]]+Tabel2547[[#This Row],[27]]+Tabel2547[[#This Row],[25]]+Tabel2547[[#This Row],[23]]+Tabel2547[[#This Row],[21]]+Tabel2547[[#This Row],[19]]+Tabel2547[[#This Row],[17]]+Tabel2547[[#This Row],[15]]+Tabel2547[[#This Row],[13]]+Tabel2547[[#This Row],[11]]+Tabel2547[[#This Row],[9]]+Tabel2547[[#This Row],[7]]+Tabel2547[[#This Row],[5]]+Tabel2547[[#This Row],[3]]+Tabel2547[[#This Row],[1]] -> 34 | BM82: =Tabel2547[[#This Row],[RGFT]]+Tabel2547[[#This Row],[RPMD]] -> 0 | BN82: 0 | BO82: Molenlanden
A83: 3.2 | C83: Vrijdag | D83: Kern Groot Ammers Oude bouw | F83: 3 | G83: 3 | H83: 4 | V83: 6 | BI83: =Tabel2547[[#This Row],[52]]+Tabel2547[[#This Row],[50]]+Tabel2547[[#This Row],[48]]+Tabel2547[[#This Row],[46]]+Tabel2547[[#This Row],[44]]+Tabel2547[[#This Row],[42]]+Tabel2547[[#This Row],[40]]+Tabel2547[[#This Row],[38]]+Tabel2547[[#This Row],[36]]+Tabel2547[[#This Row],[34]]+Tabel2547[[#This Row],[32]]+Tabel2547[[#This Row],[30]]+Tabel2547[[#This Row],[28]]+Tabel2547[[#This Row],[26]]+Tabel2547[[#This Row],[24]]+Tabel2547[[#This Row],[22]]+Tabel2547[[#This Row],[20]]+Tabel2547[[#This Row],[18]]+Tabel2547[[#This Row],[16]]+Tabel2547[[#This Row],[14]]+Tabel2547[[#This Row],[12]]+Tabel2547[[#This Row],[10]]+Tabel2547[[#This Row],[8]]+Tabel2547[[#This Row],[6]]+Tabel2547[[#This Row],[4]]+Tabel2547[[#This Row],[2]] -> 6 | BK83: =Tabel2547[[#This Row],[51]]+Tabel2547[[#This Row],[49]]+Tabel2547[[#This Row],[47]]+Tabel2547[[#This Row],[45]]+Tabel2547[[#This Row],[43]]+Tabel2547[[#This Row],[41]]+Tabel2547[[#This Row],[39]]+Tabel2547[[#This Row],[37]]+Tabel2547[[#This Row],[35]]+Tabel2547[[#This Row],[33]]+Tabel2547[[#This Row],[31]]+Tabel2547[[#This Row],[29]]+Tabel2547[[#This Row],[27]]+Tabel2547[[#This Row],[25]]+Tabel2547[[#This Row],[23]]+Tabel2547[[#This Row],[21]]+Tabel2547[[#This Row],[19]]+Tabel2547[[#This Row],[17]]+Tabel2547[[#This Row],[15]]+Tabel2547[[#This Row],[13]]+Tabel2547[[#This Row],[11]]+Tabel2547[[#This Row],[9]]+Tabel2547[[#This Row],[7]]+Tabel2547[[#This Row],[5]]+Tabel2547[[#This Row],[3]]+Tabel2547[[#This Row],[1]] -> 0 | BM83: =Tabel2547[[#This Row],[RGFT]]+Tabel2547[[#This Row],[RPMD]] -> 6 | BN83: 8 | BO83: Molenlanden
A84: 3.2 | C84: Vrijdag | D84: Kern Groot Ammers Oude bouw | F84: 3 | G84: 3 | H84: 4 | V84: 8 | BJ84: =Tabel2547[[#This Row],[52]]+Tabel2547[[#This Row],[50]]+Tabel2547[[#This Row],[48]]+Tabel2547[[#This Row],[46]]+Tabel2547[[#This Row],[44]]+Tabel2547[[#This Row],[42]]+Tabel2547[[#This Row],[40]]+Tabel2547[[#This Row],[38]]+Tabel2547[[#This Row],[36]]+Tabel2547[[#This Row],[34]]+Tabel2547[[#This Row],[32]]+Tabel2547[[#This Row],[30]]+Tabel2547[[#This Row],[28]]+Tabel2547[[#This Row],[26]]+Tabel2547[[#This Row],[24]]+Tabel2547[[#This Row],[22]]+Tabel2547[[#This Row],[20]]+Tabel2547[[#This Row],[18]]+Tabel2547[[#This Row],[16]]+Tabel2547[[#This Row],[14]]+Tabel2547[[#This Row],[12]]+Tabel2547[[#This Row],[10]]+Tabel2547[[#This Row],[8]]+Tabel2547[[#This Row],[6]]+Tabel2547[[#This Row],[4]]+Tabel2547[[#This Row],[2]] -> 8 | BL84: =Tabel2547[[#This Row],[51]]+Tabel2547[[#This Row],[49]]+Tabel2547[[#This Row],[47]]+Tabel2547[[#This Row],[45]]+Tabel2547[[#This Row],[43]]+Tabel2547[[#This Row],[41]]+Tabel2547[[#This Row],[39]]+Tabel2547[[#This Row],[37]]+Tabel2547[[#This Row],[35]]+Tabel2547[[#This Row],[33]]+Tabel2547[[#This Row],[31]]+Tabel2547[[#This Row],[29]]+Tabel2547[[#This Row],[27]]+Tabel2547[[#This Row],[25]]+Tabel2547[[#This Row],[23]]+Tabel2547[[#This Row],[21]]+Tabel2547[[#This Row],[19]]+Tabel2547[[#This Row],[17]]+Tabel2547[[#This Row],[15]]+Tabel2547[[#This Row],[13]]+Tabel2547[[#This Row],[11]]+Tabel2547[[#This Row],[9]]+Tabel2547[[#This Row],[7]]+Tabel2547[[#This Row],[5]]+Tabel2547[[#This Row],[3]]+Tabel2547[[#This Row],[1]] -> 0 | BM84: =Tabel2547[[#This Row],[RGFT]]+Tabel2547[[#This Row],[RPMD]] -> 0 | BN84: 0 | BO84: Molenlanden
BM85: =Tabel2547[[#This Row],[RGFT]]+Tabel2547[[#This Row],[RPMD]] -> 0 | BN85: 0
BM86: =Tabel2547[[#This Row],[RGFT]]+Tabel2547[[#This Row],[RPMD]] -> 0 | BN86: 0
BM87: =SUBTOTAL(109,BM3:BM86) -> 1069 | BN87: =SUBTOTAL(109,BN3:BN86) -> 2192
BG88: =SUBTOTAL(109,Tabel2547[51]) -> 0 | BH88: =SUBTOTAL(109,Tabel2547[52]) -> 0 | BI88: =SUM(BI3:BI87) -> 219 | BJ88: =SUM(BJ3:BJ87) -> 872 | BK88: =SUM(BK3:BK87) -> 850 | BL88: =SUM(BL3:BL87) -> 1320

Sheet Adressen 2024
A1: Naam | B1: Dag | C1: Controle wijk | D1: Route | E1: Week | F1: Label | G1: Postcode | H1: Nummer | I1: Woonplaats | J1: Aangetroffen | K1: Aangetroffen 2 | L1: Aangetroffen 3
A2: Daan | B2: Maandag | C2: 1= Nieuwland en 2 = Leerbroek binnen en Leerdam | E2: 19 | F2: r | G2: 4243 gc | H2: 17 | I2: Leerdam
A3: Daan | B3: Maandag | C3: 1= Nieuwland en 2 = Leerbroek binnen en Leerdam | E3: 19 | F3: r | G3: 4143 gb | H3: 90 | I3: Leerdam
A4: Daan | B4: Maandag | C4: 1= Nieuwland en 2 = Leerbroek binnen en Leerdam | E4: 19 | F4: r | G4: 4143 gx | H4: ? | I4: Leerdam
A5: Daan | B5: Maandag | C5: 1= Nieuwland en 2 = Leerbroek binnen en Leerdam | E5: 19 | F5: r | G5: 4143 gx | H5: 12 | I5: Leerdam
A6: Daan | B6: Maandag | C6: 1= Nieuwland en 2 = Leerbroek binnen en Leerdam | E6: 19 | F6: r | G6: 4143 gd | H6: 136 | I6: Leerdam
A7: Daan | B7: Maandag | C7: 1= Nieuwland en 2 = Leerbroek binnen en Leerdam | E7: 19 | F7: r | G7: 4143 gd | H7: 142 | I7: Leerdam
A8: Daan | B8: Maandag | C8: 1= Nieuwland en 2 = Leerbroek binnen en Leerdam | E8: 19 | F8: r | G8: 4143 gj | H8: 3 | I8: Leerdam
A9: Daan | B9: Maandag | C9: 1= Nieuwland en 2 = Leerbroek binnen en Leerdam | E9: 19 | F9: r | G9: 4143 gc | H9: ? | I9: Leerdam
A10: Daan | B10: Maandag | C10: 1= Nieuwland en 2 = Leerbroek binnen en Leerdam | E10: 19 | F10: r | G10: 4142 rl | H10: 13 | I10: Leerdam
A11: Daan | B11: Maandag | C11: 1= Nieuwland en 2 = Leerbroek binnen en Leerdam | E11: 19 | F11: r | G11: 4142 ra | H11: 7 | I11: Leerdam
A12: Daan | B12: Maandag | C12: 1= Nieuwland en 2 = Leerbroek binnen en Leerdam | E12: 19 | F12: r | G12: 4245 lc | H12: 42 | I12: leerbroek
A13: Daan | B13: Maandag | C13: 1= Nieuwland en 2 = Leerbroek binnen en Leerdam | E13: 19 | F13: r | G13: 4245 kz | H13: 4 | I13: leerbroek
A14: Daan | B14: Maandag | C14: 1= Nieuwland en 2 = Leerbroek binnen en Leerdam | E14: 19 | F14: r | G14: 4245 kg | H14: 31 | I14: leerbroek
A15: Daan | B15: Maandag | C15: 1= Nieuwland en 2 = Leerbroek binnen en Leerdam | E15: 19 | F15: r | G15: 4245 kg | H15: 67 | I15: leerbroek
A16: Daan | B16: Maandag | C16: 1= Nieuwland en 2 = Leerbroek binnen en Leerdam | E16: 19 | F16: r | G16: 4245 kc | H16: ? | I16: leerbroek
A17: Daan | B17: Maandag | C17: 1= Nieuwland en 2 = Leerbroek binnen en Leerdam | E17: 19 | F17: r | G17: 4245 kd | H17: 14 | I17: leerbroek
A18: Daan | B18: Maandag | C18: 1= Nieuwland en 2 = Leerbroek binnen en Leerdam | E18: 19 | F18: r | G18: 4245 kk | H18: 6 | I18: leerbroek
A19: Daan | B19: Maandag | C19: 1= Nieuwland en 2 = Leerbroek binnen en Leerdam | E19: 19 | F19: r | G19: 4245 km | H19: 3 | I19: leerbroek
A20: Daan | B20: Maandag | C20: 1= Nieuwland en 2 = Leerbroek binnen en Leerdam | E20: 19 | F20: r | G20: 4243 jj | H20: 14 | I20: nieuwland
A21: Daan | B21: Maandag | C21: 1= Nieuwland en 2 = Leerbroek binnen en Leerdam | E21: 19 | F21: r | G21: 4243 jj | H21: ? | I21: nieuwland
A22: Daan | B22: Maandag | C22: 1= Nieuwland en 2 = Leerbroek binnen en Leerdam | E22: 19 | F22: r | G22: 4243 jx | H22: 29 | I22: nieuwland
A23: Daan | B23: Maandag | C23: 1= Nieuwland en 2 = Leerbroek binnen en Leerdam | E23: 19 | F23: r | G23: 4243 jv | H23: 25 | I23: nieuwland
A24: Daan | B24: Maandag | C24: 1= Nieuwland en 2 = Leerbroek binnen en Leerdam | E24: 19 | F24: r | G24: 4243 jx | H24: 6 | I24: nieuwland
A25: Daan | B25: Maandag | C25: 1= Nieuwland en 2 = Leerbroek binnen en Leerdam | E25: 19 | F25: g | G25: 4143 gg | H25: 11 | I25: Leerdam
A26: Daan | B26: Maandag | C26: 1= Nieuwland en 2 = Leerbroek binnen en Leerdam | E26: 19 | F26: g | G26: 4143 gg | H26: 2 | I26: Leerdam
A27: Daan | B27: Maandag | C27: 1= Nieuwland en 2 = Leerbroek binnen en Leerdam | E27: 19 | F27: g | G27: 4143 gb | H27: 46 | I27: Leerdam
A28: Daan | B28: Maandag | C28: 1= Nieuwland en 2 = Leerbroek binnen en Leerdam | E28: 19 | F28: g | G28: 4143 gb | H28: 60 | I28: Leerdam
A29: Daan | B29: Maandag | C29: 1= Nieuwland en 2 = Leerbroek binnen en Leerdam | E29: 19 | F29: g | G29: 4143 gb | H29: ? | I29: Leerdam
A30: Daan | B30: Maandag | C30: 1= Nieuwland en 2 = Leerbroek binnen en Leerdam | E30: 19 | F30: g | G30: 4143 gd | H30: 176 | I30: Leerdam
A31: Daan | B31: Maandag | C31: 1= Nieuwland en 2 = Leerbroek binnen en Leerdam | E31: 19 | F31: g | G31: 4143 gd | H31: 172 | I31: Leerdam
A32: Daan | B32: Maandag | C32: 1= Nieuwland en 2 = Leerbroek binnen en Leerdam | E32: 19 | F32: g | G32: 4143 gd | H32: 160 | I32: Leerdam
A33: Daan | B33: Maandag | C33: 1= Nieuwland en 2 = Leerbroek binnen en Leerdam | E33: 19 | F33: g | G33: 4143 gd | H33: 74 | I33: Leerdam
A34: Daan | B34: Maandag | C34: 1= Nieuwland en 2 = Leerbroek binnen en Leerdam | E34: 19 | F34: g | G34: 4143 gc | H34: 35 | I34: Leerdam
A35: Daan | B35: Maandag | C35: 1= Nieuwland en 2 = Leerbroek binnen en Leerdam | E35: 19 | F35: g | G35: 4143 gj | H35: 11 | I35: Leerdam
A36: Daan | B36: Maandag | C36: 1= Nieuwland en 2 = Leerbroek binnen en Leerdam | E36: 19 | F36: g | G36: 4143 gj | H36: 5 | I36: Leerdam
A37: Daan | B37: Maandag | C37: 1= Nieuwland en 2 = Leerbroek binnen en Leerdam | E37: 19 | F37: g | G37: 4143 rg | H37: 7 | I37: Leerdam
A38: Daan | B38: Maandag | C38: 1= Nieuwland en 2 = Leerbroek binnen en Leerdam | E38: 19 | F38: g | G38: 4143 re | H38: 31 | I38: Leerdam
A39: Daan | B39: Maandag | C39: 1= Nieuwland en 2 = Leerbroek binnen en Leerdam | E39: 19 | F39: g | G39: 4142 re | H39: 33 | I39: Leerdam
A40: Daan | B40: Maandag | C40: 1= Nieuwland en 2 = Leerbroek binnen en Leerdam | E40: 19 | F40: g | G40: 4142 rl | H40: 16 | I40: Leerdam
A41: Daan | B41: Maandag | C41: 1= Nieuwland en 2 = Leerbroek binnen en Leerdam | E41: 19 | F41: g | G41: 4142 rg | H41: 12 | I41: Leerdam
A42: Daan | B42: Maandag | C42: 1= Nieuwland en 2 = Leerbroek binnen en Leerdam | E42: 19 | F42: g | G42: 4245 la | H42: 2d | I42: leerbroek
A43: Daan | B43: Maandag | C43: 1= Nieuwland en 2 = Leerbroek binnen en Leerdam | E43: 19 | F43: g | G43: 4245 kg | H43: 69 | I43: leerbroek
A44: Daan | B44: Maandag | C44: 1= Nieuwland en 2 = Leerbroek binnen en Leerdam | E44: 19 | F44: g | G44: 4245 kg | H44: 30 | I44: leerbroek
A45: Daan | B45: Maandag | C45: 1= Nieuwland en 2 = Leerbroek binnen en Leerdam | E45: 19 | F45: g | G45: 4245 kg | H45: 45 | I45: leerbroek
A46: Daan | B46: Maandag | C46: 1= Nieuwland en 2 = Leerbroek binnen en Leerdam | E46: 19 | F46: g | G46: 4245 kd | H46: 18 | I46: leerbroek
A47: Daan | B47: Maandag | C47: 1= Nieuwland en 2 = Leerbroek binnen en Leerdam | E47: 19 | F47: g | G47: 4245 kg | H47: ? | I47: leerbroek
A48: Daan | B48: Maandag | C48: 1= Nieuwland en 2 = Leerbroek binnen en Leerdam | E48: 19 | F48: g | G48: 4243 jk | H48: ? | I48: nieuwland
A49: Daan | B49: Maandag | C49: 1= Nieuwland en 2 = Leerbroek binnen en Leerdam | E49: 19 | F49: g | G49: 4243 jk | H49: ? | I49: nieuwland
A50: Daan | B50: Maandag | C50: 1= Nieuwland en 2 = Leerbroek binnen en Leerdam | E50: 19 | F50: g | G50: 4243 jv | H50: 2 | I50: nieuwland
A51: Daan | B51: Maandag | C51: 1= Nieuwland en 2 = Leerbroek binnen en Leerdam | E51: 19 | F51: g | G51: 4243 jx | H51: 31 | I51: nieuwland
A52: Daan | B52: Dinsdag | C52: Haarwijk 1 - Haarwijk 2 helpen | E52: 19 | F52: r | G52: 4205 gl/gk | H52: ? | I52: Gorinchem
A53: Daan | B53: Dinsdag | C53: Haarwijk 1 - Haarwijk 2 helpen | E53: 19 | F53: r | G53: 4205 gv | H53: 16 | I53: Gorinchem
A54: Daan | B54: Dinsdag | C54: Haarwijk 1 - Haarwijk 2 helpen | E54: 19 | F54: r | G54: 4205 gk | H54: 37 | I54: Gorinchem
A55: Daan | B55: Dinsdag | C55: Haarwijk 1 - Haarwijk 2 helpen | E55: 19 | F55: r | G55: 4205 gl | H55: 32 | I55: Gorinchem
A56: Daan | B56: Dinsdag | C56: Haarwijk 1 - Haarwijk 2 helpen | E56: 19 | F56: r | G56: 4205 gk | H56: 13 | I56: Gorinchem
A57: Daan | B57: Dinsdag | C57: Haarwijk 1 - Haarwijk 2 helpen | E57: 19 | F57: r | G57: 4205 gk | H57: 7 | I57: Gorinchem
A58: Daan | B58: Dinsdag | C58: Haarwijk 1 - Haarwijk 2 helpen | E58: 19 | F58: r | G58: 4205 gl | H58: 4 | I58: Gorinchem
A59: Daan | B59: Dinsdag | C59: Haarwijk 1 - Haarwijk 2 helpen | E59: 19 | F59: r | G59: 4205 gl | H59: ? | I59: Gorinchem
A60: Daan | B60: Dinsdag | C60: Haarwijk 1 - Haarwijk 2 helpen | E60: 19 | F60: r | G60: 4205 gj | H60: 8 | I60: Gorinchem
A61: Daan | B61: Dinsdag | C61: Haarwijk 1 - Haarwijk 2 helpen | E61: 19 | F61: r | G61: 4205 gj | H61: 6 | I61: Gorinchem
A62: Daan | B62: Dinsdag | C62: Haarwijk 1 - Haarwijk 2 helpen | E62: 19 | F62: r | G62: 4205 gj | H62: 14 | I62: Gorinchem
A63: Daan | B63: Dinsdag | C63: Haarwijk 1 - Haarwijk 2 helpen | E63: 19 | F63: r | G63: 4205 gz | H63: ? | I63: Gorinchem
A64: Daan | B64: Dinsdag | C64: Haarwijk 1 - Haarwijk 2 helpen | E64: 19 | F64: r | G64: 4205 gv | H64: 49 | I64: Gorinchem
A65: Daan | B65: Dinsdag | C65: Haarwijk 1 - Haarwijk 2 helpen | E65: 19 | F65: r | G65: 4205 gx | H65: 2 | I65: Gorinchem
A66: Daan | B66: Dinsdag | C66: Haarwijk 1 - Haarwijk 2 helpen | E66: 19 | F66: r | G66: 4205 gz | H66: 6 | I66: Gorinchem
A67: Daan | B67: Dinsdag | C67: Haarwijk 1 - Haarwijk 2 helpen | E67: 19 | F67: r | G67: 4205 gz | H67: ? | I67: Gorinchem
A68: Daan | B68: Dinsdag | C68: Haarwijk 1 - Haarwijk 2 helpen | E68: 19 | F68: r | G68: 4205 gz | H68: 8 | I68: Gorinchem
A69: Daan | B69: Dinsdag | C69: Haarwijk 1 - Haarwijk 2 helpen | E69: 19 | F69: r | G69: 4205 gz | H69: 19 | I69: Gorinchem
A70: Daan | B70: Dinsdag | C70: Haarwijk 1 - Haarwijk 2 helpen | E70: 19 | F70: r | G70: 4205 gz | H70: 21 | I70: Gorinchem
A71: Daan | B71: Dinsdag | C71: Haarwijk 1 - Haarwijk 2 helpen | E71: 19 | F71: r | G71: 4205 zd | H71: ? | I71: Gorinchem
A72: Daan | B72: Dinsdag | C72: Haarwijk 1 - Haarwijk 2 helpen | E72: 19 | F72: r | G72: 4205 zd | H72: 31 | I72: Gorinchem
A73: Daan | B73: Dinsdag | C73: Haarwijk 1 - Haarwijk 2 helpen | E73: 19 | F73: r | G73: 4205 zd | H73: ? | I73: Gorinchem
A74: Daan | B74: Dinsdag | C74: Haarwijk 1 - Haarwijk 2 helpen | E74: 19 | F74: r | G74: 4205 za | H74: 3a | I74: Gorinchem
A75: Daan | B75: Dinsdag | C75: Hoogblokland Binnen | E75: 19 | F75: r | G75: 4221 lx | H75: 8 | I75: Hoogblokland
A76: Daan | B76: Dinsdag | C76: Hoogblokland Binnen | E76: 19 | F76: r | G76: 4221 lw | H76: ? | I76: Hoogblokland
A77: Daan | B77: Dinsdag | C77: Hoogblokland Binnen | E77: 19 | F77: r | G77: 4221 lw | H77: ? | I77: Hoogblokland
A78: Daan | B78: Dinsdag | C78: Hoogblokland Binnen | E78: 19 | F78: r | G78: 4221 lw | H78: ? | I78: Hoogblokland
A79: Daan | B79: Dinsdag | C79: Hoogblokland Binnen | E79: 19 | F79: r | G79: 4221 lw | H79: 19 | I79: Hoogblokland
A80: Daan | B80: Dinsdag | C80: Hoogblokland Binnen | E80: 19 | F80: r | G80: 4221 lx | H80: 20 | I80: Hoogblokland
A81: Daan | B81: Dinsdag | C81: Hoogblokland Binnen | E81: 19 | F81: r | G81: 4221 lx | H81: 16 | I81: Hoogblokland
A82: Daan | B82: Dinsdag | C82: Hoogblokland Binnen | E82: 19 | F82: r | G82: 4221 ls | H82: ? | I82: Hoogblokland
A83: Daan | B83: Dinsdag | C83: Hoogblokland Binnen | E83: 19 | F83: r | G83: 4221 ls | H83: ? | I83: Hoogblokland
A84: Daan | B84: Dinsdag | C84: Hoogblokland Binnen | E84: 19 | F84: r | G84: 4221 ls | H84: 9 | I84: Hoogblokland
A85: Daan | B85: Dinsdag | C85: Hoogblokland Binnen | E85: 19 | F85: r | G85: 4221 lp | H85: 10 | I85: Hoogblokland
A86: Daan | B86: Dinsdag | C86: Hoogblokland Binnen | E86: 19 | F86: r | G86: 4221 lr | H86: ? | I86: Hoogblokland
A87: Daan | B87: Dinsdag | C87: Hoogblokland Binnen | E87: 19 | F87: r | G87: 4221 lr | H87: ? | I87: Hoogblokland
A88: Daan | B88: Dinsdag | C88: Hoogblokland Binnen | E88: 19 | F88: r | G88: 4221 la | H88: ? | I88: Hoogblokland
A89: Daan | B89: Dinsdag | C89: Hoogblokland Binnen | E89: 19 | F89: r | G89: 4221 la | H89: 12 | I89: Hoogblokland
A90: Daan | B90: Dinsdag | C90: Hoogblokland Binnen | E90: 19 | F90: r | G90: 4221 la | H90: 28 | I90: Hoogblokland
A91: Daan | B91: Dinsdag | C91: Hoogblokland Binnen | E91: 19 | F91: r | G91: 4221 lm | H91: 14 | I91: Hoogblokland
A92: Daan | B92: Dinsdag | C92: Hoogblokland Binnen | E92: 19 | F92: r | G92: 4221 ls | H92: 17 | I92: Hoogblokland
A93: Daan | B93: Dinsdag | C93: Hoogblokland Binnen | E93: 19 | F93: r | G93: 4221 ls | H93: 27 | I93: Hoogblokland
A94: Daan | B94: Dinsdag | C94: Hoogblokland Binnen | E94: 19 | F94: r | G94: 4221 lp | H94: 28 | I94: Hoogblokland
A95: Daan | B95: Dinsdag | C95: Hoogblokland Binnen | E95: 19 | F95: r | G95: 4221 lp | H95: 26 | I95: Hoogblokland
A96: Daan | B96: Dinsdag | C96: Hoogblokland Binnen | E96: 19 | F96: r | G96: 4221 lp | H96: 30 | I96: Hoogblokland
A97: Daan | B97: Dinsdag | C97: Haarwijk 1 - Haarwijk 2 helpen | E97: 19 | F97: g | G97: 4205 gl | H97: ? | I97: Gorinchem
A98: Daan | B98: Dinsdag | C98: Haarwijk 1 - Haarwijk 2 helpen | E98: 19 | F98: g | G98: 4205 gl | H98: ? | I98: Gorinchem
A99: Daan | B99: Dinsdag | C99: Haarwijk 1 - Haarwijk 2 helpen | E99: 19 | F99: g | G99: 4205 zc | H99: 27 | I99: Gorinchem
A100: Daan | B100: Dinsdag | C100: Haarwijk 1 - Haarwijk 2 helpen | E100: 19 | F100: g | G100: 4205 za | H100: 13 | I100: Gorinchem
A101: Daan | B101: Dinsdag | C101: Hoogblokland Binnen | E101: 19 | F101: g | G101: 4221 lz | H101: 3 | I101: Hoogblokland
A102: Daan | B102: Dinsdag | C102: Hoogblokland Binnen | E102: 19 | F102: g | G102: 4221 lw | H102: 1 | I102: Hoogblokland
A103: Daan | B103: Dinsdag | C103: Hoogblokland Binnen | E103: 19 | F103: g | G103: 4221 lw | H103: 39 | I103: Hoogblokland
A104: Daan | B104: Dinsdag | C104: Hoogblokland Binnen | E104: 19 | F104: g | G104: 4221 la | H104: 1 | I104: Hoogblokland
A105: Daan | B105: Dinsdag | C105: Hoogblokland Binnen | E105: 19 | F105: g | G105: 4221 kd | H105: 13 | I105: Hoogblokland
A106: Daan | B106: Dinsdag | C106: Hoogblokland Binnen | E106: 19 | F106: g | G106: 4221 ln | H106: 9 | I106: Hoogblokland
A107: Daan | B107: Dinsdag | C107: Hoogblokland Binnen | E107: 19 | F107: g | G107: 4221 la | H107: 52 | I107: Hoogblokland
A108: Daan | B108: Dinsdag | C108: Hoogblokland Binnen | E108: 19 | F108: g | G108: 4221 la | H108: 16 | I108: Hoogblokland
A109: Daan | B109: Dinsdag | C109: Hoogblokland Binnen | E109: 19 | F109: g | G109: 4221 ln | H109: 31 | I109: Hoogblokland
A110: Daan | B110: Dinsdag | C110: Hoogblokland Binnen | E110: 19 | F110: g | G110: 4221 lm | H110: ? | I110: Hoogblokland
A111: Nico | B111: Maandag | C111: 1=Lexmond, 2=Hei en Boeicop binnen | E111: 19 | F111: r | G111: 4128 cd | H111: 36 | I111: Lexmond
A112: Nico | B112: Maandag | C112: 1=Lexmond, 2=Hei en Boeicop binnen | E112: 19 | F112: r | G112: 4128 cc | H112: 16 | I112: Lexmond
A113: Nico | B113: Maandag | C113: 1=Lexmond, 2=Hei en Boeicop binnen | E113: 19 | F113: r | G113: 4128 cc | H113: 14 | I113: Lexmond
A114: Nico | B114: Maandag | C114: 1=Lexmond, 2=Hei en Boeicop binnen | E114: 19 | F114: r | G114: 4128 cd | H114: 18 | I114: Lexmond
A115: Nico | B115: Maandag | C115: 1=Lexmond, 2=Hei en Boeicop binnen | E115: 19 | F115: r | G115: 4128 ck | H115: 9 | I115: Lexmond
A116: Nico | B116: Maandag | C116: 1=Lexmond, 2=Hei en Boeicop binnen | E116: 19 | F116: r | G116: 4128 st | H116: 3 | I116: Lexmond
A117: Nico | B117: Maandag | C117: 1=Lexmond, 2=Hei en Boeicop binnen | E117: 19 | F117: r | G117: 4128 bw | H117: 71 | I117: Lexmond
A118: Nico | B118: Maandag | C118: 1=Lexmond, 2=Hei en Boeicop binnen | E118: 19 | F118: r | G118: 4128 st | H118: 15 | I118: Lexmond
A119: Nico | B119: Maandag | C119: 1=Lexmond, 2=Hei en Boeicop binnen | E119: 19 | F119: r | G119: 4128 sw | H119: 11 | I119: Lexmond
A120: Nico | B120: Maandag | C120: 1=Lexmond, 2=Hei en Boeicop binnen | E120: 19 | F120: r | G120: 4128 aa | H120: 2 | I120: Lexmond
A121: Nico | B121: Maandag | C121: 1=Lexmond, 2=Hei en Boeicop binnen | E121: 19 | F121: r | G121: 4128 ca | H121: ? | I121: Lexmond
A122: Nico | B122: Maandag | C122: 1=Lexmond, 2=Hei en Boeicop binnen | E122: 19 | F122: r | G122: 4126 rs | H122: 2 | I122: Hei en Boeicop
A123: Nico | B123: Maandag | C123: 1=Lexmond, 2=Hei en Boeicop binnen | E123: 19 | F123: r | G123: 4126 rv | H123: 11 | I123: Hei en Boeicop
A124: Nico | B124: Maandag | C124: 1=Lexmond, 2=Hei en Boeicop binnen | E124: 19 | F124: r | G124: 4126 rt | H124: 9 | I124: Hei en Boeicop
A125: Nico | B125: Maandag | C125: Schoonrewoerd binnen | E125: 19 | F125: r | G125: 4145 nd | H125: 17 | I125: Schoonrewoerd
A126: Nico | B126: Maandag | C126: Schoonrewoerd binnen | E126: 19 | F126: r | G126: 4145 nd | H126: ? | I126: Schoonrewoerd
A127: Nico | B127: Maandag | C127: Schoonrewoerd binnen | E127: 19 | F127: r | G127: 4145 nt | H127: 3 | I127: Schoonrewoerd
A128: Nico | B128: Maandag | C128: Schoonrewoerd binnen | E128: 19 | F128: r | G128: 4145 ne | H128: 17 | I128: Schoonrewoerd
A129: Nico | B129: Maandag | C129: Schoonrewoerd binnen | E129: 19 | F129: r | G129: 4145 nd | H129: 24 | I129: Schoonrewoerd
A130: Nico | B130: Maandag | C130: Schoonrewoerd binnen | E130: 19 | F130: r | G130: 4145 nv | H130: 18 | I130: Schoonrewoerd
A131: Nico | B131: Maandag | C131: Schoonrewoerd binnen | E131: 19 | F131: r | G131: 4145 kj | H131: 8 | I131: Schoonrewoerd
A132: Nico | B132: Maandag | C132: Schoonrewoerd binnen | E132: 19 | F132: r | G132: 4145 kn | H132: 2 | I132: Schoonrewoerd
A133: Nico | B133: Maandag | C133: Schoonrewoerd binnen | E133: 19 | F133: r | G133: 4145 kl | H133: 19 | I133: Schoonrewoerd
A134: Nico | B134: Maandag | C134: Schoonrewoerd binnen | E134: 19 | F134: r | G134: 4145 kr | H134: 16 | I134: Schoonrewoerd
A135: Nico | B135: Maandag | C135: Schoonrewoerd binnen | E135: 19 | F135: r | G135: 4145 ka | H135: 1 | I135: Schoonrewoerd
A136: Nico | B136: Dinsdag | C136: Hoef en Haag | E136: 19 | F136: r | G136: 4125 rr | H136: 14 | I136: Hoef en Haag
A137: Nico | B137: Dinsdag | C137: Hoef en Haag | E137: 19 | F137: r | G137: 4125 sp | H137: 4 | I137: Hoef en Haag
A138: Nico | B138: Dinsdag | C138: Hoef en Haag | E138: 19 | F138: r | G138: 4125 sp | H138: 12 | I138: Hoef en Haag
A139: Nico | B139: Dinsdag | C139: Hoef en Haag | E139: 19 | F139: r | G139: 4125 sm | H139: 20 | I139: Hoef en Haag
A140: Nico | B140: Dinsdag | C140: Hoef en Haag | E140: 19 | F140: r | G140: 4125 sl | H140: 64 | I140: Hoef en Haag
A141: Nico | B141: Dinsdag | C141: Hoef en Haag | E141: 19 | F141: r | G141: 4125 sm | H141: 28 | I141: Hoef en Haag
A142: Nico | B142: Dinsdag | C142: Hoef en Haag | E142: 19 | F142: r | G142: 4125 sm | H142: 33 | I142: Hoef en Haag
A143: Nico | B143: Dinsdag | C143: Hoef en Haag | E143: 19 | F143: r | G143: 4125 sm | H143: 35 | I143: Hoef en Haag
A144: Nico | B144: Dinsdag | C144: Hoef en Haag | E144: 19 | F144: r | G144: 4125 sm | H144: 38 | I144: Hoef en Haag
A145: Nico | B145: Dinsdag | C145: Hoef en Haag | E145: 19 | F145: r | G145: 4125 sl | H145: 123 | I145: Hoef en Haag
A146: Nico | B146: Dinsdag | C146: Hoef en Haag | E146: 19 | F146: r | G146: 4125 rg | H146: 36 | I146: Hoef en Haag
A147: Nico | B147: Dinsdag | C147: Hoef en Haag | E147: 19 | F147: r | G147: 4125 rg | H147: ? | I147: Hoef en Haag
A148: Nico | B148: Dinsdag | C148: Hoef en Haag | E148: 19 | F148: r | G148: 4125 rg | H148: 69 | I148: Hoef en Haag
A149: Nico | B149: Dinsdag | C149: Hoef en Haag | E149: 19 | F149: r | G149: 4125 rg | H149: ? | I149: Hoef en Haag
A150: Nico | B150: Dinsdag | C150: Hoef en Haag | E150: 19 | F150: r | G150: 4125 rg | H150: 56 | I150: Hoef en Haag
A151: Nico | B151: Dinsdag | C151: Hoef en Haag | E151: 19 | F151: r | G151: 4125 rg | H151: 17 | I151: Hoef en Haag
A152: Nico | B152: Dinsdag | C152: Hoef en Haag | E152: 19 | F152: r | G152: 4125 rg | H152: 1 | I152: Hoef en Haag
A153: Nico | B153: Dinsdag | C153: Hoef en Haag | E153: 19 | F153: r | G153: 4125 rg | H153: 1F | I153: Hoef en Haag
A154: Nico | B154: Dinsdag | C154: Hoef en Haag | E154: 19 | F154: r | G154: 4125 rg | H154: 11 | I154: Hoef en Haag
A155: Nico | B155: Dinsdag | C155: Hoef en Haag | E155: 19 | F155: r | G155: 4125 rd | H155: 8 | I155: Hoef en Haag
A156: Nico | B156: Dinsdag | C156: Hoef en Haag | E156: 19 | F156: r | G156: 4125 rd | H156: 11 | I156: Hoef en Haag
A157: Nico | B157: Dinsdag | C157: Hoef en Haag | E157: 19 | F157: r | G157: 4125 rj | H157: 2 | I157: Hoef en Haag
A158: Nico | B158: Dinsdag | C158: Hoef en Haag | E158: 19 | F158: r | G158: 4125 re | H158: 2 | I158: Hoef en Haag
A159: Nico | B159: Dinsdag | C159: Hoef en Haag | E159: 19 | F159: r | G159: 4125 re | H159: 6 | I159: Hoef en Haag
A160: Nico | B160: Dinsdag | C160: Hoef en Haag | E160: 19 | F160: r | G160: 4125 rj | H160: 16 | I160: Hoef en Haag
A161: Nico | B161: Dinsdag | C161: Hoef en Haag | E161: 19 | F161: r | G161: 4125 rj | H161: 20 | I161: Hoef en Haag
A162: Nico | B162: Dinsdag | C162: Hoef en Haag | E162: 19 | F162: r | G162: 4125 rj | H162: 8 | I162: Hoef en Haag
A163: Nico | B163: Dinsdag | C163: Hoef en Haag | E163: 19 | F163: r | G163: 4125 re | H163: 5 | I163: Hoef en Haag
A164: Nico | B164: Dinsdag | C164: Hoef en Haag | E164: 19 | F164: r | G164: 4125 re | H164: 7 | I164: Hoef en Haag
A165: Nico | B165: Dinsdag | C165: Hoef en Haag | E165: 19 | F165: r | G165: 4125 rl | H165: 8 | I165: Hoef en Haag
A166: Nico | B166: Dinsdag | C166: Hoef en Haag | E166: 19 | F166: r | G166: 4125 tk | H166: 3 | I166: Hoef en Haag
A167: Nico | B167: Dinsdag | C167: Hoef en Haag | E167: 19 | F167: r | G167: 4125 tn | H167: 8 | I167: Hoef en Haag
A168: Nico | B168: Dinsdag | C168: Hoef en Haag | E168: 19 | F168: r | G168: 4125 tp | H168: 16 | I168: Hoef en Haag
A169: Nico | B169: Dinsdag | C169: Hoef en Haag | E169: 19 | F169: r | G169: 4125 tp | H169: 5 | I169: Hoef en Haag
A170: Nico | B170: Dinsdag | C170: Hoef en Haag | E170: 19 | F170: r | G170: 4125 vb | H170: 2 | I170: Hoef en Haag
A171: Nico | B171: Dinsdag | C171: Hoef en Haag | E171: 19 | F171: r | G171: 4125 vc | H171: ? | I171: Hoef en Haag
A172: Nico | B172: Dinsdag | C172: Hoef en Haag | E172: 19 | F172: r | G172: 4125 xh | H172: 20 | I172: Hoef en Haag
A173: Nico | B173: Dinsdag | C173: Hoef en Haag | E173: 19 | F173: r | G173: 4125 td | H173: 77 | I173: Hoef en Haag
A174: Nico | B174: Dinsdag | C174: Hoef en Haag | E174: 19 | F174: r | G174: 4125 xh | H174: 42 | I174: Hoef en Haag
A175: Nico | B175: Dinsdag | C175: Hoef en Haag | E175: 19 | F175: r | G175: 4125 xh | H175: 18 | I175: Hoef en Haag
A176: Nico | B176: Dinsdag | C176: Hoef en Haag | E176: 19 | F176: r | G176: 4125 ve | H176: 8 | I176: Hoef en Haag
A177: Nico | B177: Dinsdag | C177: Hoef en Haag | E177: 19 | F177: r | G177: 4125 vd | H177: 9 | I177: Hoef en Haag
A178: Nico | B178: Dinsdag | C178: Hoef en Haag | E178: 19 | F178: r | G178: 4125 vd | H178: 2 | I178: Hoef en Haag
A179: Nico | B179: Dinsdag | C179: Hoef en Haag | E179: 19 | F179: r | G179: 4125 vd | H179: 12 | I179: Hoef en Haag
A180: Nico | B180: Dinsdag | C180: Hoef en Haag | E180: 19 | F180: r | G180: 4125 vd | H180: 29 | I180: Hoef en Haag
A181: Nico | B181: Dinsdag | C181: Hoef en Haag | E181: 19 | F181: r | G181: 4125 vd | H181: 20 | I181: Hoef en Haag
A182: Nico | B182: Dinsdag | C182: Hoef en Haag | E182: 19 | F182: r | G182: 4125 vd | H182: 24 | I182: Hoef en Haag
A183: Nico | B183: Dinsdag | C183: Hoef en Haag | E183: 19 | F183: r | G183: 4125 vg | H183: 17 | I183: Hoef en Haag
A184: Nico | B184: Dinsdag | C184: Hoef en Haag | E184: 19 | F184: r | G184: 4125 vj | H184: 22 | I184: Hoef en Haag
A185: Nico | B185: Dinsdag | C185: Hoef en Haag | E185: 19 | F185: r | G185: 4125 vg | H185: 19 | I185: Hoef en Haag
A186: Nico | B186: Dinsdag | C186: Hoef en Haag | E186: 19 | F186: r | G186: 4125 vj | H186: 13 | I186: Hoef en Haag
A187: Nico | B187: Dinsdag | C187: Hoef en Haag | E187: 19 | F187: r | G187: 4125 vj | H187: 10 | I187: Hoef en Haag
A188: Nico | B188: Dinsdag | C188: Hoef en Haag | E188: 19 | F188: r | G188: 4125 vd | H188: ? | I188: Hoef en Haag
A189: Nico | B189: Dinsdag | C189: Hoef en Haag | E189: 19 | F189: r | G189: 4125 vr | H189: 6 | I189: Hoef en Haag
A190: Nico | B190: Dinsdag | C190: Hoef en Haag | E190: 19 | F190: r | G190: 4125 vp | H190: 17 | I190: Hoef en Haag
A191: Nico | B191: Dinsdag | C191: Hoef en Haag | E191: 19 | F191: r | G191: 4125 vp | H191: 12 | I191: Hoef en Haag
A192: Nico | B192: Dinsdag | C192: Hoef en Haag | E192: 19 | F192: r | G192: 4125 vp | H192: 32 | I192: Hoef en Haag
A193: Nico | B193: Dinsdag | C193: Hoef en Haag | E193: 19 | F193: r | G193: 4125 xa | H193: 91 | I193: Hoef en Haag
A194: Nico | B194: Dinsdag | C194: Hoef en Haag | E194: 19 | F194: r | G194: 4125 xa | H194: 124 | I194: Hoef en Haag
A195: Nico | B195: Dinsdag | C195: Hoef en Haag | E195: 19 | F195: r | G195: 4125 xa | H195: 79 | I195: Hoef en Haag
A196: Nico | B196: Dinsdag | C196: Hoef en Haag | E196: 19 | F196: r | G196: 4125 xa | H196: 110 | I196: Hoef en Haag
A197: Nico | B197: Dinsdag | C197: Hoef en Haag | E197: 19 | F197: r | G197: 4125 xa | H197: 108 | I197: Hoef en Haag
A198: Nico | B198: Dinsdag | C198: Hoef en Haag | E198: 19 | F198: r | G198: 4125 xr | H198: 39 | I198: Hoef en Haag
A199: Nico | B199: Dinsdag | C199: Hoef en Haag | E199: 19 | F199: r | G199: 4125 wb | H199: 4 | I199: Hoef en Haag
A200: Nico | B200: Dinsdag | C200: Vianen De Hagen | E200: 19 | F200: r | G200: 4131 bj | H200: 6 | I200: Vianen
... 84 more rows

Sheet Rit 2024 Test in % overzicht
A1: =D1+E1 -> 3261 | D1: =BM1 -> 1069 | E1: =BN1 -> 2192 | I1: ='Rit overzicht 2024 '!I1 -> 138 | J1: ='Rit overzicht 2024 '!J1 -> 159 | K1: ='Rit overzicht 2024 '!K1 -> 168 | L1: ='Rit overzicht 2024 '!L1 -> 147 | M1: ='Rit overzicht 2024 '!M1 -> 343 | N1: ='Rit overzicht 2024 '!N1 -> 111 | O1: ='Rit overzicht 2024 '!O1 -> 0 | P1: ='Rit overzicht 2024 '!P1 -> 58 | Q1: ='Rit overzicht 2024 '!Q1 -> 201 | R1: ='Rit overzicht 2024 '!R1 -> 104 | S1: ='Rit overzicht 2024 '!S1 -> 206 | T1: ='Rit overzicht 2024 '!T1 -> 168 | U1: ='Rit overzicht 2024 '!U1 -> 230 | V1: ='Rit overzicht 2024 '!V1 -> 107 | W1: ='Rit overzicht 2024 '!W1 -> 360 | X1: ='Rit overzicht 2024 '!X1 -> 102 | Y1: ='Rit overzicht 2024 '!Y1 -> 246 | Z1: ='Rit overzicht 2024 '!Z1 -> 135 | AA1: ='Rit overzicht 2024 '!AA1 -> 278 | AB1: ='Rit overzicht 2024 '!AB1 -> 0 | AC1: ='Rit overzicht 2024 '!AC1 -> 0 | AD1: ='Rit overzicht 2024 '!AD1 -> 0 | AE1: ='Rit overzicht 2024 '!AE1 -> 0 | AF1: ='Rit overzicht 2024 '!AF1 -> 0 | AG1: ='Rit overzicht 2024 '!AG1 -> 0 | AH1: ='Rit overzicht 2024 '!AH1 -> 0 | AI1: ='Rit overzicht 2024 '!AI1 -> 0 | AJ1: ='Rit overzicht 2024 '!AJ1 -> 0 | AK1: ='Rit overzicht 2024 '!AK1 -> 0 | AL1: ='Rit overzicht 2024 '!AL1 -> 0 | AM1: ='Rit overzicht 2024 '!AM1 -> 0 | AN1: ='Rit overzicht 2024 '!AN1 -> 0 | AO1: ='Rit overzicht 2024 '!AO1 -> 0 | AP1: ='Rit overzicht 2024 '!AP1 -> 0 | AQ1: ='Rit overzicht 2024 '!AQ1 -> 0 | AR1: ='Rit overzicht 2024 '!AR1 -> 0 | AS1: ='Rit overzicht 2024 '!AS1 -> 0 | AT1: ='Rit overzicht 2024 '!AT1 -> 0 | AU1: ='Rit overzicht 2024 '!AU1 -> 0 | AV1: ='Rit overzicht 2024 '!AV1 -> 0 | AW1: ='Rit overzicht 2024 '!AW1 -> 0 | AX1: ='Rit overzicht 2024 '!AX1 -> 0 | AY1: ='Rit overzicht 2024 '!AY1 -> 0 | AZ1: ='Rit overzicht 2024 '!AZ1 -> 0 | BA1: ='Rit overzicht 2024 '!BA1 -> 0 | BB1: ='Rit overzicht 2024 '!BB1 -> 0 | BC1: ='Rit overzicht 2024 '!BC1 -> 0 | BD1: ='Rit overzicht 2024 '!BD1 -> 0 | BE1: ='Rit overzicht 2024 '!BE1 -> 0 | BF1: ='Rit overzicht 2024 '!BF1 -> 0 | BG1: ='Rit overzicht 2024 '!BG1 -> 0 | BH1: ='Rit overzicht 2024 '!BH1 -> 0 | BI1: ='Rit overzicht 2024 '!BI1 -> 219 | BJ1: ='Rit overzicht 2024 '!BJ1 -> 872 | BK1: ='Rit overzicht 2024 '!BK1 -> 850 | BL1: ='Rit overzicht 2024 '!BL1 -> 1320 | BM1: ='Rit overzicht 2024 '!BM1 -> 1069 | BN1: ='Rit overzicht 2024 '!BN1 -> 2192
A2: Route | B2: Kolom1 | C2: Dag | D2: Route | E2: Week | F2: Rest | G2: GFT | H2: PMD | I2: ='Rit overzicht 2024 '!I2 -> 1 | J2: ='Rit overzicht 2024 '!J2 -> 2 | K2: ='Rit overzicht 2024 '!K2 -> 3 | L2: ='Rit overzicht 2024 '!L2 -> 4 | M2: ='Rit overzicht 2024 '!M2 -> 5 | N2: ='Rit overzicht 2024 '!N2 -> 6 | O2: ='Rit overzicht 2024 '!O2 -> 7 | P2: ='Rit overzicht 2024 '!P2 -> 8 | Q2: ='Rit overzicht 2024 '!Q2 -> 9 | R2: ='Rit overzicht 2024 '!R2 -> 10 | S2: ='Rit overzicht 2024 '!S2 -> 11 | T2: ='Rit overzicht 2024 '!T2 -> 12 | U2: ='Rit overzicht 2024 '!U2 -> 13 | V2: ='Rit overzicht 2024 '!V2 -> 14 | W2: ='Rit overzicht 2024 '!W2 -> 15 | X2: ='Rit overzicht 2024 '!X2 -> 16 | Y2: ='Rit overzicht 2024 '!Y2 -> 17 | Z2: ='Rit overzicht 2024 '!Z2 -> 18 | AA2: ='Rit overzicht 2024 '!AA2 -> 19 | AB2: ='Rit overzicht 2024 '!AB2 -> 20 | AC2: ='Rit overzicht 2024 '!AC2 -> 21 | AD2: ='Rit overzicht 2024 '!AD2 -> 22 | AE2: ='Rit overzicht 2024 '!AE2 -> 23 | AF2: ='Rit overzicht 2024 '!AF2 -> 24 | AG2: ='Rit overzicht 2024 '!AG2 -> 25 | AH2: ='Rit overzicht 2024 '!AH2 -> 26 | AI2: ='Rit overzicht 2024 '!AI2 -> 27 | AJ2: ='Rit overzicht 2024 '!AJ2 -> 28 | AK2: ='Rit overzicht 2024 '!AK2 -> 29 | AL2: ='Rit overzicht 2024 '!AL2 -> 30 | AM2: ='Rit overzicht 2024 '!AM2 -> 31 | AN2: ='Rit overzicht 2024 '!AN2 -> 32 | AO2: ='Rit overzicht 2024 '!AO2 -> 33 | AP2: ='Rit overzicht 2024 '!AP2 -> 34 | AQ2: ='Rit overzicht 2024 '!AQ2 -> 35 | AR2: ='Rit overzicht 2024 '!AR2 -> 36 | AS2: ='Rit overzicht 2024 '!AS2 -> 37 | AT2: ='Rit overzicht 2024 '!AT2 -> 38 | AU2: ='Rit overzicht 2024 '!AU2 -> 39 | AV2: ='Rit overzicht 2024 '!AV2 -> 40 | AW2: ='Rit overzicht 2024 '!AW2 -> 41 | AX2: ='Rit overzicht 2024 '!AX2 -> 42 | AY2: ='Rit overzicht 2024 '!AY2 -> 43 | AZ2: ='Rit overzicht 2024 '!AZ2 -> 44 | BA2: ='Rit overzicht 2024 '!BA2 -> 45 | BB2: ='Rit overzicht 2024 '!BB2 -> 46 | BC2: ='Rit overzicht 2024 '!BC2 -> 47 | BD2: ='Rit overzicht 2024 '!BD2 -> 48 | BE2: ='Rit overzicht 2024 '!BE2 -> 49 | BF2: ='Rit overzicht 2024 '!BF2 -> 50 | BG2: ='Rit overzicht 2024 '!BG2 -> 51 | BH2: ='Rit overzicht 2024 '!BH2 -> 52 | BI2: ='Rit overzicht 2024 '!BI2 -> RGFT | BJ2: ='Rit overzicht 2024 '!BJ2 -> GLGFT | BK2: ='Rit overzicht 2024 '!BK2 -> RPMD | BL2: ='Rit overzicht 2024 '!BL2 -> GPMD | BM2: ='Rit overzicht 2024 '!BM2 -> Totaal Rood | BN2: ='Rit overzicht 2024 '!BN2 -> Totaal Geel
A3: 1.1 | C3: Maandag | D3: Kedichem - Leerdam Varseveld - Leerdam Oost | E3: 1e Zwaanseweg 26 | F3: 6 | G3: 4 | H3: 4 | I3: ='Rit overzicht 2024 '!I3 -> 0 | J3: ='Rit overzicht 2024 '!J3 -> 0 | K3: ='Rit overzicht 2024 '!K3 -> 0 | L3: ='Rit overzicht 2024 '!L3 -> 0 | M3: ='Rit overzicht 2024 '!M3 -> 0 | N3: ='Rit overzicht 2024 '!N3 -> 0 | O3: ='Rit overzicht 2024 '!O3 -> 0 | P3: ='Rit overzicht 2024 '!P3 -> 0 | Q3: ='Rit overzicht 2024 '!Q3 -> 0 | R3: ='Rit overzicht 2024 '!R3 -> 0 | S3: ='Rit overzicht 2024 '!S3 -> 0 | T3: ='Rit overzicht 2024 '!T3 -> 0 | U3: ='Rit overzicht 2024 '!U3 -> 0 | V3: ='Rit overzicht 2024 '!V3 -> 0 | W3: ='Rit overzicht 2024 '!W3/W5 -> 0.2133333333 | X3: ='Rit overzicht 2024 '!X3 -> 0 | Y3: ='Rit overzicht 2024 '!Y3 -> 0 | Z3: ='Rit overzicht 2024 '!Z3 -> 0 | AA3: ='Rit overzicht 2024 '!AA3 -> 0 | AB3: ='Rit overzicht 2024 '!AB3 -> 0 | AC3: ='Rit overzicht 2024 '!AC3 -> 0 | AD3: ='Rit overzicht 2024 '!AD3 -> 0 | AE3: ='Rit overzicht 2024 '!AE3 -> 0 | AF3: ='Rit overzicht 2024 '!AF3 -> 0 | AG3: ='Rit overzicht 2024 '!AG3 -> 0 | AH3: ='Rit overzicht 2024 '!AH3 -> 0 | AI3: ='Rit overzicht 2024 '!AI3 -> 0 | AJ3: ='Rit overzicht 2024 '!AJ3 -> 0 | AK3: ='Rit overzicht 2024 '!AK3 -> 0 | AL3: ='Rit overzicht 2024 '!AL3 -> 0 | AM3: ='Rit overzicht 2024 '!AM3 -> 0 | AN3: ='Rit overzicht 2024 '!AN3 -> 0 | AO3: ='Rit overzicht 2024 '!AO3 -> 0 | AP3: ='Rit overzicht 2024 '!AP3 -> 0 | AQ3: ='Rit overzicht 2024 '!AQ3 -> 0 | AR3: ='Rit overzicht 2024 '!AR3 -> 0 | AS3: ='Rit overzicht 2024 '!AS3 -> 0 | AT3: ='Rit overzicht 2024 '!AT3 -> 0 | AU3: ='Rit overzicht 2024 '!AU3 -> 0 | AV3: ='Rit overzicht 2024 '!AV3 -> 0 | AW3: ='Rit overzicht 2024 '!AW3 -> 0 | AX3: ='Rit overzicht 2024 '!AX3 -> 0 | AY3: ='Rit overzicht 2024 '!AY3 -> 0 | AZ3: ='Rit overzicht 2024 '!AZ3 -> 0 | BA3: ='Rit overzicht 2024 '!BA3 -> 0 | BB3: ='Rit overzicht 2024 '!BB3 -> 0 | BC3: ='Rit overzicht 2024 '!BC3 -> 0 | BD3: ='Rit overzicht 2024 '!BD3 -> 0 | BE3: ='Rit overzicht 2024 '!BE3 -> 0 | BF3: ='Rit overzicht 2024 '!BF3 -> 0 | BG3: ='Rit overzicht 2024 '!BG3 -> 0 | BH3: ='Rit overzicht 2024 '!BH3 -> 0 | BI3: ='Rit overzicht 2024 '!BI3 -> 0 | BJ3: ='Rit overzicht 2024 '!BJ3 -> 0 | BK3: ='Rit overzicht 2024 '!BK3 -> 16 | BL3: ='Rit overzicht 2024 '!BL3 -> 0 | BM3: ='Rit overzicht 2024 '!BM3 -> 16 | BN3: ='Rit overzicht 2024 '!BN3 -> 42
A4: 1.1 | C4: Maandag | D4: Kedichem - Leerdam Varseveld - Leerdam Oost | F4: 6 | G4: 4 | H4: 4 | I4: ='Rit overzicht 2024 '!I4 -> 0 | J4: ='Rit overzicht 2024 '!J4 -> 0 | K4: ='Rit overzicht 2024 '!K4 -> 0 | L4: ='Rit overzicht 2024 '!L4 -> 0 | M4: ='Rit overzicht 2024 '!M4 -> 0 | N4: ='Rit overzicht 2024 '!N4 -> 0 | O4: ='Rit overzicht 2024 '!O4 -> 0 | P4: ='Rit overzicht 2024 '!P4 -> 0 | Q4: ='Rit overzicht 2024 '!Q4 -> 0 | R4: ='Rit overzicht 2024 '!R4 -> 0 | S4: ='Rit overzicht 2024 '!S4 -> 22 | T4: ='Rit overzicht 2024 '!T4 -> 0 | U4: ='Rit overzicht 2024 '!U4 -> 0 | V4: ='Rit overzicht 2024 '!V4 -> 0 | W4: ='Rit overzicht 2024 '!W4/W5 -> 0.2666666667 | X4: ='Rit overzicht 2024 '!X4 -> 0 | Y4: ='Rit overzicht 2024 '!Y4 -> 0 | Z4: ='Rit overzicht 2024 '!Z4 -> 0 | AA4: ='Rit overzicht 2024 '!AA4 -> 0 | AB4: ='Rit overzicht 2024 '!AB4 -> 0 | AC4: ='Rit overzicht 2024 '!AC4 -> 0 | AD4: ='Rit overzicht 2024 '!AD4 -> 0 | AE4: ='Rit overzicht 2024 '!AE4 -> 0 | AF4: ='Rit overzicht 2024 '!AF4 -> 0 | AG4: ='Rit overzicht 2024 '!AG4 -> 0 | AH4: ='Rit overzicht 2024 '!AH4 -> 0 | AI4: ='Rit overzicht 2024 '!AI4 -> 0 | AJ4: ='Rit overzicht 2024 '!AJ4 -> 0 | AK4: ='Rit overzicht 2024 '!AK4 -> 0 | AL4: ='Rit overzicht 2024 '!AL4 -> 0 | AM4: ='Rit overzicht 2024 '!AM4 -> 0 | AN4: ='Rit overzicht 2024 '!AN4 -> 0 | AO4: ='Rit overzicht 2024 '!AO4 -> 0 | AP4: ='Rit overzicht 2024 '!AP4 -> 0 | AQ4: ='Rit overzicht 2024 '!AQ4 -> 0 | AR4: ='Rit overzicht 2024 '!AR4 -> 0 | AS4: ='Rit overzicht 2024 '!AS4 -> 0 | AT4: ='Rit overzicht 2024 '!AT4 -> 0 | AU4: ='Rit overzicht 2024 '!AU4 -> 0 | AV4: ='Rit overzicht 2024 '!AV4 -> 0 | AW4: ='Rit overzicht 2024 '!AW4 -> 0 | AX4: ='Rit overzicht 2024 '!AX4 -> 0 | AY4: ='Rit overzicht 2024 '!AY4 -> 0 | AZ4: ='Rit overzicht 2024 '!AZ4 -> 0 | BA4: ='Rit overzicht 2024 '!BA4 -> 0 | BB4: ='Rit overzicht 2024 '!BB4 -> 0 | BC4: ='Rit overzicht 2024 '!BC4 -> 0 | BD4: ='Rit overzicht 2024 '!BD4 -> 0 | BE4: ='Rit overzicht 2024 '!BE4 -> 0 | BF4: ='Rit overzicht 2024 '!BF4 -> 0 | BG4: ='Rit overzicht 2024 '!BG4 -> 0 | BH4: ='Rit overzicht 2024 '!BH4 -> 0 | BI4: ='Rit overzicht 2024 '!BI4 -> 0 | BJ4: ='Rit overzicht 2024 '!BJ4 -> 0 | BK4: ='Rit overzicht 2024 '!BK4 -> 0 | BL4: ='Rit overzicht 2024 '!BL4 -> 42 | BM4: ='Rit overzicht 2024 '!BM4 -> 0 | BN4: ='Rit overzicht 2024 '!BN4 -> 0
E5: Aantal Gecontroleerd | W5: 75
A6: 2.1 | C6: Maandag | D6: Vianen Koningsbuurt | I6: ='Rit overzicht 2024 '!I5 -> 0 | J6: ='Rit overzicht 2024 '!J5 -> 0 | K6: ='Rit overzicht 2024 '!K5 -> 0 | L6: ='Rit overzicht 2024 '!L5 -> 0 | M6: ='Rit overzicht 2024 '!M5 -> 7 | N6: ='Rit overzicht 2024 '!N5 -> 0 | O6: ='Rit overzicht 2024 '!O5 -> 0 | P6: ='Rit overzicht 2024 '!P5 -> 0 | Q6: ='Rit overzicht 2024 '!Q5 -> 2 | R6: ='Rit overzicht 2024 '!R5 -> 0 | S6: ='Rit overzicht 2024 '!S5 -> 0 | T6: ='Rit overzicht 2024 '!T5 -> 0 | U6: ='Rit overzicht 2024 '!U5 -> 10 | V6: ='Rit overzicht 2024 '!V5 -> 0 | W6: ='Rit overzicht 2024 '!W5 -> 0 | X6: ='Rit overzicht 2024 '!X5 -> 11 | Y6: ='Rit overzicht 2024 '!Y5 -> 14 | Z6: ='Rit overzicht 2024 '!Z5 -> 0 | AA6: ='Rit overzicht 2024 '!AA5 -> 0 | AB6: ='Rit overzicht 2024 '!AB5 -> 0 | AC6: ='Rit overzicht 2024 '!AC5 -> 0 | AD6: ='Rit overzicht 2024 '!AD5 -> 0 | AE6: ='Rit overzicht 2024 '!AE5 -> 0 | AF6: ='Rit overzicht 2024 '!AF5 -> 0 | AG6: ='Rit overzicht 2024 '!AG5 -> 0 | AH6: ='Rit overzicht 2024 '!AH5 -> 0 | AI6: ='Rit overzicht 2024 '!AI5 -> 0 | AJ6: ='Rit overzicht 2024 '!AJ5 -> 0 | AK6: ='Rit overzicht 2024 '!AK5 -> 0 | AL6: ='Rit overzicht 2024 '!AL5 -> 0 | AM6: ='Rit overzicht 2024 '!AM5 -> 0 | AN6: ='Rit overzicht 2024 '!AN5 -> 0 | AO6: ='Rit overzicht 2024 '!AO5 -> 0 | AP6: ='Rit overzicht 2024 '!AP5 -> 0 | AQ6: ='Rit overzicht 2024 '!AQ5 -> 0 | AR6: ='Rit overzicht 2024 '!AR5 -> 0 | AS6: ='Rit overzicht 2024 '!AS5 -> 0 | AT6: ='Rit overzicht 2024 '!AT5 -> 0 | AU6: ='Rit overzicht 2024 '!AU5 -> 0 | AV6: ='Rit overzicht 2024 '!AV5 -> 0 | AW6: ='Rit overzicht 2024 '!AW5 -> 0 | AX6: ='Rit overzicht 2024 '!AX5 -> 0 | AY6: ='Rit overzicht 2024 '!AY5 -> 0 | AZ6: ='Rit overzicht 2024 '!AZ5 -> 0 | BA6: ='Rit overzicht 2024 '!BA5 -> 0 | BB6: ='Rit overzicht 2024 '!BB5 -> 0 | BC6: ='Rit overzicht 2024 '!BC5 -> 0 | BD6: ='Rit overzicht 2024 '!BD5 -> 0 | BE6: ='Rit overzicht 2024 '!BE5 -> 0 | BF6: ='Rit overzicht 2024 '!BF5 -> 0 | BG6: ='Rit overzicht 2024 '!BG5 -> 0 | BH6: ='Rit overzicht 2024 '!BH5 -> 0 | BI6: ='Rit overzicht 2024 '!BI5 -> 11 | BJ6: ='Rit overzicht 2024 '!BJ5 -> 0 | BK6: ='Rit overzicht 2024 '!BK5 -> 33 | BL6: ='Rit overzicht 2024 '!BL5 -> 0 | BM6: ='Rit overzicht 2024 '!BM5 -> 44 | BN6: ='Rit overzicht 2024 '!BN5 -> 110
A7: 2.1 | C7: Maandag | D7: Vianen Koningsbuurt | E7: Mauritsstraat 67 | I7: ='Rit overzicht 2024 '!I6 -> 0 | J7: ='Rit overzicht 2024 '!J6 -> 0 | K7: ='Rit overzicht 2024 '!K6 -> 0 | L7: ='Rit overzicht 2024 '!L6 -> 0 | M7: ='Rit overzicht 2024 '!M6 -> 34 | N7: ='Rit overzicht 2024 '!N6 -> 0 | O7: ='Rit overzicht 2024 '!O6 -> 0 | P7: ='Rit overzicht 2024 '!P6 -> 11 | Q7: ='Rit overzicht 2024 '!Q6 -> 3 | R7: ='Rit overzicht 2024 '!R6 -> 0 | S7: ='Rit overzicht 2024 '!S6 -> 0 | T7: ='Rit overzicht 2024 '!T6 -> 13 | U7: ='Rit overzicht 2024 '!U6 -> 17 | V7: ='Rit overzicht 2024 '!V6 -> 0 | W7: ='Rit overzicht 2024 '!W6 -> 0 | X7: ='Rit overzicht 2024 '!X6 -> 15 | Y7: ='Rit overzicht 2024 '!Y6 -> 17 | Z7: ='Rit overzicht 2024 '!Z6 -> 0 | AA7: ='Rit overzicht 2024 '!AA6 -> 0 | AB7: ='Rit overzicht 2024 '!AB6 -> 0 | AC7: ='Rit overzicht 2024 '!AC6 -> 0 | AD7: ='Rit overzicht 2024 '!AD6 -> 0 | AE7: ='Rit overzicht 2024 '!AE6 -> 0 | AF7: ='Rit overzicht 2024 '!AF6 -> 0 | AG7: ='Rit overzicht 2024 '!AG6 -> 0 | AH7: ='Rit overzicht 2024 '!AH6 -> 0 | AI7: ='Rit overzicht 2024 '!AI6 -> 0 | AJ7: ='Rit overzicht 2024 '!AJ6 -> 0 | AK7: ='Rit overzicht 2024 '!AK6 -> 0 | AL7: ='Rit overzicht 2024 '!AL6 -> 0 | AM7: ='Rit overzicht 2024 '!AM6 -> 0 | AN7: ='Rit overzicht 2024 '!AN6 -> 0 | AO7: ='Rit overzicht 2024 '!AO6 -> 0 | AP7: ='Rit overzicht 2024 '!AP6 -> 0 | AQ7: ='Rit overzicht 2024 '!AQ6 -> 0 | AR7: ='Rit overzicht 2024 '!AR6 -> 0 | AS7: ='Rit overzicht 2024 '!AS6 -> 0 | AT7: ='Rit overzicht 2024 '!AT6 -> 0 | AU7: ='Rit overzicht 2024 '!AU6 -> 0 | AV7: ='Rit overzicht 2024 '!AV6 -> 0 | AW7: ='Rit overzicht 2024 '!AW6 -> 0 | AX7: ='Rit overzicht 2024 '!AX6 -> 0 | AY7: ='Rit overzicht 2024 '!AY6 -> 0 | AZ7: ='Rit overzicht 2024 '!AZ6 -> 0 | BA7: ='Rit overzicht 2024 '!BA6 -> 0 | BB7: ='Rit overzicht 2024 '!BB6 -> 0 | BC7: ='Rit overzicht 2024 '!BC6 -> 0 | BD7: ='Rit overzicht 2024 '!BD6 -> 0 | BE7: ='Rit overzicht 2024 '!BE6 -> 0 | BF7: ='Rit overzicht 2024 '!BF6 -> 0 | BG7: ='Rit overzicht 2024 '!BG6 -> 0 | BH7: ='Rit overzicht 2024 '!BH6 -> 0 | BI7: ='Rit overzicht 2024 '!BI6 -> 0 | BJ7: ='Rit overzicht 2024 '!BJ6 -> 39 | BK7: ='Rit overzicht 2024 '!BK6 -> 0 | BL7: ='Rit overzicht 2024 '!BL6 -> 71 | BM7: ='Rit overzicht 2024 '!BM6 -> 0 | BN7: ='Rit overzicht 2024 '!BN6 -> 0
A8: 2.2 | C8: Maandag | D8: Leerdam Ter Leede binnen | G8: 9 | I8: ='Rit overzicht 2024 '!I7 -> 0 | J8: ='Rit overzicht 2024 '!J7 -> 8 | K8: ='Rit overzicht 2024 '!K7 -> 0 | L8: ='Rit overzicht 2024 '!L7 -> 0 | M8: ='Rit overzicht 2024 '!M7 -> 5 | N8: ='Rit overzicht 2024 '!N7 -> 0 | O8: ='Rit overzicht 2024 '!O7 -> 0 | P8: ='Rit overzicht 2024 '!P7 -> 0 | Q8: ='Rit overzicht 2024 '!Q7 -> 7 | R8: ='Rit overzicht 2024 '!R7 -> 0 | S8: ='Rit overzicht 2024 '!S7 -> 0 | T8: ='Rit overzicht 2024 '!T7 -> 1 | U8: ='Rit overzicht 2024 '!U7 -> 2 | V8: ='Rit overzicht 2024 '!V7 -> 0 | W8: ='Rit overzicht 2024 '!W7 -> 0 | X8: ='Rit overzicht 2024 '!X7 -> 2 | Y8: ='Rit overzicht 2024 '!Y7 -> 2 | Z8: ='Rit overzicht 2024 '!Z7 -> 0 | AA8: ='Rit overzicht 2024 '!AA7 -> 0 | AB8: ='Rit overzicht 2024 '!AB7 -> 0 | AC8: ='Rit overzicht 2024 '!AC7 -> 0 | AD8: ='Rit overzicht 2024 '!AD7 -> 0 | AE8: ='Rit overzicht 2024 '!AE7 -> 0 | AF8: ='Rit overzicht 2024 '!AF7 -> 0 | AG8: ='Rit overzicht 2024 '!AG7 -> 0 | AH8: ='Rit overzicht 2024 '!AH7 -> 0 | AI8: ='Rit overzicht 2024 '!AI7 -> 0 | AJ8: ='Rit overzicht 2024 '!AJ7 -> 0 | AK8: ='Rit overzicht 2024 '!AK7 -> 0 | AL8: ='Rit overzicht 2024 '!AL7 -> 0 | AM8: ='Rit overzicht 2024 '!AM7 -> 0 | AN8: ='Rit overzicht 2024 '!AN7 -> 0 | AO8: ='Rit overzicht 2024 '!AO7 -> 0 | AP8: ='Rit overzicht 2024 '!AP7 -> 0 | AQ8: ='Rit overzicht 2024 '!AQ7 -> 0 | AR8: ='Rit overzicht 2024 '!AR7 -> 0 | AS8: ='Rit overzicht 2024 '!AS7 -> 0 | AT8: ='Rit overzicht 2024 '!AT7 -> 0 | AU8: ='Rit overzicht 2024 '!AU7 -> 0 | AV8: ='Rit overzicht 2024 '!AV7 -> 0 | AW8: ='Rit overzicht 2024 '!AW7 -> 0 | AX8: ='Rit overzicht 2024 '!AX7 -> 0 | AY8: ='Rit overzicht 2024 '!AY7 -> 0 | AZ8: ='Rit overzicht 2024 '!AZ7 -> 0 | BA8: ='Rit overzicht 2024 '!BA7 -> 0 | BB8: ='Rit overzicht 2024 '!BB7 -> 0 | BC8: ='Rit overzicht 2024 '!BC7 -> 0 | BD8: ='Rit overzicht 2024 '!BD7 -> 0 | BE8: ='Rit overzicht 2024 '!BE7 -> 0 | BF8: ='Rit overzicht 2024 '!BF7 -> 0 | BG8: ='Rit overzicht 2024 '!BG7 -> 0 | BH8: ='Rit overzicht 2024 '!BH7 -> 0 | BI8: ='Rit overzicht 2024 '!BI7 -> 11 | BJ8: ='Rit overzicht 2024 '!BJ7 -> 0 | BK8: ='Rit overzicht 2024 '!BK7 -> 16 | BL8: ='Rit overzicht 2024 '!BL7 -> 0 | BM8: ='Rit overzicht 2024 '!BM7 -> 27 | BN8: ='Rit overzicht 2024 '!BN7 -> 33
A9: 2.2 | C9: Maandag | D9: Leerdam Ter Leede binnen | E9: Glasblazerstraat 25 | G9: 9 | I9: ='Rit overzicht 2024 '!I8 -> 0 | J9: ='Rit overzicht 2024 '!J8 -> 4 | K9: ='Rit overzicht 2024 '!K8 -> 0 | L9: ='Rit overzicht 2024 '!L8 -> 0 | M9: ='Rit overzicht 2024 '!M8 -> 8 | N9: ='Rit overzicht 2024 '!N8 -> 0 | O9: ='Rit overzicht 2024 '!O8 -> 0 | P9: ='Rit overzicht 2024 '!P8 -> 0 | Q9: ='Rit overzicht 2024 '!Q8 -> 11 | R9: ='Rit overzicht 2024 '!R8 -> 0 | S9: ='Rit overzicht 2024 '!S8 -> 0 | T9: ='Rit overzicht 2024 '!T8 -> 4 | U9: ='Rit overzicht 2024 '!U8 -> 4 | V9: ='Rit overzicht 2024 '!V8 -> 0 | W9: ='Rit overzicht 2024 '!W8 -> 0 | X9: ='Rit overzicht 2024 '!X8 -> 2 | Y9: ='Rit overzicht 2024 '!Y8 -> 0 | Z9: ='Rit overzicht 2024 '!Z8 -> 0 | AA9: ='Rit overzicht 2024 '!AA8 -> 0 | AB9: ='Rit overzicht 2024 '!AB8 -> 0 | AC9: ='Rit overzicht 2024 '!AC8 -> 0 | AD9: ='Rit overzicht 2024 '!AD8 -> 0 | AE9: ='Rit overzicht 2024 '!AE8 -> 0 | AF9: ='Rit overzicht 2024 '!AF8 -> 0 | AG9: ='Rit overzicht 2024 '!AG8 -> 0 | AH9: ='Rit overzicht 2024 '!AH8 -> 0 | AI9: ='Rit overzicht 2024 '!AI8 -> 0 | AJ9: ='Rit overzicht 2024 '!AJ8 -> 0 | AK9: ='Rit overzicht 2024 '!AK8 -> 0 | AL9: ='Rit overzicht 2024 '!AL8 -> 0 | AM9: ='Rit overzicht 2024 '!AM8 -> 0 | AN9: ='Rit overzicht 2024 '!AN8 -> 0 | AO9: ='Rit overzicht 2024 '!AO8 -> 0 | AP9: ='Rit overzicht 2024 '!AP8 -> 0 | AQ9: ='Rit overzicht 2024 '!AQ8 -> 0 | AR9: ='Rit overzicht 2024 '!AR8 -> 0 | AS9: ='Rit overzicht 2024 '!AS8 -> 0 | AT9: ='Rit overzicht 2024 '!AT8 -> 0 | AU9: ='Rit overzicht 2024 '!AU8 -> 0 | AV9: ='Rit overzicht 2024 '!AV8 -> 0 | AW9: ='Rit overzicht 2024 '!AW8 -> 0 | AX9: ='Rit overzicht 2024 '!AX8 -> 0 | AY9: ='Rit overzicht 2024 '!AY8 -> 0 | AZ9: ='Rit overzicht 2024 '!AZ8 -> 0 | BA9: ='Rit overzicht 2024 '!BA8 -> 0 | BB9: ='Rit overzicht 2024 '!BB8 -> 0 | BC9: ='Rit overzicht 2024 '!BC8 -> 0 | BD9: ='Rit overzicht 2024 '!BD8 -> 0 | BE9: ='Rit overzicht 2024 '!BE8 -> 0 | BF9: ='Rit overzicht 2024 '!BF8 -> 0 | BG9: ='Rit overzicht 2024 '!BG8 -> 0 | BH9: ='Rit overzicht 2024 '!BH8 -> 0 | BI9: ='Rit overzicht 2024 '!BI8 -> 0 | BJ9: ='Rit overzicht 2024 '!BJ8 -> 10 | BK9: ='Rit overzicht 2024 '!BK8 -> 0 | BL9: ='Rit overzicht 2024 '!BL8 -> 23 | BM9: ='Rit overzicht 2024 '!BM8 -> 0 | BN9: ='Rit overzicht 2024 '!BN8 -> 0
A10: 3.1 | C10: Maandag | D10: Lexmond, Hei en Boeicop binnen | F10: 4 | G10: 3 | H10: 3 | I10: ='Rit overzicht 2024 '!I9 -> 0 | J10: ='Rit overzicht 2024 '!J9 -> 0 | K10: ='Rit overzicht 2024 '!K9 -> 5 | L10: ='Rit overzicht 2024 '!L9 -> 0 | M10: ='Rit overzicht 2024 '!M9 -> 6 | N10: ='Rit overzicht 2024 '!N9 -> 0 | O10: ='Rit overzicht 2024 '!O9 -> 0 | P10: ='Rit overzicht 2024 '!P9 -> 0 | Q10: ='Rit overzicht 2024 '!Q9 -> 0 | R10: ='Rit overzicht 2024 '!R9 -> 0 | S10: ='Rit overzicht 2024 '!S9 -> 0 | T10: ='Rit overzicht 2024 '!T9 -> 0 | U10: ='Rit overzicht 2024 '!U9 -> 0 | V10: ='Rit overzicht 2024 '!V9 -> 0 | W10: ='Rit overzicht 2024 '!W9 -> 8 | X10: ='Rit overzicht 2024 '!X9 -> 0 | Y10: ='Rit overzicht 2024 '!Y9 -> 0 | Z10: ='Rit overzicht 2024 '!Z9 -> 10 | AA10: ='Rit overzicht 2024 '!AA9 -> 14 | AB10: ='Rit overzicht 2024 '!AB9 -> 0 | AC10: ='Rit overzicht 2024 '!AC9 -> 0 | AD10: ='Rit overzicht 2024 '!AD9 -> 0 | AE10: ='Rit overzicht 2024 '!AE9 -> 0 | AF10: ='Rit overzicht 2024 '!AF9 -> 0 | AG10: ='Rit overzicht 2024 '!AG9 -> 0 | AH10: ='Rit overzicht 2024 '!AH9 -> 0 | AI10: ='Rit overzicht 2024 '!AI9 -> 0 | AJ10: ='Rit overzicht 2024 '!AJ9 -> 0 | AK10: ='Rit overzicht 2024 '!AK9 -> 0 | AL10: ='Rit overzicht 2024 '!AL9 -> 0 | AM10: ='Rit overzicht 2024 '!AM9 -> 0 | AN10: ='Rit overzicht 2024 '!AN9 -> 0 | AO10: ='Rit overzicht 2024 '!AO9 -> 0 | AP10: ='Rit overzicht 2024 '!AP9 -> 0 | AQ10: ='Rit overzicht 2024 '!AQ9 -> 0 | AR10: ='Rit overzicht 2024 '!AR9 -> 0 | AS10: ='Rit overzicht 2024 '!AS9 -> 0 | AT10: ='Rit overzicht 2024 '!AT9 -> 0 | AU10: ='Rit overzicht 2024 '!AU9 -> 0 | AV10: ='Rit overzicht 2024 '!AV9 -> 0 | AW10: ='Rit overzicht 2024 '!AW9 -> 0 | AX10: ='Rit overzicht 2024 '!AX9 -> 0 | AY10: ='Rit overzicht 2024 '!AY9 -> 0 | AZ10: ='Rit overzicht 2024 '!AZ9 -> 0 | BA10: ='Rit overzicht 2024 '!BA9 -> 0 | BB10: ='Rit overzicht 2024 '!BB9 -> 0 | BC10: ='Rit overzicht 2024 '!BC9 -> 0 | BD10: ='Rit overzicht 2024 '!BD9 -> 0 | BE10: ='Rit overzicht 2024 '!BE9 -> 0 | BF10: ='Rit overzicht 2024 '!BF9 -> 0 | BG10: ='Rit overzicht 2024 '!BG9 -> 0 | BH10: ='Rit overzicht 2024 '!BH9 -> 0 | BI10: ='Rit overzicht 2024 '!BI9 -> 10 | BJ10: ='Rit overzicht 2024 '!BJ9 -> 0 | BK10: ='Rit overzicht 2024 '!BK9 -> 33 | BL10: ='Rit overzicht 2024 '!BL9 -> 0 | BM10: ='Rit overzicht 2024 '!BM9 -> 43 | BN10: ='Rit overzicht 2024 '!BN9 -> 111
A11: 3.1 | C11: Maandag | D11: Lexmond, Hei en Boeicop binnen | F11: 4 | G11: 3 | H11: 3 | I11: ='Rit overzicht 2024 '!I10 -> 0 | J11: ='Rit overzicht 2024 '!J10 -> 32 | K11: ='Rit overzicht 2024 '!K10 -> 12 | L11: ='Rit overzicht 2024 '!L10 -> 14 | M11: ='Rit overzicht 2024 '!M10 -> 14 | N11: ='Rit overzicht 2024 '!N10 -> 11 | O11: ='Rit overzicht 2024 '!O10 -> 0 | P11: ='Rit overzicht 2024 '!P10 -> 0 | Q11: ='Rit overzicht 2024 '!Q10 -> 0 | R11: ='Rit overzicht 2024 '!R10 -> 0 | S11: ='Rit overzicht 2024 '!S10 -> 0 | T11: ='Rit overzicht 2024 '!T10 -> 0 | U11: ='Rit overzicht 2024 '!U10 -> 0 | V11: ='Rit overzicht 2024 '!V10 -> 0 | W11: ='Rit overzicht 2024 '!W10 -> 18 | X11: ='Rit overzicht 2024 '!X10 -> 0 | Y11: ='Rit overzicht 2024 '!Y10 -> 0 | Z11: ='Rit overzicht 2024 '!Z10 -> 6 | AA11: ='Rit overzicht 2024 '!AA10 -> 4 | AB11: ='Rit overzicht 2024 '!AB10 -> 0 | AC11: ='Rit overzicht 2024 '!AC10 -> 0 | AD11: ='Rit overzicht 2024 '!AD10 -> 0 | AE11: ='Rit overzicht 2024 '!AE10 -> 0 | AF11: ='Rit overzicht 2024 '!AF10 -> 0 | AG11: ='Rit overzicht 2024 '!AG10 -> 0 | AH11: ='Rit overzicht 2024 '!AH10 -> 0 | AI11: ='Rit overzicht 2024 '!AI10 -> 0 | AJ11: ='Rit overzicht 2024 '!AJ10 -> 0 | AK11: ='Rit overzicht 2024 '!AK10 -> 0 | AL11: ='Rit overzicht 2024 '!AL10 -> 0 | AM11: ='Rit overzicht 2024 '!AM10 -> 0 | AN11: ='Rit overzicht 2024 '!AN10 -> 0 | AO11: ='Rit overzicht 2024 '!AO10 -> 0 | AP11: ='Rit overzicht 2024 '!AP10 -> 0 | AQ11: ='Rit overzicht 2024 '!AQ10 -> 0 | AR11: ='Rit overzicht 2024 '!AR10 -> 0 | AS11: ='Rit overzicht 2024 '!AS10 -> 0 | AT11: ='Rit overzicht 2024 '!AT10 -> 0 | AU11: ='Rit overzicht 2024 '!AU10 -> 0 | AV11: ='Rit overzicht 2024 '!AV10 -> 0 | AW11: ='Rit overzicht 2024 '!AW10 -> 0 | AX11: ='Rit overzicht 2024 '!AX10 -> 0 | AY11: ='Rit overzicht 2024 '!AY10 -> 0 | AZ11: ='Rit overzicht 2024 '!AZ10 -> 0 | BA11: ='Rit overzicht 2024 '!BA10 -> 0 | BB11: ='Rit overzicht 2024 '!BB10 -> 0 | BC11: ='Rit overzicht 2024 '!BC10 -> 0 | BD11: ='Rit overzicht 2024 '!BD10 -> 0 | BE11: ='Rit overzicht 2024 '!BE10 -> 0 | BF11: ='Rit overzicht 2024 '!BF10 -> 0 | BG11: ='Rit overzicht 2024 '!BG10 -> 0 | BH11: ='Rit overzicht 2024 '!BH10 -> 0 | BI11: ='Rit overzicht 2024 '!BI10 -> 0 | BJ11: ='Rit overzicht 2024 '!BJ10 -> 63 | BK11: ='Rit overzicht 2024 '!BK10 -> 0 | BL11: ='Rit overzicht 2024 '!BL10 -> 48 | BM11: ='Rit overzicht 2024 '!BM10 -> 0 | BN11: ='Rit overzicht 2024 '!BN10 -> 0
A12: 3.2 | C12: Maandag | D12: Schoonrewoerd binnen | F12: 5 | G12: 7 | H12: 7 | I12: ='Rit overzicht 2024 '!I11 -> 0 | J12: ='Rit overzicht 2024 '!J11 -> 0 | K12: ='Rit overzicht 2024 '!K11 -> 0 | L12: ='Rit overzicht 2024 '!L11 -> 2 | M12: ='Rit overzicht 2024 '!M11 -> 0 | N12: ='Rit overzicht 2024 '!N11 -> 0 | O12: ='Rit overzicht 2024 '!O11 -> 0 | P12: ='Rit overzicht 2024 '!P11 -> 0 | Q12: ='Rit overzicht 2024 '!Q11 -> 0 | R12: ='Rit overzicht 2024 '!R11 -> 0 | S12: ='Rit overzicht 2024 '!S11 -> 0 | T12: ='Rit overzicht 2024 '!T11 -> 0 | U12: ='Rit overzicht 2024 '!U11 -> 0 | V12: ='Rit overzicht 2024 '!V11 -> 0 | W12: ='Rit overzicht 2024 '!W11 -> 0 | X12: ='Rit overzicht 2024 '!X11 -> 0 | Y12: ='Rit overzicht 2024 '!Y11 -> 0 | Z12: ='Rit overzicht 2024 '!Z11 -> 4 | AA12: ='Rit overzicht 2024 '!AA11 -> 11 | AB12: ='Rit overzicht 2024 '!AB11 -> 0 | AC12: ='Rit overzicht 2024 '!AC11 -> 0 | AD12: ='Rit overzicht 2024 '!AD11 -> 0 | AE12: ='Rit overzicht 2024 '!AE11 -> 0 | AF12: ='Rit overzicht 2024 '!AF11 -> 0 | AG12: ='Rit overzicht 2024 '!AG11 -> 0 | AH12: ='Rit overzicht 2024 '!AH11 -> 0 | AI12: ='Rit overzicht 2024 '!AI11 -> 0 | AJ12: ='Rit overzicht 2024 '!AJ11 -> 0 | AK12: ='Rit overzicht 2024 '!AK11 -> 0 | AL12: ='Rit overzicht 2024 '!AL11 -> 0 | AM12: ='Rit overzicht 2024 '!AM11 -> 0 | AN12: ='Rit overzicht 2024 '!AN11 -> 0 | AO12: ='Rit overzicht 2024 '!AO11 -> 0 | AP12: ='Rit overzicht 2024 '!AP11 -> 0 | AQ12: ='Rit overzicht 2024 '!AQ11 -> 0 | AR12: ='Rit overzicht 2024 '!AR11 -> 0 | AS12: ='Rit overzicht 2024 '!AS11 -> 0 | AT12: ='Rit overzicht 2024 '!AT11 -> 0 | AU12: ='Rit overzicht 2024 '!AU11 -> 0 | AV12: ='Rit overzicht 2024 '!AV11 -> 0 | AW12: ='Rit overzicht 2024 '!AW11 -> 0 | AX12: ='Rit overzicht 2024 '!AX11 -> 0 | AY12: ='Rit overzicht 2024 '!AY11 -> 0 | AZ12: ='Rit overzicht 2024 '!AZ11 -> 0 | BA12: ='Rit overzicht 2024 '!BA11 -> 0 | BB12: ='Rit overzicht 2024 '!BB11 -> 0 | BC12: ='Rit overzicht 2024 '!BC11 -> 0 | BD12: ='Rit overzicht 2024 '!BD11 -> 0 | BE12: ='Rit overzicht 2024 '!BE11 -> 0 | BF12: ='Rit overzicht 2024 '!BF11 -> 0 | BG12: ='Rit overzicht 2024 '!BG11 -> 0 | BH12: ='Rit overzicht 2024 '!BH11 -> 0 | BI12: ='Rit overzicht 2024 '!BI11 -> 6 | BJ12: ='Rit overzicht 2024 '!BJ11 -> 0 | BK12: ='Rit overzicht 2024 '!BK11 -> 11 | BL12: ='Rit overzicht 2024 '!BL11 -> 0 | BM12: ='Rit overzicht 2024 '!BM11 -> 17 | BN12: ='Rit overzicht 2024 '!BN11 -> 22
A13: 3.2 | C13: Maandag | D13: Schoonrewoerd binnen | F13: 5 | G13: 7 | H13: 7 | I13: ='Rit overzicht 2024 '!I12 -> 0 | J13: ='Rit overzicht 2024 '!J12 -> 0 | K13: ='Rit overzicht 2024 '!K12 -> 0 | L13: ='Rit overzicht 2024 '!L12 -> 7 | M13: ='Rit overzicht 2024 '!M12 -> 0 | N13: ='Rit overzicht 2024 '!N12 -> 0 | O13: ='Rit overzicht 2024 '!O12 -> 0 | P13: ='Rit overzicht 2024 '!P12 -> 0 | Q13: ='Rit overzicht 2024 '!Q12 -> 0 | R13: ='Rit overzicht 2024 '!R12 -> 0 | S13: ='Rit overzicht 2024 '!S12 -> 0 | T13: ='Rit overzicht 2024 '!T12 -> 0 | U13: ='Rit overzicht 2024 '!U12 -> 0 | V13: ='Rit overzicht 2024 '!V12 -> 0 | W13: ='Rit overzicht 2024 '!W12 -> 10 | X13: ='Rit overzicht 2024 '!X12 -> 0 | Y13: ='Rit overzicht 2024 '!Y12 -> 0 | Z13: ='Rit overzicht 2024 '!Z12 -> 3 | AA13: ='Rit overzicht 2024 '!AA12 -> 2 | AB13: ='Rit overzicht 2024 '!AB12 -> 0 | AC13: ='Rit overzicht 2024 '!AC12 -> 0 | AD13: ='Rit overzicht 2024 '!AD12 -> 0 | AE13: ='Rit overzicht 2024 '!AE12 -> 0 | AF13: ='Rit overzicht 2024 '!AF12 -> 0 | AG13: ='Rit overzicht 2024 '!AG12 -> 0 | AH13: ='Rit overzicht 2024 '!AH12 -> 0 | AI13: ='Rit overzicht 2024 '!AI12 -> 0 | AJ13: ='Rit overzicht 2024 '!AJ12 -> 0 | AK13: ='Rit overzicht 2024 '!AK12 -> 0 | AL13: ='Rit overzicht 2024 '!AL12 -> 0 | AM13: ='Rit overzicht 2024 '!AM12 -> 0 | AN13: ='Rit overzicht 2024 '!AN12 -> 0 | AO13: ='Rit overzicht 2024 '!AO12 -> 0 | AP13: ='Rit overzicht 2024 '!AP12 -> 0 | AQ13: ='Rit overzicht 2024 '!AQ12 -> 0 | AR13: ='Rit overzicht 2024 '!AR12 -> 0 | AS13: ='Rit overzicht 2024 '!AS12 -> 0 | AT13: ='Rit overzicht 2024 '!AT12 -> 0 | AU13: ='Rit overzicht 2024 '!AU12 -> 0 | AV13: ='Rit overzicht 2024 '!AV12 -> 0 | AW13: ='Rit overzicht 2024 '!AW12 -> 0 | AX13: ='Rit overzicht 2024 '!AX12 -> 0 | AY13: ='Rit overzicht 2024 '!AY12 -> 0 | AZ13: ='Rit overzicht 2024 '!AZ12 -> 0 | BA13: ='Rit overzicht 2024 '!BA12 -> 0 | BB13: ='Rit overzicht 2024 '!BB12 -> 0 | BC13: ='Rit overzicht 2024 '!BC12 -> 0 | BD13: ='Rit overzicht 2024 '!BD12 -> 0 | BE13: ='Rit overzicht 2024 '!BE12 -> 0 | BF13: ='Rit overzicht 2024 '!BF12 -> 0 | BG13: ='Rit overzicht 2024 '!BG12 -> 0 | BH13: ='Rit overzicht 2024 '!BH12 -> 0 | BI13: ='Rit overzicht 2024 '!BI12 -> 0 | BJ13: ='Rit overzicht 2024 '!BJ12 -> 10 | BK13: ='Rit overzicht 2024 '!BK12 -> 0 | BL13: ='Rit overzicht 2024 '!BL12 -> 12 | BM13: ='Rit overzicht 2024 '!BM12 -> 0 | BN13: ='Rit overzicht 2024 '!BN12 -> 0
A14: 3.3 | C14: Maandag | D14: Leerdam Noord | F14: 7 | G14: 2 | I14: ='Rit overzicht 2024 '!I13 -> 0 | J14: ='Rit overzicht 2024 '!J13 -> 0 | K14: ='Rit overzicht 2024 '!K13 -> 0 | L14: ='Rit overzicht 2024 '!L13 -> 0 | M14: ='Rit overzicht 2024 '!M13 -> 0 | N14: ='Rit overzicht 2024 '!N13 -> 0 | O14: ='Rit overzicht 2024 '!O13 -> 0 | P14: ='Rit overzicht 2024 '!P13 -> 0 | Q14: ='Rit overzicht 2024 '!Q13 -> 0 | R14: ='Rit overzicht 2024 '!R13 -> 1 | S14: ='Rit overzicht 2024 '!S13 -> 0 | T14: ='Rit overzicht 2024 '!T13 -> 0 | U14: ='Rit overzicht 2024 '!U13 -> 0 | V14: ='Rit overzicht 2024 '!V13 -> 0 | W14: ='Rit overzicht 2024 '!W13 -> 0 | X14: ='Rit overzicht 2024 '!X13 -> 0 | Y14: ='Rit overzicht 2024 '!Y13 -> 0 | Z14: ='Rit overzicht 2024 '!Z13 -> 0 | AA14: ='Rit overzicht 2024 '!AA13 -> 0 | AB14: ='Rit overzicht 2024 '!AB13 -> 0 | AC14: ='Rit overzicht 2024 '!AC13 -> 0 | AD14: ='Rit overzicht 2024 '!AD13 -> 0 | AE14: ='Rit overzicht 2024 '!AE13 -> 0 | AF14: ='Rit overzicht 2024 '!AF13 -> 0 | AG14: ='Rit overzicht 2024 '!AG13 -> 0 | AH14: ='Rit overzicht 2024 '!AH13 -> 0 | AI14: ='Rit overzicht 2024 '!AI13 -> 0 | AJ14: ='Rit overzicht 2024 '!AJ13 -> 0 | AK14: ='Rit overzicht 2024 '!AK13 -> 0 | AL14: ='Rit overzicht 2024 '!AL13 -> 0 | AM14: ='Rit overzicht 2024 '!AM13 -> 0 | AN14: ='Rit overzicht 2024 '!AN13 -> 0 | AO14: ='Rit overzicht 2024 '!AO13 -> 0 | AP14: ='Rit overzicht 2024 '!AP13 -> 0 | AQ14: ='Rit overzicht 2024 '!AQ13 -> 0 | AR14: ='Rit overzicht 2024 '!AR13 -> 0 | AS14: ='Rit overzicht 2024 '!AS13 -> 0 | AT14: ='Rit overzicht 2024 '!AT13 -> 0 | AU14: ='Rit overzicht 2024 '!AU13 -> 0 | AV14: ='Rit overzicht 2024 '!AV13 -> 0 | AW14: ='Rit overzicht 2024 '!AW13 -> 0 | AX14: ='Rit overzicht 2024 '!AX13 -> 0 | AY14: ='Rit overzicht 2024 '!AY13 -> 0 | AZ14: ='Rit overzicht 2024 '!AZ13 -> 0 | BA14: ='Rit overzicht 2024 '!BA13 -> 0 | BB14: ='Rit overzicht 2024 '!BB13 -> 0 | BC14: ='Rit overzicht 2024 '!BC13 -> 0 | BD14: ='Rit overzicht 2024 '!BD13 -> 0 | BE14: ='Rit overzicht 2024 '!BE13 -> 0 | BF14: ='Rit overzicht 2024 '!BF13 -> 0 | BG14: ='Rit overzicht 2024 '!BG13 -> 0 | BH14: ='Rit overzicht 2024 '!BH13 -> 0 | BI14: ='Rit overzicht 2024 '!BI13 -> 1 | BJ14: ='Rit overzicht 2024 '!BJ13 -> 0 | BK14: ='Rit overzicht 2024 '!BK13 -> 0 | BL14: ='Rit overzicht 2024 '!BL13 -> 0 | BM14: ='Rit overzicht 2024 '!BM13 -> 1 | BN14: ='Rit overzicht 2024 '!BN13 -> 16
A15: 3.3 | C15: Maandag | D15: Leerdam Noord | F15: 7 | G15: 2 | I15: ='Rit overzicht 2024 '!I15 -> 0 | J15: ='Rit overzicht 2024 '!J15 -> 0 | K15: ='Rit overzicht 2024 '!K15 -> 0 | L15: ='Rit overzicht 2024 '!L15 -> 0 | M15: ='Rit overzicht 2024 '!M15 -> 3 | N15: ='Rit overzicht 2024 '!N15 -> 3 | O15: ='Rit overzicht 2024 '!O15 -> 0 | P15: ='Rit overzicht 2024 '!P15 -> 0 | Q15: ='Rit overzicht 2024 '!Q15 -> 0 | R15: ='Rit overzicht 2024 '!R15 -> 0 | S15: ='Rit overzicht 2024 '!S15 -> 0 | T15: ='Rit overzicht 2024 '!T15 -> 4 | U15: ='Rit overzicht 2024 '!U15 -> 14 | V15: ='Rit overzicht 2024 '!V15 -> 0 | W15: ='Rit overzicht 2024 '!W15 -> 0 | X15: ='Rit overzicht 2024 '!X15 -> 0 | Y15: ='Rit overzicht 2024 '!Y15 -> 0 | Z15: ='Rit overzicht 2024 '!Z15 -> 0 | AA15: ='Rit overzicht 2024 '!AA15 -> 0 | AB15: ='Rit overzicht 2024 '!AB15 -> 0 | AC15: ='Rit overzicht 2024 '!AC15 -> 0 | AD15: ='Rit overzicht 2024 '!AD15 -> 0 | AE15: ='Rit overzicht 2024 '!AE15 -> 0 | AF15: ='Rit overzicht 2024 '!AF15 -> 0 | AG15: ='Rit overzicht 2024 '!AG15 -> 0 | AH15: ='Rit overzicht 2024 '!AH15 -> 0 | AI15: ='Rit overzicht 2024 '!AI15 -> 0 | AJ15: ='Rit overzicht 2024 '!AJ15 -> 0 | AK15: ='Rit overzicht 2024 '!AK15 -> 0 | AL15: ='Rit overzicht 2024 '!AL15 -> 0 | AM15: ='Rit overzicht 2024 '!AM15 -> 0 | AN15: ='Rit overzicht 2024 '!AN15 -> 0 | AO15: ='Rit overzicht 2024 '!AO15 -> 0 | AP15: ='Rit overzicht 2024 '!AP15 -> 0 | AQ15: ='Rit overzicht 2024 '!AQ15 -> 0 | AR15: ='Rit overzicht 2024 '!AR15 -> 0 | AS15: ='Rit overzicht 2024 '!AS15 -> 0 | AT15: ='Rit overzicht 2024 '!AT15 -> 0 | AU15: ='Rit overzicht 2024 '!AU15 -> 0 | AV15: ='Rit overzicht 2024 '!AV15 -> 0 | AW15: ='Rit overzicht 2024 '!AW15 -> 0 | AX15: ='Rit overzicht 2024 '!AX15 -> 0 | AY15: ='Rit overzicht 2024 '!AY15 -> 0 | AZ15: ='Rit overzicht 2024 '!AZ15 -> 0 | BA15: ='Rit overzicht 2024 '!BA15 -> 0 | BB15: ='Rit overzicht 2024 '!BB15 -> 0 | BC15: ='Rit overzicht 2024 '!BC15 -> 0 | BD15: ='Rit overzicht 2024 '!BD15 -> 0 | BE15: ='Rit overzicht 2024 '!BE15 -> 0 | BF15: ='Rit overzicht 2024 '!BF15 -> 0 | BG15: ='Rit overzicht 2024 '!BG15 -> 0 | BH15: ='Rit overzicht 2024 '!BH15 -> 0 | BI15: ='Rit overzicht 2024 '!BI15 -> 7 | BJ15: ='Rit overzicht 2024 '!BJ15 -> 0 | BK15: ='Rit overzicht 2024 '!BK15 -> 17 | BL15: ='Rit overzicht 2024 '!BL15 -> 0 | BM15: ='Rit overzicht 2024 '!BM15 -> 24 | BN15: ='Rit overzicht 2024 '!BN15 -> 79
A16: 4.1 | C16: Maandag | D16: 1=Leerdam-West +2=Broekgraaf | F16: 8 | G16: 8 | H16: 8 | I16: ='Rit overzicht 2024 '!I16 -> 0 | J16: ='Rit overzicht 2024 '!J16 -> 0 | K16: ='Rit overzicht 2024 '!K16 -> 0 | L16: ='Rit overzicht 2024 '!L16 -> 0 | M16: ='Rit overzicht 2024 '!M16 -> 6 | N16: ='Rit overzicht 2024 '!N16 -> 19 | O16: ='Rit overzicht 2024 '!O16 -> 0 | P16: ='Rit overzicht 2024 '!P16 -> 0 | Q16: ='Rit overzicht 2024 '!Q16 -> 0 | R16: ='Rit overzicht 2024 '!R16 -> 0 | S16: ='Rit overzicht 2024 '!S16 -> 0 | T16: ='Rit overzicht 2024 '!T16 -> 19 | U16: ='Rit overzicht 2024 '!U16 -> 26 | V16: ='Rit overzicht 2024 '!V16 -> 0 | W16: ='Rit overzicht 2024 '!W16 -> 0 | X16: ='Rit overzicht 2024 '!X16 -> 9 | Y16: ='Rit overzicht 2024 '!Y16 -> 0 | Z16: ='Rit overzicht 2024 '!Z16 -> 0 | AA16: ='Rit overzicht 2024 '!AA16 -> 0 | AB16: ='Rit overzicht 2024 '!AB16 -> 0 | AC16: ='Rit overzicht 2024 '!AC16 -> 0 | AD16: ='Rit overzicht 2024 '!AD16 -> 0 | AE16: ='Rit overzicht 2024 '!AE16 -> 0 | AF16: ='Rit overzicht 2024 '!AF16 -> 0 | AG16: ='Rit overzicht 2024 '!AG16 -> 0 | AH16: ='Rit overzicht 2024 '!AH16 -> 0 | AI16: ='Rit overzicht 2024 '!AI16 -> 0 | AJ16: ='Rit overzicht 2024 '!AJ16 -> 0 | AK16: ='Rit overzicht 2024 '!AK16 -> 0 | AL16: ='Rit overzicht 2024 '!AL16 -> 0 | AM16: ='Rit overzicht 2024 '!AM16 -> 0 | AN16: ='Rit overzicht 2024 '!AN16 -> 0 | AO16: ='Rit overzicht 2024 '!AO16 -> 0 | AP16: ='Rit overzicht 2024 '!AP16 -> 0 | AQ16: ='Rit overzicht 2024 '!AQ16 -> 0 | AR16: ='Rit overzicht 2024 '!AR16 -> 0 | AS16: ='Rit overzicht 2024 '!AS16 -> 0 | AT16: ='Rit overzicht 2024 '!AT16 -> 0 | AU16: ='Rit overzicht 2024 '!AU16 -> 0 | AV16: ='Rit overzicht 2024 '!AV16 -> 0 | AW16: ='Rit overzicht 2024 '!AW16 -> 0 | AX16: ='Rit overzicht 2024 '!AX16 -> 0 | AY16: ='Rit overzicht 2024 '!AY16 -> 0 | AZ16: ='Rit overzicht 2024 '!AZ16 -> 0 | BA16: ='Rit overzicht 2024 '!BA16 -> 0 | BB16: ='Rit overzicht 2024 '!BB16 -> 0 | BC16: ='Rit overzicht 2024 '!BC16 -> 0 | BD16: ='Rit overzicht 2024 '!BD16 -> 0 | BE16: ='Rit overzicht 2024 '!BE16 -> 0 | BF16: ='Rit overzicht 2024 '!BF16 -> 0 | BG16: ='Rit overzicht 2024 '!BG16 -> 0 | BH16: ='Rit overzicht 2024 '!BH16 -> 0 | BI16: ='Rit overzicht 2024 '!BI16 -> 0 | BJ16: ='Rit overzicht 2024 '!BJ16 -> 47 | BK16: ='Rit overzicht 2024 '!BK16 -> 0 | BL16: ='Rit overzicht 2024 '!BL16 -> 32 | BM16: ='Rit overzicht 2024 '!BM16 -> 0 | BN16: ='Rit overzicht 2024 '!BN16 -> 0
A17: 4.1 | C17: Maandag | D17: 1=Leerdam-West +2=Broekgraaf | E17: 1=Laantje van van Ieperen 3 | F17: 8 | G17: 8 | H17: 8 | I17: ='Rit overzicht 2024 '!I17 -> 0 | J17: ='Rit overzicht 2024 '!J17 -> 0 | K17: ='Rit overzicht 2024 '!K17 -> 0 | L17: ='Rit overzicht 2024 '!L17 -> 0 | M17: ='Rit overzicht 2024 '!M17 -> 0 | N17: ='Rit overzicht 2024 '!N17 -> 0 | O17: ='Rit overzicht 2024 '!O17 -> 0 | P17: ='Rit overzicht 2024 '!P17 -> 0 | Q17: ='Rit overzicht 2024 '!Q17 -> 0 | R17: ='Rit overzicht 2024 '!R17 -> 2 | S17: ='Rit overzicht 2024 '!S17 -> 4 | T17: ='Rit overzicht 2024 '!T17 -> 0 | U17: ='Rit overzicht 2024 '!U17 -> 0 | V17: ='Rit overzicht 2024 '!V17 -> 0 | W17: ='Rit overzicht 2024 '!W17 -> 0 | X17: ='Rit overzicht 2024 '!X17 -> 0 | Y17: ='Rit overzicht 2024 '!Y17 -> 0 | Z17: ='Rit overzicht 2024 '!Z17 -> 0 | AA17: ='Rit overzicht 2024 '!AA17 -> 23 | AB17: ='Rit overzicht 2024 '!AB17 -> 0 | AC17: ='Rit overzicht 2024 '!AC17 -> 0 | AD17: ='Rit overzicht 2024 '!AD17 -> 0 | AE17: ='Rit overzicht 2024 '!AE17 -> 0 | AF17: ='Rit overzicht 2024 '!AF17 -> 0 | AG17: ='Rit overzicht 2024 '!AG17 -> 0 | AH17: ='Rit overzicht 2024 '!AH17 -> 0 | AI17: ='Rit overzicht 2024 '!AI17 -> 0 | AJ17: ='Rit overzicht 2024 '!AJ17 -> 0 | AK17: ='Rit overzicht 2024 '!AK17 -> 0 | AL17: ='Rit overzicht 2024 '!AL17 -> 0 | AM17: ='Rit overzicht 2024 '!AM17 -> 0 | AN17: ='Rit overzicht 2024 '!AN17 -> 0 | AO17: ='Rit overzicht 2024 '!AO17 -> 0 | AP17: ='Rit overzicht 2024 '!AP17 -> 0 | AQ17: ='Rit overzicht 2024 '!AQ17 -> 0 | AR17: ='Rit overzicht 2024 '!AR17 -> 0 | AS17: ='Rit overzicht 2024 '!AS17 -> 0 | AT17: ='Rit overzicht 2024 '!AT17 -> 0 | AU17: ='Rit overzicht 2024 '!AU17 -> 0 | AV17: ='Rit overzicht 2024 '!AV17 -> 0 | AW17: ='Rit overzicht 2024 '!AW17 -> 0 | AX17: ='Rit overzicht 2024 '!AX17 -> 0 | AY17: ='Rit overzicht 2024 '!AY17 -> 0 | AZ17: ='Rit overzicht 2024 '!AZ17 -> 0 | BA17: ='Rit overzicht 2024 '!BA17 -> 0 | BB17: ='Rit overzicht 2024 '!BB17 -> 0 | BC17: ='Rit overzicht 2024 '!BC17 -> 0 | BD17: ='Rit overzicht 2024 '!BD17 -> 0 | BE17: ='Rit overzicht 2024 '!BE17 -> 0 | BF17: ='Rit overzicht 2024 '!BF17 -> 0 | BG17: ='Rit overzicht 2024 '!BG17 -> 0 | BH17: ='Rit overzicht 2024 '!BH17 -> 0 | BI17: ='Rit overzicht 2024 '!BI17 -> 2 | BJ17: ='Rit overzicht 2024 '!BJ17 -> 0 | BK17: ='Rit overzicht 2024 '!BK17 -> 27 | BL17: ='Rit overzicht 2024 '!BL17 -> 0 | BM17: ='Rit overzicht 2024 '!BM17 -> 29 | BN17: ='Rit overzicht 2024 '!BN17 -> 75
A18: 5.1 | C18: Maandag | D18: 1= Nieuwland en 2 = Leerbroek binnen en Leerdam | F18: 8 | G18: 9 | H18: 8 | I18: ='Rit overzicht 2024 '!I18 -> 0 | J18: ='Rit overzicht 2024 '!J18 -> 0 | K18: ='Rit overzicht 2024 '!K18 -> 0 | L18: ='Rit overzicht 2024 '!L18 -> 0 | M18: ='Rit overzicht 2024 '!M18 -> 0 | N18: ='Rit overzicht 2024 '!N18 -> 0 | O18: ='Rit overzicht 2024 '!O18 -> 0 | P18: ='Rit overzicht 2024 '!P18 -> 0 | Q18: ='Rit overzicht 2024 '!Q18 -> 0 | R18: ='Rit overzicht 2024 '!R18 -> 21 | S18: ='Rit overzicht 2024 '!S18 -> 19 | T18: ='Rit overzicht 2024 '!T18 -> 0 | U18: ='Rit overzicht 2024 '!U18 -> 0 | V18: ='Rit overzicht 2024 '!V18 -> 0 | W18: ='Rit overzicht 2024 '!W18 -> 0 | X18: ='Rit overzicht 2024 '!X18 -> 0 | Y18: ='Rit overzicht 2024 '!Y18 -> 0 | Z18: ='Rit overzicht 2024 '!Z18 -> 8 | AA18: ='Rit overzicht 2024 '!AA18 -> 27 | AB18: ='Rit overzicht 2024 '!AB18 -> 0 | AC18: ='Rit overzicht 2024 '!AC18 -> 0 | AD18: ='Rit overzicht 2024 '!AD18 -> 0 | AE18: ='Rit overzicht 2024 '!AE18 -> 0 | AF18: ='Rit overzicht 2024 '!AF18 -> 0 | AG18: ='Rit overzicht 2024 '!AG18 -> 0 | AH18: ='Rit overzicht 2024 '!AH18 -> 0 | AI18: ='Rit overzicht 2024 '!AI18 -> 0 | AJ18: ='Rit overzicht 2024 '!AJ18 -> 0 | AK18: ='Rit overzicht 2024 '!AK18 -> 0 | AL18: ='Rit overzicht 2024 '!AL18 -> 0 | AM18: ='Rit overzicht 2024 '!AM18 -> 0 | AN18: ='Rit overzicht 2024 '!AN18 -> 0 | AO18: ='Rit overzicht 2024 '!AO18 -> 0 | AP18: ='Rit overzicht 2024 '!AP18 -> 0 | AQ18: ='Rit overzicht 2024 '!AQ18 -> 0 | AR18: ='Rit overzicht 2024 '!AR18 -> 0 | AS18: ='Rit overzicht 2024 '!AS18 -> 0 | AT18: ='Rit overzicht 2024 '!AT18 -> 0 | AU18: ='Rit overzicht 2024 '!AU18 -> 0 | AV18: ='Rit overzicht 2024 '!AV18 -> 0 | AW18: ='Rit overzicht 2024 '!AW18 -> 0 | AX18: ='Rit overzicht 2024 '!AX18 -> 0 | AY18: ='Rit overzicht 2024 '!AY18 -> 0 | AZ18: ='Rit overzicht 2024 '!AZ18 -> 0 | BA18: ='Rit overzicht 2024 '!BA18 -> 0 | BB18: ='Rit overzicht 2024 '!BB18 -> 0 | BC18: ='Rit overzicht 2024 '!BC18 -> 0 | BD18: ='Rit overzicht 2024 '!BD18 -> 0 | BE18: ='Rit overzicht 2024 '!BE18 -> 0 | BF18: ='Rit overzicht 2024 '!BF18 -> 0 | BG18: ='Rit overzicht 2024 '!BG18 -> 0 | BH18: ='Rit overzicht 2024 '!BH18 -> 0 | BI18: ='Rit overzicht 2024 '!BI18 -> 0 | BJ18: ='Rit overzicht 2024 '!BJ18 -> 29 | BK18: ='Rit overzicht 2024 '!BK18 -> 0 | BL18: ='Rit overzicht 2024 '!BL18 -> 46 | BM18: ='Rit overzicht 2024 '!BM18 -> 0 | BN18: ='Rit overzicht 2024 '!BN18 -> 0
A19: 5.1 | C19: Maandag | D19: 1 = Nieuwland en 2 = Leerbroek binnen en Leerdam | E19: 1=Kwakernaak 4 en 2= Recht van ter leede 11 | F19: 8 | G19: 9 | H19: 8 | I19: ='Rit overzicht 2024 '!I19 -> 3 | J19: ='Rit overzicht 2024 '!J19 -> 3 | K19: ='Rit overzicht 2024 '!K19 -> 1 | L19: ='Rit overzicht 2024 '!L19 -> 0 | M19: ='Rit overzicht 2024 '!M19 -> 10 | N19: ='Rit overzicht 2024 '!N19 -> 0 | O19: ='Rit overzicht 2024 '!O19 -> 0 | P19: ='Rit overzicht 2024 '!P19 -> 0 | Q19: ='Rit overzicht 2024 '!Q19 -> 0 | R19: ='Rit overzicht 2024 '!R19 -> 0 | S19: ='Rit overzicht 2024 '!S19 -> 17 | T19: ='Rit overzicht 2024 '!T19 -> 0 | U19: ='Rit overzicht 2024 '!U19 -> 0 | V19: ='Rit overzicht 2024 '!V19 -> 1 | W19: ='Rit overzicht 2024 '!W19 -> 0 | X19: ='Rit overzicht 2024 '!X19 -> 0 | Y19: ='Rit overzicht 2024 '!Y19 -> 0 | Z19: ='Rit overzicht 2024 '!Z19 -> 0 | AA19: ='Rit overzicht 2024 '!AA19 -> 0 | AB19: ='Rit overzicht 2024 '!AB19 -> 0 | AC19: ='Rit overzicht 2024 '!AC19 -> 0 | AD19: ='Rit overzicht 2024 '!AD19 -> 0 | AE19: ='Rit overzicht 2024 '!AE19 -> 0 | AF19: ='Rit overzicht 2024 '!AF19 -> 0 | AG19: ='Rit overzicht 2024 '!AG19 -> 0 | AH19: ='Rit overzicht 2024 '!AH19 -> 0 | AI19: ='Rit overzicht 2024 '!AI19 -> 0 | AJ19: ='Rit overzicht 2024 '!AJ19 -> 0 | AK19: ='Rit overzicht 2024 '!AK19 -> 0 | AL19: ='Rit overzicht 2024 '!AL19 -> 0 | AM19: ='Rit overzicht 2024 '!AM19 -> 0 | AN19: ='Rit overzicht 2024 '!AN19 -> 0 | AO19: ='Rit overzicht 2024 '!AO19 -> 0 | AP19: ='Rit overzicht 2024 '!AP19 -> 0 | AQ19: ='Rit overzicht 2024 '!AQ19 -> 0 | AR19: ='Rit overzicht 2024 '!AR19 -> 0 | AS19: ='Rit overzicht 2024 '!AS19 -> 0 | AT19: ='Rit overzicht 2024 '!AT19 -> 0 | AU19: ='Rit overzicht 2024 '!AU19 -> 0 | AV19: ='Rit overzicht 2024 '!AV19 -> 0 | AW19: ='Rit overzicht 2024 '!AW19 -> 0 | AX19: ='Rit overzicht 2024 '!AX19 -> 0 | AY19: ='Rit overzicht 2024 '!AY19 -> 0 | AZ19: ='Rit overzicht 2024 '!AZ19 -> 0 | BA19: ='Rit overzicht 2024 '!BA19 -> 0 | BB19: ='Rit overzicht 2024 '!BB19 -> 0 | BC19: ='Rit overzicht 2024 '!BC19 -> 0 | BD19: ='Rit overzicht 2024 '!BD19 -> 0 | BE19: ='Rit overzicht 2024 '!BE19 -> 0 | BF19: ='Rit overzicht 2024 '!BF19 -> 0 | BG19: ='Rit overzicht 2024 '!BG19 -> 0 | BH19: ='Rit overzicht 2024 '!BH19 -> 0 | BI19: ='Rit overzicht 2024 '!BI19 -> 4 | BJ19: ='Rit overzicht 2024 '!BJ19 -> 0 | BK19: ='Rit overzicht 2024 '!BK19 -> 31 | BL19: ='Rit overzicht 2024 '!BL19 -> 0 | BM19: ='Rit overzicht 2024 '!BM19 -> 35 | BN19: ='Rit overzicht 2024 '!BN19 -> 117
A20: 1.1 | C20: Dinsdag | D20: Lingewijk Gorinchem | F20: 4 | G20: 4 | H20: 4 | I20: ='Rit overzicht 2024 '!I20 -> 23 | J20: ='Rit overzicht 2024 '!J20 -> 18 | K20: ='Rit overzicht 2024 '!K20 -> 20 | L20: ='Rit overzicht 2024 '!L20 -> 0 | M20: ='Rit overzicht 2024 '!M20 -> 32 | N20: ='Rit overzicht 2024 '!N20 -> 0 | O20: ='Rit overzicht 2024 '!O20 -> 0 | P20: ='Rit overzicht 2024 '!P20 -> 0 | Q20: ='Rit overzicht 2024 '!Q20 -> 0 | R20: ='Rit overzicht 2024 '!R20 -> 0 | S20: ='Rit overzicht 2024 '!S20 -> 22 | T20: ='Rit overzicht 2024 '!T20 -> 0 | U20: ='Rit overzicht 2024 '!U20 -> 0 | V20: ='Rit overzicht 2024 '!V20 -> 2 | W20: ='Rit overzicht 2024 '!W20 -> 0 | X20: ='Rit overzicht 2024 '!X20 -> 0 | Y20: ='Rit overzicht 2024 '!Y20 -> 0 | Z20: ='Rit overzicht 2024 '!Z20 -> 0 | AA20: ='Rit overzicht 2024 '!AA20 -> 0 | AB20: ='Rit overzicht 2024 '!AB20 -> 0 | AC20: ='Rit overzicht 2024 '!AC20 -> 0 | AD20: ='Rit overzicht 2024 '!AD20 -> 0 | AE20: ='Rit overzicht 2024 '!AE20 -> 0 | AF20: ='Rit overzicht 2024 '!AF20 -> 0 | AG20: ='Rit overzicht 2024 '!AG20 -> 0 | AH20: ='Rit overzicht 2024 '!AH20 -> 0 | AI20: ='Rit overzicht 2024 '!AI20 -> 0 | AJ20: ='Rit overzicht 2024 '!AJ20 -> 0 | AK20: ='Rit overzicht 2024 '!AK20 -> 0 | AL20: ='Rit overzicht 2024 '!AL20 -> 0 | AM20: ='Rit overzicht 2024 '!AM20 -> 0 | AN20: ='Rit overzicht 2024 '!AN20 -> 0 | AO20: ='Rit overzicht 2024 '!AO20 -> 0 | AP20: ='Rit overzicht 2024 '!AP20 -> 0 | AQ20: ='Rit overzicht 2024 '!AQ20 -> 0 | AR20: ='Rit overzicht 2024 '!AR20 -> 0 | AS20: ='Rit overzicht 2024 '!AS20 -> 0 | AT20: ='Rit overzicht 2024 '!AT20 -> 0 | AU20: ='Rit overzicht 2024 '!AU20 -> 0 | AV20: ='Rit overzicht 2024 '!AV20 -> 0 | AW20: ='Rit overzicht 2024 '!AW20 -> 0 | AX20: ='Rit overzicht 2024 '!AX20 -> 0 | AY20: ='Rit overzicht 2024 '!AY20 -> 0 | AZ20: ='Rit overzicht 2024 '!AZ20 -> 0 | BA20: ='Rit overzicht 2024 '!BA20 -> 0 | BB20: ='Rit overzicht 2024 '!BB20 -> 0 | BC20: ='Rit overzicht 2024 '!BC20 -> 0 | BD20: ='Rit overzicht 2024 '!BD20 -> 0 | BE20: ='Rit overzicht 2024 '!BE20 -> 0 | BF20: ='Rit overzicht 2024 '!BF20 -> 0 | BG20: ='Rit overzicht 2024 '!BG20 -> 0 | BH20: ='Rit overzicht 2024 '!BH20 -> 0 | BI20: ='Rit overzicht 2024 '!BI20 -> 0 | BJ20: ='Rit overzicht 2024 '!BJ20 -> 20 | BK20: ='Rit overzicht 2024 '!BK20 -> 0 | BL20: ='Rit overzicht 2024 '!BL20 -> 97 | BM20: ='Rit overzicht 2024 '!BM20 -> 0 | BN20: ='Rit overzicht 2024 '!BN20 -> 0
A21: 1.1 | C21: Dinsdag | D21: Lingewijk Gorinchem | F21: 4 | G21: 4 | H21: 4 | I21: ='Rit overzicht 2024 '!I21 -> 5 | J21: ='Rit overzicht 2024 '!J21 -> 0 | K21: ='Rit overzicht 2024 '!K21 -> 8 | L21: ='Rit overzicht 2024 '!L21 -> 0 | M21: ='Rit overzicht 2024 '!M21 -> 4 | N21: ='Rit overzicht 2024 '!N21 -> 0 | O21: ='Rit overzicht 2024 '!O21 -> 0 | P21: ='Rit overzicht 2024 '!P21 -> 0 | Q21: ='Rit overzicht 2024 '!Q21 -> 0 | R21: ='Rit overzicht 2024 '!R21 -> 0 | S21: ='Rit overzicht 2024 '!S21 -> 0 | T21: ='Rit overzicht 2024 '!T21 -> 0 | U21: ='Rit overzicht 2024 '!U21 -> 0 | V21: ='Rit overzicht 2024 '!V21 -> 0 | W21: ='Rit overzicht 2024 '!W21 -> 0 | X21: ='Rit overzicht 2024 '!X21 -> 0 | Y21: ='Rit overzicht 2024 '!Y21 -> 5 | Z21: ='Rit overzicht 2024 '!Z21 -> 0 | AA21: ='Rit overzicht 2024 '!AA21 -> 0 | AB21: ='Rit overzicht 2024 '!AB21 -> 0 | AC21: ='Rit overzicht 2024 '!AC21 -> 0 | AD21: ='Rit overzicht 2024 '!AD21 -> 0 | AE21: ='Rit overzicht 2024 '!AE21 -> 0 | AF21: ='Rit overzicht 2024 '!AF21 -> 0 | AG21: ='Rit overzicht 2024 '!AG21 -> 0 | AH21: ='Rit overzicht 2024 '!AH21 -> 0 | AI21: ='Rit overzicht 2024 '!AI21 -> 0 | AJ21: ='Rit overzicht 2024 '!AJ21 -> 0 | AK21: ='Rit overzicht 2024 '!AK21 -> 0 | AL21: ='Rit overzicht 2024 '!AL21 -> 0 | AM21: ='Rit overzicht 2024 '!AM21 -> 0 | AN21: ='Rit overzicht 2024 '!AN21 -> 0 | AO21: ='Rit overzicht 2024 '!AO21 -> 0 | AP21: ='Rit overzicht 2024 '!AP21 -> 0 | AQ21: ='Rit overzicht 2024 '!AQ21 -> 0 | AR21: ='Rit overzicht 2024 '!AR21 -> 0 | AS21: ='Rit overzicht 2024 '!AS21 -> 0 | AT21: ='Rit overzicht 2024 '!AT21 -> 0 | AU21: ='Rit overzicht 2024 '!AU21 -> 0 | AV21: ='Rit overzicht 2024 '!AV21 -> 0 | AW21: ='Rit overzicht 2024 '!AW21 -> 0 | AX21: ='Rit overzicht 2024 '!AX21 -> 0 | AY21: ='Rit overzicht 2024 '!AY21 -> 0 | AZ21: ='Rit overzicht 2024 '!AZ21 -> 0 | BA21: ='Rit overzicht 2024 '!BA21 -> 0 | BB21: ='Rit overzicht 2024 '!BB21 -> 0 | BC21: ='Rit overzicht 2024 '!BC21 -> 0 | BD21: ='Rit overzicht 2024 '!BD21 -> 0 | BE21: ='Rit overzicht 2024 '!BE21 -> 0 | BF21: ='Rit overzicht 2024 '!BF21 -> 0 | BG21: ='Rit overzicht 2024 '!BG21 -> 0 | BH21: ='Rit overzicht 2024 '!BH21 -> 0 | BI21: ='Rit overzicht 2024 '!BI21 -> 0 | BJ21: ='Rit overzicht 2024 '!BJ21 -> 0 | BK21: ='Rit overzicht 2024 '!BK21 -> 22 | BL21: ='Rit overzicht 2024 '!BL21 -> 0 | BM21: ='Rit overzicht 2024 '!BM21 -> 22 | BN21: ='Rit overzicht 2024 '!BN21 -> 58
A22: 1.2 | C22: Dinsdag | D22: Gildewijk, Haarwijk 2 | F22: 4 | G22: 4 | H22: 4 | I22: ='Rit overzicht 2024 '!I22 -> 9 | J22: ='Rit overzicht 2024 '!J22 -> 0 | K22: ='Rit overzicht 2024 '!K22 -> 15 | L22: ='Rit overzicht 2024 '!L22 -> 29 | M22: ='Rit overzicht 2024 '!M22 -> 3 | N22: ='Rit overzicht 2024 '!N22 -> 0 | O22: ='Rit overzicht 2024 '!O22 -> 0 | P22: ='Rit overzicht 2024 '!P22 -> 0 | Q22: ='Rit overzicht 2024 '!Q22 -> 0 | R22: ='Rit overzicht 2024 '!R22 -> 0 | S22: ='Rit overzicht 2024 '!S22 -> 0 | T22: ='Rit overzicht 2024 '!T22 -> 0 | U22: ='Rit overzicht 2024 '!U22 -> 0 | V22: ='Rit overzicht 2024 '!V22 -> 0 | W22: ='Rit overzicht 2024 '!W22 -> 0 | X22: ='Rit overzicht 2024 '!X22 -> 0 | Y22: ='Rit overzicht 2024 '!Y22 -> 2 | Z22: ='Rit overzicht 2024 '!Z22 -> 0 | AA22: ='Rit overzicht 2024 '!AA22 -> 0 | AB22: ='Rit overzicht 2024 '!AB22 -> 0 | AC22: ='Rit overzicht 2024 '!AC22 -> 0 | AD22: ='Rit overzicht 2024 '!AD22 -> 0 | AE22: ='Rit overzicht 2024 '!AE22 -> 0 | AF22: ='Rit overzicht 2024 '!AF22 -> 0 | AG22: ='Rit overzicht 2024 '!AG22 -> 0 | AH22: ='Rit overzicht 2024 '!AH22 -> 0 | AI22: ='Rit overzicht 2024 '!AI22 -> 0 | AJ22: ='Rit overzicht 2024 '!AJ22 -> 0 | AK22: ='Rit overzicht 2024 '!AK22 -> 0 | AL22: ='Rit overzicht 2024 '!AL22 -> 0 | AM22: ='Rit overzicht 2024 '!AM22 -> 0 | AN22: ='Rit overzicht 2024 '!AN22 -> 0 | AO22: ='Rit overzicht 2024 '!AO22 -> 0 | AP22: ='Rit overzicht 2024 '!AP22 -> 0 | AQ22: ='Rit overzicht 2024 '!AQ22 -> 0 | AR22: ='Rit overzicht 2024 '!AR22 -> 0 | AS22: ='Rit overzicht 2024 '!AS22 -> 0 | AT22: ='Rit overzicht 2024 '!AT22 -> 0 | AU22: ='Rit overzicht 2024 '!AU22 -> 0 | AV22: ='Rit overzicht 2024 '!AV22 -> 0 | AW22: ='Rit overzicht 2024 '!AW22 -> 0 | AX22: ='Rit overzicht 2024 '!AX22 -> 0 | AY22: ='Rit overzicht 2024 '!AY22 -> 0 | AZ22: ='Rit overzicht 2024 '!AZ22 -> 0 | BA22: ='Rit overzicht 2024 '!BA22 -> 0 | BB22: ='Rit overzicht 2024 '!BB22 -> 0 | BC22: ='Rit overzicht 2024 '!BC22 -> 0 | BD22: ='Rit overzicht 2024 '!BD22 -> 0 | BE22: ='Rit overzicht 2024 '!BE22 -> 0 | BF22: ='Rit overzicht 2024 '!BF22 -> 0 | BG22: ='Rit overzicht 2024 '!BG22 -> 0 | BH22: ='Rit overzicht 2024 '!BH22 -> 0 | BI22: ='Rit overzicht 2024 '!BI22 -> 0 | BJ22: ='Rit overzicht 2024 '!BJ22 -> 29 | BK22: ='Rit overzicht 2024 '!BK22 -> 0 | BL22: ='Rit overzicht 2024 '!BL22 -> 29 | BM22: ='Rit overzicht 2024 '!BM22 -> 0 | BN22: ='Rit overzicht 2024 '!BN22 -> 0
A23: 1.2 | C23: Dinsdag | D23: Gildewijk, Haarwijk 2 | F23: 4 | G23: 4 | H23: 4 | I23: ='Rit overzicht 2024 '!I23 -> 0 | J23: ='Rit overzicht 2024 '!J23 -> 0 | K23: ='Rit overzicht 2024 '!K23 -> 7 | L23: ='Rit overzicht 2024 '!L23 -> 3 | M23: ='Rit overzicht 2024 '!M23 -> 38 | N23: ='Rit overzicht 2024 '!N23 -> 0 | O23: ='Rit overzicht 2024 '!O23 -> 0 | P23: ='Rit overzicht 2024 '!P23 -> 1 | Q23: ='Rit overzicht 2024 '!Q23 -> 9 | R23: ='Rit overzicht 2024 '!R23 -> 0 | S23: ='Rit overzicht 2024 '!S23 -> 0 | T23: ='Rit overzicht 2024 '!T23 -> 1 | U23: ='Rit overzicht 2024 '!U23 -> 7 | V23: ='Rit overzicht 2024 '!V23 -> 0 | W23: ='Rit overzicht 2024 '!W23 -> 0 | X23: ='Rit overzicht 2024 '!X23 -> 0 | Y23: ='Rit overzicht 2024 '!Y23 -> 28 | Z23: ='Rit overzicht 2024 '!Z23 -> 2 | AA23: ='Rit overzicht 2024 '!AA23 -> 23 | AB23: ='Rit overzicht 2024 '!AB23 -> 0 | AC23: ='Rit overzicht 2024 '!AC23 -> 0 | AD23: ='Rit overzicht 2024 '!AD23 -> 0 | AE23: ='Rit overzicht 2024 '!AE23 -> 0 | AF23: ='Rit overzicht 2024 '!AF23 -> 0 | AG23: ='Rit overzicht 2024 '!AG23 -> 0 | AH23: ='Rit overzicht 2024 '!AH23 -> 0 | AI23: ='Rit overzicht 2024 '!AI23 -> 0 | AJ23: ='Rit overzicht 2024 '!AJ23 -> 0 | AK23: ='Rit overzicht 2024 '!AK23 -> 0 | AL23: ='Rit overzicht 2024 '!AL23 -> 0 | AM23: ='Rit overzicht 2024 '!AM23 -> 0 | AN23: ='Rit overzicht 2024 '!AN23 -> 0 | AO23: ='Rit overzicht 2024 '!AO23 -> 0 | AP23: ='Rit overzicht 2024 '!AP23 -> 0 | AQ23: ='Rit overzicht 2024 '!AQ23 -> 0 | AR23: ='Rit overzicht 2024 '!AR23 -> 0 | AS23: ='Rit overzicht 2024 '!AS23 -> 0 | AT23: ='Rit overzicht 2024 '!AT23 -> 0 | AU23: ='Rit overzicht 2024 '!AU23 -> 0 | AV23: ='Rit overzicht 2024 '!AV23 -> 0 | AW23: ='Rit overzicht 2024 '!AW23 -> 0 | AX23: ='Rit overzicht 2024 '!AX23 -> 0 | AY23: ='Rit overzicht 2024 '!AY23 -> 0 | AZ23: ='Rit overzicht 2024 '!AZ23 -> 0 | BA23: ='Rit overzicht 2024 '!BA23 -> 0 | BB23: ='Rit overzicht 2024 '!BB23 -> 0 | BC23: ='Rit overzicht 2024 '!BC23 -> 0 | BD23: ='Rit overzicht 2024 '!BD23 -> 0 | BE23: ='Rit overzicht 2024 '!BE23 -> 0 | BF23: ='Rit overzicht 2024 '!BF23 -> 0 | BG23: ='Rit overzicht 2024 '!BG23 -> 0 | BH23: ='Rit overzicht 2024 '!BH23 -> 0 | BI23: ='Rit overzicht 2024 '!BI23 -> 7 | BJ23: ='Rit overzicht 2024 '!BJ23 -> 0 | BK23: ='Rit overzicht 2024 '!BK23 -> 112 | BL23: ='Rit overzicht 2024 '!BL23 -> 0 | BM23: ='Rit overzicht 2024 '!BM23 -> 119 | BN23: ='Rit overzicht 2024 '!BN23 -> 142
A24: 2.1 | C24: Dinsdag | D24: Haarwijk 1 - Haarwijk 2 helpen | F24: 5 | G24: 5 | H24: 5 | I24: ='Rit overzicht 2024 '!I24 -> 0 | J24: ='Rit overzicht 2024 '!J24 -> 11 | K24: ='Rit overzicht 2024 '!K24 -> 11 | L24: ='Rit overzicht 2024 '!L24 -> 21 | M24: ='Rit overzicht 2024 '!M24 -> 20 | N24: ='Rit overzicht 2024 '!N24 -> 0 | O24: ='Rit overzicht 2024 '!O24 -> 0 | P24: ='Rit overzicht 2024 '!P24 -> 7 | Q24: ='Rit overzicht 2024 '!Q24 -> 10 | R24: ='Rit overzicht 2024 '!R24 -> 0 | S24: ='Rit overzicht 2024 '!S24 -> 6 | T24: ='Rit overzicht 2024 '!T24 -> 11 | U24: ='Rit overzicht 2024 '!U24 -> 8 | V24: ='Rit overzicht 2024 '!V24 -> 0 | W24: ='Rit overzicht 2024 '!W24 -> 6 | X24: ='Rit overzicht 2024 '!X24 -> 0 | Y24: ='Rit overzicht 2024 '!Y24 -> 17 | Z24: ='Rit overzicht 2024 '!Z24 -> 10 | AA24: ='Rit overzicht 2024 '!AA24 -> 4 | AB24: ='Rit overzicht 2024 '!AB24 -> 0 | AC24: ='Rit overzicht 2024 '!AC24 -> 0 | AD24: ='Rit overzicht 2024 '!AD24 -> 0 | AE24: ='Rit overzicht 2024 '!AE24 -> 0 | AF24: ='Rit overzicht 2024 '!AF24 -> 0 | AG24: ='Rit overzicht 2024 '!AG24 -> 0 | AH24: ='Rit overzicht 2024 '!AH24 -> 0 | AI24: ='Rit overzicht 2024 '!AI24 -> 0 | AJ24: ='Rit overzicht 2024 '!AJ24 -> 0 | AK24: ='Rit overzicht 2024 '!AK24 -> 0 | AL24: ='Rit overzicht 2024 '!AL24 -> 0 | AM24: ='Rit overzicht 2024 '!AM24 -> 0 | AN24: ='Rit overzicht 2024 '!AN24 -> 0 | AO24: ='Rit overzicht 2024 '!AO24 -> 0 | AP24: ='Rit overzicht 2024 '!AP24 -> 0 | AQ24: ='Rit overzicht 2024 '!AQ24 -> 0 | AR24: ='Rit overzicht 2024 '!AR24 -> 0 | AS24: ='Rit overzicht 2024 '!AS24 -> 0 | AT24: ='Rit overzicht 2024 '!AT24 -> 0 | AU24: ='Rit overzicht 2024 '!AU24 -> 0 | AV24: ='Rit overzicht 2024 '!AV24 -> 0 | AW24: ='Rit overzicht 2024 '!AW24 -> 0 | AX24: ='Rit overzicht 2024 '!AX24 -> 0 | AY24: ='Rit overzicht 2024 '!AY24 -> 0 | AZ24: ='Rit overzicht 2024 '!AZ24 -> 0 | BA24: ='Rit overzicht 2024 '!BA24 -> 0 | BB24: ='Rit overzicht 2024 '!BB24 -> 0 | BC24: ='Rit overzicht 2024 '!BC24 -> 0 | BD24: ='Rit overzicht 2024 '!BD24 -> 0 | BE24: ='Rit overzicht 2024 '!BE24 -> 0 | BF24: ='Rit overzicht 2024 '!BF24 -> 0 | BG24: ='Rit overzicht 2024 '!BG24 -> 0 | BH24: ='Rit overzicht 2024 '!BH24 -> 0 | BI24: ='Rit overzicht 2024 '!BI24 -> 0 | BJ24: ='Rit overzicht 2024 '!BJ24 -> 60 | BK24: ='Rit overzicht 2024 '!BK24 -> 0 | BL24: ='Rit overzicht 2024 '!BL24 -> 82 | BM24: ='Rit overzicht 2024 '!BM24 -> 0 | BN24: ='Rit overzicht 2024 '!BN24 -> 0
A25: 2.1 | C25: Dinsdag | D25: 1 =Haarwijk 1 - Haarwijk 2 helpen | E25: 1= Marinus spronklaan 1 | F25: 5 | G25: 5 | H25: 5 | I25: ='Rit overzicht 2024 '!I25 -> 0 | J25: ='Rit overzicht 2024 '!J25 -> 0 | K25: ='Rit overzicht 2024 '!K25 -> 0 | L25: ='Rit overzicht 2024 '!L25 -> 0 | M25: ='Rit overzicht 2024 '!M25 -> 0 | N25: ='Rit overzicht 2024 '!N25 -> 5 | O25: ='Rit overzicht 2024 '!O25 -> 0 | P25: ='Rit overzicht 2024 '!P25 -> 0 | Q25: ='Rit overzicht 2024 '!Q25 -> 0 | R25: ='Rit overzicht 2024 '!R25 -> 0 | S25: ='Rit overzicht 2024 '!S25 -> 0 | T25: ='Rit overzicht 2024 '!T25 -> 0 | U25: ='Rit overzicht 2024 '!U25 -> 0 | V25: ='Rit overzicht 2024 '!V25 -> 0 | W25: ='Rit overzicht 2024 '!W25 -> 10 | X25: ='Rit overzicht 2024 '!X25 -> 0 | Y25: ='Rit overzicht 2024 '!Y25 -> 0 | Z25: ='Rit overzicht 2024 '!Z25 -> 21 | AA25: ='Rit overzicht 2024 '!AA25 -> 0 | AB25: ='Rit overzicht 2024 '!AB25 -> 0 | AC25: ='Rit overzicht 2024 '!AC25 -> 0 | AD25: ='Rit overzicht 2024 '!AD25 -> 0 | AE25: ='Rit overzicht 2024 '!AE25 -> 0 | AF25: ='Rit overzicht 2024 '!AF25 -> 0 | AG25: ='Rit overzicht 2024 '!AG25 -> 0 | AH25: ='Rit overzicht 2024 '!AH25 -> 0 | AI25: ='Rit overzicht 2024 '!AI25 -> 0 | AJ25: ='Rit overzicht 2024 '!AJ25 -> 0 | AK25: ='Rit overzicht 2024 '!AK25 -> 0 | AL25: ='Rit overzicht 2024 '!AL25 -> 0 | AM25: ='Rit overzicht 2024 '!AM25 -> 0 | AN25: ='Rit overzicht 2024 '!AN25 -> 0 | AO25: ='Rit overzicht 2024 '!AO25 -> 0 | AP25: ='Rit overzicht 2024 '!AP25 -> 0 | AQ25: ='Rit overzicht 2024 '!AQ25 -> 0 | AR25: ='Rit overzicht 2024 '!AR25 -> 0 | AS25: ='Rit overzicht 2024 '!AS25 -> 0 | AT25: ='Rit overzicht 2024 '!AT25 -> 0 | AU25: ='Rit overzicht 2024 '!AU25 -> 0 | AV25: ='Rit overzicht 2024 '!AV25 -> 0 | AW25: ='Rit overzicht 2024 '!AW25 -> 0 | AX25: ='Rit overzicht 2024 '!AX25 -> 0 | AY25: ='Rit overzicht 2024 '!AY25 -> 0 | AZ25: ='Rit overzicht 2024 '!AZ25 -> 0 | BA25: ='Rit overzicht 2024 '!BA25 -> 0 | BB25: ='Rit overzicht 2024 '!BB25 -> 0 | BC25: ='Rit overzicht 2024 '!BC25 -> 0 | BD25: ='Rit overzicht 2024 '!BD25 -> 0 | BE25: ='Rit overzicht 2024 '!BE25 -> 0 | BF25: ='Rit overzicht 2024 '!BF25 -> 0 | BG25: ='Rit overzicht 2024 '!BG25 -> 0 | BH25: ='Rit overzicht 2024 '!BH25 -> 0 | BI25: ='Rit overzicht 2024 '!BI25 -> 26 | BJ25: ='Rit overzicht 2024 '!BJ25 -> 0 | BK25: ='Rit overzicht 2024 '!BK25 -> 10 | BL25: ='Rit overzicht 2024 '!BL25 -> 0 | BM25: ='Rit overzicht 2024 '!BM25 -> 36 | BN25: ='Rit overzicht 2024 '!BN25 -> 74
A26: 3.1 | C26: Dinsdag | D26: Gorinchem Wijdschild, daarna Componisten wijk | F26: 8 | G26: 8 | H26: 8 | I26: ='Rit overzicht 2024 '!I26 -> 0 | J26: ='Rit overzicht 2024 '!J26 -> 0 | K26: ='Rit overzicht 2024 '!K26 -> 0 | L26: ='Rit overzicht 2024 '!L26 -> 0 | M26: ='Rit overzicht 2024 '!M26 -> 0 | N26: ='Rit overzicht 2024 '!N26 -> 30 | O26: ='Rit overzicht 2024 '!O26 -> 0 | P26: ='Rit overzicht 2024 '!P26 -> 0 | Q26: ='Rit overzicht 2024 '!Q26 -> 0 | R26: ='Rit overzicht 2024 '!R26 -> 0 | S26: ='Rit overzicht 2024 '!S26 -> 0 | T26: ='Rit overzicht 2024 '!T26 -> 0 | U26: ='Rit overzicht 2024 '!U26 -> 0 | V26: ='Rit overzicht 2024 '!V26 -> 0 | W26: ='Rit overzicht 2024 '!W26 -> 35 | X26: ='Rit overzicht 2024 '!X26 -> 0 | Y26: ='Rit overzicht 2024 '!Y26 -> 0 | Z26: ='Rit overzicht 2024 '!Z26 -> 9 | AA26: ='Rit overzicht 2024 '!AA26 -> 0 | AB26: ='Rit overzicht 2024 '!AB26 -> 0 | AC26: ='Rit overzicht 2024 '!AC26 -> 0 | AD26: ='Rit overzicht 2024 '!AD26 -> 0 | AE26: ='Rit overzicht 2024 '!AE26 -> 0 | AF26: ='Rit overzicht 2024 '!AF26 -> 0 | AG26: ='Rit overzicht 2024 '!AG26 -> 0 | AH26: ='Rit overzicht 2024 '!AH26 -> 0 | AI26: ='Rit overzicht 2024 '!AI26 -> 0 | AJ26: ='Rit overzicht 2024 '!AJ26 -> 0 | AK26: ='Rit overzicht 2024 '!AK26 -> 0 | AL26: ='Rit overzicht 2024 '!AL26 -> 0 | AM26: ='Rit overzicht 2024 '!AM26 -> 0 | AN26: ='Rit overzicht 2024 '!AN26 -> 0 | AO26: ='Rit overzicht 2024 '!AO26 -> 0 | AP26: ='Rit overzicht 2024 '!AP26 -> 0 | AQ26: ='Rit overzicht 2024 '!AQ26 -> 0 | AR26: ='Rit overzicht 2024 '!AR26 -> 0 | AS26: ='Rit overzicht 2024 '!AS26 -> 0 | AT26: ='Rit overzicht 2024 '!AT26 -> 0 | AU26: ='Rit overzicht 2024 '!AU26 -> 0 | AV26: ='Rit overzicht 2024 '!AV26 -> 0 | AW26: ='Rit overzicht 2024 '!AW26 -> 0 | AX26: ='Rit overzicht 2024 '!AX26 -> 0 | AY26: ='Rit overzicht 2024 '!AY26 -> 0 | AZ26: ='Rit overzicht 2024 '!AZ26 -> 0 | BA26: ='Rit overzicht 2024 '!BA26 -> 0 | BB26: ='Rit overzicht 2024 '!BB26 -> 0 | BC26: ='Rit overzicht 2024 '!BC26 -> 0 | BD26: ='Rit overzicht 2024 '!BD26 -> 0 | BE26: ='Rit overzicht 2024 '!BE26 -> 0 | BF26: ='Rit overzicht 2024 '!BF26 -> 0 | BG26: ='Rit overzicht 2024 '!BG26 -> 0 | BH26: ='Rit overzicht 2024 '!BH26 -> 0 | BI26: ='Rit overzicht 2024 '!BI26 -> 0 | BJ26: ='Rit overzicht 2024 '!BJ26 -> 39 | BK26: ='Rit overzicht 2024 '!BK26 -> 0 | BL26: ='Rit overzicht 2024 '!BL26 -> 35 | BM26: ='Rit overzicht 2024 '!BM26 -> 0 | BN26: ='Rit overzicht 2024 '!BN26 -> 0
A27: 3.1 | C27: Dinsdag | D27: Gorinchem Wijdschild, daarna Componisten wijk | F27: 8 | G27: 8 | H27: 8 | I27: ='Rit overzicht 2024 '!I27 -> 0 | J27: ='Rit overzicht 2024 '!J27 -> 0 | K27: ='Rit overzicht 2024 '!K27 -> 0 | L27: ='Rit overzicht 2024 '!L27 -> 0 | M27: ='Rit overzicht 2024 '!M27 -> 0 | N27: ='Rit overzicht 2024 '!N27 -> 0 | O27: ='Rit overzicht 2024 '!O27 -> 0 | P27: ='Rit overzicht 2024 '!P27 -> 0 | Q27: ='Rit overzicht 2024 '!Q27 -> 21 | R27: ='Rit overzicht 2024 '!R27 -> 1 | S27: ='Rit overzicht 2024 '!S27 -> 0 | T27: ='Rit overzicht 2024 '!T27 -> 8 | U27: ='Rit overzicht 2024 '!U27 -> 0 | V27: ='Rit overzicht 2024 '!V27 -> 0 | W27: ='Rit overzicht 2024 '!W27 -> 0 | X27: ='Rit overzicht 2024 '!X27 -> 0 | Y27: ='Rit overzicht 2024 '!Y27 -> 6 | Z27: ='Rit overzicht 2024 '!Z27 -> 0 | AA27: ='Rit overzicht 2024 '!AA27 -> 0 | AB27: ='Rit overzicht 2024 '!AB27 -> 0 | AC27: ='Rit overzicht 2024 '!AC27 -> 0 | AD27: ='Rit overzicht 2024 '!AD27 -> 0 | AE27: ='Rit overzicht 2024 '!AE27 -> 0 | AF27: ='Rit overzicht 2024 '!AF27 -> 0 | AG27: ='Rit overzicht 2024 '!AG27 -> 0 | AH27: ='Rit overzicht 2024 '!AH27 -> 0 | AI27: ='Rit overzicht 2024 '!AI27 -> 0 | AJ27: ='Rit overzicht 2024 '!AJ27 -> 0 | AK27: ='Rit overzicht 2024 '!AK27 -> 0 | AL27: ='Rit overzicht 2024 '!AL27 -> 0 | AM27: ='Rit overzicht 2024 '!AM27 -> 0 | AN27: ='Rit overzicht 2024 '!AN27 -> 0 | AO27: ='Rit overzicht 2024 '!AO27 -> 0 | AP27: ='Rit overzicht 2024 '!AP27 -> 0 | AQ27: ='Rit overzicht 2024 '!AQ27 -> 0 | AR27: ='Rit overzicht 2024 '!AR27 -> 0 | AS27: ='Rit overzicht 2024 '!AS27 -> 0 | AT27: ='Rit overzicht 2024 '!AT27 -> 0 | AU27: ='Rit overzicht 2024 '!AU27 -> 0 | AV27: ='Rit overzicht 2024 '!AV27 -> 0 | AW27: ='Rit overzicht 2024 '!AW27 -> 0 | AX27: ='Rit overzicht 2024 '!AX27 -> 0 | AY27: ='Rit overzicht 2024 '!AY27 -> 0 | AZ27: ='Rit overzicht 2024 '!AZ27 -> 0 | BA27: ='Rit overzicht 2024 '!BA27 -> 0 | BB27: ='Rit overzicht 2024 '!BB27 -> 0 | BC27: ='Rit overzicht 2024 '!BC27 -> 0 | BD27: ='Rit overzicht 2024 '!BD27 -> 0 | BE27: ='Rit overzicht 2024 '!BE27 -> 0 | BF27: ='Rit overzicht 2024 '!BF27 -> 0 | BG27: ='Rit overzicht 2024 '!BG27 -> 0 | BH27: ='Rit overzicht 2024 '!BH27 -> 0 | BI27: ='Rit overzicht 2024 '!BI27 -> 9 | BJ27: ='Rit overzicht 2024 '!BJ27 -> 0 | BK27: ='Rit overzicht 2024 '!BK27 -> 27 | BL27: ='Rit overzicht 2024 '!BL27 -> 0 | BM27: ='Rit overzicht 2024 '!BM27 -> 36 | BN27: ='Rit overzicht 2024 '!BN27 -> 97
A28: 4.1 | C28: Dinsdag | D28: 3=Hoogdalem, 2=Dalem en 1=Donken | F28: 7 | G28: 7 | H28: 7 | I28: ='Rit overzicht 2024 '!I28 -> 0 | J28: ='Rit overzicht 2024 '!J28 -> 0 | K28: ='Rit overzicht 2024 '!K28 -> 0 | L28: ='Rit overzicht 2024 '!L28 -> 0 | M28: ='Rit overzicht 2024 '!M28 -> 0 | N28: ='Rit overzicht 2024 '!N28 -> 0 | O28: ='Rit overzicht 2024 '!O28 -> 0 | P28: ='Rit overzicht 2024 '!P28 -> 0 | Q28: ='Rit overzicht 2024 '!Q28 -> 33 | R28: ='Rit overzicht 2024 '!R28 -> 17 | S28: ='Rit overzicht 2024 '!S28 -> 0 | T28: ='Rit overzicht 2024 '!T28 -> 21 | U28: ='Rit overzicht 2024 '!U28 -> 0 | V28: ='Rit overzicht 2024 '!V28 -> 0 | W28: ='Rit overzicht 2024 '!W28 -> 0 | X28: ='Rit overzicht 2024 '!X28 -> 13 | Y28: ='Rit overzicht 2024 '!Y28 -> 13 | Z28: ='Rit overzicht 2024 '!Z28 -> 0 | AA28: ='Rit overzicht 2024 '!AA28 -> 0 | AB28: ='Rit overzicht 2024 '!AB28 -> 0 | AC28: ='Rit overzicht 2024 '!AC28 -> 0 | AD28: ='Rit overzicht 2024 '!AD28 -> 0 | AE28: ='Rit overzicht 2024 '!AE28 -> 0 | AF28: ='Rit overzicht 2024 '!AF28 -> 0 | AG28: ='Rit overzicht 2024 '!AG28 -> 0 | AH28: ='Rit overzicht 2024 '!AH28 -> 0 | AI28: ='Rit overzicht 2024 '!AI28 -> 0 | AJ28: ='Rit overzicht 2024 '!AJ28 -> 0 | AK28: ='Rit overzicht 2024 '!AK28 -> 0 | AL28: ='Rit overzicht 2024 '!AL28 -> 0 | AM28: ='Rit overzicht 2024 '!AM28 -> 0 | AN28: ='Rit overzicht 2024 '!AN28 -> 0 | AO28: ='Rit overzicht 2024 '!AO28 -> 0 | AP28: ='Rit overzicht 2024 '!AP28 -> 0 | AQ28: ='Rit overzicht 2024 '!AQ28 -> 0 | AR28: ='Rit overzicht 2024 '!AR28 -> 0 | AS28: ='Rit overzicht 2024 '!AS28 -> 0 | AT28: ='Rit overzicht 2024 '!AT28 -> 0 | AU28: ='Rit overzicht 2024 '!AU28 -> 0 | AV28: ='Rit overzicht 2024 '!AV28 -> 0 | AW28: ='Rit overzicht 2024 '!AW28 -> 0 | AX28: ='Rit overzicht 2024 '!AX28 -> 0 | AY28: ='Rit overzicht 2024 '!AY28 -> 0 | AZ28: ='Rit overzicht 2024 '!AZ28 -> 0 | BA28: ='Rit overzicht 2024 '!BA28 -> 0 | BB28: ='Rit overzicht 2024 '!BB28 -> 0 | BC28: ='Rit overzicht 2024 '!BC28 -> 0 | BD28: ='Rit overzicht 2024 '!BD28 -> 0 | BE28: ='Rit overzicht 2024 '!BE28 -> 0 | BF28: ='Rit overzicht 2024 '!BF28 -> 0 | BG28: ='Rit overzicht 2024 '!BG28 -> 0 | BH28: ='Rit overzicht 2024 '!BH28 -> 0 | BI28: ='Rit overzicht 2024 '!BI28 -> 0 | BJ28: ='Rit overzicht 2024 '!BJ28 -> 51 | BK28: ='Rit overzicht 2024 '!BK28 -> 0 | BL28: ='Rit overzicht 2024 '!BL28 -> 46 | BM28: ='Rit overzicht 2024 '!BM28 -> 0 | BN28: ='Rit overzicht 2024 '!BN28 -> 0
A29: 4.1 | C29: Dinsdag | D29: 3=Hoogdalem, 2=Dalem en 1=Donken | E29: 1= Merwedonk 17 2= de Wetering 2 | F29: 7 | G29: 7 | H29: 7 | I29: ='Rit overzicht 2024 '!I29 -> 0 | J29: ='Rit overzicht 2024 '!J29 -> 0 | K29: ='Rit overzicht 2024 '!K29 -> 0 | L29: ='Rit overzicht 2024 '!L29 -> 0 | M29: ='Rit overzicht 2024 '!M29 -> 0 | N29: ='Rit overzicht 2024 '!N29 -> 0 | O29: ='Rit overzicht 2024 '!O29 -> 0 | P29: ='Rit overzicht 2024 '!P29 -> 0 | Q29: ='Rit overzicht 2024 '!Q29 -> 0 | R29: ='Rit overzicht 2024 '!R29 -> 0 | S29: ='Rit overzicht 2024 '!S29 -> 0 | T29: ='Rit overzicht 2024 '!T29 -> 0 | U29: ='Rit overzicht 2024 '!U29 -> 0 | V29: ='Rit overzicht 2024 '!V29 -> 0 | W29: ='Rit overzicht 2024 '!W29 -> 0 | X29: ='Rit overzicht 2024 '!X29 -> 0 | Y29: ='Rit overzicht 2024 '!Y29 -> 0 | Z29: ='Rit overzicht 2024 '!Z29 -> 1 | AA29: ='Rit overzicht 2024 '!AA29 -> 22 | AB29: ='Rit overzicht 2024 '!AB29 -> 0 | AC29: ='Rit overzicht 2024 '!AC29 -> 0 | AD29: ='Rit overzicht 2024 '!AD29 -> 0 | AE29: ='Rit overzicht 2024 '!AE29 -> 0 | AF29: ='Rit overzicht 2024 '!AF29 -> 0 | AG29: ='Rit overzicht 2024 '!AG29 -> 0 | AH29: ='Rit overzicht 2024 '!AH29 -> 0 | AI29: ='Rit overzicht 2024 '!AI29 -> 0 | AJ29: ='Rit overzicht 2024 '!AJ29 -> 0 | AK29: ='Rit overzicht 2024 '!AK29 -> 0 | AL29: ='Rit overzicht 2024 '!AL29 -> 0 | AM29: ='Rit overzicht 2024 '!AM29 -> 0 | AN29: ='Rit overzicht 2024 '!AN29 -> 0 | AO29: ='Rit overzicht 2024 '!AO29 -> 0 | AP29: ='Rit overzicht 2024 '!AP29 -> 0 | AQ29: ='Rit overzicht 2024 '!AQ29 -> 0 | AR29: ='Rit overzicht 2024 '!AR29 -> 0 | AS29: ='Rit overzicht 2024 '!AS29 -> 0 | AT29: ='Rit overzicht 2024 '!AT29 -> 0 | AU29: ='Rit overzicht 2024 '!AU29 -> 0 | AV29: ='Rit overzicht 2024 '!AV29 -> 0 | AW29: ='Rit overzicht 2024 '!AW29 -> 0 | AX29: ='Rit overzicht 2024 '!AX29 -> 0 | AY29: ='Rit overzicht 2024 '!AY29 -> 0 | AZ29: ='Rit overzicht 2024 '!AZ29 -> 0 | BA29: ='Rit overzicht 2024 '!BA29 -> 0 | BB29: ='Rit overzicht 2024 '!BB29 -> 0 | BC29: ='Rit overzicht 2024 '!BC29 -> 0 | BD29: ='Rit overzicht 2024 '!BD29 -> 0 | BE29: ='Rit overzicht 2024 '!BE29 -> 0 | BF29: ='Rit overzicht 2024 '!BF29 -> 0 | BG29: ='Rit overzicht 2024 '!BG29 -> 0 | BH29: ='Rit overzicht 2024 '!BH29 -> 0 | BI29: ='Rit overzicht 2024 '!BI29 -> 1 | BJ29: ='Rit overzicht 2024 '!BJ29 -> 0 | BK29: ='Rit overzicht 2024 '!BK29 -> 22 | BL29: ='Rit overzicht 2024 '!BL29 -> 0 | BM29: ='Rit overzicht 2024 '!BM29 -> 23 | BN29: ='Rit overzicht 2024 '!BN29 -> 19
A30: 5.1 | C30: Dinsdag | D30: Hoogblokland Binnen | F30: 5 | G30: 5 | H30: 5 | I30: ='Rit overzicht 2024 '!I30 -> 0 | J30: ='Rit overzicht 2024 '!J30 -> 0 | K30: ='Rit overzicht 2024 '!K30 -> 0 | L30: ='Rit overzicht 2024 '!L30 -> 0 | M30: ='Rit overzicht 2024 '!M30 -> 0 | N30: ='Rit overzicht 2024 '!N30 -> 0 | O30: ='Rit overzicht 2024 '!O30 -> 0 | P30: ='Rit overzicht 2024 '!P30 -> 0 | Q30: ='Rit overzicht 2024 '!Q30 -> 0 | R30: ='Rit overzicht 2024 '!R30 -> 0 | S30: ='Rit overzicht 2024 '!S30 -> 0 | T30: ='Rit overzicht 2024 '!T30 -> 0 | U30: ='Rit overzicht 2024 '!U30 -> 0 | V30: ='Rit overzicht 2024 '!V30 -> 0 | W30: ='Rit overzicht 2024 '!W30 -> 0 | X30: ='Rit overzicht 2024 '!X30 -> 0 | Y30: ='Rit overzicht 2024 '!Y30 -> 0 | Z30: ='Rit overzicht 2024 '!Z30 -> 9 | AA30: ='Rit overzicht 2024 '!AA30 -> 10 | AB30: ='Rit overzicht 2024 '!AB30 -> 0 | AC30: ='Rit overzicht 2024 '!AC30 -> 0 | AD30: ='Rit overzicht 2024 '!AD30 -> 0 | AE30: ='Rit overzicht 2024 '!AE30 -> 0 | AF30: ='Rit overzicht 2024 '!AF30 -> 0 | AG30: ='Rit overzicht 2024 '!AG30 -> 0 | AH30: ='Rit overzicht 2024 '!AH30 -> 0 | AI30: ='Rit overzicht 2024 '!AI30 -> 0 | AJ30: ='Rit overzicht 2024 '!AJ30 -> 0 | AK30: ='Rit overzicht 2024 '!AK30 -> 0 | AL30: ='Rit overzicht 2024 '!AL30 -> 0 | AM30: ='Rit overzicht 2024 '!AM30 -> 0 | AN30: ='Rit overzicht 2024 '!AN30 -> 0 | AO30: ='Rit overzicht 2024 '!AO30 -> 0 | AP30: ='Rit overzicht 2024 '!AP30 -> 0 | AQ30: ='Rit overzicht 2024 '!AQ30 -> 0 | AR30: ='Rit overzicht 2024 '!AR30 -> 0 | AS30: ='Rit overzicht 2024 '!AS30 -> 0 | AT30: ='Rit overzicht 2024 '!AT30 -> 0 | AU30: ='Rit overzicht 2024 '!AU30 -> 0 | AV30: ='Rit overzicht 2024 '!AV30 -> 0 | AW30: ='Rit overzicht 2024 '!AW30 -> 0 | AX30: ='Rit overzicht 2024 '!AX30 -> 0 | AY30: ='Rit overzicht 2024 '!AY30 -> 0 | AZ30: ='Rit overzicht 2024 '!AZ30 -> 0 | BA30: ='Rit overzicht 2024 '!BA30 -> 0 | BB30: ='Rit overzicht 2024 '!BB30 -> 0 | BC30: ='Rit overzicht 2024 '!BC30 -> 0 | BD30: ='Rit overzicht 2024 '!BD30 -> 0 | BE30: ='Rit overzicht 2024 '!BE30 -> 0 | BF30: ='Rit overzicht 2024 '!BF30 -> 0 | BG30: ='Rit overzicht 2024 '!BG30 -> 0 | BH30: ='Rit overzicht 2024 '!BH30 -> 0 | BI30: ='Rit overzicht 2024 '!BI30 -> 0 | BJ30: ='Rit overzicht 2024 '!BJ30 -> 9 | BK30: ='Rit overzicht 2024 '!BK30 -> 0 | BL30: ='Rit overzicht 2024 '!BL30 -> 10 | BM30: ='Rit overzicht 2024 '!BM30 -> 0 | BN30: ='Rit overzicht 2024 '!BN30 -> 0
A31: 5.1 | C31: Dinsdag | D31: Hoogblokland Binnen | F31: 5 | G31: 5 | H31: 5 | I31: ='Rit overzicht 2024 '!I31 -> 0 | J31: ='Rit overzicht 2024 '!J31 -> 0 | K31: ='Rit overzicht 2024 '!K31 -> 0 | L31: ='Rit overzicht 2024 '!L31 -> 0 | M31: ='Rit overzicht 2024 '!M31 -> 0 | N31: ='Rit overzicht 2024 '!N31 -> 0 | O31: ='Rit overzicht 2024 '!O31 -> 0 | P31: ='Rit overzicht 2024 '!P31 -> 0 | Q31: ='Rit overzicht 2024 '!Q31 -> 0 | R31: ='Rit overzicht 2024 '!R31 -> 0 | S31: ='Rit overzicht 2024 '!S31 -> 0 | T31: ='Rit overzicht 2024 '!T31 -> 0 | U31: ='Rit overzicht 2024 '!U31 -> 16 | V31: ='Rit overzicht 2024 '!V31 -> 18 | W31: ='Rit overzicht 2024 '!W31 -> 24 | X31: ='Rit overzicht 2024 '!X31 -> 0 | Y31: ='Rit overzicht 2024 '!Y31 -> 0 | Z31: ='Rit overzicht 2024 '!Z31 -> 0 | AA31: ='Rit overzicht 2024 '!AA31 -> 64 | AB31: ='Rit overzicht 2024 '!AB31 -> 0 | AC31: ='Rit overzicht 2024 '!AC31 -> 0 | AD31: ='Rit overzicht 2024 '!AD31 -> 0 | AE31: ='Rit overzicht 2024 '!AE31 -> 0 | AF31: ='Rit overzicht 2024 '!AF31 -> 0 | AG31: ='Rit overzicht 2024 '!AG31 -> 0 | AH31: ='Rit overzicht 2024 '!AH31 -> 0 | AI31: ='Rit overzicht 2024 '!AI31 -> 0 | AJ31: ='Rit overzicht 2024 '!AJ31 -> 0 | AK31: ='Rit overzicht 2024 '!AK31 -> 0 | AL31: ='Rit overzicht 2024 '!AL31 -> 0 | AM31: ='Rit overzicht 2024 '!AM31 -> 0 | AN31: ='Rit overzicht 2024 '!AN31 -> 0 | AO31: ='Rit overzicht 2024 '!AO31 -> 0 | AP31: ='Rit overzicht 2024 '!AP31 -> 0 | AQ31: ='Rit overzicht 2024 '!AQ31 -> 0 | AR31: ='Rit overzicht 2024 '!AR31 -> 0 | AS31: ='Rit overzicht 2024 '!AS31 -> 0 | AT31: ='Rit overzicht 2024 '!AT31 -> 0 | AU31: ='Rit overzicht 2024 '!AU31 -> 0 | AV31: ='Rit overzicht 2024 '!AV31 -> 0 | AW31: ='Rit overzicht 2024 '!AW31 -> 0 | AX31: ='Rit overzicht 2024 '!AX31 -> 0 | AY31: ='Rit overzicht 2024 '!AY31 -> 0 | AZ31: ='Rit overzicht 2024 '!AZ31 -> 0 | BA31: ='Rit overzicht 2024 '!BA31 -> 0 | BB31: ='Rit overzicht 2024 '!BB31 -> 0 | BC31: ='Rit overzicht 2024 '!BC31 -> 0 | BD31: ='Rit overzicht 2024 '!BD31 -> 0 | BE31: ='Rit overzicht 2024 '!BE31 -> 0 | BF31: ='Rit overzicht 2024 '!BF31 -> 0 | BG31: ='Rit overzicht 2024 '!BG31 -> 0 | BH31: ='Rit overzicht 2024 '!BH31 -> 0 | BI31: ='Rit overzicht 2024 '!BI31 -> 18 | BJ31: ='Rit overzicht 2024 '!BJ31 -> 0 | BK31: ='Rit overzicht 2024 '!BK31 -> 104 | BL31: ='Rit overzicht 2024 '!BL31 -> 0 | BM31: ='Rit overzicht 2024 '!BM31 -> 122 | BN31: ='Rit overzicht 2024 '!BN31 -> 61
A32: 6.1 | C32: Dinsdag | D32: Hoef en Haag | F32: 4 | G32: 3 | H32: 3 | I32: ='Rit overzicht 2024 '!I32 -> 0 | J32: ='Rit overzicht 2024 '!J32 -> 0 | K32: ='Rit overzicht 2024 '!K32 -> 0 | L32: ='Rit overzicht 2024 '!L32 -> 0 | M32: ='Rit overzicht 2024 '!M32 -> 0 | N32: ='Rit overzicht 2024 '!N32 -> 0 | O32: ='Rit overzicht 2024 '!O32 -> 0 | P32: ='Rit overzicht 2024 '!P32 -> 0 | Q32: ='Rit overzicht 2024 '!Q32 -> 0 | R32: ='Rit overzicht 2024 '!R32 -> 0 | S32: ='Rit overzicht 2024 '!S32 -> 0 | T32: ='Rit overzicht 2024 '!T32 -> 0 | U32: ='Rit overzicht 2024 '!U32 -> 17 | V32: ='Rit overzicht 2024 '!V32 -> 15 | W32: ='Rit overzicht 2024 '!W32 -> 16 | X32: ='Rit overzicht 2024 '!X32 -> 0 | Y32: ='Rit overzicht 2024 '!Y32 -> 0 | Z32: ='Rit overzicht 2024 '!Z32 -> 0 | AA32: ='Rit overzicht 2024 '!AA32 -> 13 | AB32: ='Rit overzicht 2024 '!AB32 -> 0 | AC32: ='Rit overzicht 2024 '!AC32 -> 0 | AD32: ='Rit overzicht 2024 '!AD32 -> 0 | AE32: ='Rit overzicht 2024 '!AE32 -> 0 | AF32: ='Rit overzicht 2024 '!AF32 -> 0 | AG32: ='Rit overzicht 2024 '!AG32 -> 0 | AH32: ='Rit overzicht 2024 '!AH32 -> 0 | AI32: ='Rit overzicht 2024 '!AI32 -> 0 | AJ32: ='Rit overzicht 2024 '!AJ32 -> 0 | AK32: ='Rit overzicht 2024 '!AK32 -> 0 | AL32: ='Rit overzicht 2024 '!AL32 -> 0 | AM32: ='Rit overzicht 2024 '!AM32 -> 0 | AN32: ='Rit overzicht 2024 '!AN32 -> 0 | AO32: ='Rit overzicht 2024 '!AO32 -> 0 | AP32: ='Rit overzicht 2024 '!AP32 -> 0 | AQ32: ='Rit overzicht 2024 '!AQ32 -> 0 | AR32: ='Rit overzicht 2024 '!AR32 -> 0 | AS32: ='Rit overzicht 2024 '!AS32 -> 0 | AT32: ='Rit overzicht 2024 '!AT32 -> 0 | AU32: ='Rit overzicht 2024 '!AU32 -> 0 | AV32: ='Rit overzicht 2024 '!AV32 -> 0 | AW32: ='Rit overzicht 2024 '!AW32 -> 0 | AX32: ='Rit overzicht 2024 '!AX32 -> 0 | AY32: ='Rit overzicht 2024 '!AY32 -> 0 | AZ32: ='Rit overzicht 2024 '!AZ32 -> 0 | BA32: ='Rit overzicht 2024 '!BA32 -> 0 | BB32: ='Rit overzicht 2024 '!BB32 -> 0 | BC32: ='Rit overzicht 2024 '!BC32 -> 0 | BD32: ='Rit overzicht 2024 '!BD32 -> 0 | BE32: ='Rit overzicht 2024 '!BE32 -> 0 | BF32: ='Rit overzicht 2024 '!BF32 -> 0 | BG32: ='Rit overzicht 2024 '!BG32 -> 0 | BH32: ='Rit overzicht 2024 '!BH32 -> 0 | BI32: ='Rit overzicht 2024 '!BI32 -> 0 | BJ32: ='Rit overzicht 2024 '!BJ32 -> 15 | BK32: ='Rit overzicht 2024 '!BK32 -> 0 | BL32: ='Rit overzicht 2024 '!BL32 -> 46 | BM32: ='Rit overzicht 2024 '!BM32 -> 0 | BN32: ='Rit overzicht 2024 '!BN32 -> 0
A33: 6.1 | C33: Dinsdag | D33: Hoef en Haag | F33: 4 | G33: 3 | H33: 3 | I33: ='Rit overzicht 2024 '!I33 -> 0 | J33: ='Rit overzicht 2024 '!J33 -> 0 | K33: ='Rit overzicht 2024 '!K33 -> 0 | L33: ='Rit overzicht 2024 '!L33 -> 0 | M33: ='Rit overzicht 2024 '!M33 -> 0 | N33: ='Rit overzicht 2024 '!N33 -> 0 | O33: ='Rit overzicht 2024 '!O33 -> 0 | P33: ='Rit overzicht 2024 '!P33 -> 0 | Q33: ='Rit overzicht 2024 '!Q33 -> 0 | R33: ='Rit overzicht 2024 '!R33 -> 0 | S33: ='Rit overzicht 2024 '!S33 -> 0 | T33: ='Rit overzicht 2024 '!T33 -> 0 | U33: ='Rit overzicht 2024 '!U33 -> 0 | V33: ='Rit overzicht 2024 '!V33 -> 4 | W33: ='Rit overzicht 2024 '!W33 -> 3 | X33: ='Rit overzicht 2024 '!X33 -> 0 | Y33: ='Rit overzicht 2024 '!Y33 -> 0 | Z33: ='Rit overzicht 2024 '!Z33 -> 0 | AA33: ='Rit overzicht 2024 '!AA33 -> 5 | AB33: ='Rit overzicht 2024 '!AB33 -> 0 | AC33: ='Rit overzicht 2024 '!AC33 -> 0 | AD33: ='Rit overzicht 2024 '!AD33 -> 0 | AE33: ='Rit overzicht 2024 '!AE33 -> 0 | AF33: ='Rit overzicht 2024 '!AF33 -> 0 | AG33: ='Rit overzicht 2024 '!AG33 -> 0 | AH33: ='Rit overzicht 2024 '!AH33 -> 0 | AI33: ='Rit overzicht 2024 '!AI33 -> 0 | AJ33: ='Rit overzicht 2024 '!AJ33 -> 0 | AK33: ='Rit overzicht 2024 '!AK33 -> 0 | AL33: ='Rit overzicht 2024 '!AL33 -> 0 | AM33: ='Rit overzicht 2024 '!AM33 -> 0 | AN33: ='Rit overzicht 2024 '!AN33 -> 0 | AO33: ='Rit overzicht 2024 '!AO33 -> 0 | AP33: ='Rit overzicht 2024 '!AP33 -> 0 | AQ33: ='Rit overzicht 2024 '!AQ33 -> 0 | AR33: ='Rit overzicht 2024 '!AR33 -> 0 | AS33: ='Rit overzicht 2024 '!AS33 -> 0 | AT33: ='Rit overzicht 2024 '!AT33 -> 0 | AU33: ='Rit overzicht 2024 '!AU33 -> 0 | AV33: ='Rit overzicht 2024 '!AV33 -> 0 | AW33: ='Rit overzicht 2024 '!AW33 -> 0 | AX33: ='Rit overzicht 2024 '!AX33 -> 0 | AY33: ='Rit overzicht 2024 '!AY33 -> 0 | AZ33: ='Rit overzicht 2024 '!AZ33 -> 0 | BA33: ='Rit overzicht 2024 '!BA33 -> 0 | BB33: ='Rit overzicht 2024 '!BB33 -> 0 | BC33: ='Rit overzicht 2024 '!BC33 -> 0 | BD33: ='Rit overzicht 2024 '!BD33 -> 0 | BE33: ='Rit overzicht 2024 '!BE33 -> 0 | BF33: ='Rit overzicht 2024 '!BF33 -> 0 | BG33: ='Rit overzicht 2024 '!BG33 -> 0 | BH33: ='Rit overzicht 2024 '!BH33 -> 0 | BI33: ='Rit overzicht 2024 '!BI33 -> 4 | BJ33: ='Rit overzicht 2024 '!BJ33 -> 0 | BK33: ='Rit overzicht 2024 '!BK33 -> 8 | BL33: ='Rit overzicht 2024 '!BL33 -> 0 | BM33: ='Rit overzicht 2024 '!BM33 -> 12 | BN33: ='Rit overzicht 2024 '!BN33 -> 15
A34: 6.2 | C34: Dinsdag | D34: Vianen De Hagen | I34: ='Rit overzicht 2024 '!I34 -> 0 | J34: ='Rit overzicht 2024 '!J34 -> 0 | K34: ='Rit overzicht 2024 '!K34 -> 0 | L34: ='Rit overzicht 2024 '!L34 -> 0 | M34: ='Rit overzicht 2024 '!M34 -> 0 | N34: ='Rit overzicht 2024 '!N34 -> 0 | O34: ='Rit overzicht 2024 '!O34 -> 0 | P34: ='Rit overzicht 2024 '!P34 -> 0 | Q34: ='Rit overzicht 2024 '!Q34 -> 0 | R34: ='Rit overzicht 2024 '!R34 -> 0 | S34: ='Rit overzicht 2024 '!S34 -> 0 | T34: ='Rit overzicht 2024 '!T34 -> 0 | U34: ='Rit overzicht 2024 '!U34 -> 0 | V34: ='Rit overzicht 2024 '!V34 -> 5 | W34: ='Rit overzicht 2024 '!W34 -> 8 | X34: ='Rit overzicht 2024 '!X34 -> 0 | Y34: ='Rit overzicht 2024 '!Y34 -> 0 | Z34: ='Rit overzicht 2024 '!Z34 -> 0 | AA34: ='Rit overzicht 2024 '!AA34 -> 2 | AB34: ='Rit overzicht 2024 '!AB34 -> 0 | AC34: ='Rit overzicht 2024 '!AC34 -> 0 | AD34: ='Rit overzicht 2024 '!AD34 -> 0 | AE34: ='Rit overzicht 2024 '!AE34 -> 0 | AF34: ='Rit overzicht 2024 '!AF34 -> 0 | AG34: ='Rit overzicht 2024 '!AG34 -> 0 | AH34: ='Rit overzicht 2024 '!AH34 -> 0 | AI34: ='Rit overzicht 2024 '!AI34 -> 0 | AJ34: ='Rit overzicht 2024 '!AJ34 -> 0 | AK34: ='Rit overzicht 2024 '!AK34 -> 0 | AL34: ='Rit overzicht 2024 '!AL34 -> 0 | AM34: ='Rit overzicht 2024 '!AM34 -> 0 | AN34: ='Rit overzicht 2024 '!AN34 -> 0 | AO34: ='Rit overzicht 2024 '!AO34 -> 0 | AP34: ='Rit overzicht 2024 '!AP34 -> 0 | AQ34: ='Rit overzicht 2024 '!AQ34 -> 0 | AR34: ='Rit overzicht 2024 '!AR34 -> 0 | AS34: ='Rit overzicht 2024 '!AS34 -> 0 | AT34: ='Rit overzicht 2024 '!AT34 -> 0 | AU34: ='Rit overzicht 2024 '!AU34 -> 0 | AV34: ='Rit overzicht 2024 '!AV34 -> 0 | AW34: ='Rit overzicht 2024 '!AW34 -> 0 | AX34: ='Rit overzicht 2024 '!AX34 -> 0 | AY34: ='Rit overzicht 2024 '!AY34 -> 0 | AZ34: ='Rit overzicht 2024 '!AZ34 -> 0 | BA34: ='Rit overzicht 2024 '!BA34 -> 0 | BB34: ='Rit overzicht 2024 '!BB34 -> 0 | BC34: ='Rit overzicht 2024 '!BC34 -> 0 | BD34: ='Rit overzicht 2024 '!BD34 -> 0 | BE34: ='Rit overzicht 2024 '!BE34 -> 0 | BF34: ='Rit overzicht 2024 '!BF34 -> 0 | BG34: ='Rit overzicht 2024 '!BG34 -> 0 | BH34: ='Rit overzicht 2024 '!BH34 -> 0 | BI34: ='Rit overzicht 2024 '!BI34 -> 0 | BJ34: ='Rit overzicht 2024 '!BJ34 -> 5 | BK34: ='Rit overzicht 2024 '!BK34 -> 0 | BL34: ='Rit overzicht 2024 '!BL34 -> 10 | BM34: ='Rit overzicht 2024 '!BM34 -> 0 | BN34: ='Rit overzicht 2024 '!BN34 -> 0
A35: 6.2 | C35: Dinsdag | D35: Vianen De Hagen | I35: ='Rit overzicht 2024 '!I35 -> 0 | J35: ='Rit overzicht 2024 '!J35 -> 0 | K35: ='Rit overzicht 2024 '!K35 -> 0 | L35: ='Rit overzicht 2024 '!L35 -> 0 | M35: ='Rit overzicht 2024 '!M35 -> 0 | N35: ='Rit overzicht 2024 '!N35 -> 0 | O35: ='Rit overzicht 2024 '!O35 -> 0 | P35: ='Rit overzicht 2024 '!P35 -> 0 | Q35: ='Rit overzicht 2024 '!Q35 -> 0 | R35: ='Rit overzicht 2024 '!R35 -> 0 | S35: ='Rit overzicht 2024 '!S35 -> 0 | T35: ='Rit overzicht 2024 '!T35 -> 0 | U35: ='Rit overzicht 2024 '!U35 -> 5 | V35: ='Rit overzicht 2024 '!V35 -> 0 | W35: ='Rit overzicht 2024 '!W35 -> 0 | X35: ='Rit overzicht 2024 '!X35 -> 0 | Y35: ='Rit overzicht 2024 '!Y35 -> 0 | Z35: ='Rit overzicht 2024 '!Z35 -> 0 | AA35: ='Rit overzicht 2024 '!AA35 -> 0 | AB35: ='Rit overzicht 2024 '!AB35 -> 0 | AC35: ='Rit overzicht 2024 '!AC35 -> 0 | AD35: ='Rit overzicht 2024 '!AD35 -> 0 | AE35: ='Rit overzicht 2024 '!AE35 -> 0 | AF35: ='Rit overzicht 2024 '!AF35 -> 0 | AG35: ='Rit overzicht 2024 '!AG35 -> 0 | AH35: ='Rit overzicht 2024 '!AH35 -> 0 | AI35: ='Rit overzicht 2024 '!AI35 -> 0 | AJ35: ='Rit overzicht 2024 '!AJ35 -> 0 | AK35: ='Rit overzicht 2024 '!AK35 -> 0 | AL35: ='Rit overzicht 2024 '!AL35 -> 0 | AM35: ='Rit overzicht 2024 '!AM35 -> 0 | AN35: ='Rit overzicht 2024 '!AN35 -> 0 | AO35: ='Rit overzicht 2024 '!AO35 -> 0 | AP35: ='Rit overzicht 2024 '!AP35 -> 0 | AQ35: ='Rit overzicht 2024 '!AQ35 -> 0 | AR35: ='Rit overzicht 2024 '!AR35 -> 0 | AS35: ='Rit overzicht 2024 '!AS35 -> 0 | AT35: ='Rit overzicht 2024 '!AT35 -> 0 | AU35: ='Rit overzicht 2024 '!AU35 -> 0 | AV35: ='Rit overzicht 2024 '!AV35 -> 0 | AW35: ='Rit overzicht 2024 '!AW35 -> 0 | AX35: ='Rit overzicht 2024 '!AX35 -> 0 | AY35: ='Rit overzicht 2024 '!AY35 -> 0 | AZ35: ='Rit overzicht 2024 '!AZ35 -> 0 | BA35: ='Rit overzicht 2024 '!BA35 -> 0 | BB35: ='Rit overzicht 2024 '!BB35 -> 0 | BC35: ='Rit overzicht 2024 '!BC35 -> 0 | BD35: ='Rit overzicht 2024 '!BD35 -> 0 | BE35: ='Rit overzicht 2024 '!BE35 -> 0 | BF35: ='Rit overzicht 2024 '!BF35 -> 0 | BG35: ='Rit overzicht 2024 '!BG35 -> 0 | BH35: ='Rit overzicht 2024 '!BH35 -> 0 | BI35: ='Rit overzicht 2024 '!BI35 -> 0 | BJ35: ='Rit overzicht 2024 '!BJ35 -> 0 | BK35: ='Rit overzicht 2024 '!BK35 -> 5 | BL35: ='Rit overzicht 2024 '!BL35 -> 0 | BM35: ='Rit overzicht 2024 '!BM35 -> 5 | BN35: ='Rit overzicht 2024 '!BN35 -> 17
A36: 7.1 | C36: Dinsdag | D36: Vianen Centrum en Hagestein | I36: ='Rit overzicht 2024 '!I36 -> 0 | J36: ='Rit overzicht 2024 '!J36 -> 0 | K36: ='Rit overzicht 2024 '!K36 -> 0 | L36: ='Rit overzicht 2024 '!L36 -> 0 | M36: ='Rit overzicht 2024 '!M36 -> 0 | N36: ='Rit overzicht 2024 '!N36 -> 0 | O36: ='Rit overzicht 2024 '!O36 -> 0 | P36: ='Rit overzicht 2024 '!P36 -> 0 | Q36: ='Rit overzicht 2024 '!Q36 -> 0 | R36: ='Rit overzicht 2024 '!R36 -> 0 | S36: ='Rit overzicht 2024 '!S36 -> 0 | T36: ='Rit overzicht 2024 '!T36 -> 0 | U36: ='Rit overzicht 2024 '!U36 -> 17 | V36: ='Rit overzicht 2024 '!V36 -> 0 | W36: ='Rit overzicht 2024 '!W36 -> 0 | X36: ='Rit overzicht 2024 '!X36 -> 0 | Y36: ='Rit overzicht 2024 '!Y36 -> 0 | Z36: ='Rit overzicht 2024 '!Z36 -> 0 | AA36: ='Rit overzicht 2024 '!AA36 -> 0 | AB36: ='Rit overzicht 2024 '!AB36 -> 0 | AC36: ='Rit overzicht 2024 '!AC36 -> 0 | AD36: ='Rit overzicht 2024 '!AD36 -> 0 | AE36: ='Rit overzicht 2024 '!AE36 -> 0 | AF36: ='Rit overzicht 2024 '!AF36 -> 0 | AG36: ='Rit overzicht 2024 '!AG36 -> 0 | AH36: ='Rit overzicht 2024 '!AH36 -> 0 | AI36: ='Rit overzicht 2024 '!AI36 -> 0 | AJ36: ='Rit overzicht 2024 '!AJ36 -> 0 | AK36: ='Rit overzicht 2024 '!AK36 -> 0 | AL36: ='Rit overzicht 2024 '!AL36 -> 0 | AM36: ='Rit overzicht 2024 '!AM36 -> 0 | AN36: ='Rit overzicht 2024 '!AN36 -> 0 | AO36: ='Rit overzicht 2024 '!AO36 -> 0 | AP36: ='Rit overzicht 2024 '!AP36 -> 0 | AQ36: ='Rit overzicht 2024 '!AQ36 -> 0 | AR36: ='Rit overzicht 2024 '!AR36 -> 0 | AS36: ='Rit overzicht 2024 '!AS36 -> 0 | AT36: ='Rit overzicht 2024 '!AT36 -> 0 | AU36: ='Rit overzicht 2024 '!AU36 -> 0 | AV36: ='Rit overzicht 2024 '!AV36 -> 0 | AW36: ='Rit overzicht 2024 '!AW36 -> 0 | AX36: ='Rit overzicht 2024 '!AX36 -> 0 | AY36: ='Rit overzicht 2024 '!AY36 -> 0 | AZ36: ='Rit overzicht 2024 '!AZ36 -> 0 | BA36: ='Rit overzicht 2024 '!BA36 -> 0 | BB36: ='Rit overzicht 2024 '!BB36 -> 0 | BC36: ='Rit overzicht 2024 '!BC36 -> 0 | BD36: ='Rit overzicht 2024 '!BD36 -> 0 | BE36: ='Rit overzicht 2024 '!BE36 -> 0 | BF36: ='Rit overzicht 2024 '!BF36 -> 0 | BG36: ='Rit overzicht 2024 '!BG36 -> 0 | BH36: ='Rit overzicht 2024 '!BH36 -> 0 | BI36: ='Rit overzicht 2024 '!BI36 -> 0 | BJ36: ='Rit overzicht 2024 '!BJ36 -> 0 | BK36: ='Rit overzicht 2024 '!BK36 -> 0 | BL36: ='Rit overzicht 2024 '!BL36 -> 17 | BM36: ='Rit overzicht 2024 '!BM36 -> 0 | BN36: ='Rit overzicht 2024 '!BN36 -> 0
A37: 7.1 | C37: Dinsdag | D37: Vianen Centrum en Hagestein | I37: ='Rit overzicht 2024 '!I37 -> 0 | J37: ='Rit overzicht 2024 '!J37 -> 0 | K37: ='Rit overzicht 2024 '!K37 -> 0 | L37: ='Rit overzicht 2024 '!L37 -> 0 | M37: ='Rit overzicht 2024 '!M37 -> 0 | N37: ='Rit overzicht 2024 '!N37 -> 0 | O37: ='Rit overzicht 2024 '!O37 -> 0 | P37: ='Rit overzicht 2024 '!P37 -> 0 | Q37: ='Rit overzicht 2024 '!Q37 -> 0 | R37: ='Rit overzicht 2024 '!R37 -> 0 | S37: ='Rit overzicht 2024 '!S37 -> 0 | T37: ='Rit overzicht 2024 '!T37 -> 0 | U37: ='Rit overzicht 2024 '!U37 -> 0 | V37: ='Rit overzicht 2024 '!V37 -> 0 | W37: ='Rit overzicht 2024 '!W37 -> 0 | X37: ='Rit overzicht 2024 '!X37 -> 0 | Y37: ='Rit overzicht 2024 '!Y37 -> 0 | Z37: ='Rit overzicht 2024 '!Z37 -> 0 | AA37: ='Rit overzicht 2024 '!AA37 -> 0 | AB37: ='Rit overzicht 2024 '!AB37 -> 0 | AC37: ='Rit overzicht 2024 '!AC37 -> 0 | AD37: ='Rit overzicht 2024 '!AD37 -> 0 | AE37: ='Rit overzicht 2024 '!AE37 -> 0 | AF37: ='Rit overzicht 2024 '!AF37 -> 0 | AG37: ='Rit overzicht 2024 '!AG37 -> 0 | AH37: ='Rit overzicht 2024 '!AH37 -> 0 | AI37: ='Rit overzicht 2024 '!AI37 -> 0 | AJ37: ='Rit overzicht 2024 '!AJ37 -> 0 | AK37: ='Rit overzicht 2024 '!AK37 -> 0 | AL37: ='Rit overzicht 2024 '!AL37 -> 0 | AM37: ='Rit overzicht 2024 '!AM37 -> 0 | AN37: ='Rit overzicht 2024 '!AN37 -> 0 | AO37: ='Rit overzicht 2024 '!AO37 -> 0 | AP37: ='Rit overzicht 2024 '!AP37 -> 0 | AQ37: ='Rit overzicht 2024 '!AQ37 -> 0 | AR37: ='Rit overzicht 2024 '!AR37 -> 0 | AS37: ='Rit overzicht 2024 '!AS37 -> 0 | AT37: ='Rit overzicht 2024 '!AT37 -> 0 | AU37: ='Rit overzicht 2024 '!AU37 -> 0 | AV37: ='Rit overzicht 2024 '!AV37 -> 0 | AW37: ='Rit overzicht 2024 '!AW37 -> 0 | AX37: ='Rit overzicht 2024 '!AX37 -> 0 | AY37: ='Rit overzicht 2024 '!AY37 -> 0 | AZ37: ='Rit overzicht 2024 '!AZ37 -> 0 | BA37: ='Rit overzicht 2024 '!BA37 -> 0 | BB37: ='Rit overzicht 2024 '!BB37 -> 0 | BC37: ='Rit overzicht 2024 '!BC37 -> 0 | BD37: ='Rit overzicht 2024 '!BD37 -> 0 | BE37: ='Rit overzicht 2024 '!BE37 -> 0 | BF37: ='Rit overzicht 2024 '!BF37 -> 0 | BG37: ='Rit overzicht 2024 '!BG37 -> 0 | BH37: ='Rit overzicht 2024 '!BH37 -> 0 | BI37: ='Rit overzicht 2024 '!BI37 -> 0 | BJ37: ='Rit overzicht 2024 '!BJ37 -> 0 | BK37: ='Rit overzicht 2024 '!BK37 -> 0 | BL37: ='Rit overzicht 2024 '!BL37 -> 0 | BM37: ='Rit overzicht 2024 '!BM37 -> 0 | BN37: ='Rit overzicht 2024 '!BN37 -> 15
A38: 8.1 | C38: Dinsdag | D38: 1=Hoornaar 2 Schelluinen binnen | F38: 3 | G38: 3 | H38: 3 | I38: ='Rit overzicht 2024 '!I38 -> 0 | J38: ='Rit overzicht 2024 '!J38 -> 0 | K38: ='Rit overzicht 2024 '!K38 -> 0 | L38: ='Rit overzicht 2024 '!L38 -> 0 | M38: ='Rit overzicht 2024 '!M38 -> 0 | N38: ='Rit overzicht 2024 '!N38 -> 0 | O38: ='Rit overzicht 2024 '!O38 -> 0 | P38: ='Rit overzicht 2024 '!P38 -> 0 | Q38: ='Rit overzicht 2024 '!Q38 -> 0 | R38: ='Rit overzicht 2024 '!R38 -> 0 | S38: ='Rit overzicht 2024 '!S38 -> 15 | T38: ='Rit overzicht 2024 '!T38 -> 0 | U38: ='Rit overzicht 2024 '!U38 -> 0 | V38: ='Rit overzicht 2024 '!V38 -> 0 | W38: ='Rit overzicht 2024 '!W38 -> 0 | X38: ='Rit overzicht 2024 '!X38 -> 0 | Y38: ='Rit overzicht 2024 '!Y38 -> 0 | Z38: ='Rit overzicht 2024 '!Z38 -> 0 | AA38: ='Rit overzicht 2024 '!AA38 -> 0 | AB38: ='Rit overzicht 2024 '!AB38 -> 0 | AC38: ='Rit overzicht 2024 '!AC38 -> 0 | AD38: ='Rit overzicht 2024 '!AD38 -> 0 | AE38: ='Rit overzicht 2024 '!AE38 -> 0 | AF38: ='Rit overzicht 2024 '!AF38 -> 0 | AG38: ='Rit overzicht 2024 '!AG38 -> 0 | AH38: ='Rit overzicht 2024 '!AH38 -> 0 | AI38: ='Rit overzicht 2024 '!AI38 -> 0 | AJ38: ='Rit overzicht 2024 '!AJ38 -> 0 | AK38: ='Rit overzicht 2024 '!AK38 -> 0 | AL38: ='Rit overzicht 2024 '!AL38 -> 0 | AM38: ='Rit overzicht 2024 '!AM38 -> 0 | AN38: ='Rit overzicht 2024 '!AN38 -> 0 | AO38: ='Rit overzicht 2024 '!AO38 -> 0 | AP38: ='Rit overzicht 2024 '!AP38 -> 0 | AQ38: ='Rit overzicht 2024 '!AQ38 -> 0 | AR38: ='Rit overzicht 2024 '!AR38 -> 0 | AS38: ='Rit overzicht 2024 '!AS38 -> 0 | AT38: ='Rit overzicht 2024 '!AT38 -> 0 | AU38: ='Rit overzicht 2024 '!AU38 -> 0 | AV38: ='Rit overzicht 2024 '!AV38 -> 0 | AW38: ='Rit overzicht 2024 '!AW38 -> 0 | AX38: ='Rit overzicht 2024 '!AX38 -> 0 | AY38: ='Rit overzicht 2024 '!AY38 -> 0 | AZ38: ='Rit overzicht 2024 '!AZ38 -> 0 | BA38: ='Rit overzicht 2024 '!BA38 -> 0 | BB38: ='Rit overzicht 2024 '!BB38 -> 0 | BC38: ='Rit overzicht 2024 '!BC38 -> 0 | BD38: ='Rit overzicht 2024 '!BD38 -> 0 | BE38: ='Rit overzicht 2024 '!BE38 -> 0 | BF38: ='Rit overzicht 2024 '!BF38 -> 0 | BG38: ='Rit overzicht 2024 '!BG38 -> 0 | BH38: ='Rit overzicht 2024 '!BH38 -> 0 | BI38: ='Rit overzicht 2024 '!BI38 -> 0 | BJ38: ='Rit overzicht 2024 '!BJ38 -> 0 | BK38: ='Rit overzicht 2024 '!BK38 -> 0 | BL38: ='Rit overzicht 2024 '!BL38 -> 15 | BM38: ='Rit overzicht 2024 '!BM38 -> 0 | BN38: ='Rit overzicht 2024 '!BN38 -> 0
A39: 8.1 | C39: Dinsdag | D39: 1 = Hoornaar 2= Schelluinen binnen | E39: 1 = Weide 33A 2 = Commanderijstraat 28 | F39: 3 | G39: 3 | H39: 3 | I39: ='Rit overzicht 2024 '!I39 -> 0 | J39: ='Rit overzicht 2024 '!J39 -> 0 | K39: ='Rit overzicht 2024 '!K39 -> 0 | L39: ='Rit overzicht 2024 '!L39 -> 0 | M39: ='Rit overzicht 2024 '!M39 -> 0 | N39: ='Rit overzicht 2024 '!N39 -> 0 | O39: ='Rit overzicht 2024 '!O39 -> 0 | P39: ='Rit overzicht 2024 '!P39 -> 0 | Q39: ='Rit overzicht 2024 '!Q39 -> 0 | R39: ='Rit overzicht 2024 '!R39 -> 0 | S39: ='Rit overzicht 2024 '!S39 -> 8 | T39: ='Rit overzicht 2024 '!T39 -> 0 | U39: ='Rit overzicht 2024 '!U39 -> 0 | V39: ='Rit overzicht 2024 '!V39 -> 0 | W39: ='Rit overzicht 2024 '!W39 -> 0 | X39: ='Rit overzicht 2024 '!X39 -> 0 | Y39: ='Rit overzicht 2024 '!Y39 -> 0 | Z39: ='Rit overzicht 2024 '!Z39 -> 0 | AA39: ='Rit overzicht 2024 '!AA39 -> 0 | AB39: ='Rit overzicht 2024 '!AB39 -> 0 | AC39: ='Rit overzicht 2024 '!AC39 -> 0 | AD39: ='Rit overzicht 2024 '!AD39 -> 0 | AE39: ='Rit overzicht 2024 '!AE39 -> 0 | AF39: ='Rit overzicht 2024 '!AF39 -> 0 | AG39: ='Rit overzicht 2024 '!AG39 -> 0 | AH39: ='Rit overzicht 2024 '!AH39 -> 0 | AI39: ='Rit overzicht 2024 '!AI39 -> 0 | AJ39: ='Rit overzicht 2024 '!AJ39 -> 0 | AK39: ='Rit overzicht 2024 '!AK39 -> 0 | AL39: ='Rit overzicht 2024 '!AL39 -> 0 | AM39: ='Rit overzicht 2024 '!AM39 -> 0 | AN39: ='Rit overzicht 2024 '!AN39 -> 0 | AO39: ='Rit overzicht 2024 '!AO39 -> 0 | AP39: ='Rit overzicht 2024 '!AP39 -> 0 | AQ39: ='Rit overzicht 2024 '!AQ39 -> 0 | AR39: ='Rit overzicht 2024 '!AR39 -> 0 | AS39: ='Rit overzicht 2024 '!AS39 -> 0 | AT39: ='Rit overzicht 2024 '!AT39 -> 0 | AU39: ='Rit overzicht 2024 '!AU39 -> 0 | AV39: ='Rit overzicht 2024 '!AV39 -> 0 | AW39: ='Rit overzicht 2024 '!AW39 -> 0 | AX39: ='Rit overzicht 2024 '!AX39 -> 0 | AY39: ='Rit overzicht 2024 '!AY39 -> 0 | AZ39: ='Rit overzicht 2024 '!AZ39 -> 0 | BA39: ='Rit overzicht 2024 '!BA39 -> 0 | BB39: ='Rit overzicht 2024 '!BB39 -> 0 | BC39: ='Rit overzicht 2024 '!BC39 -> 0 | BD39: ='Rit overzicht 2024 '!BD39 -> 0 | BE39: ='Rit overzicht 2024 '!BE39 -> 0 | BF39: ='Rit overzicht 2024 '!BF39 -> 0 | BG39: ='Rit overzicht 2024 '!BG39 -> 0 | BH39: ='Rit overzicht 2024 '!BH39 -> 0 | BI39: ='Rit overzicht 2024 '!BI39 -> 0 | BJ39: ='Rit overzicht 2024 '!BJ39 -> 0 | BK39: ='Rit overzicht 2024 '!BK39 -> 8 | BL39: ='Rit overzicht 2024 '!BL39 -> 0 | BM39: ='Rit overzicht 2024 '!BM39 -> 8 | BN39: ='Rit overzicht 2024 '!BN39 -> 18
A40: 8.2 | C40: Dinsdag | D40: 1 =Stalkaarsen oude Hoven | F40: 3 | G40: 3 | H40: 3 | I40: ='Rit overzicht 2024 '!I40 -> 0 | J40: ='Rit overzicht 2024 '!J40 -> 0 | K40: ='Rit overzicht 2024 '!K40 -> 10 | L40: ='Rit overzicht 2024 '!L40 -> 0 | M40: ='Rit overzicht 2024 '!M40 -> 0 | N40: ='Rit overzicht 2024 '!N40 -> 0 | O40: ='Rit overzicht 2024 '!O40 -> 0 | P40: ='Rit overzicht 2024 '!P40 -> 0 | Q40: ='Rit overzicht 2024 '!Q40 -> 0 | R40: ='Rit overzicht 2024 '!R40 -> 0 | S40: ='Rit overzicht 2024 '!S40 -> 8 | T40: ='Rit overzicht 2024 '!T40 -> 0 | U40: ='Rit overzicht 2024 '!U40 -> 0 | V40: ='Rit overzicht 2024 '!V40 -> 0 | W40: ='Rit overzicht 2024 '!W40 -> 0 | X40: ='Rit overzicht 2024 '!X40 -> 0 | Y40: ='Rit overzicht 2024 '!Y40 -> 0 | Z40: ='Rit overzicht 2024 '!Z40 -> 0 | AA40: ='Rit overzicht 2024 '!AA40 -> 0 | AB40: ='Rit overzicht 2024 '!AB40 -> 0 | AC40: ='Rit overzicht 2024 '!AC40 -> 0 | AD40: ='Rit overzicht 2024 '!AD40 -> 0 | AE40: ='Rit overzicht 2024 '!AE40 -> 0 | AF40: ='Rit overzicht 2024 '!AF40 -> 0 | AG40: ='Rit overzicht 2024 '!AG40 -> 0 | AH40: ='Rit overzicht 2024 '!AH40 -> 0 | AI40: ='Rit overzicht 2024 '!AI40 -> 0 | AJ40: ='Rit overzicht 2024 '!AJ40 -> 0 | AK40: ='Rit overzicht 2024 '!AK40 -> 0 | AL40: ='Rit overzicht 2024 '!AL40 -> 0 | AM40: ='Rit overzicht 2024 '!AM40 -> 0 | AN40: ='Rit overzicht 2024 '!AN40 -> 0 | AO40: ='Rit overzicht 2024 '!AO40 -> 0 | AP40: ='Rit overzicht 2024 '!AP40 -> 0 | AQ40: ='Rit overzicht 2024 '!AQ40 -> 0 | AR40: ='Rit overzicht 2024 '!AR40 -> 0 | AS40: ='Rit overzicht 2024 '!AS40 -> 0 | AT40: ='Rit overzicht 2024 '!AT40 -> 0 | AU40: ='Rit overzicht 2024 '!AU40 -> 0 | AV40: ='Rit overzicht 2024 '!AV40 -> 0 | AW40: ='Rit overzicht 2024 '!AW40 -> 0 | AX40: ='Rit overzicht 2024 '!AX40 -> 0 | AY40: ='Rit overzicht 2024 '!AY40 -> 0 | AZ40: ='Rit overzicht 2024 '!AZ40 -> 0 | BA40: ='Rit overzicht 2024 '!BA40 -> 0 | BB40: ='Rit overzicht 2024 '!BB40 -> 0 | BC40: ='Rit overzicht 2024 '!BC40 -> 0 | BD40: ='Rit overzicht 2024 '!BD40 -> 0 | BE40: ='Rit overzicht 2024 '!BE40 -> 0 | BF40: ='Rit overzicht 2024 '!BF40 -> 0 | BG40: ='Rit overzicht 2024 '!BG40 -> 0 | BH40: ='Rit overzicht 2024 '!BH40 -> 0 | BI40: ='Rit overzicht 2024 '!BI40 -> 0 | BJ40: ='Rit overzicht 2024 '!BJ40 -> 0 | BK40: ='Rit overzicht 2024 '!BK40 -> 0 | BL40: ='Rit overzicht 2024 '!BL40 -> 18 | BM40: ='Rit overzicht 2024 '!BM40 -> 0 | BN40: ='Rit overzicht 2024 '!BN40 -> 0
A41: 8.2 | C41: Dinsdag | D41: 1 =Stalkaarsen oude Hoven | E41: 1 = Dokter Schoyerstraat 43 | F41: 3 | G41: 3 | H41: 3 | I41: ='Rit overzicht 2024 '!I41 -> 4 | J41: ='Rit overzicht 2024 '!J41 -> 0 | K41: ='Rit overzicht 2024 '!K41 -> 0 | L41: ='Rit overzicht 2024 '!L41 -> 0 | M41: ='Rit overzicht 2024 '!M41 -> 9 | N41: ='Rit overzicht 2024 '!N41 -> 2 | O41: ='Rit overzicht 2024 '!O41 -> 0 | P41: ='Rit overzicht 2024 '!P41 -> 6 | Q41: ='Rit overzicht 2024 '!Q41 -> 14 | R41: ='Rit overzicht 2024 '!R41 -> 0 | S41: ='Rit overzicht 2024 '!S41 -> 6 | T41: ='Rit overzicht 2024 '!T41 -> 0 | U41: ='Rit overzicht 2024 '!U41 -> 0 | V41: ='Rit overzicht 2024 '!V41 -> 9 | W41: ='Rit overzicht 2024 '!W41 -> 29 | X41: ='Rit overzicht 2024 '!X41 -> 0 | Y41: ='Rit overzicht 2024 '!Y41 -> 7 | Z41: ='Rit overzicht 2024 '!Z41 -> 0 | AA41: ='Rit overzicht 2024 '!AA41 -> 0 | AB41: ='Rit overzicht 2024 '!AB41 -> 0 | AC41: ='Rit overzicht 2024 '!AC41 -> 0 | AD41: ='Rit overzicht 2024 '!AD41 -> 0 | AE41: ='Rit overzicht 2024 '!AE41 -> 0 | AF41: ='Rit overzicht 2024 '!AF41 -> 0 | AG41: ='Rit overzicht 2024 '!AG41 -> 0 | AH41: ='Rit overzicht 2024 '!AH41 -> 0 | AI41: ='Rit overzicht 2024 '!AI41 -> 0 | AJ41: ='Rit overzicht 2024 '!AJ41 -> 0 | AK41: ='Rit overzicht 2024 '!AK41 -> 0 | AL41: ='Rit overzicht 2024 '!AL41 -> 0 | AM41: ='Rit overzicht 2024 '!AM41 -> 0 | AN41: ='Rit overzicht 2024 '!AN41 -> 0 | AO41: ='Rit overzicht 2024 '!AO41 -> 0 | AP41: ='Rit overzicht 2024 '!AP41 -> 0 | AQ41: ='Rit overzicht 2024 '!AQ41 -> 0 | AR41: ='Rit overzicht 2024 '!AR41 -> 0 | AS41: ='Rit overzicht 2024 '!AS41 -> 0 | AT41: ='Rit overzicht 2024 '!AT41 -> 0 | AU41: ='Rit overzicht 2024 '!AU41 -> 0 | AV41: ='Rit overzicht 2024 '!AV41 -> 0 | AW41: ='Rit overzicht 2024 '!AW41 -> 0 | AX41: ='Rit overzicht 2024 '!AX41 -> 0 | AY41: ='Rit overzicht 2024 '!AY41 -> 0 | AZ41: ='Rit overzicht 2024 '!AZ41 -> 0 | BA41: ='Rit overzicht 2024 '!BA41 -> 0 | BB41: ='Rit overzicht 2024 '!BB41 -> 0 | BC41: ='Rit overzicht 2024 '!BC41 -> 0 | BD41: ='Rit overzicht 2024 '!BD41 -> 0 | BE41: ='Rit overzicht 2024 '!BE41 -> 0 | BF41: ='Rit overzicht 2024 '!BF41 -> 0 | BG41: ='Rit overzicht 2024 '!BG41 -> 0 | BH41: ='Rit overzicht 2024 '!BH41 -> 0 | BI41: ='Rit overzicht 2024 '!BI41 -> 17 | BJ41: ='Rit overzicht 2024 '!BJ41 -> 0 | BK41: ='Rit overzicht 2024 '!BK41 -> 69 | BL41: ='Rit overzicht 2024 '!BL41 -> 0 | BM41: ='Rit overzicht 2024 '!BM41 -> 86 | BN41: ='Rit overzicht 2024 '!BN41 -> 189
A42: 1.1 | C42: Woensdag | D42: Arkel binnen (helemaal) - Meerkerk | F42: 8 | G42: 8 | H42: 7 | I42: ='Rit overzicht 2024 '!I42 -> 10 | J42: ='Rit overzicht 2024 '!J42 -> 0 | K42: ='Rit overzicht 2024 '!K42 -> 0 | L42: ='Rit overzicht 2024 '!L42 -> 0 | M42: ='Rit overzicht 2024 '!M42 -> 30 | N42: ='Rit overzicht 2024 '!N42 -> 41 | O42: ='Rit overzicht 2024 '!O42 -> 0 | P42: ='Rit overzicht 2024 '!P42 -> 16 | Q42: ='Rit overzicht 2024 '!Q42 -> 18 | R42: ='Rit overzicht 2024 '!R42 -> 0 | S42: ='Rit overzicht 2024 '!S42 -> 12 | T42: ='Rit overzicht 2024 '!T42 -> 0 | U42: ='Rit overzicht 2024 '!U42 -> 0 | V42: ='Rit overzicht 2024 '!V42 -> 13 | W42: ='Rit overzicht 2024 '!W42 -> 38 | X42: ='Rit overzicht 2024 '!X42 -> 0 | Y42: ='Rit overzicht 2024 '!Y42 -> 7 | Z42: ='Rit overzicht 2024 '!Z42 -> 4 | AA42: ='Rit overzicht 2024 '!AA42 -> 0 | AB42: ='Rit overzicht 2024 '!AB42 -> 0 | AC42: ='Rit overzicht 2024 '!AC42 -> 0 | AD42: ='Rit overzicht 2024 '!AD42 -> 0 | AE42: ='Rit overzicht 2024 '!AE42 -> 0 | AF42: ='Rit overzicht 2024 '!AF42 -> 0 | AG42: ='Rit overzicht 2024 '!AG42 -> 0 | AH42: ='Rit overzicht 2024 '!AH42 -> 0 | AI42: ='Rit overzicht 2024 '!AI42 -> 0 | AJ42: ='Rit overzicht 2024 '!AJ42 -> 0 | AK42: ='Rit overzicht 2024 '!AK42 -> 0 | AL42: ='Rit overzicht 2024 '!AL42 -> 0 | AM42: ='Rit overzicht 2024 '!AM42 -> 0 | AN42: ='Rit overzicht 2024 '!AN42 -> 0 | AO42: ='Rit overzicht 2024 '!AO42 -> 0 | AP42: ='Rit overzicht 2024 '!AP42 -> 0 | AQ42: ='Rit overzicht 2024 '!AQ42 -> 0 | AR42: ='Rit overzicht 2024 '!AR42 -> 0 | AS42: ='Rit overzicht 2024 '!AS42 -> 0 | AT42: ='Rit overzicht 2024 '!AT42 -> 0 | AU42: ='Rit overzicht 2024 '!AU42 -> 0 | AV42: ='Rit overzicht 2024 '!AV42 -> 0 | AW42: ='Rit overzicht 2024 '!AW42 -> 0 | AX42: ='Rit overzicht 2024 '!AX42 -> 0 | AY42: ='Rit overzicht 2024 '!AY42 -> 0 | AZ42: ='Rit overzicht 2024 '!AZ42 -> 0 | BA42: ='Rit overzicht 2024 '!BA42 -> 0 | BB42: ='Rit overzicht 2024 '!BB42 -> 0 | BC42: ='Rit overzicht 2024 '!BC42 -> 0 | BD42: ='Rit overzicht 2024 '!BD42 -> 0 | BE42: ='Rit overzicht 2024 '!BE42 -> 0 | BF42: ='Rit overzicht 2024 '!BF42 -> 0 | BG42: ='Rit overzicht 2024 '!BG42 -> 0 | BH42: ='Rit overzicht 2024 '!BH42 -> 0 | BI42: ='Rit overzicht 2024 '!BI42 -> 0 | BJ42: ='Rit overzicht 2024 '!BJ42 -> 74 | BK42: ='Rit overzicht 2024 '!BK42 -> 0 | BL42: ='Rit overzicht 2024 '!BL42 -> 115 | BM42: ='Rit overzicht 2024 '!BM42 -> 0 | BN42: ='Rit overzicht 2024 '!BN42 -> 0
A43: 1.1 | C43: Woensdag | D43: Arkel binnen (helemaal) - Meerkerk | F43: 8 | G43: 8 | H43: 7 | I43: ='Rit overzicht 2024 '!I43 -> 0 | J43: ='Rit overzicht 2024 '!J43 -> 0 | K43: ='Rit overzicht 2024 '!K43 -> 0 | L43: ='Rit overzicht 2024 '!L43 -> 0 | M43: ='Rit overzicht 2024 '!M43 -> 0 | N43: ='Rit overzicht 2024 '!N43 -> 0 | O43: ='Rit overzicht 2024 '!O43 -> 0 | P43: ='Rit overzicht 2024 '!P43 -> 0 | Q43: ='Rit overzicht 2024 '!Q43 -> 0 | R43: ='Rit overzicht 2024 '!R43 -> 0 | S43: ='Rit overzicht 2024 '!S43 -> 0 | T43: ='Rit overzicht 2024 '!T43 -> 2 | U43: ='Rit overzicht 2024 '!U43 -> 0 | V43: ='Rit overzicht 2024 '!V43 -> 0 | W43: ='Rit overzicht 2024 '!W43 -> 0 | X43: ='Rit overzicht 2024 '!X43 -> 13 | Y43: ='Rit overzicht 2024 '!Y43 -> 24 | Z43: ='Rit overzicht 2024 '!Z43 -> 0 | AA43: ='Rit overzicht 2024 '!AA43 -> 0 | AB43: ='Rit overzicht 2024 '!AB43 -> 0 | AC43: ='Rit overzicht 2024 '!AC43 -> 0 | AD43: ='Rit overzicht 2024 '!AD43 -> 0 | AE43: ='Rit overzicht 2024 '!AE43 -> 0 | AF43: ='Rit overzicht 2024 '!AF43 -> 0 | AG43: ='Rit overzicht 2024 '!AG43 -> 0 | AH43: ='Rit overzicht 2024 '!AH43 -> 0 | AI43: ='Rit overzicht 2024 '!AI43 -> 0 | AJ43: ='Rit overzicht 2024 '!AJ43 -> 0 | AK43: ='Rit overzicht 2024 '!AK43 -> 0 | AL43: ='Rit overzicht 2024 '!AL43 -> 0 | AM43: ='Rit overzicht 2024 '!AM43 -> 0 | AN43: ='Rit overzicht 2024 '!AN43 -> 0 | AO43: ='Rit overzicht 2024 '!AO43 -> 0 | AP43: ='Rit overzicht 2024 '!AP43 -> 0 | AQ43: ='Rit overzicht 2024 '!AQ43 -> 0 | AR43: ='Rit overzicht 2024 '!AR43 -> 0 | AS43: ='Rit overzicht 2024 '!AS43 -> 0 | AT43: ='Rit overzicht 2024 '!AT43 -> 0 | AU43: ='Rit overzicht 2024 '!AU43 -> 0 | AV43: ='Rit overzicht 2024 '!AV43 -> 0 | AW43: ='Rit overzicht 2024 '!AW43 -> 0 | AX43: ='Rit overzicht 2024 '!AX43 -> 0 | AY43: ='Rit overzicht 2024 '!AY43 -> 0 | AZ43: ='Rit overzicht 2024 '!AZ43 -> 0 | BA43: ='Rit overzicht 2024 '!BA43 -> 0 | BB43: ='Rit overzicht 2024 '!BB43 -> 0 | BC43: ='Rit overzicht 2024 '!BC43 -> 0 | BD43: ='Rit overzicht 2024 '!BD43 -> 0 | BE43: ='Rit overzicht 2024 '!BE43 -> 0 | BF43: ='Rit overzicht 2024 '!BF43 -> 0 | BG43: ='Rit overzicht 2024 '!BG43 -> 0 | BH43: ='Rit overzicht 2024 '!BH43 -> 0 | BI43: ='Rit overzicht 2024 '!BI43 -> 15 | BJ43: ='Rit overzicht 2024 '!BJ43 -> 0 | BK43: ='Rit overzicht 2024 '!BK43 -> 24 | BL43: ='Rit overzicht 2024 '!BL43 -> 0 | BM43: ='Rit overzicht 2024 '!BM43 -> 39 | BN43: ='Rit overzicht 2024 '!BN43 -> 76
A44: 2.1 | C44: Woensdag | D44: Vianen Monnikenhof - Meerkerk helpen | I44: ='Rit overzicht 2024 '!I44 -> 0 | J44: ='Rit overzicht 2024 '!J44 -> 0 | K44: ='Rit overzicht 2024 '!K44 -> 0 | L44: ='Rit overzicht 2024 '!L44 -> 0 | M44: ='Rit overzicht 2024 '!M44 -> 0 | N44: ='Rit overzicht 2024 '!N44 -> 0 | O44: ='Rit overzicht 2024 '!O44 -> 0 | P44: ='Rit overzicht 2024 '!P44 -> 0 | Q44: ='Rit overzicht 2024 '!Q44 -> 0 | R44: ='Rit overzicht 2024 '!R44 -> 0 | S44: ='Rit overzicht 2024 '!S44 -> 0 | T44: ='Rit overzicht 2024 '!T44 -> 21 | U44: ='Rit overzicht 2024 '!U44 -> 0 | V44: ='Rit overzicht 2024 '!V44 -> 0 | W44: ='Rit overzicht 2024 '!W44 -> 0 | X44: ='Rit overzicht 2024 '!X44 -> 26 | Y44: ='Rit overzicht 2024 '!Y44 -> 29 | Z44: ='Rit overzicht 2024 '!Z44 -> 0 | AA44: ='Rit overzicht 2024 '!AA44 -> 0 | AB44: ='Rit overzicht 2024 '!AB44 -> 0 | AC44: ='Rit overzicht 2024 '!AC44 -> 0 | AD44: ='Rit overzicht 2024 '!AD44 -> 0 | AE44: ='Rit overzicht 2024 '!AE44 -> 0 | AF44: ='Rit overzicht 2024 '!AF44 -> 0 | AG44: ='Rit overzicht 2024 '!AG44 -> 0 | AH44: ='Rit overzicht 2024 '!AH44 -> 0 | AI44: ='Rit overzicht 2024 '!AI44 -> 0 | AJ44: ='Rit overzicht 2024 '!AJ44 -> 0 | AK44: ='Rit overzicht 2024 '!AK44 -> 0 | AL44: ='Rit overzicht 2024 '!AL44 -> 0 | AM44: ='Rit overzicht 2024 '!AM44 -> 0 | AN44: ='Rit overzicht 2024 '!AN44 -> 0 | AO44: ='Rit overzicht 2024 '!AO44 -> 0 | AP44: ='Rit overzicht 2024 '!AP44 -> 0 | AQ44: ='Rit overzicht 2024 '!AQ44 -> 0 | AR44: ='Rit overzicht 2024 '!AR44 -> 0 | AS44: ='Rit overzicht 2024 '!AS44 -> 0 | AT44: ='Rit overzicht 2024 '!AT44 -> 0 | AU44: ='Rit overzicht 2024 '!AU44 -> 0 | AV44: ='Rit overzicht 2024 '!AV44 -> 0 | AW44: ='Rit overzicht 2024 '!AW44 -> 0 | AX44: ='Rit overzicht 2024 '!AX44 -> 0 | AY44: ='Rit overzicht 2024 '!AY44 -> 0 | AZ44: ='Rit overzicht 2024 '!AZ44 -> 0 | BA44: ='Rit overzicht 2024 '!BA44 -> 0 | BB44: ='Rit overzicht 2024 '!BB44 -> 0 | BC44: ='Rit overzicht 2024 '!BC44 -> 0 | BD44: ='Rit overzicht 2024 '!BD44 -> 0 | BE44: ='Rit overzicht 2024 '!BE44 -> 0 | BF44: ='Rit overzicht 2024 '!BF44 -> 0 | BG44: ='Rit overzicht 2024 '!BG44 -> 0 | BH44: ='Rit overzicht 2024 '!BH44 -> 0 | BI44: ='Rit overzicht 2024 '!BI44 -> 0 | BJ44: ='Rit overzicht 2024 '!BJ44 -> 47 | BK44: ='Rit overzicht 2024 '!BK44 -> 0 | BL44: ='Rit overzicht 2024 '!BL44 -> 29 | BM44: ='Rit overzicht 2024 '!BM44 -> 0 | BN44: ='Rit overzicht 2024 '!BN44 -> 0
A45: 2.1 | C45: Woensdag | D45: Vianen Monnikenhof - Meerkerk helpen | I45: ='Rit overzicht 2024 '!I45 -> 0 | J45: ='Rit overzicht 2024 '!J45 -> 0 | K45: ='Rit overzicht 2024 '!K45 -> 0 | L45: ='Rit overzicht 2024 '!L45 -> 0 | M45: ='Rit overzicht 2024 '!M45 -> 0 | N45: ='Rit overzicht 2024 '!N45 -> 0 | O45: ='Rit overzicht 2024 '!O45 -> 0 | P45: ='Rit overzicht 2024 '!P45 -> 0 | Q45: ='Rit overzicht 2024 '!Q45 -> 0 | R45: ='Rit overzicht 2024 '!R45 -> 0 | S45: ='Rit overzicht 2024 '!S45 -> 0 | T45: ='Rit overzicht 2024 '!T45 -> 0 | U45: ='Rit overzicht 2024 '!U45 -> 0 | V45: ='Rit overzicht 2024 '!V45 -> 0 | W45: ='Rit overzicht 2024 '!W45 -> 14 | X45: ='Rit overzicht 2024 '!X45 -> 0 | Y45: ='Rit overzicht 2024 '!Y45 -> 0 | Z45: ='Rit overzicht 2024 '!Z45 -> 0 | AA45: ='Rit overzicht 2024 '!AA45 -> 45 | AB45: ='Rit overzicht 2024 '!AB45 -> 0 | AC45: ='Rit overzicht 2024 '!AC45 -> 0 | AD45: ='Rit overzicht 2024 '!AD45 -> 0 | AE45: ='Rit overzicht 2024 '!AE45 -> 0 | AF45: ='Rit overzicht 2024 '!AF45 -> 0 | AG45: ='Rit overzicht 2024 '!AG45 -> 0 | AH45: ='Rit overzicht 2024 '!AH45 -> 0 | AI45: ='Rit overzicht 2024 '!AI45 -> 0 | AJ45: ='Rit overzicht 2024 '!AJ45 -> 0 | AK45: ='Rit overzicht 2024 '!AK45 -> 0 | AL45: ='Rit overzicht 2024 '!AL45 -> 0 | AM45: ='Rit overzicht 2024 '!AM45 -> 0 | AN45: ='Rit overzicht 2024 '!AN45 -> 0 | AO45: ='Rit overzicht 2024 '!AO45 -> 0 | AP45: ='Rit overzicht 2024 '!AP45 -> 0 | AQ45: ='Rit overzicht 2024 '!AQ45 -> 0 | AR45: ='Rit overzicht 2024 '!AR45 -> 0 | AS45: ='Rit overzicht 2024 '!AS45 -> 0 | AT45: ='Rit overzicht 2024 '!AT45 -> 0 | AU45: ='Rit overzicht 2024 '!AU45 -> 0 | AV45: ='Rit overzicht 2024 '!AV45 -> 0 | AW45: ='Rit overzicht 2024 '!AW45 -> 0 | AX45: ='Rit overzicht 2024 '!AX45 -> 0 | AY45: ='Rit overzicht 2024 '!AY45 -> 0 | AZ45: ='Rit overzicht 2024 '!AZ45 -> 0 | BA45: ='Rit overzicht 2024 '!BA45 -> 0 | BB45: ='Rit overzicht 2024 '!BB45 -> 0 | BC45: ='Rit overzicht 2024 '!BC45 -> 0 | BD45: ='Rit overzicht 2024 '!BD45 -> 0 | BE45: ='Rit overzicht 2024 '!BE45 -> 0 | BF45: ='Rit overzicht 2024 '!BF45 -> 0 | BG45: ='Rit overzicht 2024 '!BG45 -> 0 | BH45: ='Rit overzicht 2024 '!BH45 -> 0 | BI45: ='Rit overzicht 2024 '!BI45 -> 0 | BJ45: ='Rit overzicht 2024 '!BJ45 -> 0 | BK45: ='Rit overzicht 2024 '!BK45 -> 59 | BL45: ='Rit overzicht 2024 '!BL45 -> 0 | BM45: ='Rit overzicht 2024 '!BM45 -> 59 | BN45: ='Rit overzicht 2024 '!BN45 -> 36
A46: 3.1 | C46: Woensdag | D46: Ameide en Tienhoven Binnen | F46: 7 | G46: 7 | H46: 8 | I46: ='Rit overzicht 2024 '!I46 -> 0 | J46: ='Rit overzicht 2024 '!J46 -> 0 | K46: ='Rit overzicht 2024 '!K46 -> 0 | L46: ='Rit overzicht 2024 '!L46 -> 0 | M46: ='Rit overzicht 2024 '!M46 -> 0 | N46: ='Rit overzicht 2024 '!N46 -> 0 | O46: ='Rit overzicht 2024 '!O46 -> 0 | P46: ='Rit overzicht 2024 '!P46 -> 0 | Q46: ='Rit overzicht 2024 '!Q46 -> 0 | R46: ='Rit overzicht 2024 '!R46 -> 0 | S46: ='Rit overzicht 2024 '!S46 -> 0 | T46: ='Rit overzicht 2024 '!T46 -> 0 | U46: ='Rit overzicht 2024 '!U46 -> 11 | V46: ='Rit overzicht 2024 '!V46 -> 0 | W46: ='Rit overzicht 2024 '!W46 -> 16 | X46: ='Rit overzicht 2024 '!X46 -> 0 | Y46: ='Rit overzicht 2024 '!Y46 -> 0 | Z46: ='Rit overzicht 2024 '!Z46 -> 0 | AA46: ='Rit overzicht 2024 '!AA46 -> 9 | AB46: ='Rit overzicht 2024 '!AB46 -> 0 | AC46: ='Rit overzicht 2024 '!AC46 -> 0 | AD46: ='Rit overzicht 2024 '!AD46 -> 0 | AE46: ='Rit overzicht 2024 '!AE46 -> 0 | AF46: ='Rit overzicht 2024 '!AF46 -> 0 | AG46: ='Rit overzicht 2024 '!AG46 -> 0 | AH46: ='Rit overzicht 2024 '!AH46 -> 0 | AI46: ='Rit overzicht 2024 '!AI46 -> 0 | AJ46: ='Rit overzicht 2024 '!AJ46 -> 0 | AK46: ='Rit overzicht 2024 '!AK46 -> 0 | AL46: ='Rit overzicht 2024 '!AL46 -> 0 | AM46: ='Rit overzicht 2024 '!AM46 -> 0 | AN46: ='Rit overzicht 2024 '!AN46 -> 0 | AO46: ='Rit overzicht 2024 '!AO46 -> 0 | AP46: ='Rit overzicht 2024 '!AP46 -> 0 | AQ46: ='Rit overzicht 2024 '!AQ46 -> 0 | AR46: ='Rit overzicht 2024 '!AR46 -> 0 | AS46: ='Rit overzicht 2024 '!AS46 -> 0 | AT46: ='Rit overzicht 2024 '!AT46 -> 0 | AU46: ='Rit overzicht 2024 '!AU46 -> 0 | AV46: ='Rit overzicht 2024 '!AV46 -> 0 | AW46: ='Rit overzicht 2024 '!AW46 -> 0 | AX46: ='Rit overzicht 2024 '!AX46 -> 0 | AY46: ='Rit overzicht 2024 '!AY46 -> 0 | AZ46: ='Rit overzicht 2024 '!AZ46 -> 0 | BA46: ='Rit overzicht 2024 '!BA46 -> 0 | BB46: ='Rit overzicht 2024 '!BB46 -> 0 | BC46: ='Rit overzicht 2024 '!BC46 -> 0 | BD46: ='Rit overzicht 2024 '!BD46 -> 0 | BE46: ='Rit overzicht 2024 '!BE46 -> 0 | BF46: ='Rit overzicht 2024 '!BF46 -> 0 | BG46: ='Rit overzicht 2024 '!BG46 -> 0 | BH46: ='Rit overzicht 2024 '!BH46 -> 0 | BI46: ='Rit overzicht 2024 '!BI46 -> 0 | BJ46: ='Rit overzicht 2024 '!BJ46 -> 0 | BK46: ='Rit overzicht 2024 '!BK46 -> 0 | BL46: ='Rit overzicht 2024 '!BL46 -> 36 | BM46: ='Rit overzicht 2024 '!BM46 -> 0 | BN46: ='Rit overzicht 2024 '!BN46 -> 0
A47: 3.1 | C47: Woensdag | D47: Ameide en Tienhoven Binnen | F47: 7 | G47: 7 | H47: 8 | I47: ='Rit overzicht 2024 '!I47 -> 0 | J47: ='Rit overzicht 2024 '!J47 -> 0 | K47: ='Rit overzicht 2024 '!K47 -> 1 | L47: ='Rit overzicht 2024 '!L47 -> 0 | M47: ='Rit overzicht 2024 '!M47 -> 0 | N47: ='Rit overzicht 2024 '!N47 -> 0 | O47: ='Rit overzicht 2024 '!O47 -> 0 | P47: ='Rit overzicht 2024 '!P47 -> 0 | Q47: ='Rit overzicht 2024 '!Q47 -> 0 | R47: ='Rit overzicht 2024 '!R47 -> 0 | S47: ='Rit overzicht 2024 '!S47 -> 0 | T47: ='Rit overzicht 2024 '!T47 -> 1 | U47: ='Rit overzicht 2024 '!U47 -> 7 | V47: ='Rit overzicht 2024 '!V47 -> 0 | W47: ='Rit overzicht 2024 '!W47 -> 0 | X47: ='Rit overzicht 2024 '!X47 -> 0 | Y47: ='Rit overzicht 2024 '!Y47 -> 4 | Z47: ='Rit overzicht 2024 '!Z47 -> 0 | AA47: ='Rit overzicht 2024 '!AA47 -> 0 | AB47: ='Rit overzicht 2024 '!AB47 -> 0 | AC47: ='Rit overzicht 2024 '!AC47 -> 0 | AD47: ='Rit overzicht 2024 '!AD47 -> 0 | AE47: ='Rit overzicht 2024 '!AE47 -> 0 | AF47: ='Rit overzicht 2024 '!AF47 -> 0 | AG47: ='Rit overzicht 2024 '!AG47 -> 0 | AH47: ='Rit overzicht 2024 '!AH47 -> 0 | AI47: ='Rit overzicht 2024 '!AI47 -> 0 | AJ47: ='Rit overzicht 2024 '!AJ47 -> 0 | AK47: ='Rit overzicht 2024 '!AK47 -> 0 | AL47: ='Rit overzicht 2024 '!AL47 -> 0 | AM47: ='Rit overzicht 2024 '!AM47 -> 0 | AN47: ='Rit overzicht 2024 '!AN47 -> 0 | AO47: ='Rit overzicht 2024 '!AO47 -> 0 | AP47: ='Rit overzicht 2024 '!AP47 -> 0 | AQ47: ='Rit overzicht 2024 '!AQ47 -> 0 | AR47: ='Rit overzicht 2024 '!AR47 -> 0 | AS47: ='Rit overzicht 2024 '!AS47 -> 0 | AT47: ='Rit overzicht 2024 '!AT47 -> 0 | AU47: ='Rit overzicht 2024 '!AU47 -> 0 | AV47: ='Rit overzicht 2024 '!AV47 -> 0 | AW47: ='Rit overzicht 2024 '!AW47 -> 0 | AX47: ='Rit overzicht 2024 '!AX47 -> 0 | AY47: ='Rit overzicht 2024 '!AY47 -> 0 | AZ47: ='Rit overzicht 2024 '!AZ47 -> 0 | BA47: ='Rit overzicht 2024 '!BA47 -> 0 | BB47: ='Rit overzicht 2024 '!BB47 -> 0 | BC47: ='Rit overzicht 2024 '!BC47 -> 0 | BD47: ='Rit overzicht 2024 '!BD47 -> 0 | BE47: ='Rit overzicht 2024 '!BE47 -> 0 | BF47: ='Rit overzicht 2024 '!BF47 -> 0 | BG47: ='Rit overzicht 2024 '!BG47 -> 0 | BH47: ='Rit overzicht 2024 '!BH47 -> 0 | BI47: ='Rit overzicht 2024 '!BI47 -> 1 | BJ47: ='Rit overzicht 2024 '!BJ47 -> 0 | BK47: ='Rit overzicht 2024 '!BK47 -> 12 | BL47: ='Rit overzicht 2024 '!BL47 -> 0 | BM47: ='Rit overzicht 2024 '!BM47 -> 13 | BN47: ='Rit overzicht 2024 '!BN47 -> 52
A48: 4.1 | C48: Woensdag | D48: 1= Noordeloos 2= Goudriaan Binnen | F48: 6 | G48: 6 | H48: 6 | I48: ='Rit overzicht 2024 '!I48 -> 0 | J48: ='Rit overzicht 2024 '!J48 -> 22 | K48: ='Rit overzicht 2024 '!K48 -> 4 | L48: ='Rit overzicht 2024 '!L48 -> 0 | M48: ='Rit overzicht 2024 '!M48 -> 4 | N48: ='Rit overzicht 2024 '!N48 -> 0 | O48: ='Rit overzicht 2024 '!O48 -> 0 | P48: ='Rit overzicht 2024 '!P48 -> 0 | Q48: ='Rit overzicht 2024 '!Q48 -> 0 | R48: ='Rit overzicht 2024 '!R48 -> 0 | S48: ='Rit overzicht 2024 '!S48 -> 0 | T48: ='Rit overzicht 2024 '!T48 -> 5 | U48: ='Rit overzicht 2024 '!U48 -> 7 | V48: ='Rit overzicht 2024 '!V48 -> 0 | W48: ='Rit overzicht 2024 '!W48 -> 0 | X48: ='Rit overzicht 2024 '!X48 -> 0 | Y48: ='Rit overzicht 2024 '!Y48 -> 10 | Z48: ='Rit overzicht 2024 '!Z48 -> 0 | AA48: ='Rit overzicht 2024 '!AA48 -> 0 | AB48: ='Rit overzicht 2024 '!AB48 -> 0 | AC48: ='Rit overzicht 2024 '!AC48 -> 0 | AD48: ='Rit overzicht 2024 '!AD48 -> 0 | AE48: ='Rit overzicht 2024 '!AE48 -> 0 | AF48: ='Rit overzicht 2024 '!AF48 -> 0 | AG48: ='Rit overzicht 2024 '!AG48 -> 0 | AH48: ='Rit overzicht 2024 '!AH48 -> 0 | AI48: ='Rit overzicht 2024 '!AI48 -> 0 | AJ48: ='Rit overzicht 2024 '!AJ48 -> 0 | AK48: ='Rit overzicht 2024 '!AK48 -> 0 | AL48: ='Rit overzicht 2024 '!AL48 -> 0 | AM48: ='Rit overzicht 2024 '!AM48 -> 0 | AN48: ='Rit overzicht 2024 '!AN48 -> 0 | AO48: ='Rit overzicht 2024 '!AO48 -> 0 | AP48: ='Rit overzicht 2024 '!AP48 -> 0 | AQ48: ='Rit overzicht 2024 '!AQ48 -> 0 | AR48: ='Rit overzicht 2024 '!AR48 -> 0 | AS48: ='Rit overzicht 2024 '!AS48 -> 0 | AT48: ='Rit overzicht 2024 '!AT48 -> 0 | AU48: ='Rit overzicht 2024 '!AU48 -> 0 | AV48: ='Rit overzicht 2024 '!AV48 -> 0 | AW48: ='Rit overzicht 2024 '!AW48 -> 0 | AX48: ='Rit overzicht 2024 '!AX48 -> 0 | AY48: ='Rit overzicht 2024 '!AY48 -> 0 | AZ48: ='Rit overzicht 2024 '!AZ48 -> 0 | BA48: ='Rit overzicht 2024 '!BA48 -> 0 | BB48: ='Rit overzicht 2024 '!BB48 -> 0 | BC48: ='Rit overzicht 2024 '!BC48 -> 0 | BD48: ='Rit overzicht 2024 '!BD48 -> 0 | BE48: ='Rit overzicht 2024 '!BE48 -> 0 | BF48: ='Rit overzicht 2024 '!BF48 -> 0 | BG48: ='Rit overzicht 2024 '!BG48 -> 0 | BH48: ='Rit overzicht 2024 '!BH48 -> 0 | BI48: ='Rit overzicht 2024 '!BI48 -> 0 | BJ48: ='Rit overzicht 2024 '!BJ48 -> 27 | BK48: ='Rit overzicht 2024 '!BK48 -> 0 | BL48: ='Rit overzicht 2024 '!BL48 -> 25 | BM48: ='Rit overzicht 2024 '!BM48 -> 0 | BN48: ='Rit overzicht 2024 '!BN48 -> 0
A49: 4.1 | C49: Woensdag | D49: 1= Noordeloos 2= Goudriaan Binnen | E49: 1=Singel 1- 2=van Tetsstr 31 | F49: 6 | G49: 6 | H49: 6 | I49: ='Rit overzicht 2024 '!I49 -> 0 | J49: ='Rit overzicht 2024 '!J49 -> 0 | K49: ='Rit overzicht 2024 '!K49 -> 0 | L49: ='Rit overzicht 2024 '!L49 -> 0 | M49: ='Rit overzicht 2024 '!M49 -> 0 | N49: ='Rit overzicht 2024 '!N49 -> 0 | O49: ='Rit overzicht 2024 '!O49 -> 0 | P49: ='Rit overzicht 2024 '!P49 -> 0 | Q49: ='Rit overzicht 2024 '!Q49 -> 0 | R49: ='Rit overzicht 2024 '!R49 -> 0 | S49: ='Rit overzicht 2024 '!S49 -> 0 | T49: ='Rit overzicht 2024 '!T49 -> 0 | U49: ='Rit overzicht 2024 '!U49 -> 8 | V49: ='Rit overzicht 2024 '!V49 -> 0 | W49: ='Rit overzicht 2024 '!W49 -> 0 | X49: ='Rit overzicht 2024 '!X49 -> 0 | Y49: ='Rit overzicht 2024 '!Y49 -> 8 | Z49: ='Rit overzicht 2024 '!Z49 -> 0 | AA49: ='Rit overzicht 2024 '!AA49 -> 0 | AB49: ='Rit overzicht 2024 '!AB49 -> 0 | AC49: ='Rit overzicht 2024 '!AC49 -> 0 | AD49: ='Rit overzicht 2024 '!AD49 -> 0 | AE49: ='Rit overzicht 2024 '!AE49 -> 0 | AF49: ='Rit overzicht 2024 '!AF49 -> 0 | AG49: ='Rit overzicht 2024 '!AG49 -> 0 | AH49: ='Rit overzicht 2024 '!AH49 -> 0 | AI49: ='Rit overzicht 2024 '!AI49 -> 0 | AJ49: ='Rit overzicht 2024 '!AJ49 -> 0 | AK49: ='Rit overzicht 2024 '!AK49 -> 0 | AL49: ='Rit overzicht 2024 '!AL49 -> 0 | AM49: ='Rit overzicht 2024 '!AM49 -> 0 | AN49: ='Rit overzicht 2024 '!AN49 -> 0 | AO49: ='Rit overzicht 2024 '!AO49 -> 0 | AP49: ='Rit overzicht 2024 '!AP49 -> 0 | AQ49: ='Rit overzicht 2024 '!AQ49 -> 0 | AR49: ='Rit overzicht 2024 '!AR49 -> 0 | AS49: ='Rit overzicht 2024 '!AS49 -> 0 | AT49: ='Rit overzicht 2024 '!AT49 -> 0 | AU49: ='Rit overzicht 2024 '!AU49 -> 0 | AV49: ='Rit overzicht 2024 '!AV49 -> 0 | AW49: ='Rit overzicht 2024 '!AW49 -> 0 | AX49: ='Rit overzicht 2024 '!AX49 -> 0 | AY49: ='Rit overzicht 2024 '!AY49 -> 0 | AZ49: ='Rit overzicht 2024 '!AZ49 -> 0 | BA49: ='Rit overzicht 2024 '!BA49 -> 0 | BB49: ='Rit overzicht 2024 '!BB49 -> 0 | BC49: ='Rit overzicht 2024 '!BC49 -> 0 | BD49: ='Rit overzicht 2024 '!BD49 -> 0 | BE49: ='Rit overzicht 2024 '!BE49 -> 0 | BF49: ='Rit overzicht 2024 '!BF49 -> 0 | BG49: ='Rit overzicht 2024 '!BG49 -> 0 | BH49: ='Rit overzicht 2024 '!BH49 -> 0 | BI49: ='Rit overzicht 2024 '!BI49 -> 0 | BJ49: ='Rit overzicht 2024 '!BJ49 -> 0 | BK49: ='Rit overzicht 2024 '!BK49 -> 16 | BL49: ='Rit overzicht 2024 '!BL49 -> 0 | BM49: ='Rit overzicht 2024 '!BM49 -> 16 | BN49: ='Rit overzicht 2024 '!BN49 -> 33
A50: 4.2 | C50: Woensdag | D50: 3=Nieuwpoort en 4=Langerak Binnen | F50: 6 | G50: 6 | H50: 6 | I50: ='Rit overzicht 2024 '!I50 -> 0 | J50: ='Rit overzicht 2024 '!J50 -> 0 | K50: ='Rit overzicht 2024 '!K50 -> 0 | L50: ='Rit overzicht 2024 '!L50 -> 0 | M50: ='Rit overzicht 2024 '!M50 -> 0 | N50: ='Rit overzicht 2024 '!N50 -> 0 | O50: ='Rit overzicht 2024 '!O50 -> 0 | P50: ='Rit overzicht 2024 '!P50 -> 0 | Q50: ='Rit overzicht 2024 '!Q50 -> 0 | R50: ='Rit overzicht 2024 '!R50 -> 0 | S50: ='Rit overzicht 2024 '!S50 -> 0 | T50: ='Rit overzicht 2024 '!T50 -> 14 | U50: ='Rit overzicht 2024 '!U50 -> 5 | V50: ='Rit overzicht 2024 '!V50 -> 0 | W50: ='Rit overzicht 2024 '!W50 -> 0 | X50: ='Rit overzicht 2024 '!X50 -> 0 | Y50: ='Rit overzicht 2024 '!Y50 -> 14 | Z50: ='Rit overzicht 2024 '!Z50 -> 0 | AA50: ='Rit overzicht 2024 '!AA50 -> 0 | AB50: ='Rit overzicht 2024 '!AB50 -> 0 | AC50: ='Rit overzicht 2024 '!AC50 -> 0 | AD50: ='Rit overzicht 2024 '!AD50 -> 0 | AE50: ='Rit overzicht 2024 '!AE50 -> 0 | AF50: ='Rit overzicht 2024 '!AF50 -> 0 | AG50: ='Rit overzicht 2024 '!AG50 -> 0 | AH50: ='Rit overzicht 2024 '!AH50 -> 0 | AI50: ='Rit overzicht 2024 '!AI50 -> 0 | AJ50: ='Rit overzicht 2024 '!AJ50 -> 0 | AK50: ='Rit overzicht 2024 '!AK50 -> 0 | AL50: ='Rit overzicht 2024 '!AL50 -> 0 | AM50: ='Rit overzicht 2024 '!AM50 -> 0 | AN50: ='Rit overzicht 2024 '!AN50 -> 0 | AO50: ='Rit overzicht 2024 '!AO50 -> 0 | AP50: ='Rit overzicht 2024 '!AP50 -> 0 | AQ50: ='Rit overzicht 2024 '!AQ50 -> 0 | AR50: ='Rit overzicht 2024 '!AR50 -> 0 | AS50: ='Rit overzicht 2024 '!AS50 -> 0 | AT50: ='Rit overzicht 2024 '!AT50 -> 0 | AU50: ='Rit overzicht 2024 '!AU50 -> 0 | AV50: ='Rit overzicht 2024 '!AV50 -> 0 | AW50: ='Rit overzicht 2024 '!AW50 -> 0 | AX50: ='Rit overzicht 2024 '!AX50 -> 0 | AY50: ='Rit overzicht 2024 '!AY50 -> 0 | AZ50: ='Rit overzicht 2024 '!AZ50 -> 0 | BA50: ='Rit overzicht 2024 '!BA50 -> 0 | BB50: ='Rit overzicht 2024 '!BB50 -> 0 | BC50: ='Rit overzicht 2024 '!BC50 -> 0 | BD50: ='Rit overzicht 2024 '!BD50 -> 0 | BE50: ='Rit overzicht 2024 '!BE50 -> 0 | BF50: ='Rit overzicht 2024 '!BF50 -> 0 | BG50: ='Rit overzicht 2024 '!BG50 -> 0 | BH50: ='Rit overzicht 2024 '!BH50 -> 0 | BI50: ='Rit overzicht 2024 '!BI50 -> 0 | BJ50: ='Rit overzicht 2024 '!BJ50 -> 14 | BK50: ='Rit overzicht 2024 '!BK50 -> 0 | BL50: ='Rit overzicht 2024 '!BL50 -> 19 | BM50: ='Rit overzicht 2024 '!BM50 -> 0 | BN50: ='Rit overzicht 2024 '!BN50 -> 0
A51: 4.2 | C51: Woensdag | D51: 3=Nieuwpoort en 4=Langerak Binnen | E51: 3= Hennepstr 32 | F51: 6 | G51: 6 | H51: 6 | I51: ='Rit overzicht 2024 '!I51 -> 0 | J51: ='Rit overzicht 2024 '!J51 -> 0 | K51: ='Rit overzicht 2024 '!K51 -> 6 | L51: ='Rit overzicht 2024 '!L51 -> 0 | M51: ='Rit overzicht 2024 '!M51 -> 11 | N51: ='Rit overzicht 2024 '!N51 -> 0 | O51: ='Rit overzicht 2024 '!O51 -> 0 | P51: ='Rit overzicht 2024 '!P51 -> 0 | Q51: ='Rit overzicht 2024 '!Q51 -> 0 | R51: ='Rit overzicht 2024 '!R51 -> 2 | S51: ='Rit overzicht 2024 '!S51 -> 9 | T51: ='Rit overzicht 2024 '!T51 -> 0 | U51: ='Rit overzicht 2024 '!U51 -> 0 | V51: ='Rit overzicht 2024 '!V51 -> 0 | W51: ='Rit overzicht 2024 '!W51 -> 0 | X51: ='Rit overzicht 2024 '!X51 -> 0 | Y51: ='Rit overzicht 2024 '!Y51 -> 0 | Z51: ='Rit overzicht 2024 '!Z51 -> 0 | AA51: ='Rit overzicht 2024 '!AA51 -> 0 | AB51: ='Rit overzicht 2024 '!AB51 -> 0 | AC51: ='Rit overzicht 2024 '!AC51 -> 0 | AD51: ='Rit overzicht 2024 '!AD51 -> 0 | AE51: ='Rit overzicht 2024 '!AE51 -> 0 | AF51: ='Rit overzicht 2024 '!AF51 -> 0 | AG51: ='Rit overzicht 2024 '!AG51 -> 0 | AH51: ='Rit overzicht 2024 '!AH51 -> 0 | AI51: ='Rit overzicht 2024 '!AI51 -> 0 | AJ51: ='Rit overzicht 2024 '!AJ51 -> 0 | AK51: ='Rit overzicht 2024 '!AK51 -> 0 | AL51: ='Rit overzicht 2024 '!AL51 -> 0 | AM51: ='Rit overzicht 2024 '!AM51 -> 0 | AN51: ='Rit overzicht 2024 '!AN51 -> 0 | AO51: ='Rit overzicht 2024 '!AO51 -> 0 | AP51: ='Rit overzicht 2024 '!AP51 -> 0 | AQ51: ='Rit overzicht 2024 '!AQ51 -> 0 | AR51: ='Rit overzicht 2024 '!AR51 -> 0 | AS51: ='Rit overzicht 2024 '!AS51 -> 0 | AT51: ='Rit overzicht 2024 '!AT51 -> 0 | AU51: ='Rit overzicht 2024 '!AU51 -> 0 | AV51: ='Rit overzicht 2024 '!AV51 -> 0 | AW51: ='Rit overzicht 2024 '!AW51 -> 0 | AX51: ='Rit overzicht 2024 '!AX51 -> 0 | AY51: ='Rit overzicht 2024 '!AY51 -> 0 | AZ51: ='Rit overzicht 2024 '!AZ51 -> 0 | BA51: ='Rit overzicht 2024 '!BA51 -> 0 | BB51: ='Rit overzicht 2024 '!BB51 -> 0 | BC51: ='Rit overzicht 2024 '!BC51 -> 0 | BD51: ='Rit overzicht 2024 '!BD51 -> 0 | BE51: ='Rit overzicht 2024 '!BE51 -> 0 | BF51: ='Rit overzicht 2024 '!BF51 -> 0 | BG51: ='Rit overzicht 2024 '!BG51 -> 0 | BH51: ='Rit overzicht 2024 '!BH51 -> 0 | BI51: ='Rit overzicht 2024 '!BI51 -> 2 | BJ51: ='Rit overzicht 2024 '!BJ51 -> 0 | BK51: ='Rit overzicht 2024 '!BK51 -> 26 | BL51: ='Rit overzicht 2024 '!BL51 -> 0 | BM51: ='Rit overzicht 2024 '!BM51 -> 28 | BN51: ='Rit overzicht 2024 '!BN51 -> 66
A52: 5.1 | C52: Woensdag | D52: Bleskensgraaf Binnen | E52: Meidoornstraat 4 | F52: 5 | G52: 5 | H52: 5 | I52: ='Rit overzicht 2024 '!I52 -> 0 | J52: ='Rit overzicht 2024 '!J52 -> 0 | K52: ='Rit overzicht 2024 '!K52 -> 12 | L52: ='Rit overzicht 2024 '!L52 -> 0 | M52: ='Rit overzicht 2024 '!M52 -> 26 | N52: ='Rit overzicht 2024 '!N52 -> 0 | O52: ='Rit overzicht 2024 '!O52 -> 0 | P52: ='Rit overzicht 2024 '!P52 -> 0 | Q52: ='Rit overzicht 2024 '!Q52 -> 0 | R52: ='Rit overzicht 2024 '!R52 -> 22 | S52: ='Rit overzicht 2024 '!S52 -> 6 | T52: ='Rit overzicht 2024 '!T52 -> 0 | U52: ='Rit overzicht 2024 '!U52 -> 0 | V52: ='Rit overzicht 2024 '!V52 -> 0 | W52: ='Rit overzicht 2024 '!W52 -> 0 | X52: ='Rit overzicht 2024 '!X52 -> 0 | Y52: ='Rit overzicht 2024 '!Y52 -> 0 | Z52: ='Rit overzicht 2024 '!Z52 -> 0 | AA52: ='Rit overzicht 2024 '!AA52 -> 0 | AB52: ='Rit overzicht 2024 '!AB52 -> 0 | AC52: ='Rit overzicht 2024 '!AC52 -> 0 | AD52: ='Rit overzicht 2024 '!AD52 -> 0 | AE52: ='Rit overzicht 2024 '!AE52 -> 0 | AF52: ='Rit overzicht 2024 '!AF52 -> 0 | AG52: ='Rit overzicht 2024 '!AG52 -> 0 | AH52: ='Rit overzicht 2024 '!AH52 -> 0 | AI52: ='Rit overzicht 2024 '!AI52 -> 0 | AJ52: ='Rit overzicht 2024 '!AJ52 -> 0 | AK52: ='Rit overzicht 2024 '!AK52 -> 0 | AL52: ='Rit overzicht 2024 '!AL52 -> 0 | AM52: ='Rit overzicht 2024 '!AM52 -> 0 | AN52: ='Rit overzicht 2024 '!AN52 -> 0 | AO52: ='Rit overzicht 2024 '!AO52 -> 0 | AP52: ='Rit overzicht 2024 '!AP52 -> 0 | AQ52: ='Rit overzicht 2024 '!AQ52 -> 0 | AR52: ='Rit overzicht 2024 '!AR52 -> 0 | AS52: ='Rit overzicht 2024 '!AS52 -> 0 | AT52: ='Rit overzicht 2024 '!AT52 -> 0 | AU52: ='Rit overzicht 2024 '!AU52 -> 0 | AV52: ='Rit overzicht 2024 '!AV52 -> 0 | AW52: ='Rit overzicht 2024 '!AW52 -> 0 | AX52: ='Rit overzicht 2024 '!AX52 -> 0 | AY52: ='Rit overzicht 2024 '!AY52 -> 0 | AZ52: ='Rit overzicht 2024 '!AZ52 -> 0 | BA52: ='Rit overzicht 2024 '!BA52 -> 0 | BB52: ='Rit overzicht 2024 '!BB52 -> 0 | BC52: ='Rit overzicht 2024 '!BC52 -> 0 | BD52: ='Rit overzicht 2024 '!BD52 -> 0 | BE52: ='Rit overzicht 2024 '!BE52 -> 0 | BF52: ='Rit overzicht 2024 '!BF52 -> 0 | BG52: ='Rit overzicht 2024 '!BG52 -> 0 | BH52: ='Rit overzicht 2024 '!BH52 -> 0 | BI52: ='Rit overzicht 2024 '!BI52 -> 0 | BJ52: ='Rit overzicht 2024 '!BJ52 -> 22 | BK52: ='Rit overzicht 2024 '!BK52 -> 0 | BL52: ='Rit overzicht 2024 '!BL52 -> 44 | BM52: ='Rit overzicht 2024 '!BM52 -> 0 | BN52: ='Rit overzicht 2024 '!BN52 -> 0
A53: 5.1 | C53: Woensdag | D53: Bleskensgraaf Binnen | F53: 5 | G53: 5 | H53: 5 | I53: ='Rit overzicht 2024 '!I53 -> 0 | J53: ='Rit overzicht 2024 '!J53 -> 1 | K53: ='Rit overzicht 2024 '!K53 -> 0 | L53: ='Rit overzicht 2024 '!L53 -> 0 | M53: ='Rit overzicht 2024 '!M53 -> 0 | N53: ='Rit overzicht 2024 '!N53 -> 0 | O53: ='Rit overzicht 2024 '!O53 -> 0 | P53: ='Rit overzicht 2024 '!P53 -> 0 | Q53: ='Rit overzicht 2024 '!Q53 -> 0 | R53: ='Rit overzicht 2024 '!R53 -> 0 | S53: ='Rit overzicht 2024 '!S53 -> 11 | T53: ='Rit overzicht 2024 '!T53 -> 0 | U53: ='Rit overzicht 2024 '!U53 -> 0 | V53: ='Rit overzicht 2024 '!V53 -> 0 | W53: ='Rit overzicht 2024 '!W53 -> 0 | X53: ='Rit overzicht 2024 '!X53 -> 0 | Y53: ='Rit overzicht 2024 '!Y53 -> 0 | Z53: ='Rit overzicht 2024 '!Z53 -> 0 | AA53: ='Rit overzicht 2024 '!AA53 -> 0 | AB53: ='Rit overzicht 2024 '!AB53 -> 0 | AC53: ='Rit overzicht 2024 '!AC53 -> 0 | AD53: ='Rit overzicht 2024 '!AD53 -> 0 | AE53: ='Rit overzicht 2024 '!AE53 -> 0 | AF53: ='Rit overzicht 2024 '!AF53 -> 0 | AG53: ='Rit overzicht 2024 '!AG53 -> 0 | AH53: ='Rit overzicht 2024 '!AH53 -> 0 | AI53: ='Rit overzicht 2024 '!AI53 -> 0 | AJ53: ='Rit overzicht 2024 '!AJ53 -> 0 | AK53: ='Rit overzicht 2024 '!AK53 -> 0 | AL53: ='Rit overzicht 2024 '!AL53 -> 0 | AM53: ='Rit overzicht 2024 '!AM53 -> 0 | AN53: ='Rit overzicht 2024 '!AN53 -> 0 | AO53: ='Rit overzicht 2024 '!AO53 -> 0 | AP53: ='Rit overzicht 2024 '!AP53 -> 0 | AQ53: ='Rit overzicht 2024 '!AQ53 -> 0 | AR53: ='Rit overzicht 2024 '!AR53 -> 0 | AS53: ='Rit overzicht 2024 '!AS53 -> 0 | AT53: ='Rit overzicht 2024 '!AT53 -> 0 | AU53: ='Rit overzicht 2024 '!AU53 -> 0 | AV53: ='Rit overzicht 2024 '!AV53 -> 0 | AW53: ='Rit overzicht 2024 '!AW53 -> 0 | AX53: ='Rit overzicht 2024 '!AX53 -> 0 | AY53: ='Rit overzicht 2024 '!AY53 -> 0 | AZ53: ='Rit overzicht 2024 '!AZ53 -> 0 | BA53: ='Rit overzicht 2024 '!BA53 -> 0 | BB53: ='Rit overzicht 2024 '!BB53 -> 0 | BC53: ='Rit overzicht 2024 '!BC53 -> 0 | BD53: ='Rit overzicht 2024 '!BD53 -> 0 | BE53: ='Rit overzicht 2024 '!BE53 -> 0 | BF53: ='Rit overzicht 2024 '!BF53 -> 0 | BG53: ='Rit overzicht 2024 '!BG53 -> 0 | BH53: ='Rit overzicht 2024 '!BH53 -> 0 | BI53: ='Rit overzicht 2024 '!BI53 -> 1 | BJ53: ='Rit overzicht 2024 '!BJ53 -> 0 | BK53: ='Rit overzicht 2024 '!BK53 -> 11 | BL53: ='Rit overzicht 2024 '!BL53 -> 0 | BM53: ='Rit overzicht 2024 '!BM53 -> 12 | BN53: ='Rit overzicht 2024 '!BN53 -> 32
A54: 5.2 | C54: Woensdag | D54: 1 Brandwijk 2Molenaarsgraaf 3 Ottoland Binnen | E54: 1 = Julianastraat 1+ 2 = Graveland 54+ 3= Burg.Visserwerf 2 | F54: 5 | G54: 5 | H54: 5 | I54: ='Rit overzicht 2024 '!I54 -> 0 | J54: ='Rit overzicht 2024 '!J54 -> 11 | K54: ='Rit overzicht 2024 '!K54 -> 0 | L54: ='Rit overzicht 2024 '!L54 -> 0 | M54: ='Rit overzicht 2024 '!M54 -> 0 | N54: ='Rit overzicht 2024 '!N54 -> 0 | O54: ='Rit overzicht 2024 '!O54 -> 0 | P54: ='Rit overzicht 2024 '!P54 -> 0 | Q54: ='Rit overzicht 2024 '!Q54 -> 0 | R54: ='Rit overzicht 2024 '!R54 -> 7 | S54: ='Rit overzicht 2024 '!S54 -> 6 | T54: ='Rit overzicht 2024 '!T54 -> 0 | U54: ='Rit overzicht 2024 '!U54 -> 0 | V54: ='Rit overzicht 2024 '!V54 -> 0 | W54: ='Rit overzicht 2024 '!W54 -> 0 | X54: ='Rit overzicht 2024 '!X54 -> 0 | Y54: ='Rit overzicht 2024 '!Y54 -> 0 | Z54: ='Rit overzicht 2024 '!Z54 -> 8 | AA54: ='Rit overzicht 2024 '!AA54 -> 0 | AB54: ='Rit overzicht 2024 '!AB54 -> 0 | AC54: ='Rit overzicht 2024 '!AC54 -> 0 | AD54: ='Rit overzicht 2024 '!AD54 -> 0 | AE54: ='Rit overzicht 2024 '!AE54 -> 0 | AF54: ='Rit overzicht 2024 '!AF54 -> 0 | AG54: ='Rit overzicht 2024 '!AG54 -> 0 | AH54: ='Rit overzicht 2024 '!AH54 -> 0 | AI54: ='Rit overzicht 2024 '!AI54 -> 0 | AJ54: ='Rit overzicht 2024 '!AJ54 -> 0 | AK54: ='Rit overzicht 2024 '!AK54 -> 0 | AL54: ='Rit overzicht 2024 '!AL54 -> 0 | AM54: ='Rit overzicht 2024 '!AM54 -> 0 | AN54: ='Rit overzicht 2024 '!AN54 -> 0 | AO54: ='Rit overzicht 2024 '!AO54 -> 0 | AP54: ='Rit overzicht 2024 '!AP54 -> 0 | AQ54: ='Rit overzicht 2024 '!AQ54 -> 0 | AR54: ='Rit overzicht 2024 '!AR54 -> 0 | AS54: ='Rit overzicht 2024 '!AS54 -> 0 | AT54: ='Rit overzicht 2024 '!AT54 -> 0 | AU54: ='Rit overzicht 2024 '!AU54 -> 0 | AV54: ='Rit overzicht 2024 '!AV54 -> 0 | AW54: ='Rit overzicht 2024 '!AW54 -> 0 | AX54: ='Rit overzicht 2024 '!AX54 -> 0 | AY54: ='Rit overzicht 2024 '!AY54 -> 0 | AZ54: ='Rit overzicht 2024 '!AZ54 -> 0 | BA54: ='Rit overzicht 2024 '!BA54 -> 0 | BB54: ='Rit overzicht 2024 '!BB54 -> 0 | BC54: ='Rit overzicht 2024 '!BC54 -> 0 | BD54: ='Rit overzicht 2024 '!BD54 -> 0 | BE54: ='Rit overzicht 2024 '!BE54 -> 0 | BF54: ='Rit overzicht 2024 '!BF54 -> 0 | BG54: ='Rit overzicht 2024 '!BG54 -> 0 | BH54: ='Rit overzicht 2024 '!BH54 -> 0 | BI54: ='Rit overzicht 2024 '!BI54 -> 0 | BJ54: ='Rit overzicht 2024 '!BJ54 -> 26 | BK54: ='Rit overzicht 2024 '!BK54 -> 0 | BL54: ='Rit overzicht 2024 '!BL54 -> 6 | BM54: ='Rit overzicht 2024 '!BM54 -> 0 | BN54: ='Rit overzicht 2024 '!BN54 -> 0
A55: 5.2 | C55: Woensdag | D55: 1 Brandwijk 2Molenaarsgraaf 3 Ottoland Binnen | F55: 5 | G55: 5 | H55: 5 | I55: ='Rit overzicht 2024 '!I55 -> 0 | J55: ='Rit overzicht 2024 '!J55 -> 0 | K55: ='Rit overzicht 2024 '!K55 -> 0 | L55: ='Rit overzicht 2024 '!L55 -> 0 | M55: ='Rit overzicht 2024 '!M55 -> 0 | N55: ='Rit overzicht 2024 '!N55 -> 0 | O55: ='Rit overzicht 2024 '!O55 -> 0 | P55: ='Rit overzicht 2024 '!P55 -> 0 | Q55: ='Rit overzicht 2024 '!Q55 -> 9 | R55: ='Rit overzicht 2024 '!R55 -> 0 | S55: ='Rit overzicht 2024 '!S55 -> 2 | T55: ='Rit overzicht 2024 '!T55 -> 0 | U55: ='Rit overzicht 2024 '!U55 -> 0 | V55: ='Rit overzicht 2024 '!V55 -> 2 | W55: ='Rit overzicht 2024 '!W55 -> 5 | X55: ='Rit overzicht 2024 '!X55 -> 0 | Y55: ='Rit overzicht 2024 '!Y55 -> 0 | Z55: ='Rit overzicht 2024 '!Z55 -> 0 | AA55: ='Rit overzicht 2024 '!AA55 -> 0 | AB55: ='Rit overzicht 2024 '!AB55 -> 0 | AC55: ='Rit overzicht 2024 '!AC55 -> 0 | AD55: ='Rit overzicht 2024 '!AD55 -> 0 | AE55: ='Rit overzicht 2024 '!AE55 -> 0 | AF55: ='Rit overzicht 2024 '!AF55 -> 0 | AG55: ='Rit overzicht 2024 '!AG55 -> 0 | AH55: ='Rit overzicht 2024 '!AH55 -> 0 | AI55: ='Rit overzicht 2024 '!AI55 -> 0 | AJ55: ='Rit overzicht 2024 '!AJ55 -> 0 | AK55: ='Rit overzicht 2024 '!AK55 -> 0 | AL55: ='Rit overzicht 2024 '!AL55 -> 0 | AM55: ='Rit overzicht 2024 '!AM55 -> 0 | AN55: ='Rit overzicht 2024 '!AN55 -> 0 | AO55: ='Rit overzicht 2024 '!AO55 -> 0 | AP55: ='Rit overzicht 2024 '!AP55 -> 0 | AQ55: ='Rit overzicht 2024 '!AQ55 -> 0 | AR55: ='Rit overzicht 2024 '!AR55 -> 0 | AS55: ='Rit overzicht 2024 '!AS55 -> 0 | AT55: ='Rit overzicht 2024 '!AT55 -> 0 | AU55: ='Rit overzicht 2024 '!AU55 -> 0 | AV55: ='Rit overzicht 2024 '!AV55 -> 0 | AW55: ='Rit overzicht 2024 '!AW55 -> 0 | AX55: ='Rit overzicht 2024 '!AX55 -> 0 | AY55: ='Rit overzicht 2024 '!AY55 -> 0 | AZ55: ='Rit overzicht 2024 '!AZ55 -> 0 | BA55: ='Rit overzicht 2024 '!BA55 -> 0 | BB55: ='Rit overzicht 2024 '!BB55 -> 0 | BC55: ='Rit overzicht 2024 '!BC55 -> 0 | BD55: ='Rit overzicht 2024 '!BD55 -> 0 | BE55: ='Rit overzicht 2024 '!BE55 -> 0 | BF55: ='Rit overzicht 2024 '!BF55 -> 0 | BG55: ='Rit overzicht 2024 '!BG55 -> 0 | BH55: ='Rit overzicht 2024 '!BH55 -> 0 | BI55: ='Rit overzicht 2024 '!BI55 -> 2 | BJ55: ='Rit overzicht 2024 '!BJ55 -> 0 | BK55: ='Rit overzicht 2024 '!BK55 -> 16 | BL55: ='Rit overzicht 2024 '!BL55 -> 0 | BM55: ='Rit overzicht 2024 '!BM55 -> 18 | BN55: ='Rit overzicht 2024 '!BN55 -> 21
